Workbook

Sheet Disclaimer
B1: Disclaimer
B5: The Greek NRAʼs (EETT) LRIC+ Bottom-Up techno-economic model is property of EETT for the estimation of NGA WH Rates. Use, reproduction and reverse engineering of the tool and the code without the explicit permission of the ΕΕΤΤ is prohibited. The model has been designed and developed by the MINT - Management and Economics of Innovation in Telecom Industries Group of the Department of Informatics and Telecommunications of the National and Kapodistrian University of Athens (UoA) for the specific project.
B6: UoA team:
B7: Dr. Dimitris Katsianis
B8: Dr. Aristides Chipouras
B9: Dr. Markos Tselekounis
B10: Nikolaos Ioannou
B11: George Loumos
B12: Konstantin Petre
B13: Dimitris Kokkinis

Sheet Version History
B1: Version History
I3: Development Stages
B4: Last calculation: | D4: =TODAY() -> 2024-04-09 | E4: =NOW() -> 45391.68835 | I4: 1: | J4: Pre-alpha
B5: Development Stage: | D5: =IF(D6<"1.2",J4,IF(D6<"1.3",J5,IF(D6<"1.4",J6,IF(D6<"1.5",J7,J8)))) -> Public Ready | I5: 2: | J5: Alpha
B6: Current Version: | D6: =B9 -> 2.7 | I6: 3: | J6: Beta
I7: 4: | J7: Private Ready
B8: Version | C8: Start Date | D8: Stage | I8: 5: | J8: Public Ready
B9: 2.7 | C9: 05/08/2023 | D9: Public Ready
B17: Past Versions | C17: Start Date | D17: Stage
B18: 1.0 | C18: 2018-06-11 | D18: =IF(B18<"1.2",$J$4,IF(B18<"1.3",$J$5,IF(B18<"1.4",$J$6,IF(B18<"1.5",$J$7,$J$8)))) -> Pre-alpha
B19: 1.1 | C19: 2018-09-22 | D19: =IF(B19<"1.2",$J$4,IF(B19<"1.3",$J$5,IF(B19<"1.4",$J$6,IF(B19<"1.5",$J$7,$J$8)))) -> Pre-alpha
B20: 1.2 | C20: 2018-10-01 | D20: =IF(B20<"1.2",$J$4,IF(B20<"1.3",$J$5,IF(B20<"1.4",$J$6,IF(B20<"1.5",$J$7,$J$8)))) -> Alpha
B21: 1.25 | C21: 2018-12-20 | D21: =IF(B21<"1.2",$J$4,IF(B21<"1.3",$J$5,IF(B21<"1.4",$J$6,IF(B21<"1.5",$J$7,$J$8)))) -> Alpha
B22: 1.3 | C22: 2018-12-25 | D22: =IF(B22<"1.2",$J$4,IF(B22<"1.3",$J$5,IF(B22<"1.4",$J$6,IF(B22<"1.5",$J$7,$J$8)))) -> Beta
B23: 1.4 | C23: 2019-01-01 | D23: Private Ready
B24: 1.5 | C24: 2019-03-11 | D24: Public Ready
B25: 2.0 | C25: 2019-04-01 | D25: Public Ready
B26: 2.1 | C26: 2019-07-05 | D26: Public Ready
B27: 2.2 | C27: 2019-11-10 | D27: Public Ready
B28: 2.3 | C28: 25/01/2020 | D28: Public Ready
B29: 2.4 | C29: 15/03/2020 | D29: Public Ready
B30: 2.5 | C30: 30/09/2022 | D30: Public Ready
B31: 2.6 | C31: 05/12/2022 | D31: Public Ready
B32: 2.7 | C32: 05/08/2023 | D32: Public Ready

Sheet Notes
B1: Notes
B3: Style | C3: Comment | E3: Color code
B5: Input Data | C5: Input that users can edit | E5: 300
B7: Input Real Data | C7: Input based on real data | E7: 500
B9: Input Estimation | C9: Input based on estimation | E9: 784
B11: Confidential Data | C11: Cells to change in the public versions | E11: -85
B13: Internal Link | C13: Input that is linked in the same workbook | E13: 344
B15: Internal INDIRECT Link | C15: Input that is linked in the same workbook with the INDIRECT() function | E15: -9
B17: External Link | C17: Input that is linked in other workbook | E17: 98
B19: Output | C19: Output of the model | E19: 43
B21: Calculation | C21: Calculation cell | E21: 31313
B23: Total | C23: Sum of values | E23: 85
B25: Name | C25: Excel name associated to one or more cells that are surrounded with blue border | E25: Name
B27: Header 1 | C27: Section Header | E27: Version
B29: Header 2 | C29: SubSection Header | E29: Version
B31: Comments/Notes | C31: Comments or notes | E31: Note:

Sheet Maps_and_Contents
B1: Maps and Contents

Sheet Catalogue_Config
B1: Catalogue and Configuration
B3: Study Period | D3: Study Years | F3: Cost Trends Categories | I3: Index | J3: Elements List | K3: Trends Category | M3: NRA Cabinet Guidelines | AB3: Global Variables
B4: 2019 | D4: 1 | F4: Active Equipment | H4: Common | I4: 1 | J4: Billing System | K4: Services Platform | O4: Cabinet Deployment | AL4: Undepreciated Asset | AU4: Trench Mitigation | BD4: Trench Proportion per Geotype
B5: =B4+1 -> 2020 | D5: =D4+1 -> 2 | F5: Passive Equipment | I5: =I4+1 -> 2 | J5: empty | K5: empty
B6: 2021 | D6: 3 | F6: Fiber | I6: =I5+1 -> 3 | J6: Network Management System | K6: Services Platform | O6: Stage | P6: Coverage Obligation | Q6: Purchase Threshold | U6: NRA Upgrade Cutoff | X6: NRA Cabinet Cutoff | AD6: WACC | AM6: Copper Trench Value | AQ6: Poles Value | AS6: Copper Cable Value | AV6: Trench Reuse | AY6: Aerial Proportion | BD6: Geotype | BF6: Price | BG6: Core Reuse | BI6: Market Share | BK6: Core Trench Reuse Cost
B7: 2022 | D7: 4 | F7: Trenches | I7: 4 | J7: Provision System | K7: Services Platform | AY7: Rural | BA7: Suburban
B8: 2023 | D8: 5 | F8: Services Platform | I8: 5 | J8: Eligibility System | K8: Services Platform | O8: 1 | P8: =O8*NRA_Cabinet_Cutoff -> 0.25 | Q8: -- | U8: 0.15 | X8: 0.25 | AD8: 0.0848 | AM8: 0.1634 | AQ8: 0.1414 | AS8: 0.126 | AV8: 0.2 | AY8: 0.8 | BA8: 0.4 | BD8: Rural | BF8: 0.6 | BG8: =INDEX([2]!Core_Reuse,0,4) -> 0.03900087912 | BI8: 1 | BK8: 0.5
B9: 2024 | D9: 6 | F9: Air Conditioning | I9: 6 | J9: Other IT System | K9: Services Platform | O9: 2 | P9: =O9*NRA_Cabinet_Cutoff -> 0.5 | Q9: =(O9-1)*NRA_Upgrade_Cutoff -> 0.15 | BD9: Suburban | BF9: 0.85 | BG9: =INDEX([2]!Core_Reuse,0,3) -> 0.07850400269
B10: =B9+1 -> 2025 | D10: =D9+1 -> 7 | F10: Power Energy | I10: =I9+1 -> 7 | J10: Rights of Way Trench | K10: Other | O10: 3 | P10: =O10*NRA_Cabinet_Cutoff -> 0.75 | Q10: =(O10-1)*NRA_Upgrade_Cutoff -> 0.3 | U10: NRA_Upgrade_Cutoff | X10: NRA_Cabinet_Cutoff | AD10: WACC | AM10: Copper_Trench_Value | AQ10: Poles_Value | AS10: Copper_Cable_Value | AV10: Trench_Reuse | AY10: Aerial_Proportion_Rural | BA10: Aerial_Proportion_Suburban | BD10: Urban | BF10: 0.95 | BG10: =INDEX([2]!Core_Reuse,0,2) -> 0.1017780709 | BI10: Market_Share | BK10: Trench_Core_Proportion_Cost
B11: 2026 | D11: 8 | F11: Copper | I11: 8 | J11: Rights of Way Cabinet | K11: Other | O11: 4 | P11: =O11*NRA_Cabinet_Cutoff -> 1 | Q11: =(O11-1)*NRA_Upgrade_Cutoff -> 0.45 | BD11: Dense Urban | BF11: 1 | BG11: =INDEX([2]!Core_Reuse,0,1) -> 0.06521721227
B12: 2027 | D12: 9 | F12: Voice | H12: Aggregation | I12: 9 | J12: OLO Trench | K12: Trenches | P12: NRA_Coverage | BD12: Geotypes | BF12: Trench_Price_Proportion | BG12: Trench_Core_Proportion
B13: 2028 | D13: 10 | F13: Common | I13: 10 | J13: Layer 2 Switch | K13: Active Equipment
B14: Study_Period | D14: Study_Years | F14: Other | I14: 11 | J14: Layer 2 Switch Core Facing Cards | K14: Active Equipment | M14: Dimensioning Parameters | AB14: Central Office | AK14: Routing, Switching & Core | AZ14: Overheads | BH14: Scenario Manager
F15: Overheads | I15: 12 | J15: Layer 2 Aggregation Switch Network Facing Cards | K15: Active Equipment
F16: Customer Side Active Equipment Copper | H16: CO Manhole | I16: 13 | J16: Other Operator Reception Manhole | K16: Trenches | N16: FTTC Vectoring | T16: FTTH | AC16: OLT | AL16: Layer 3 Distribution Router | AU16: BRAS/BNG | BA16: Overhead_pct | BI16: Scenario
F17: Customer Side Active Equipment Fiber | H17: Core | I17: 14 | J17: RADIUS Servers | K17: Active Equipment | BA17: 0.166
F18: empty | I18: 15 | J18: DNS Servers | K18: Active Equipment | O18: Ports per Card | Q18: Cards per MSAN | U18: Splitting Ratio | AD18: Port Capacity | AG18: Port BW (GE) | AM18: Line Cards Profile | AQ18: Capacity (GE) | AV18: Subscribers per Unit | BI18: NGA
F19: Cost_Trends_Categories | I19: 16 | J19: Core Layer 3 Routers | K19: Active Equipment | AM19: Cards | AN19: Ports | AO19: GE | BA19: Overhead_pct
I20: 17 | J20: Distribution Layer 3 Routers | K20: Active Equipment | O20: 48 | Q20: 4 | U20: 32 | AD20: 224 | AG20: 10 | AM20: 8 | AN20: 40 | AO20: 10 | AQ20: =AM20*AN20*AO20*Max_Util -> 2560 | AV20: 32000 | BI20: Scenario
I21: 18 | J21: empty | K21: empty | AM21: 2 | AN21: 8 | AO21: 100
I22: 19 | J22: BRAS/BNG | K22: Active Equipment | O22: VDSL_Ports_per_Card | Q22: VDSL_Cards_per_MSAN | U22: FTTH_Splitting_Ratio | AD22: OLT_Port_Capacity | AG22: OLT_Port_Bandwidth | AQ22: L3R_Distr_Capacity | AV22: BNG_Capacity
H23: Aggregation | I23: 20 | J23: Layer 2 Aggregation Switch | K23: Active Equipment
H24: CO | I24: 21 | J24: Site | K24: Other | O24: MSANs per Cabinet | Q24: Backhaul Ports/Card | U24: Cabinet Splitting
I25: 22 | J25: Rack | K25: Passive Equipment | AL25: Layer 3 Core Router | AU25: RADIUS
I26: 23 | J26: Power Generator | K26: Power Energy | O26: 2 | Q26: 1 | U26: 4
I27: 24 | J27: empty | K27: empty | AD27: ODF Fibers per Rack | AG27: Racks per DSLAM | AM27: Line Cards Profile | AQ27: Capacity (GE) | AV27: Subscribers per Unit
I28: 25 | J28: VDSL DSLAM | K28: Active Equipment | Q28: VDSL_MSAN_Backhaul_Profile | U28: FTTH_Cabinet_Split | AM28: Cards | AN28: Ports | AO28: GE
I29: 26 | J29: VDSL Line Cards | K29: Active Equipment | AD29: 960 | AG29: 1 | AM29: 10 | AN29: 40 | AO29: 10 | AQ29: =AM29*AN29*AO29*Max_Util -> 3200 | AV29: 510000
I30: 27 | J30: empty | K30: empty | AM30: 10 | AN30: 8 | AO30: 100
I31: 28 | J31: Network-facing Ports CO | K31: Active Equipment | N31: FTTC G.fast | T31: Unvectored VDSL | AD31: ODF_Profile | AG31: Rack_Profile | AQ31: L3R_Core_Capacity | AV31: RADIUS_Capacity
I32: 29 | J32: MDF | K32: Passive Equipment
I33: 30 | J33: OLT | K33: Active Equipment | O33: Ports per Card | Q33: Cards per MSAN | U33: Ports per Card | X33: Cards per MSAN
I34: 31 | J34: ODF | K34: Passive Equipment | AL34: Layer 2 Aggregation | AU34: DNS
I35: 32 | J35: Air Conditioning Unit | K35: Air Conditioning | O35: 24 | Q35: =VDSL_Cards_per_MSAN -> 4 | U35: 48 | X35: 16
I36: 33 | J36: Power Supply Unit + Backup | K36: Active Equipment | AM36: Line Cards Profile | AQ36: Capacity (GE) | AV36: Subscribers per Unit
H37: FTTH Cabinet | I37: 34 | J37: Passive Cabinet (Fully equipped) | K37: Passive Equipment | O37: G.fast_Ports_per_Card | Q37: G.fast_Cards_per_MSAN | U37: ADSL_Ports_per_Card | X37: ADSL_Cards_per_MSAN | AM37: Cards | AN37: Ports | AO37: GE
H38: Active Cabinet | I38: 35 | J38: Cabinet | K38: Other | AM38: 4 | AN38: 24 | AO38: 1 | AQ38: =AM38*AN38*AO38*Max_Util -> 76.8 | AV38: 510000
I39: 36 | J39: Cabinet Base (Plinth) | K39: Other | O39: MSANs per Cabinet | Q39: Backhaul Ports/Card | U39: Backhaul BW (GE) | AM39: 2 | AN39: 2 | AO39: 10
I40: 37 | J40: MSAN SuperVectoring | K40: Active Equipment | AQ40: L2A_Capacity | AV40: DNS_Capacity
I41: 38 | J41: SuperVectoring Line Cards | K41: Active Equipment | O41: =O26 -> 2 | Q41: 1 | U41: 1
I42: =I41+1 -> 39 | J42: MSAN G.fast | K42: Active Equipment
I43: =I42+1 -> 40 | J43: G.Fast Line Cards | K43: Active Equipment | Q43: G.fast_MSAN_Backhaul_Profile | U43: ADSL_Backhaul_BW | AL43: Core Elements Utilization | AP43: BRAS Pct
I44: 41 | J44: empty | K44: empty
I45: 42 | J45: Network-facing Ports | K45: Active Equipment | AM45: Max Usage | AQ45: BRAS Proportion
I46: 43 | J46: Batteries | K46: Power Energy
H47: Premises | I47: 44 | J47: Building Entry Point (BEP) | K47: Passive Equipment | AM47: 0.8 | AQ47: 0.05
I48: 45 | J48: Splitters | K48: Passive Equipment
H49: Trenching | I49: 46 | J49: FTTC Feeder | K49: Trenches | AM49: Max_Util | AQ49: BRAS_pct
I50: 47 | J50: FTTC Distribution | K50: Trenches
I51: 48 | J51: FTTC Drop | K51: Trenches
I52: 49 | J52: FTTH Feeder | K52: Trenches
I53: 50 | J53: FTTH Distribution | K53: Trenches
I54: 51 | J54: FTTH Drop | K54: Trenches
I55: 52 | J55: Copper Feeder | K55: Trenches
I56: 53 | J56: Copper Distribution | K56: Trenches
I57: 54 | J57: Copper Drop | K57: Trenches
H58: Cabling | I58: 55 | J58: FTTH Fiber Cable 2 | K58: Fiber
I59: 56 | J59: FTTH Fiber Cable 4 | K59: Fiber
I60: 57 | J60: FTTH Fiber Cable 8 | K60: Fiber
I61: 58 | J61: FTTH Fiber Cable 12 | K61: Fiber
I62: 59 | J62: FTTH Fiber Cable 24 | K62: Fiber
I63: 60 | J63: FTTH Fiber Cable 48 | K63: Fiber
I64: 61 | J64: FTTH Fiber Cable 96 | K64: Fiber
I65: 62 | J65: FTTH Fiber Cable 192 | K65: Fiber
I66: 63 | J66: FTTC Fiber Cable 12 | K66: Fiber
I67: 64 | J67: FTTC Fiber Cable 24 | K67: Fiber
I68: 65 | J68: FTTC Fiber Cable 48 | K68: Fiber
I69: 66 | J69: FTTC Fiber Cable 96 | K69: Fiber
I70: 67 | J70: FTTC Fiber Cable 192 | K70: Fiber
I71: 68 | J71: Copper Cable 2 | K71: Copper
I72: 69 | J72: Copper Cable 4 | K72: Copper
I73: 70 | J73: Copper Cable 10 | K73: Copper
I74: 71 | J74: Copper Cable 20 | K74: Copper
I75: 72 | J75: Copper Cable 50 | K75: Copper
I76: 73 | J76: Copper Cable 100 | K76: Copper
I77: 74 | J77: Copper Cable 200 | K77: Copper
I78: 75 | J78: Copper Cable 400 | K78: Copper
I79: 76 | J79: Copper Cable 1000 | K79: Copper
I80: 77 | J80: Copper Cable 2000 | K80: Copper
H81: Miscellaneous | I81: 78 | J81: Power Consumption | K81: Power Energy
I82: 79 | J82: Network Planning (Survey, Exploitation, etc.) | K82: Other
I83: 80 | J83: empty | K83: empty
I84: 81 | J84: empty | K84: empty
H85: Aerial Copper | I85: 82 | J85: Aerial Copper Cable 2 | K85: Copper
I86: 83 | J86: Aerial Copper Cable 4 | K86: Copper
I87: 84 | J87: Aerial Copper Cable 20 | K87: Copper
I88: 85 | J88: Poles | K88: Trenches
H89: Core Transmission | I89: 86 | J89: Core Trench Regional | K89: Trenches
I90: 87 | J90: WDM Transmission Regional | K90: Active Equipment
I91: 88 | J91: Core Trench National | K91: Trenches
I92: 89 | J92: WDM Transmission National | K92: Active Equipment
H93: Reusable Assets | I93: 90 | J93: ="[REA] " & J10 -> [REA] Rights of Way Trench | K93: =K10 -> Other
I94: 91 | J94: empty | K94: empty
I95: 92 | J95: ="[REA] " & J50 -> [REA] FTTC Distribution | K95: =K50 -> Trenches
I96: 93 | J96: ="[REA] " & J51 -> [REA] FTTC Drop | K96: =K51 -> Trenches
I97: 94 | J97: ="[REA] " & J55 -> [REA] Copper Feeder | K97: =K55 -> Trenches
I98: 95 | J98: ="[REA] " & J56 -> [REA] Copper Distribution | K98: =K56 -> Trenches
I99: 96 | J99: ="[REA] " & J57 -> [REA] Copper Drop | K99: =K57 -> Trenches
I100: 97 | J100: empty | K100: empty
I101: 98 | J101: ="[REA] " & J71 -> [REA] Copper Cable 2 | K101: =K71 -> Copper
I102: 99 | J102: [REA] Copper Cable 4 | K102: =K72 -> Copper
I103: 100 | J103: [REA] Copper Cable 10 | K103: Copper
I104: 101 | J104: [REA] Copper Cable 20 | K104: Copper
I105: 102 | J105: [REA] Copper Cable 50 | K105: Copper
I106: 103 | J106: [REA] Copper Cable 100 | K106: Copper
I107: 104 | J107: [REA] Copper Cable 200 | K107: Copper
I108: 105 | J108: [REA] Copper Cable 400 | K108: Copper
I109: 106 | J109: [REA] Copper Cable 1000 | K109: Copper
I110: 107 | J110: ="[REA] " & J80 -> [REA] Copper Cable 2000 | K110: Copper
I111: 108 | J111: empty | K111: empty
I112: 109 | J112: ="[REA] " & J85 -> [REA] Aerial Copper Cable 2 | K112: =K85 -> Copper
I113: 110 | J113: ="[REA] " & J86 -> [REA] Aerial Copper Cable 4 | K113: =K86 -> Copper
I114: 111 | J114: ="[REA] " & J87 -> [REA] Aerial Copper Cable 20 | K114: =K87 -> Copper
I115: 112 | J115: ="[REA] " & J88 -> [REA] Poles | K115: =K88 -> Trenches
H116: L2 WAP Equipment | I116: 113 | J116: SVC NTE | K116: Customer Side Active Equipment Copper
I117: 114 | J117: SVO NTE | K117: Customer Side Active Equipment Fiber
H118: Floor Box | I118: 115 | J118: Floor Box | K118: Passive Equipment
H119: Copper Cabinets | I119: 116 | J119: Cabinet (KV) | K119: Passive Equipment
H120: Elements_Tags | I120: Elements_Index | J120: Elements_List | K120: Elements_Trend_Cat

Sheet Network_Elements
B1: Network Elements
P3: Real 2019 | Q3: Real 2019
E4: Model Single Unit | F4: REusable Asset | G4: Lifetime (Years) | H4: Unit Price (2019) | I4: OPEX (% of CAPEX) | J4: CAPEX Adjust | K4: CAPEX Unit Price (2019) | L4: OPEX Unit Price (2019) | N4: Cost Trend Category
D5: Network Element | P5: CAPEX | Q5: OPEX
B6: =Elements_Tags -> Common | C6: =Elements_Index -> 1 | D6: =Elements_List -> Billing System | E6: # | G6: 5 | H6: =IFERROR(P6/1,0) -> 3000000 | I6: 0.09 | J6: 1 | K6: =IFERROR(Elements_Unit_Price_2019*(Elements_CAPEX_Adjust),0) -> 3000000 | L6: =IF(Q6="-",$H6*$I6,Q6) -> 270000 | N6: =Elements_Trends -> Services Platform | P6: 3000000 | Q6: -
C7: 2 | D7: empty | E7: # | G7: 0 | H7: =IFERROR(P7/1,0) -> 0 | I7: 0 | J7: 1 | K7: 0 | L7: 0 | N7: empty | P7: - | Q7: -
C8: 3 | D8: Network Management System | E8: # | G8: 5 | H8: 20000000 | I8: 0.09 | J8: 1 | K8: 20000000 | L8: 1800000 | N8: Services Platform | P8: 20000000 | Q8: -
C9: 4 | D9: Provision System | E9: # | G9: 5 | H9: 3000000 | I9: 0.09 | J9: 1 | K9: 3000000 | L9: 270000 | N9: Services Platform | P9: 3000000 | Q9: -
C10: 5 | D10: Eligibility System | E10: # | G10: 5 | H10: 3000000 | I10: 0.09 | J10: 1 | K10: 3000000 | L10: 270000 | N10: Services Platform | P10: 3000000 | Q10: -
C11: 6 | D11: Other IT System | E11: # | G11: 5 | H11: 20000000 | I11: 0.09 | J11: 1 | K11: 20000000 | L11: 1800000 | N11: Services Platform | P11: 20000000 | Q11: -
C12: 7 | D12: Rights of Way Trench | E12: €/m | G12: =G51 -> 36 | H12: 3.66 | I12: 0.05 | J12: 1 | K12: 3.66 | L12: 0.2379 | N12: Other | P12: 3.66 | Q12: 0.2379
C13: 8 | D13: Rights of Way Cabinet | E13: €/cab | G13: =G121 -> 15 | H13: 244 | I13: 0.05 | J13: 1 | K13: 244 | L13: 0 | N13: Other | P13: 244 | Q13: 0
B14: Aggregation | C14: 9 | D14: OLO Trench | E14: m | G14: =G$91 -> 36 | H14: 15.82273079 | I14: 0.01480979389 | J14: 1 | K14: 15.82273079 | L14: 0.2343313818 | N14: Trenches | P14: 15.82273079 | Q14: =Q$91 -> - | R14: Source: LL BU LRIC+ average
C15: 10 | D15: Layer 2 Switch | E15: # | G15: 8 | H15: 10000 | I15: 0.2 | J15: 1 | K15: 10000 | L15: 2000 | N15: Active Equipment | P15: 10000 | Q15: -
C16: 11 | D16: Layer 2 Switch Core Facing Cards | E16: # | G16: 8 | H16: 8000 | I16: 0.2 | J16: 1 | K16: 8000 | L16: 1600 | N16: Active Equipment | P16: 8000 | Q16: -
C17: 12 | D17: Layer 2 Aggregation Switch Network Facing Cards | E17: # | G17: 8 | H17: 7500 | I17: 0.2 | J17: 1 | K17: 7500 | L17: 1500 | N17: Active Equipment | P17: 7500 | Q17: -
B18: CO Manhole | C18: 13 | D18: Other Operator Reception Manhole | E18: # | G18: =G26 -> 23 | H18: 3000 | I18: 0.1 | J18: 1 | K18: 3000 | L18: 300 | N18: Trenches | P18: 3000 | Q18: -
B19: Core | C19: 14 | D19: RADIUS Servers | E19: # | G19: 8 | H19: 350000 | I19: 0.1 | J19: 1 | K19: 350000 | L19: 35000 | N19: Active Equipment | P19: 350000 | Q19: -
C20: 15 | D20: DNS Servers | E20: # | G20: 8 | H20: 100000 | I20: 0.1 | J20: 1 | K20: 100000 | L20: 10000 | N20: Active Equipment | P20: 100000 | Q20: -
C21: 16 | D21: Core Layer 3 Routers | E21: # | G21: 8 | H21: 400000 | I21: 0.2 | J21: 1 | K21: 400000 | L21: 80000 | N21: Active Equipment | P21: 400000 | Q21: -
C22: 17 | D22: Distribution Layer 3 Routers | E22: # | G22: 8 | H22: 100000 | I22: 0.2 | J22: 1 | K22: 100000 | L22: 20000 | N22: Active Equipment | P22: 100000 | Q22: -
C23: 18 | D23: empty | E23: # | G23: 0 | H23: 0 | I23: 0 | J23: 1 | K23: 0 | L23: 0 | N23: empty | P23: - | Q23: -
C24: 19 | D24: BRAS/BNG | E24: # | G24: 8 | H24: 80000 | I24: 0.1 | J24: 1 | K24: 80000 | L24: 8000 | N24: Active Equipment | P24: 80000 | Q24: -
B25: Aggregation | C25: 20 | D25: Layer 2 Aggregation Switch | E25: # | G25: 8 | H25: 15000 | I25: 0.2 | J25: 1 | K25: 15000 | L25: 3000 | N25: Active Equipment | P25: 15000 | Q25: -
B26: CO | C26: 21 | D26: Site | E26: # | G26: 23 | H26: 40000 | I26: 0.2 | J26: 1 | K26: 40000 | L26: 20000 | N26: Other | P26: 40000 | Q26: 20000
C27: 22 | D27: Rack | E27: # | G27: 10 | H27: 500 | I27: 0.08 | J27: 1 | K27: 500 | L27: 40 | N27: Passive Equipment | P27: 500 | Q27: -
C28: 23 | D28: Power Generator | E28: # | G28: 10 | H28: 70000 | I28: 0 | J28: 1 | K28: 70000 | L28: 0 | N28: Power Energy | P28: 70000 | Q28: - | R28: Note: Average 120KVA Generator, incl. equipment and installation
C29: 24 | D29: empty | E29: # | G29: 0 | H29: 0 | I29: 0 | J29: 1 | K29: 0 | L29: 0 | N29: empty | P29: - | Q29: -
C30: 25 | D30: VDSL DSLAM | E30: # | G30: 8 | H30: 950 | I30: 0.08 | J30: 1 | K30: 950 | L30: 76 | N30: Active Equipment | P30: 950 | Q30: -
C31: 26 | D31: VDSL Line Cards | E31: # | G31: 8 | H31: 550 | I31: 0.08 | J31: 1 | K31: 550 | L31: 44 | N31: Active Equipment | P31: 550 | Q31: -
C32: 27 | D32: empty | E32: - | G32: 0 | H32: 0 | I32: 0 | J32: 1 | K32: 0 | L32: 0 | N32: empty | P32: - | Q32: -
C33: 28 | D33: Network-facing Ports CO | E33: # | G33: 8 | H33: 100 | I33: 0.08 | J33: 1 | K33: 100 | L33: 8 | N33: Active Equipment | P33: 100 | Q33: -
C34: 29 | D34: MDF | E34: # | G34: 10 | H34: 2000 | I34: 0.08 | J34: 1 | K34: 2000 | L34: 160 | N34: Passive Equipment | P34: 2000 | Q34: -
C35: 30 | D35: OLT | E35: # | G35: 8 | H35: 45000 | I35: 0.08 | J35: 1 | K35: 45000 | L35: 4200 | N35: Active Equipment | P35: 45000 | Q35: 4200
C36: 31 | D36: ODF | E36: # | G36: 15 | H36: 4000 | I36: 0.08 | J36: 1 | K36: 4000 | L36: 320 | N36: Passive Equipment | P36: 4000 | Q36: -
C37: 32 | D37: Air Conditioning Unit | E37: # | G37: 8 | H37: 6000 | I37: 0.08 | J37: 1 | K37: 6000 | L37: 480 | N37: Air Conditioning | P37: 6000 | Q37: -
C38: 33 | D38: Power Supply Unit + Backup | E38: # | G38: 8 | H38: 20000 | I38: 0.08 | J38: 1 | K38: 20000 | L38: =IF(Q38="-",$H38*$I38,Q38) -> 1600 | N38: Active Equipment | P38: 20000 | Q38: -
B39: FTTH Cabinet | C39: 34 | D39: Passive Cabinet (Fully equipped) | E39: # | G39: 15 | H39: 5000 | I39: 0.03 | J39: 1 | K39: 5000 | L39: 150 | N39: Passive Equipment | P39: 5000 | Q39: -
B40: Active Cabinet | C40: 35 | D40: Cabinet | E40: # | G40: 13 | H40: 4000 | I40: 0.03 | J40: 1 | K40: 4000 | L40: 120 | N40: Other | P40: 4000 | Q40: -
C41: 36 | D41: Cabinet Base (Plinth) | E41: # | G41: 13 | H41: 150 | I41: 0.03 | J41: 1 | K41: 150 | L41: 4.5 | N41: Other | P41: 150 | Q41: -
C42: 37 | D42: MSAN SuperVectoring | E42: # | G42: 8 | H42: 2000 | I42: 0.03 | J42: 1 | K42: 2000 | L42: 60 | N42: Active Equipment | P42: 2000 | Q42: -
C43: 38 | D43: SuperVectoring Line Cards | E43: # | G43: 8 | H43: 1000 | I43: 0.03 | J43: 1 | K43: 1000 | L43: 30 | N43: Active Equipment | P43: 1000 | Q43: -
C44: 39 | D44: MSAN G.fast | E44: # | G44: 8 | H44: 1000 | I44: 0.03 | J44: 1 | K44: 1000 | L44: 30 | N44: Active Equipment | P44: 1000 | Q44: -
C45: 40 | D45: G.Fast Line Cards | E45: # | G45: 8 | H45: 1500 | I45: 0.03 | J45: 1 | K45: 1500 | L45: 45 | N45: Active Equipment | P45: 1500 | Q45: -
C46: 41 | D46: empty | E46: - | G46: 0 | H46: 0 | I46: 0 | J46: 1 | K46: 0 | L46: 0 | N46: empty | P46: - | Q46: -
C47: 42 | D47: Network-facing Ports | E47: # | G47: 10 | H47: 30 | I47: 0.03 | J47: 1 | K47: 30 | L47: 0.9 | N47: Active Equipment | P47: 30 | Q47: -
C48: 43 | D48: Batteries | E48: # | G48: 5 | H48: 300 | I48: 0.03 | J48: 1 | K48: 300 | L48: 9 | N48: Power Energy | P48: 300 | Q48: -
B49: Premises | C49: 44 | D49: Building Entry Point (BEP) | E49: # | G49: 10 | H49: 100 | I49: 0.04 | J49: 1 | K49: 100 | L49: 4 | N49: Passive Equipment | P49: 100 | Q49: -
C50: 45 | D50: Splitters | E50: # | G50: 10 | H50: 25 | I50: 0.04 | J50: 1 | K50: 25 | L50: 1 | N50: Passive Equipment | P50: 25 | Q50: -
B51: Trenching | C51: 46 | D51: FTTC Feeder | E51: m | G51: 36 | H51: 22 | I51: 0.015 | J51: =IF(Scenario="NGA",TRANSPOSE(FTTC_Price_Coeff),0) -> 0.8141545325 | K51: 17.91139971 | L51: 0.33 | N51: Trenches | P51: =P54 -> 22 | Q51: -
C52: 47 | D52: FTTC Distribution | E52: m | G52: 36 | H52: 24 | I52: 0.015 | J52: 0 | K52: 0 | L52: 0.36 | N52: Trenches | P52: =P58 -> 24 | Q52: -
C53: 48 | D53: FTTC Drop | E53: m | G53: 36 | H53: 20 | I53: 0.015 | J53: 0 | K53: 0 | L53: 0.3 | N53: Trenches | P53: =P59 -> 20 | Q53: -
C54: 49 | D54: FTTH Feeder | E54: m | G54: 36 | H54: 22 | I54: 0.015 | J54: =IF(Scenario="NGA",TRANSPOSE(FTTH_Price_Coeff),0) -> 0.7640504542 | K54: 16.80910999 | L54: 0.33 | N54: Trenches | P54: 22 | Q54: -
C55: 50 | D55: FTTH Distribution | E55: m | G55: 36 | H55: 21 | I55: 0.015 | J55: 0.7833435833 | K55: 16.45021525 | L55: 0.315 | N55: Trenches | P55: 21 | Q55: -
C56: 51 | D56: FTTH Drop | E56: m | G56: 36 | H56: 19 | I56: 0.015 | J56: 0.7505764387 | K56: 14.26095234 | L56: 0.285 | N56: Trenches | P56: 19 | Q56: -
C57: 52 | D57: Copper Feeder | E57: m | G57: 36 | H57: 57 | I57: 0.015 | J57: =IF(Scenario="NGA",0,TRANSPOSE(Copper_Price_Coeff)) -> 0 | K57: 0 | L57: 0.855 | N57: Trenches | P57: 57 | Q57: -
C58: 53 | D58: Copper Distribution | E58: m | G58: 36 | H58: 24 | I58: 0.015 | J58: 0 | K58: 0 | L58: 0.36 | N58: Trenches | P58: 24 | Q58: -
C59: 54 | D59: Copper Drop | E59: m | G59: 36 | H59: 20 | I59: 0.015 | J59: 0 | K59: 0 | L59: 0.3 | N59: Trenches | P59: 20 | Q59: -
B60: Cabling | C60: 55 | D60: FTTH Fiber Cable 2 | E60: m | G60: 20 | H60: 1.001220637 | I60: 0.02 | J60: 1 | K60: 1.001220637 | L60: 0.02002441273 | N60: Fiber | P60: 1.001220637 | Q60: -
C61: 56 | D61: FTTH Fiber Cable 4 | E61: m | G61: 20 | H61: 1.361812074 | I61: 0.02 | J61: 1 | K61: 1.361812074 | L61: 0.02723624148 | N61: Fiber | P61: 1.361812074 | Q61: -
C62: 57 | D62: FTTH Fiber Cable 8 | E62: m | G62: 20 | H62: 1.74377324 | I62: 0.02 | J62: 1 | K62: 1.74377324 | L62: 0.0348754648 | N62: Fiber | P62: 1.74377324 | Q62: -
C63: 58 | D63: FTTH Fiber Cable 12 | E63: m | G63: 20 | H63: 1.904189016 | I63: 0.02 | J63: 1 | K63: 1.904189016 | L63: 0.03808378032 | N63: Fiber | P63: 1.904189016 | Q63: -
C64: 59 | D64: FTTH Fiber Cable 24 | E64: m | G64: 20 | H64: 2.057560232 | I64: 0.02 | J64: 1 | K64: 2.057560232 | L64: 0.04115120464 | N64: Fiber | P64: 2.057560232 | Q64: -
C65: 60 | D65: FTTH Fiber Cable 48 | E65: m | G65: 20 | H65: 2.485520296 | I65: 0.02 | J65: 1 | K65: 2.485520296 | L65: 0.04971040592 | N65: Fiber | P65: 2.485520296 | Q65: -
C66: 61 | D66: FTTH Fiber Cable 96 | E66: m | G66: 20 | H66: 3.396214 | I66: 0.02 | J66: 1 | K66: 3.396214 | L66: 0.06792428 | N66: Fiber | P66: 3.396214 | Q66: -
C67: 62 | D67: FTTH Fiber Cable 192 | E67: m | G67: 20 | H67: 5.6037531 | I67: 0.02 | J67: 1 | K67: 5.6037531 | L67: 0.112075062 | N67: Fiber | P67: 5.6037531 | Q67: -
C68: 63 | D68: FTTC Fiber Cable 12 | E68: m | G68: 20 | H68: 1.306069179 | I68: 0.02 | J68: 1 | K68: 1.306069179 | L68: 0.02612138358 | N68: Fiber | P68: 1.306069179 | Q68: -
C69: 64 | D69: FTTC Fiber Cable 24 | E69: m | G69: 20 | H69: 1.564922984 | I69: 0.02 | J69: 1 | K69: 1.564922984 | L69: 0.03129845968 | N69: Fiber | P69: 1.564922984 | Q69: -
C70: 65 | D70: FTTC Fiber Cable 48 | E70: m | G70: 20 | H70: 2.10457483 | I70: 0.02 | J70: 1 | K70: 2.10457483 | L70: =IF(Q70="-",$H70*$I70,Q70) -> 0.0420914966 | N70: Fiber | P70: 2.10457483 | Q70: -
C71: 66 | D71: FTTC Fiber Cable 96 | E71: m | G71: 20 | H71: =IFERROR(P71/1,0) -> 2.856287359 | I71: 0.02 | J71: 1 | K71: 2.856287359 | L71: 0.05712574718 | N71: Fiber | P71: 2.856287359 | Q71: -
C72: 67 | D72: FTTC Fiber Cable 192 | E72: m | G72: 20 | H72: 4.712874142 | I72: 0.02 | J72: 1 | K72: 4.712874142 | L72: 0.09425748284 | N72: Fiber | P72: 4.712874142 | Q72: -
C73: 68 | D73: Copper Cable 2 | E73: m | G73: 20 | H73: 0.8 | I73: 0.02 | J73: 1 | K73: 0.8 | L73: 0.016 | N73: Copper | P73: 0.8 | Q73: -
C74: 69 | D74: Copper Cable 4 | E74: m | G74: 20 | H74: 0.9697959184 | I74: 0.02 | J74: 1 | K74: 0.9697959184 | L74: 0.01939591837 | N74: Copper | P74: 0.9697959184 | Q74: -
C75: 70 | D75: Copper Cable 10 | E75: m | G75: 20 | H75: 1.419183673 | I75: 0.02 | J75: 1 | K75: 1.419183673 | L75: 0.02838367347 | N75: Copper | P75: 1.419183673 | Q75: -
C76: 71 | D76: Copper Cable 20 | E76: m | G76: 20 | H76: 2.118163265 | I76: 0.02 | J76: 1 | K76: 2.118163265 | L76: 0.04236326531 | N76: Copper | P76: 2.118163265 | Q76: -
C77: 72 | D77: Copper Cable 50 | E77: m | G77: 20 | H77: 4.294318368 | I77: 0.02 | J77: 1 | K77: 4.294318368 | L77: 0.08588636736 | N77: Copper | P77: 4.294318368 | Q77: -
C78: 73 | D78: Copper Cable 100 | E78: m | G78: 20 | H78: 7.86 | I78: 0.02 | J78: 1 | K78: 7.86 | L78: 0.1572 | N78: Copper | P78: 7.86 | Q78: -
C79: 74 | D79: Copper Cable 200 | E79: m | G79: 20 | H79: 11.42956522 | I79: 0.02 | J79: 1 | K79: 11.42956522 | L79: 0.2285913043 | N79: Copper | P79: 11.42956522 | Q79: -
C80: 75 | D80: Copper Cable 400 | E80: m | G80: 20 | H80: 17.71869565 | I80: 0.02 | J80: 1 | K80: 17.71869565 | L80: 0.354373913 | N80: Copper | P80: 17.71869565 | Q80: -
C81: 76 | D81: Copper Cable 1000 | E81: m | G81: 20 | H81: 29.94054348 | I81: 0.02 | J81: 1 | K81: 29.94054348 | L81: 0.5988108696 | N81: Copper | P81: 29.94054348 | Q81: -
C82: 77 | D82: Copper Cable 2000 | E82: m | G82: 20 | H82: 53.88163043 | I82: 0.02 | J82: 1 | K82: 53.88163043 | L82: 1.077632609 | N82: Copper | P82: 53.88163043 | Q82: -
B83: Miscellaneous | C83: 78 | D83: Power Consumption | E83: € | G83: 0 | H83: 0 | I83: 0.05 | J83: 1 | K83: 0 | L83: 20327200 | N83: Power Energy | P83: - | Q83: =SUM(CO_VDSL_Cabs,CO_G.fast_Cabs)*800 -> 20327200
C84: 79 | D84: Network Planning (Survey, Exploitation, etc.) | E84: € | G84: 10 | H84: 8000000 | I84: 0.05 | J84: 1 | K84: 8000000 | L84: 2500000 | N84: Other | P84: 8000000 | Q84: 2500000
C85: 80 | D85: empty | E85: - | G85: 0 | H85: 0 | I85: 0 | J85: 1 | K85: 0 | L85: 0 | N85: empty | P85: - | Q85: -
C86: 81 | D86: empty | E86: - | G86: 0 | H86: 0 | I86: 0 | J86: 1 | K86: 0 | L86: 0 | N86: empty | P86: - | Q86: -
B87: Aerial Copper | C87: 82 | D87: Aerial Copper Cable 2 | E87: m | G87: 15 | H87: 5.817771095 | I87: 0.095 | J87: 1 | K87: 5.817771095 | L87: 0.552688254 | N87: Copper | P87: 5.817771095 | Q87: -
C88: 83 | D88: Aerial Copper Cable 4 | E88: m | G88: 15 | H88: 6.493947937 | I88: 0.095 | J88: 1 | K88: 6.493947937 | L88: 0.616925054 | N88: Copper | P88: 6.493947937 | Q88: -
C89: 84 | D89: Aerial Copper Cable 20 | E89: m | G89: 15 | H89: 11.90336267 | I89: 0.095 | J89: 1 | K89: 11.90336267 | L89: 1.130819454 | N89: Copper | P89: 11.90336267 | Q89: -
C90: 85 | D90: Poles | E90: m | G90: 15 | H90: 250 | I90: 0.095 | J90: 1 | K90: 250 | L90: 23.75 | N90: Trenches | P90: 250 | Q90: -
B91: Core Transmission | C91: 86 | D91: Core Trench Regional | E91: m | G91: 36 | H91: =IFERROR(P91/1,0) -> 19.80963217 | I91: 0.01781851666 | J91: 1 | K91: 19.80963217 | L91: 0.3529782609 | N91: Trenches | P91: 19.80963217 | Q91: - | R91: Source: LL BU LRIC+ average incl submarine
C92: 87 | D92: WDM Transmission Regional | E92: m | G92: 8 | H92: 1.16543047 | I92: 0.2 | J92: 1 | K92: 1.16543047 | L92: 0.2330860941 | N92: Active Equipment | P92: 1.16543047 | Q92: - | R92: Source: LL BU LRIC+ average
C93: 88 | D93: Core Trench National | E93: m | G93: 36 | H93: 19.80963217 | I93: 0.01781851666 | J93: 1 | K93: 19.80963217 | L93: 0.3529782609 | N93: Trenches | P93: 19.80963217 | Q93: - | R93: Source: LL BU LRIC+ average incl submarine
C94: 89 | D94: WDM Transmission National | E94: m | G94: 8 | H94: 1.16543047 | I94: 0.2 | J94: 1 | K94: 1.16543047 | L94: 0.2330860941 | N94: Active Equipment | P94: 1.16543047 | Q94: - | R94: Source: LL BU LRIC+ average
B95: Reusable Assets | C95: 90 | D95: [REA] Rights of Way Trench | E95: =E12 -> €/m | F95: TRUE | G95: =G97 -> 13 | H95: 3.66 | I95: =I12 -> 0.05 | J95: =Copper_Trench_Value -> 0.1634 | K95: 0.598044 | L95: 0.2379 | N95: Other | P95: =P12 -> 3.66 | Q95: =Q12 -> 0.2379
C96: 91 | D96: empty | E96: - | G96: 0 | H96: 0 | I96: 0 | J96: 1 | K96: 0 | L96: 0 | N96: empty
C97: 92 | D97: [REA] FTTC Distribution | E97: =E52 -> m | F97: TRUE | G97: 13 | H97: 24 | I97: =I52 -> 0.015 | J97: =IF(Scenario="NGA",INDEX(Copper_Price_Coeff,2),0)*Copper_Trench_Value -> 0.1491619011 | K97: 3.579885627 | L97: 0.36 | N97: Trenches | P97: =P52 -> 24 | Q97: =Q52 -> -
C98: 93 | D98: [REA] FTTC Drop | E98: =E53 -> m | F98: TRUE | G98: =$G$97 -> 13 | H98: 20 | I98: =I53 -> 0.015 | J98: =IF(Scenario="NGA",INDEX(Copper_Price_Coeff,3),0)*Copper_Trench_Value -> 0.143339615 | K98: 2.866792299 | L98: 0.3 | N98: Trenches | P98: =P53 -> 20 | Q98: =Q53 -> -
C99: 94 | D99: [REA] Copper Feeder | E99: =E57 -> m | F99: TRUE | G99: =$G$97 -> 13 | H99: 57 | I99: =I57 -> 0.015 | J99: =IF(Scenario="NGA",INDEX(Copper_Price_Coeff,1),INDEX(Copper_Reuse_Price_Coeff,1))*Copper_Trench_Value -> 0.1299870273 | K99: 7.409260558 | L99: 0.855 | N99: Trenches | P99: =P57 -> 57 | Q99: -
C100: 95 | D100: [REA] Copper Distribution | E100: =E58 -> m | F100: TRUE | G100: =$G$97 -> 13 | H100: 24 | I100: =I58 -> 0.015 | J100: =IF(Scenario="NGA",0,INDEX(Copper_Reuse_Price_Coeff,2))*Copper_Trench_Value -> 0 | K100: 0 | L100: 0.36 | N100: Trenches | P100: 24 | Q100: -
C101: 96 | D101: [REA] Copper Drop | E101: =E59 -> m | F101: TRUE | G101: =$G$97 -> 13 | H101: 20 | I101: =I59 -> 0.015 | J101: =IF(Scenario="NGA",0,INDEX(Copper_Reuse_Price_Coeff,3))*Copper_Trench_Value -> 0 | K101: 0 | L101: 0.3 | N101: Trenches | P101: 20 | Q101: -
C102: 97 | D102: empty | E102: - | G102: 0 | H102: 0 | I102: 0 | J102: 1 | K102: 0 | L102: 0 | N102: empty
C103: 98 | D103: [REA] Copper Cable 2 | E103: =E73 -> m | F103: TRUE | G103: 5 | H103: 0.8 | I103: =I73 -> 0.02 | J103: =Copper_Cable_Value -> 0.126 | K103: 0.1008 | L103: 0.016 | N103: Copper | P103: =P73 -> 0.8 | Q103: =Q73 -> -
C104: 99 | D104: [REA] Copper Cable 4 | E104: m | F104: TRUE | G104: =$G$103 -> 5 | H104: 0.9697959184 | I104: 0.02 | J104: 0.126 | K104: 0.1221942857 | L104: 0.01939591837 | N104: Copper | P104: =P74 -> 0.9697959184 | Q104: -
C105: 100 | D105: [REA] Copper Cable 10 | E105: m | F105: TRUE | G105: =$G$103 -> 5 | H105: 1.419183673 | I105: 0.02 | J105: 0.126 | K105: 0.1788171429 | L105: 0.02838367347 | N105: Copper | P105: 1.419183673 | Q105: -
C106: 101 | D106: [REA] Copper Cable 20 | E106: m | F106: TRUE | G106: 5 | H106: 2.118163265 | I106: 0.02 | J106: 0.126 | K106: 0.2668885714 | L106: 0.04236326531 | N106: Copper | P106: 2.118163265 | Q106: -
C107: 102 | D107: [REA] Copper Cable 50 | E107: m | F107: TRUE | G107: 5 | H107: 4.294318368 | I107: 0.02 | J107: 0.126 | K107: 0.5410841144 | L107: 0.08588636736 | N107: Copper | P107: 4.294318368 | Q107: -
C108: 103 | D108: [REA] Copper Cable 100 | E108: m | F108: TRUE | G108: 5 | H108: 7.86 | I108: 0.02 | J108: 0.126 | K108: 0.99036 | L108: 0.1572 | N108: Copper | P108: 7.86 | Q108: -
C109: 104 | D109: [REA] Copper Cable 200 | E109: m | F109: TRUE | G109: 5 | H109: 11.42956522 | I109: 0.02 | J109: 0.126 | K109: 1.440125217 | L109: 0.2285913043 | N109: Copper | P109: 11.42956522 | Q109: -
C110: 105 | D110: [REA] Copper Cable 400 | E110: m | F110: TRUE | G110: 5 | H110: 17.71869565 | I110: 0.02 | J110: 0.126 | K110: 2.232555652 | L110: 0.354373913 | N110: Copper | P110: 17.71869565 | Q110: -
C111: 106 | D111: [REA] Copper Cable 1000 | E111: m | F111: TRUE | G111: 5 | H111: 29.94054348 | I111: 0.02 | J111: 0.126 | K111: 3.772508478 | L111: 0.5988108696 | N111: Copper | P111: 29.94054348 | Q111: -
C112: 107 | D112: [REA] Copper Cable 2000 | E112: m | F112: TRUE | G112: 5 | H112: 53.88163043 | I112: 0.02 | J112: 0.126 | K112: 6.789085435 | L112: 1.077632609 | N112: Copper | P112: 53.88163043 | Q112: -
C113: 108 | D113: empty | E113: - | G113: 0 | H113: 0 | I113: 0 | J113: 1 | K113: 0 | L113: 0 | N113: empty | P113: - | Q113: -
C114: 109 | D114: [REA] Aerial Copper Cable 2 | E114: =E87 -> m | F114: TRUE | G114: 4 | H114: 5.817771095 | I114: =I87 -> 0.095 | J114: =Copper_Cable_Value -> 0.126 | K114: 0.733039158 | L114: 0.552688254 | N114: Copper | P114: =P87 -> 5.817771095 | Q114: =Q87 -> -
C115: 110 | D115: [REA] Aerial Copper Cable 4 | E115: =E88 -> m | F115: TRUE | G115: =$G$114 -> 4 | H115: 6.493947937 | I115: =I88 -> 0.095 | J115: 0.126 | K115: 0.8182374401 | L115: 0.616925054 | N115: Copper | P115: =P88 -> 6.493947937 | Q115: -
C116: 111 | D116: [REA] Aerial Copper Cable 20 | E116: =E89 -> m | F116: TRUE | G116: =$G$114 -> 4 | H116: 11.90336267 | I116: =I89 -> 0.095 | J116: 0.126 | K116: 1.499823697 | L116: 1.130819454 | N116: Copper | P116: 11.90336267 | Q116: -
C117: 112 | D117: [REA] Poles | E117: =E90 -> m | F117: TRUE | G117: 4 | H117: 250 | I117: =I90 -> 0.095 | J117: =Poles_Value -> 0.1414 | K117: 35.35 | L117: 23.75 | N117: Trenches | P117: 250 | Q117: -
B118: L2 WAP Equipment | C118: 113 | D118: SVC NTE | E118: # | G118: 5 | H118: 80 | I118: 0.08 | J118: 1 | K118: 80 | L118: 6.4 | N118: Customer Side Active Equipment Copper | P118: 80 | Q118: -
C119: 114 | D119: SVO NTE | E119: # | G119: 5 | H119: 100 | I119: 0.08 | J119: 1 | K119: 100 | L119: 8 | N119: Customer Side Active Equipment Fiber | P119: 100 | Q119: -
B120: Floor Box | C120: 115 | D120: Floor Box | E120: # | G120: 10 | H120: 200 | I120: 0.04 | J120: 1 | K120: 200 | L120: 8 | N120: Passive Equipment | P120: 200 | Q120: -
B121: Copper Cabinets | C121: 116 | D121: Cabinet (KV) | E121: # | G121: 15 | H121: 1000 | I121: 0.04 | J121: 1 | K121: 1000 | L121: 40 | N121: Passive Equipment | P121: 1000 | Q121: =P121*I121 -> 40
F122: Elements_Reusable_Asset | G122: Elements_Lifetime | H122: Elements_Unit_Price_2019 | I122: Elements_OPEX_Percentage | J122: Elements_CAPEX_Adjust | K122: Elements_CAPEX | L122: Elements_OPEX | N122: Elements_Cost_Trend

Sheet Discount_Factors
B1: Discount Factors
H5: =I5-1 -> 2015 | I5: 2016 | J5: 2017 | K5: 2018 | L5: =TRANSPOSE(Study_Period) -> 2019 | M5: 2020 | N5: 2021 | O5: 2022 | P5: 2023 | Q5: 2024 | R5: 2025 | S5: 2026 | T5: 2027 | U5: 2028
H6: -3 | I6: -2 | J6: -1 | K6: 0 | L6: =TRANSPOSE(Study_Years) -> 1 | M6: 2 | N6: 3 | O6: 4 | P6: 5 | Q6: 6 | R6: 7 | S6: 8 | T6: 9 | U6: 10
H9: <----------------------------------------ELSTAT-------------------------------------------> | M9: <------------------------IMF Forecast-------------------------> | Q9: <----------------------------------------Arbitrary Forecast---------------------------------------->
C10: Inflation | H10: -0.017 | I10: -0.008 | J10: 0.011 | K10: 0.006 | L10: 0.008 | M10: 0.009 | N10: 0.013 | O10: 0.014 | P10: 0.018 | Q10: 0.018 | R10: 0.018 | S10: 0.018 | T10: 0.018 | U10: 0.018 | V10: Inflation
C11: Inflation Multiplier | H11: =I11/(1+H10) -> 1.008290496 | I11: =J11/(1+I10) -> 0.9911495578 | J11: =K11/(1+J10) -> 0.9832203613 | K11: =L11/(1+K10) -> 0.9940357853 | L11: 1 | M11: =L11*(1+L10) -> 1.008 | N11: =M11*(1+M10) -> 1.017072 | O11: 1.030293936 | P11: 1.044718051 | Q11: 1.063522976 | R11: 1.08266639 | S11: 1.102154385 | T11: 1.121993164 | U11: 1.14218904 | V11: Inflation_Multiplier
C12: Nominal Discount Rate | H12: =WACC -> 0.0848 | I12: 0.0848 | J12: 0.0848 | K12: 0.0848 | L12: 0.0848 | M12: 0.0848 | N12: 0.0848 | O12: 0.0848 | P12: 0.0848 | Q12: 0.0848 | R12: 0.0848 | S12: 0.0848 | T12: 0.0848 | U12: 0.0848 | V12: Nominal_Discount_Rate
C15: Inflation for Rent & Real Estate | H15: =H10*75% -> -0.01275 | I15: -0.006 | J15: 0.00825 | K15: 0.0045 | L15: 0.006 | M15: 0.00675 | N15: 0.00975 | O15: 0.0105 | P15: 0.0135 | Q15: 0.0135 | R15: 0.0135 | S15: 0.0135 | T15: 0.0135 | U15: 0.0135 | V15: Note: 75% of CPI based on the methodology of ELSTAT
C16: Inflation Multiplier for Rent & Real Estate | H16: 1 | I16: =H16*(1+H15) -> 0.98725 | J16: =I16*(1+I15) -> 0.9813265 | K16: =J16*(1+J15) -> 0.9894224436 | L16: =K16*(1+K15) -> 0.9938748446 | M16: =L16*(1+L15) -> 0.9998380937 | N16: =M16*(1+M15) -> 1.006587001 | O16: =N16*(1+N15) -> 1.016401224 | P16: =O16*(1+O15) -> 1.027073437 | Q16: =P16*(1+P15) -> 1.040938928 | R16: =Q16*(1+Q15) -> 1.054991604 | S16: =R16*(1+R15) -> 1.069233991 | T16: =S16*(1+S15) -> 1.083668649 | U16: =T16*(1+T15) -> 1.098298176 | V16: Inflation_Multiplier_Rent

Sheet CAPEX_Evolution
B1: CAPEX Evolution
F4: =G4-1 -> 2015 | G4: 2016 | H4: 2017 | I4: 2018 | J4: =TRANSPOSE(Study_Period) -> 2019 | K4: 2020 | L4: 2021 | M4: 2022 | N4: 2023 | O4: 2024 | P4: 2025 | Q4: 2026 | R4: 2027 | S4: 2028
F5: -3 | G5: -2 | H5: -1 | I5: 0 | J5: =TRANSPOSE(Study_Years) -> 1 | K5: 2 | L5: 3 | M5: 4 | N5: 5 | O5: 6 | P5: 7 | Q5: 8 | R5: 9 | S5: 10
D8: Cost Trends Categories
D9: =Cost_Trends_Categories -> Active Equipment | F9: -0.04 | G9: =F9 -> -0.04 | H9: -0.04 | I9: -0.04 | J9: -0.04 | K9: -0.04 | L9: -0.04 | M9: -0.04 | N9: -0.04 | O9: -0.04 | P9: -0.04 | Q9: -0.04 | R9: -0.04 | S9: -0.04
D10: Passive Equipment | F10: -0.01 | G10: =F10 -> -0.01 | H10: -0.01 | I10: -0.01 | J10: -0.01 | K10: -0.01 | L10: -0.01 | M10: -0.01 | N10: -0.01 | O10: -0.01 | P10: -0.01 | Q10: -0.01 | R10: -0.01 | S10: -0.01
D11: Fiber | F11: -0.015 | G11: =F11 -> -0.015 | H11: -0.015 | I11: -0.015 | J11: -0.015 | K11: -0.015 | L11: -0.015 | M11: -0.015 | N11: -0.015 | O11: -0.015 | P11: -0.015 | Q11: -0.015 | R11: -0.015 | S11: -0.015
D12: Trenches | F12: 0.01 | G12: =F12 -> 0.01 | H12: 0.01 | I12: 0.01 | J12: 0.01 | K12: 0.01 | L12: 0.01 | M12: 0.01 | N12: 0.01 | O12: 0.01 | P12: 0.01 | Q12: 0.01 | R12: 0.01 | S12: 0.01
D13: Services Platform | F13: -0.04 | G13: =F13 -> -0.04 | H13: -0.04 | I13: -0.04 | J13: -0.04 | K13: -0.04 | L13: -0.04 | M13: -0.04 | N13: -0.04 | O13: -0.04 | P13: -0.04 | Q13: -0.04 | R13: -0.04 | S13: -0.04
D14: Air Conditioning | F14: -0.01 | G14: =F14 -> -0.01 | H14: -0.01 | I14: -0.01 | J14: -0.01 | K14: -0.01 | L14: -0.01 | M14: -0.01 | N14: -0.01 | O14: -0.01 | P14: -0.01 | Q14: -0.01 | R14: -0.01 | S14: -0.01
D15: Power Energy | F15: -0.01 | G15: =F15 -> -0.01 | H15: -0.01 | I15: -0.01 | J15: -0.01 | K15: -0.01 | L15: -0.01 | M15: -0.01 | N15: -0.01 | O15: -0.01 | P15: -0.01 | Q15: -0.01 | R15: -0.01 | S15: -0.01
D16: Copper | F16: 0.01 | G16: =F16 -> 0.01 | H16: 0.01 | I16: 0.01 | J16: 0.01 | K16: 0.01 | L16: 0.01 | M16: 0.01 | N16: 0.01 | O16: 0.01 | P16: 0.01 | Q16: 0.01 | R16: 0.01 | S16: 0.01
D17: Voice | F17: 0 | G17: =F17 -> 0 | H17: 0 | I17: 0 | J17: 0 | K17: 0 | L17: 0 | M17: 0 | N17: 0 | O17: 0 | P17: 0 | Q17: 0 | R17: 0 | S17: 0
D18: Common | F18: 0 | G18: =F18 -> 0 | H18: 0 | I18: 0 | J18: 0 | K18: 0 | L18: 0 | M18: 0 | N18: 0 | O18: 0 | P18: 0 | Q18: 0 | R18: 0 | S18: 0
D19: Other | F19: 0 | G19: =F19 -> 0 | H19: 0 | I19: 0 | J19: 0 | K19: 0 | L19: 0 | M19: 0 | N19: 0 | O19: 0 | P19: 0 | Q19: 0 | R19: 0 | S19: 0
D20: Overheads | F20: 0 | G20: =F20 -> 0 | H20: 0 | I20: 0 | J20: 0 | K20: 0 | L20: 0 | M20: 0 | N20: 0 | O20: 0 | P20: 0 | Q20: 0 | R20: 0 | S20: 0
D21: Customer Side Active Equipment Copper | F21: =F16 -> 0.01 | G21: =F21 -> 0.01 | H21: 0.01 | I21: 0.01 | J21: 0.01 | K21: 0.01 | L21: 0.01 | M21: 0.01 | N21: 0.01 | O21: 0.01 | P21: 0.01 | Q21: 0.01 | R21: 0.01 | S21: 0.01
D22: Customer Side Active Equipment Fiber | F22: =F11 -> -0.015 | G22: =F22 -> -0.015 | H22: -0.015 | I22: -0.015 | J22: -0.015 | K22: -0.015 | L22: -0.015 | M22: -0.015 | N22: -0.015 | O22: -0.015 | P22: -0.015 | Q22: -0.015 | R22: -0.015 | S22: -0.015
D23: empty | F23: 0 | G23: =F23 -> 0 | H23: 0 | I23: 0 | J23: 0 | K23: 0 | L23: 0 | M23: 0 | N23: 0 | O23: 0 | P23: 0 | Q23: 0 | R23: 0 | S23: 0 | T23: CAPEX_Cost_Trends
D25: Cost Trend per Element
B26: =Elements_Tags -> Common | C26: =Elements_Index -> 1 | D26: =Elements_List -> Billing System | E26: =Elements_Trends -> Services Platform | F26: =INDEX(CAPEX_Cost_Trends,MATCH(E26,Cost_Trends_Categories,0),) -> -0.04 | G26: -0.04 | H26: -0.04 | I26: -0.04 | J26: -0.04 | K26: -0.04 | L26: -0.04 | M26: -0.04 | N26: -0.04 | O26: -0.04 | P26: -0.04 | Q26: -0.04 | R26: -0.04 | S26: -0.04
C27: 2 | D27: empty | E27: empty | F27: =INDEX(CAPEX_Cost_Trends,MATCH(E27,Cost_Trends_Categories,0),) -> 0 | G27: 0 | H27: 0 | I27: 0 | J27: 0 | K27: 0 | L27: 0 | M27: 0 | N27: 0 | O27: 0 | P27: 0 | Q27: 0 | R27: 0 | S27: 0
C28: 3 | D28: Network Management System | E28: Services Platform | F28: =INDEX(CAPEX_Cost_Trends,MATCH(E28,Cost_Trends_Categories,0),) -> -0.04 | G28: -0.04 | H28: -0.04 | I28: -0.04 | J28: -0.04 | K28: -0.04 | L28: -0.04 | M28: -0.04 | N28: -0.04 | O28: -0.04 | P28: -0.04 | Q28: -0.04 | R28: -0.04 | S28: -0.04
C29: 4 | D29: Provision System | E29: Services Platform | F29: =INDEX(CAPEX_Cost_Trends,MATCH(E29,Cost_Trends_Categories,0),) -> -0.04 | G29: -0.04 | H29: -0.04 | I29: -0.04 | J29: -0.04 | K29: -0.04 | L29: -0.04 | M29: -0.04 | N29: -0.04 | O29: -0.04 | P29: -0.04 | Q29: -0.04 | R29: -0.04 | S29: -0.04
C30: 5 | D30: Eligibility System | E30: Services Platform | F30: =INDEX(CAPEX_Cost_Trends,MATCH(E30,Cost_Trends_Categories,0),) -> -0.04 | G30: -0.04 | H30: -0.04 | I30: -0.04 | J30: -0.04 | K30: -0.04 | L30: -0.04 | M30: -0.04 | N30: -0.04 | O30: -0.04 | P30: -0.04 | Q30: -0.04 | R30: -0.04 | S30: -0.04
C31: 6 | D31: Other IT System | E31: Services Platform | F31: =INDEX(CAPEX_Cost_Trends,MATCH(E31,Cost_Trends_Categories,0),) -> -0.04 | G31: -0.04 | H31: -0.04 | I31: -0.04 | J31: -0.04 | K31: -0.04 | L31: -0.04 | M31: -0.04 | N31: -0.04 | O31: -0.04 | P31: -0.04 | Q31: -0.04 | R31: -0.04 | S31: -0.04
C32: 7 | D32: Rights of Way Trench | E32: Other | F32: =INDEX(CAPEX_Cost_Trends,MATCH(E32,Cost_Trends_Categories,0),) -> 0 | G32: 0 | H32: 0 | I32: 0 | J32: 0 | K32: 0 | L32: 0 | M32: 0 | N32: 0 | O32: 0 | P32: 0 | Q32: 0 | R32: 0 | S32: 0
C33: 8 | D33: Rights of Way Cabinet | E33: Other | F33: =INDEX(CAPEX_Cost_Trends,MATCH(E33,Cost_Trends_Categories,0),) -> 0 | G33: 0 | H33: 0 | I33: 0 | J33: 0 | K33: 0 | L33: 0 | M33: 0 | N33: 0 | O33: 0 | P33: 0 | Q33: 0 | R33: 0 | S33: 0
B34: Aggregation | C34: 9 | D34: OLO Trench | E34: Trenches | F34: =INDEX(CAPEX_Cost_Trends,MATCH(E34,Cost_Trends_Categories,0),) -> 0.01 | G34: 0.01 | H34: 0.01 | I34: 0.01 | J34: 0.01 | K34: 0.01 | L34: 0.01 | M34: 0.01 | N34: 0.01 | O34: 0.01 | P34: 0.01 | Q34: 0.01 | R34: 0.01 | S34: 0.01
C35: 10 | D35: Layer 2 Switch | E35: Active Equipment | F35: =INDEX(CAPEX_Cost_Trends,MATCH(E35,Cost_Trends_Categories,0),) -> -0.04 | G35: -0.04 | H35: -0.04 | I35: -0.04 | J35: -0.04 | K35: -0.04 | L35: -0.04 | M35: -0.04 | N35: -0.04 | O35: -0.04 | P35: -0.04 | Q35: -0.04 | R35: -0.04 | S35: -0.04
C36: 11 | D36: Layer 2 Switch Core Facing Cards | E36: Active Equipment | F36: =INDEX(CAPEX_Cost_Trends,MATCH(E36,Cost_Trends_Categories,0),) -> -0.04 | G36: -0.04 | H36: -0.04 | I36: -0.04 | J36: -0.04 | K36: -0.04 | L36: -0.04 | M36: -0.04 | N36: -0.04 | O36: -0.04 | P36: -0.04 | Q36: -0.04 | R36: -0.04 | S36: -0.04
C37: 12 | D37: Layer 2 Aggregation Switch Network Facing Cards | E37: Active Equipment | F37: =INDEX(CAPEX_Cost_Trends,MATCH(E37,Cost_Trends_Categories,0),) -> -0.04 | G37: -0.04 | H37: -0.04 | I37: -0.04 | J37: -0.04 | K37: -0.04 | L37: -0.04 | M37: -0.04 | N37: -0.04 | O37: -0.04 | P37: -0.04 | Q37: -0.04 | R37: -0.04 | S37: -0.04
B38: CO Manhole | C38: 13 | D38: Other Operator Reception Manhole | E38: Trenches | F38: =INDEX(CAPEX_Cost_Trends,MATCH(E38,Cost_Trends_Categories,0),) -> 0.01 | G38: 0.01 | H38: 0.01 | I38: 0.01 | J38: 0.01 | K38: 0.01 | L38: 0.01 | M38: 0.01 | N38: 0.01 | O38: 0.01 | P38: 0.01 | Q38: 0.01 | R38: 0.01 | S38: 0.01
B39: Core | C39: 14 | D39: RADIUS Servers | E39: Active Equipment | F39: =INDEX(CAPEX_Cost_Trends,MATCH(E39,Cost_Trends_Categories,0),) -> -0.04 | G39: -0.04 | H39: -0.04 | I39: -0.04 | J39: -0.04 | K39: -0.04 | L39: -0.04 | M39: -0.04 | N39: -0.04 | O39: -0.04 | P39: -0.04 | Q39: -0.04 | R39: -0.04 | S39: -0.04
C40: 15 | D40: DNS Servers | E40: Active Equipment | F40: =INDEX(CAPEX_Cost_Trends,MATCH(E40,Cost_Trends_Categories,0),) -> -0.04 | G40: -0.04 | H40: -0.04 | I40: -0.04 | J40: -0.04 | K40: -0.04 | L40: -0.04 | M40: -0.04 | N40: -0.04 | O40: -0.04 | P40: -0.04 | Q40: -0.04 | R40: -0.04 | S40: -0.04
C41: 16 | D41: Core Layer 3 Routers | E41: Active Equipment | F41: =INDEX(CAPEX_Cost_Trends,MATCH(E41,Cost_Trends_Categories,0),) -> -0.04 | G41: -0.04 | H41: -0.04 | I41: -0.04 | J41: -0.04 | K41: -0.04 | L41: -0.04 | M41: -0.04 | N41: -0.04 | O41: -0.04 | P41: -0.04 | Q41: -0.04 | R41: -0.04 | S41: -0.04
C42: 17 | D42: Distribution Layer 3 Routers | E42: Active Equipment | F42: =INDEX(CAPEX_Cost_Trends,MATCH(E42,Cost_Trends_Categories,0),) -> -0.04 | G42: -0.04 | H42: -0.04 | I42: -0.04 | J42: -0.04 | K42: -0.04 | L42: -0.04 | M42: -0.04 | N42: -0.04 | O42: -0.04 | P42: -0.04 | Q42: -0.04 | R42: -0.04 | S42: -0.04
C43: 18 | D43: empty | E43: empty | F43: =INDEX(CAPEX_Cost_Trends,MATCH(E43,Cost_Trends_Categories,0),) -> 0 | G43: 0 | H43: 0 | I43: 0 | J43: 0 | K43: 0 | L43: 0 | M43: 0 | N43: 0 | O43: 0 | P43: 0 | Q43: 0 | R43: 0 | S43: 0
C44: 19 | D44: BRAS/BNG | E44: Active Equipment | F44: =INDEX(CAPEX_Cost_Trends,MATCH(E44,Cost_Trends_Categories,0),) -> -0.04 | G44: -0.04 | H44: -0.04 | I44: -0.04 | J44: -0.04 | K44: -0.04 | L44: -0.04 | M44: -0.04 | N44: -0.04 | O44: -0.04 | P44: -0.04 | Q44: -0.04 | R44: -0.04 | S44: -0.04
B45: Aggregation | C45: 20 | D45: Layer 2 Aggregation Switch | E45: Active Equipment | F45: =INDEX(CAPEX_Cost_Trends,MATCH(E45,Cost_Trends_Categories,0),) -> -0.04 | G45: -0.04 | H45: -0.04 | I45: -0.04 | J45: -0.04 | K45: -0.04 | L45: -0.04 | M45: -0.04 | N45: -0.04 | O45: -0.04 | P45: -0.04 | Q45: -0.04 | R45: -0.04 | S45: -0.04
B46: CO | C46: 21 | D46: Site | E46: Other | F46: =INDEX(CAPEX_Cost_Trends,MATCH(E46,Cost_Trends_Categories,0),) -> 0 | G46: 0 | H46: 0 | I46: 0 | J46: 0 | K46: 0 | L46: 0 | M46: 0 | N46: 0 | O46: 0 | P46: 0 | Q46: 0 | R46: 0 | S46: 0
C47: 22 | D47: Rack | E47: Passive Equipment | F47: =INDEX(CAPEX_Cost_Trends,MATCH(E47,Cost_Trends_Categories,0),) -> -0.01 | G47: -0.01 | H47: -0.01 | I47: -0.01 | J47: -0.01 | K47: -0.01 | L47: -0.01 | M47: -0.01 | N47: -0.01 | O47: -0.01 | P47: -0.01 | Q47: -0.01 | R47: -0.01 | S47: -0.01
C48: 23 | D48: Power Generator | E48: Power Energy | F48: =INDEX(CAPEX_Cost_Trends,MATCH(E48,Cost_Trends_Categories,0),) -> -0.01 | G48: -0.01 | H48: -0.01 | I48: -0.01 | J48: -0.01 | K48: -0.01 | L48: -0.01 | M48: -0.01 | N48: -0.01 | O48: -0.01 | P48: -0.01 | Q48: -0.01 | R48: -0.01 | S48: -0.01
C49: 24 | D49: empty | E49: empty | F49: =INDEX(CAPEX_Cost_Trends,MATCH(E49,Cost_Trends_Categories,0),) -> 0 | G49: 0 | H49: 0 | I49: 0 | J49: 0 | K49: 0 | L49: 0 | M49: 0 | N49: 0 | O49: 0 | P49: 0 | Q49: 0 | R49: 0 | S49: 0
C50: 25 | D50: VDSL DSLAM | E50: Active Equipment | F50: =INDEX(CAPEX_Cost_Trends,MATCH(E50,Cost_Trends_Categories,0),) -> -0.04 | G50: -0.04 | H50: -0.04 | I50: -0.04 | J50: -0.04 | K50: -0.04 | L50: -0.04 | M50: -0.04 | N50: -0.04 | O50: -0.04 | P50: -0.04 | Q50: -0.04 | R50: -0.04 | S50: -0.04
C51: 26 | D51: VDSL Line Cards | E51: Active Equipment | F51: =INDEX(CAPEX_Cost_Trends,MATCH(E51,Cost_Trends_Categories,0),) -> -0.04 | G51: -0.04 | H51: -0.04 | I51: -0.04 | J51: -0.04 | K51: -0.04 | L51: -0.04 | M51: -0.04 | N51: -0.04 | O51: -0.04 | P51: -0.04 | Q51: -0.04 | R51: -0.04 | S51: -0.04
C52: 27 | D52: empty | E52: empty | F52: =INDEX(CAPEX_Cost_Trends,MATCH(E52,Cost_Trends_Categories,0),) -> 0 | G52: 0 | H52: 0 | I52: 0 | J52: 0 | K52: 0 | L52: 0 | M52: 0 | N52: 0 | O52: 0 | P52: 0 | Q52: 0 | R52: 0 | S52: 0
C53: 28 | D53: Network-facing Ports CO | E53: Active Equipment | F53: =INDEX(CAPEX_Cost_Trends,MATCH(E53,Cost_Trends_Categories,0),) -> -0.04 | G53: -0.04 | H53: -0.04 | I53: -0.04 | J53: -0.04 | K53: -0.04 | L53: -0.04 | M53: -0.04 | N53: -0.04 | O53: -0.04 | P53: -0.04 | Q53: -0.04 | R53: -0.04 | S53: -0.04
C54: 29 | D54: MDF | E54: Passive Equipment | F54: =INDEX(CAPEX_Cost_Trends,MATCH(E54,Cost_Trends_Categories,0),) -> -0.01 | G54: -0.01 | H54: -0.01 | I54: -0.01 | J54: -0.01 | K54: -0.01 | L54: -0.01 | M54: -0.01 | N54: -0.01 | O54: -0.01 | P54: -0.01 | Q54: -0.01 | R54: -0.01 | S54: -0.01
C55: 30 | D55: OLT | E55: Active Equipment | F55: =INDEX(CAPEX_Cost_Trends,MATCH(E55,Cost_Trends_Categories,0),) -> -0.04 | G55: -0.04 | H55: -0.04 | I55: -0.04 | J55: -0.04 | K55: -0.04 | L55: -0.04 | M55: -0.04 | N55: -0.04 | O55: -0.04 | P55: -0.04 | Q55: -0.04 | R55: -0.04 | S55: -0.04
C56: 31 | D56: ODF | E56: Passive Equipment | F56: =INDEX(CAPEX_Cost_Trends,MATCH(E56,Cost_Trends_Categories,0),) -> -0.01 | G56: -0.01 | H56: -0.01 | I56: -0.01 | J56: -0.01 | K56: -0.01 | L56: -0.01 | M56: -0.01 | N56: -0.01 | O56: -0.01 | P56: -0.01 | Q56: -0.01 | R56: -0.01 | S56: -0.01
C57: 32 | D57: Air Conditioning Unit | E57: Air Conditioning | F57: =INDEX(CAPEX_Cost_Trends,MATCH(E57,Cost_Trends_Categories,0),) -> -0.01 | G57: -0.01 | H57: -0.01 | I57: -0.01 | J57: -0.01 | K57: -0.01 | L57: -0.01 | M57: -0.01 | N57: -0.01 | O57: -0.01 | P57: -0.01 | Q57: -0.01 | R57: -0.01 | S57: -0.01
C58: 33 | D58: Power Supply Unit + Backup | E58: Active Equipment | F58: =INDEX(CAPEX_Cost_Trends,MATCH(E58,Cost_Trends_Categories,0),) -> -0.04 | G58: -0.04 | H58: -0.04 | I58: -0.04 | J58: -0.04 | K58: -0.04 | L58: -0.04 | M58: -0.04 | N58: -0.04 | O58: -0.04 | P58: -0.04 | Q58: -0.04 | R58: -0.04 | S58: -0.04
B59: FTTH Cabinet | C59: 34 | D59: Passive Cabinet (Fully equipped) | E59: Passive Equipment | F59: =INDEX(CAPEX_Cost_Trends,MATCH(E59,Cost_Trends_Categories,0),) -> -0.01 | G59: -0.01 | H59: -0.01 | I59: -0.01 | J59: -0.01 | K59: -0.01 | L59: -0.01 | M59: -0.01 | N59: -0.01 | O59: -0.01 | P59: -0.01 | Q59: -0.01 | R59: -0.01 | S59: -0.01
B60: Active Cabinet | C60: 35 | D60: Cabinet | E60: Other | F60: =INDEX(CAPEX_Cost_Trends,MATCH(E60,Cost_Trends_Categories,0),) -> 0 | G60: 0 | H60: 0 | I60: 0 | J60: 0 | K60: 0 | L60: 0 | M60: 0 | N60: 0 | O60: 0 | P60: 0 | Q60: 0 | R60: 0 | S60: 0
C61: 36 | D61: Cabinet Base (Plinth) | E61: Other | F61: =INDEX(CAPEX_Cost_Trends,MATCH(E61,Cost_Trends_Categories,0),) -> 0 | G61: 0 | H61: 0 | I61: 0 | J61: 0 | K61: 0 | L61: 0 | M61: 0 | N61: 0 | O61: 0 | P61: 0 | Q61: 0 | R61: 0 | S61: 0
C62: 37 | D62: MSAN SuperVectoring | E62: Active Equipment | F62: =INDEX(CAPEX_Cost_Trends,MATCH(E62,Cost_Trends_Categories,0),) -> -0.04 | G62: -0.04 | H62: -0.04 | I62: -0.04 | J62: -0.04 | K62: -0.04 | L62: -0.04 | M62: -0.04 | N62: -0.04 | O62: -0.04 | P62: -0.04 | Q62: -0.04 | R62: -0.04 | S62: -0.04
C63: 38 | D63: SuperVectoring Line Cards | E63: Active Equipment | F63: =INDEX(CAPEX_Cost_Trends,MATCH(E63,Cost_Trends_Categories,0),) -> -0.04 | G63: -0.04 | H63: -0.04 | I63: -0.04 | J63: -0.04 | K63: -0.04 | L63: -0.04 | M63: -0.04 | N63: -0.04 | O63: -0.04 | P63: -0.04 | Q63: -0.04 | R63: -0.04 | S63: -0.04
C64: 39 | D64: MSAN G.fast | E64: Active Equipment | F64: =INDEX(CAPEX_Cost_Trends,MATCH(E64,Cost_Trends_Categories,0),) -> -0.04 | G64: -0.04 | H64: -0.04 | I64: -0.04 | J64: -0.04 | K64: -0.04 | L64: -0.04 | M64: -0.04 | N64: -0.04 | O64: -0.04 | P64: -0.04 | Q64: -0.04 | R64: -0.04 | S64: -0.04
C65: 40 | D65: G.Fast Line Cards | E65: Active Equipment | F65: =INDEX(CAPEX_Cost_Trends,MATCH(E65,Cost_Trends_Categories,0),) -> -0.04 | G65: -0.04 | H65: -0.04 | I65: -0.04 | J65: -0.04 | K65: -0.04 | L65: -0.04 | M65: -0.04 | N65: -0.04 | O65: -0.04 | P65: -0.04 | Q65: -0.04 | R65: -0.04 | S65: -0.04
C66: 41 | D66: empty | E66: empty | F66: =INDEX(CAPEX_Cost_Trends,MATCH(E66,Cost_Trends_Categories,0),) -> 0 | G66: 0 | H66: 0 | I66: 0 | J66: 0 | K66: 0 | L66: 0 | M66: 0 | N66: 0 | O66: 0 | P66: 0 | Q66: 0 | R66: 0 | S66: 0
C67: 42 | D67: Network-facing Ports | E67: Active Equipment | F67: =INDEX(CAPEX_Cost_Trends,MATCH(E67,Cost_Trends_Categories,0),) -> -0.04 | G67: -0.04 | H67: -0.04 | I67: -0.04 | J67: -0.04 | K67: -0.04 | L67: -0.04 | M67: -0.04 | N67: -0.04 | O67: -0.04 | P67: -0.04 | Q67: -0.04 | R67: -0.04 | S67: -0.04
C68: 43 | D68: Batteries | E68: Power Energy | F68: =INDEX(CAPEX_Cost_Trends,MATCH(E68,Cost_Trends_Categories,0),) -> -0.01 | G68: -0.01 | H68: -0.01 | I68: -0.01 | J68: -0.01 | K68: -0.01 | L68: -0.01 | M68: -0.01 | N68: -0.01 | O68: -0.01 | P68: -0.01 | Q68: -0.01 | R68: -0.01 | S68: -0.01
B69: Premises | C69: 44 | D69: Building Entry Point (BEP) | E69: Passive Equipment | F69: =INDEX(CAPEX_Cost_Trends,MATCH(E69,Cost_Trends_Categories,0),) -> -0.01 | G69: -0.01 | H69: -0.01 | I69: -0.01 | J69: -0.01 | K69: -0.01 | L69: -0.01 | M69: -0.01 | N69: -0.01 | O69: -0.01 | P69: -0.01 | Q69: -0.01 | R69: -0.01 | S69: -0.01
C70: 45 | D70: Splitters | E70: Passive Equipment | F70: =INDEX(CAPEX_Cost_Trends,MATCH(E70,Cost_Trends_Categories,0),) -> -0.01 | G70: -0.01 | H70: -0.01 | I70: -0.01 | J70: -0.01 | K70: -0.01 | L70: -0.01 | M70: -0.01 | N70: -0.01 | O70: -0.01 | P70: -0.01 | Q70: -0.01 | R70: -0.01 | S70: -0.01
B71: Trenching | C71: 46 | D71: FTTC Feeder | E71: Trenches | F71: =INDEX(CAPEX_Cost_Trends,MATCH(E71,Cost_Trends_Categories,0),) -> 0.01 | G71: 0.01 | H71: 0.01 | I71: 0.01 | J71: 0.01 | K71: 0.01 | L71: 0.01 | M71: 0.01 | N71: 0.01 | O71: 0.01 | P71: 0.01 | Q71: 0.01 | R71: 0.01 | S71: 0.01
C72: 47 | D72: FTTC Distribution | E72: Trenches | F72: =INDEX(CAPEX_Cost_Trends,MATCH(E72,Cost_Trends_Categories,0),) -> 0.01 | G72: 0.01 | H72: 0.01 | I72: 0.01 | J72: 0.01 | K72: 0.01 | L72: 0.01 | M72: 0.01 | N72: 0.01 | O72: 0.01 | P72: 0.01 | Q72: 0.01 | R72: 0.01 | S72: 0.01
C73: 48 | D73: FTTC Drop | E73: Trenches | F73: =INDEX(CAPEX_Cost_Trends,MATCH(E73,Cost_Trends_Categories,0),) -> 0.01 | G73: 0.01 | H73: 0.01 | I73: 0.01 | J73: 0.01 | K73: 0.01 | L73: 0.01 | M73: 0.01 | N73: 0.01 | O73: 0.01 | P73: 0.01 | Q73: 0.01 | R73: 0.01 | S73: 0.01
C74: 49 | D74: FTTH Feeder | E74: Trenches | F74: =INDEX(CAPEX_Cost_Trends,MATCH(E74,Cost_Trends_Categories,0),) -> 0.01 | G74: 0.01 | H74: 0.01 | I74: 0.01 | J74: 0.01 | K74: 0.01 | L74: 0.01 | M74: 0.01 | N74: 0.01 | O74: 0.01 | P74: 0.01 | Q74: 0.01 | R74: 0.01 | S74: 0.01
C75: 50 | D75: FTTH Distribution | E75: Trenches | F75: =INDEX(CAPEX_Cost_Trends,MATCH(E75,Cost_Trends_Categories,0),) -> 0.01 | G75: 0.01 | H75: 0.01 | I75: 0.01 | J75: 0.01 | K75: 0.01 | L75: 0.01 | M75: 0.01 | N75: 0.01 | O75: 0.01 | P75: 0.01 | Q75: 0.01 | R75: 0.01 | S75: 0.01
C76: 51 | D76: FTTH Drop | E76: Trenches | F76: =INDEX(CAPEX_Cost_Trends,MATCH(E76,Cost_Trends_Categories,0),) -> 0.01 | G76: 0.01 | H76: 0.01 | I76: 0.01 | J76: 0.01 | K76: 0.01 | L76: 0.01 | M76: 0.01 | N76: 0.01 | O76: 0.01 | P76: 0.01 | Q76: 0.01 | R76: 0.01 | S76: 0.01
C77: 52 | D77: Copper Feeder | E77: Trenches | F77: =INDEX(CAPEX_Cost_Trends,MATCH(E77,Cost_Trends_Categories,0),) -> 0.01 | G77: 0.01 | H77: 0.01 | I77: 0.01 | J77: 0.01 | K77: 0.01 | L77: 0.01 | M77: 0.01 | N77: 0.01 | O77: 0.01 | P77: 0.01 | Q77: 0.01 | R77: 0.01 | S77: 0.01
C78: 53 | D78: Copper Distribution | E78: Trenches | F78: =INDEX(CAPEX_Cost_Trends,MATCH(E78,Cost_Trends_Categories,0),) -> 0.01 | G78: 0.01 | H78: 0.01 | I78: 0.01 | J78: 0.01 | K78: 0.01 | L78: 0.01 | M78: 0.01 | N78: 0.01 | O78: 0.01 | P78: 0.01 | Q78: 0.01 | R78: 0.01 | S78: 0.01
C79: 54 | D79: Copper Drop | E79: Trenches | F79: =INDEX(CAPEX_Cost_Trends,MATCH(E79,Cost_Trends_Categories,0),) -> 0.01 | G79: 0.01 | H79: 0.01 | I79: 0.01 | J79: 0.01 | K79: 0.01 | L79: 0.01 | M79: 0.01 | N79: 0.01 | O79: 0.01 | P79: 0.01 | Q79: 0.01 | R79: 0.01 | S79: 0.01
B80: Cabling | C80: 55 | D80: FTTH Fiber Cable 2 | E80: Fiber | F80: =INDEX(CAPEX_Cost_Trends,MATCH(E80,Cost_Trends_Categories,0),) -> -0.015 | G80: -0.015 | H80: -0.015 | I80: -0.015 | J80: -0.015 | K80: -0.015 | L80: -0.015 | M80: -0.015 | N80: -0.015 | O80: -0.015 | P80: -0.015 | Q80: -0.015 | R80: -0.015 | S80: -0.015
C81: 56 | D81: FTTH Fiber Cable 4 | E81: Fiber | F81: =INDEX(CAPEX_Cost_Trends,MATCH(E81,Cost_Trends_Categories,0),) -> -0.015 | G81: -0.015 | H81: -0.015 | I81: -0.015 | J81: -0.015 | K81: -0.015 | L81: -0.015 | M81: -0.015 | N81: -0.015 | O81: -0.015 | P81: -0.015 | Q81: -0.015 | R81: -0.015 | S81: -0.015
C82: 57 | D82: FTTH Fiber Cable 8 | E82: Fiber | F82: =INDEX(CAPEX_Cost_Trends,MATCH(E82,Cost_Trends_Categories,0),) -> -0.015 | G82: -0.015 | H82: -0.015 | I82: -0.015 | J82: -0.015 | K82: -0.015 | L82: -0.015 | M82: -0.015 | N82: -0.015 | O82: -0.015 | P82: -0.015 | Q82: -0.015 | R82: -0.015 | S82: -0.015
C83: 58 | D83: FTTH Fiber Cable 12 | E83: Fiber | F83: =INDEX(CAPEX_Cost_Trends,MATCH(E83,Cost_Trends_Categories,0),) -> -0.015 | G83: -0.015 | H83: -0.015 | I83: -0.015 | J83: -0.015 | K83: -0.015 | L83: -0.015 | M83: -0.015 | N83: -0.015 | O83: -0.015 | P83: -0.015 | Q83: -0.015 | R83: -0.015 | S83: -0.015
C84: 59 | D84: FTTH Fiber Cable 24 | E84: Fiber | F84: =INDEX(CAPEX_Cost_Trends,MATCH(E84,Cost_Trends_Categories,0),) -> -0.015 | G84: -0.015 | H84: -0.015 | I84: -0.015 | J84: -0.015 | K84: -0.015 | L84: -0.015 | M84: -0.015 | N84: -0.015 | O84: -0.015 | P84: -0.015 | Q84: -0.015 | R84: -0.015 | S84: -0.015
C85: 60 | D85: FTTH Fiber Cable 48 | E85: Fiber | F85: =INDEX(CAPEX_Cost_Trends,MATCH(E85,Cost_Trends_Categories,0),) -> -0.015 | G85: -0.015 | H85: -0.015 | I85: -0.015 | J85: -0.015 | K85: -0.015 | L85: -0.015 | M85: -0.015 | N85: -0.015 | O85: -0.015 | P85: -0.015 | Q85: -0.015 | R85: -0.015 | S85: -0.015
C86: 61 | D86: FTTH Fiber Cable 96 | E86: Fiber | F86: =INDEX(CAPEX_Cost_Trends,MATCH(E86,Cost_Trends_Categories,0),) -> -0.015 | G86: -0.015 | H86: -0.015 | I86: -0.015 | J86: -0.015 | K86: -0.015 | L86: -0.015 | M86: -0.015 | N86: -0.015 | O86: -0.015 | P86: -0.015 | Q86: -0.015 | R86: -0.015 | S86: -0.015
C87: 62 | D87: FTTH Fiber Cable 192 | E87: Fiber | F87: =INDEX(CAPEX_Cost_Trends,MATCH(E87,Cost_Trends_Categories,0),) -> -0.015 | G87: -0.015 | H87: -0.015 | I87: -0.015 | J87: -0.015 | K87: -0.015 | L87: -0.015 | M87: -0.015 | N87: -0.015 | O87: -0.015 | P87: -0.015 | Q87: -0.015 | R87: -0.015 | S87: -0.015
C88: 63 | D88: FTTC Fiber Cable 12 | E88: Fiber | F88: =INDEX(CAPEX_Cost_Trends,MATCH(E88,Cost_Trends_Categories,0),) -> -0.015 | G88: -0.015 | H88: -0.015 | I88: -0.015 | J88: -0.015 | K88: -0.015 | L88: -0.015 | M88: -0.015 | N88: -0.015 | O88: -0.015 | P88: -0.015 | Q88: -0.015 | R88: -0.015 | S88: -0.015
C89: 64 | D89: FTTC Fiber Cable 24 | E89: Fiber | F89: =INDEX(CAPEX_Cost_Trends,MATCH(E89,Cost_Trends_Categories,0),) -> -0.015 | G89: -0.015 | H89: -0.015 | I89: -0.015 | J89: -0.015 | K89: -0.015 | L89: -0.015 | M89: -0.015 | N89: -0.015 | O89: -0.015 | P89: -0.015 | Q89: -0.015 | R89: -0.015 | S89: -0.015
C90: 65 | D90: FTTC Fiber Cable 48 | E90: Fiber | F90: =INDEX(CAPEX_Cost_Trends,MATCH(E90,Cost_Trends_Categories,0),) -> -0.015 | G90: -0.015 | H90: -0.015 | I90: -0.015 | J90: -0.015 | K90: -0.015 | L90: -0.015 | M90: -0.015 | N90: -0.015 | O90: -0.015 | P90: -0.015 | Q90: -0.015 | R90: -0.015 | S90: -0.015
C91: 66 | D91: FTTC Fiber Cable 96 | E91: Fiber | F91: =INDEX(CAPEX_Cost_Trends,MATCH(E91,Cost_Trends_Categories,0),) -> -0.015 | G91: -0.015 | H91: -0.015 | I91: -0.015 | J91: -0.015 | K91: -0.015 | L91: -0.015 | M91: -0.015 | N91: -0.015 | O91: -0.015 | P91: -0.015 | Q91: -0.015 | R91: -0.015 | S91: -0.015
C92: 67 | D92: FTTC Fiber Cable 192 | E92: Fiber | F92: =INDEX(CAPEX_Cost_Trends,MATCH(E92,Cost_Trends_Categories,0),) -> -0.015 | G92: -0.015 | H92: -0.015 | I92: -0.015 | J92: -0.015 | K92: -0.015 | L92: -0.015 | M92: -0.015 | N92: -0.015 | O92: -0.015 | P92: -0.015 | Q92: -0.015 | R92: -0.015 | S92: -0.015
C93: 68 | D93: Copper Cable 2 | E93: Copper | F93: =INDEX(CAPEX_Cost_Trends,MATCH(E93,Cost_Trends_Categories,0),) -> 0.01 | G93: 0.01 | H93: 0.01 | I93: 0.01 | J93: 0.01 | K93: 0.01 | L93: 0.01 | M93: 0.01 | N93: 0.01 | O93: 0.01 | P93: 0.01 | Q93: 0.01 | R93: 0.01 | S93: 0.01
C94: 69 | D94: Copper Cable 4 | E94: Copper | F94: =INDEX(CAPEX_Cost_Trends,MATCH(E94,Cost_Trends_Categories,0),) -> 0.01 | G94: 0.01 | H94: 0.01 | I94: 0.01 | J94: 0.01 | K94: 0.01 | L94: 0.01 | M94: 0.01 | N94: 0.01 | O94: 0.01 | P94: 0.01 | Q94: 0.01 | R94: 0.01 | S94: 0.01
C95: 70 | D95: Copper Cable 10 | E95: Copper | F95: =INDEX(CAPEX_Cost_Trends,MATCH(E95,Cost_Trends_Categories,0),) -> 0.01 | G95: 0.01 | H95: 0.01 | I95: 0.01 | J95: 0.01 | K95: 0.01 | L95: 0.01 | M95: 0.01 | N95: 0.01 | O95: 0.01 | P95: 0.01 | Q95: 0.01 | R95: 0.01 | S95: 0.01
C96: 71 | D96: Copper Cable 20 | E96: Copper | F96: =INDEX(CAPEX_Cost_Trends,MATCH(E96,Cost_Trends_Categories,0),) -> 0.01 | G96: 0.01 | H96: 0.01 | I96: 0.01 | J96: 0.01 | K96: 0.01 | L96: 0.01 | M96: 0.01 | N96: 0.01 | O96: 0.01 | P96: 0.01 | Q96: 0.01 | R96: 0.01 | S96: 0.01
C97: 72 | D97: Copper Cable 50 | E97: Copper | F97: =INDEX(CAPEX_Cost_Trends,MATCH(E97,Cost_Trends_Categories,0),) -> 0.01 | G97: 0.01 | H97: 0.01 | I97: 0.01 | J97: 0.01 | K97: 0.01 | L97: 0.01 | M97: 0.01 | N97: 0.01 | O97: 0.01 | P97: 0.01 | Q97: 0.01 | R97: 0.01 | S97: 0.01
C98: 73 | D98: Copper Cable 100 | E98: Copper | F98: =INDEX(CAPEX_Cost_Trends,MATCH(E98,Cost_Trends_Categories,0),) -> 0.01 | G98: 0.01 | H98: 0.01 | I98: 0.01 | J98: 0.01 | K98: 0.01 | L98: 0.01 | M98: 0.01 | N98: 0.01 | O98: 0.01 | P98: 0.01 | Q98: 0.01 | R98: 0.01 | S98: 0.01
C99: 74 | D99: Copper Cable 200 | E99: Copper | F99: =INDEX(CAPEX_Cost_Trends,MATCH(E99,Cost_Trends_Categories,0),) -> 0.01 | G99: 0.01 | H99: 0.01 | I99: 0.01 | J99: 0.01 | K99: 0.01 | L99: 0.01 | M99: 0.01 | N99: 0.01 | O99: 0.01 | P99: 0.01 | Q99: 0.01 | R99: 0.01 | S99: 0.01
C100: 75 | D100: Copper Cable 400 | E100: Copper | F100: =INDEX(CAPEX_Cost_Trends,MATCH(E100,Cost_Trends_Categories,0),) -> 0.01 | G100: 0.01 | H100: 0.01 | I100: 0.01 | J100: 0.01 | K100: 0.01 | L100: 0.01 | M100: 0.01 | N100: 0.01 | O100: 0.01 | P100: 0.01 | Q100: 0.01 | R100: 0.01 | S100: 0.01
C101: 76 | D101: Copper Cable 1000 | E101: Copper | F101: =INDEX(CAPEX_Cost_Trends,MATCH(E101,Cost_Trends_Categories,0),) -> 0.01 | G101: 0.01 | H101: 0.01 | I101: 0.01 | J101: 0.01 | K101: 0.01 | L101: 0.01 | M101: 0.01 | N101: 0.01 | O101: 0.01 | P101: 0.01 | Q101: 0.01 | R101: 0.01 | S101: 0.01
C102: 77 | D102: Copper Cable 2000 | E102: Copper | F102: =INDEX(CAPEX_Cost_Trends,MATCH(E102,Cost_Trends_Categories,0),) -> 0.01 | G102: 0.01 | H102: 0.01 | I102: 0.01 | J102: 0.01 | K102: 0.01 | L102: 0.01 | M102: 0.01 | N102: 0.01 | O102: 0.01 | P102: 0.01 | Q102: 0.01 | R102: 0.01 | S102: 0.01
B103: Miscellaneous | C103: 78 | D103: Power Consumption | E103: Power Energy | F103: =INDEX(CAPEX_Cost_Trends,MATCH(E103,Cost_Trends_Categories,0),) -> -0.01 | G103: -0.01 | H103: -0.01 | I103: -0.01 | J103: -0.01 | K103: -0.01 | L103: -0.01 | M103: -0.01 | N103: -0.01 | O103: -0.01 | P103: -0.01 | Q103: -0.01 | R103: -0.01 | S103: -0.01
C104: 79 | D104: Network Planning (Survey, Exploitation, etc.) | E104: Other | F104: =INDEX(CAPEX_Cost_Trends,MATCH(E104,Cost_Trends_Categories,0),) -> 0 | G104: 0 | H104: 0 | I104: 0 | J104: 0 | K104: 0 | L104: 0 | M104: 0 | N104: 0 | O104: 0 | P104: 0 | Q104: 0 | R104: 0 | S104: 0
C105: 80 | D105: empty | E105: empty | F105: =INDEX(CAPEX_Cost_Trends,MATCH(E105,Cost_Trends_Categories,0),) -> 0 | G105: 0 | H105: 0 | I105: 0 | J105: 0 | K105: 0 | L105: 0 | M105: 0 | N105: 0 | O105: 0 | P105: 0 | Q105: 0 | R105: 0 | S105: 0
C106: 81 | D106: empty | E106: empty | F106: =INDEX(CAPEX_Cost_Trends,MATCH(E106,Cost_Trends_Categories,0),) -> 0 | G106: 0 | H106: 0 | I106: 0 | J106: 0 | K106: 0 | L106: 0 | M106: 0 | N106: 0 | O106: 0 | P106: 0 | Q106: 0 | R106: 0 | S106: 0
B107: Aerial Copper | C107: 82 | D107: Aerial Copper Cable 2 | E107: Copper | F107: =INDEX(CAPEX_Cost_Trends,MATCH(E107,Cost_Trends_Categories,0),) -> 0.01 | G107: 0.01 | H107: 0.01 | I107: 0.01 | J107: 0.01 | K107: 0.01 | L107: 0.01 | M107: 0.01 | N107: 0.01 | O107: 0.01 | P107: 0.01 | Q107: 0.01 | R107: 0.01 | S107: 0.01
C108: 83 | D108: Aerial Copper Cable 4 | E108: Copper | F108: =INDEX(CAPEX_Cost_Trends,MATCH(E108,Cost_Trends_Categories,0),) -> 0.01 | G108: 0.01 | H108: 0.01 | I108: 0.01 | J108: 0.01 | K108: 0.01 | L108: 0.01 | M108: 0.01 | N108: 0.01 | O108: 0.01 | P108: 0.01 | Q108: 0.01 | R108: 0.01 | S108: 0.01
C109: 84 | D109: Aerial Copper Cable 20 | E109: Copper | F109: =INDEX(CAPEX_Cost_Trends,MATCH(E109,Cost_Trends_Categories,0),) -> 0.01 | G109: 0.01 | H109: 0.01 | I109: 0.01 | J109: 0.01 | K109: 0.01 | L109: 0.01 | M109: 0.01 | N109: 0.01 | O109: 0.01 | P109: 0.01 | Q109: 0.01 | R109: 0.01 | S109: 0.01
C110: 85 | D110: Poles | E110: Trenches | F110: =INDEX(CAPEX_Cost_Trends,MATCH(E110,Cost_Trends_Categories,0),) -> 0.01 | G110: 0.01 | H110: 0.01 | I110: 0.01 | J110: 0.01 | K110: 0.01 | L110: 0.01 | M110: 0.01 | N110: 0.01 | O110: 0.01 | P110: 0.01 | Q110: 0.01 | R110: 0.01 | S110: 0.01
B111: Core Transmission | C111: 86 | D111: Core Trench Regional | E111: Trenches | F111: =INDEX(CAPEX_Cost_Trends,MATCH(E111,Cost_Trends_Categories,0),) -> 0.01 | G111: 0.01 | H111: 0.01 | I111: 0.01 | J111: 0.01 | K111: 0.01 | L111: 0.01 | M111: 0.01 | N111: 0.01 | O111: 0.01 | P111: 0.01 | Q111: 0.01 | R111: 0.01 | S111: 0.01
C112: 87 | D112: WDM Transmission Regional | E112: Active Equipment | F112: =INDEX(CAPEX_Cost_Trends,MATCH(E112,Cost_Trends_Categories,0),) -> -0.04 | G112: -0.04 | H112: -0.04 | I112: -0.04 | J112: -0.04 | K112: -0.04 | L112: -0.04 | M112: -0.04 | N112: -0.04 | O112: -0.04 | P112: -0.04 | Q112: -0.04 | R112: -0.04 | S112: -0.04
C113: 88 | D113: Core Trench National | E113: Trenches | F113: =INDEX(CAPEX_Cost_Trends,MATCH(E113,Cost_Trends_Categories,0),) -> 0.01 | G113: 0.01 | H113: 0.01 | I113: 0.01 | J113: 0.01 | K113: 0.01 | L113: 0.01 | M113: 0.01 | N113: 0.01 | O113: 0.01 | P113: 0.01 | Q113: 0.01 | R113: 0.01 | S113: 0.01
C114: 89 | D114: WDM Transmission National | E114: Active Equipment | F114: =INDEX(CAPEX_Cost_Trends,MATCH(E114,Cost_Trends_Categories,0),) -> -0.04 | G114: -0.04 | H114: -0.04 | I114: -0.04 | J114: -0.04 | K114: -0.04 | L114: -0.04 | M114: -0.04 | N114: -0.04 | O114: -0.04 | P114: -0.04 | Q114: -0.04 | R114: -0.04 | S114: -0.04
B115: Reusable Assets | C115: 90 | D115: [REA] Rights of Way Trench | E115: Other | F115: =INDEX(CAPEX_Cost_Trends,MATCH(E115,Cost_Trends_Categories,0),) -> 0 | G115: 0 | H115: 0 | I115: 0 | J115: 0 | K115: 0 | L115: 0 | M115: 0 | N115: 0 | O115: 0 | P115: 0 | Q115: 0 | R115: 0 | S115: 0
C116: 91 | D116: empty | E116: empty | F116: =INDEX(CAPEX_Cost_Trends,MATCH(E116,Cost_Trends_Categories,0),) -> 0 | G116: 0 | H116: 0 | I116: 0 | J116: 0 | K116: 0 | L116: 0 | M116: 0 | N116: 0 | O116: 0 | P116: 0 | Q116: 0 | R116: 0 | S116: 0
C117: 92 | D117: [REA] FTTC Distribution | E117: Trenches | F117: =INDEX(CAPEX_Cost_Trends,MATCH(E117,Cost_Trends_Categories,0),) -> 0.01 | G117: 0.01 | H117: 0.01 | I117: 0.01 | J117: 0.01 | K117: 0.01 | L117: 0.01 | M117: 0.01 | N117: 0.01 | O117: 0.01 | P117: 0.01 | Q117: 0.01 | R117: 0.01 | S117: 0.01
C118: 93 | D118: [REA] FTTC Drop | E118: Trenches | F118: =INDEX(CAPEX_Cost_Trends,MATCH(E118,Cost_Trends_Categories,0),) -> 0.01 | G118: 0.01 | H118: 0.01 | I118: 0.01 | J118: 0.01 | K118: 0.01 | L118: 0.01 | M118: 0.01 | N118: 0.01 | O118: 0.01 | P118: 0.01 | Q118: 0.01 | R118: 0.01 | S118: 0.01
C119: 94 | D119: [REA] Copper Feeder | E119: Trenches | F119: =INDEX(CAPEX_Cost_Trends,MATCH(E119,Cost_Trends_Categories,0),) -> 0.01 | G119: 0.01 | H119: 0.01 | I119: 0.01 | J119: 0.01 | K119: 0.01 | L119: 0.01 | M119: 0.01 | N119: 0.01 | O119: 0.01 | P119: 0.01 | Q119: 0.01 | R119: 0.01 | S119: 0.01
C120: 95 | D120: [REA] Copper Distribution | E120: Trenches | F120: =INDEX(CAPEX_Cost_Trends,MATCH(E120,Cost_Trends_Categories,0),) -> 0.01 | G120: 0.01 | H120: 0.01 | I120: 0.01 | J120: 0.01 | K120: 0.01 | L120: 0.01 | M120: 0.01 | N120: 0.01 | O120: 0.01 | P120: 0.01 | Q120: 0.01 | R120: 0.01 | S120: 0.01
C121: 96 | D121: [REA] Copper Drop | E121: Trenches | F121: =INDEX(CAPEX_Cost_Trends,MATCH(E121,Cost_Trends_Categories,0),) -> 0.01 | G121: 0.01 | H121: 0.01 | I121: 0.01 | J121: 0.01 | K121: 0.01 | L121: 0.01 | M121: 0.01 | N121: 0.01 | O121: 0.01 | P121: 0.01 | Q121: 0.01 | R121: 0.01 | S121: 0.01
C122: 97 | D122: empty | E122: empty | F122: =INDEX(CAPEX_Cost_Trends,MATCH(E122,Cost_Trends_Categories,0),) -> 0 | G122: 0 | H122: 0 | I122: 0 | J122: 0 | K122: 0 | L122: 0 | M122: 0 | N122: 0 | O122: 0 | P122: 0 | Q122: 0 | R122: 0 | S122: 0
C123: 98 | D123: [REA] Copper Cable 2 | E123: Copper | F123: =INDEX(CAPEX_Cost_Trends,MATCH(E123,Cost_Trends_Categories,0),) -> 0.01 | G123: 0.01 | H123: 0.01 | I123: 0.01 | J123: 0.01 | K123: 0.01 | L123: 0.01 | M123: 0.01 | N123: 0.01 | O123: 0.01 | P123: 0.01 | Q123: 0.01 | R123: 0.01 | S123: 0.01
C124: 99 | D124: [REA] Copper Cable 4 | E124: Copper | F124: =INDEX(CAPEX_Cost_Trends,MATCH(E124,Cost_Trends_Categories,0),) -> 0.01 | G124: 0.01 | H124: 0.01 | I124: 0.01 | J124: 0.01 | K124: 0.01 | L124: 0.01 | M124: 0.01 | N124: 0.01 | O124: 0.01 | P124: 0.01 | Q124: 0.01 | R124: 0.01 | S124: 0.01
C125: 100 | D125: [REA] Copper Cable 10 | E125: Copper | F125: =INDEX(CAPEX_Cost_Trends,MATCH(E125,Cost_Trends_Categories,0),) -> 0.01 | G125: 0.01 | H125: 0.01 | I125: 0.01 | J125: 0.01 | K125: 0.01 | L125: 0.01 | M125: 0.01 | N125: 0.01 | O125: 0.01 | P125: 0.01 | Q125: 0.01 | R125: 0.01 | S125: 0.01
C126: 101 | D126: [REA] Copper Cable 20 | E126: Copper | F126: =INDEX(CAPEX_Cost_Trends,MATCH(E126,Cost_Trends_Categories,0),) -> 0.01 | G126: 0.01 | H126: 0.01 | I126: 0.01 | J126: 0.01 | K126: 0.01 | L126: 0.01 | M126: 0.01 | N126: 0.01 | O126: 0.01 | P126: 0.01 | Q126: 0.01 | R126: 0.01 | S126: 0.01
C127: 102 | D127: [REA] Copper Cable 50 | E127: Copper | F127: =INDEX(CAPEX_Cost_Trends,MATCH(E127,Cost_Trends_Categories,0),) -> 0.01 | G127: 0.01 | H127: 0.01 | I127: 0.01 | J127: 0.01 | K127: 0.01 | L127: 0.01 | M127: 0.01 | N127: 0.01 | O127: 0.01 | P127: 0.01 | Q127: 0.01 | R127: 0.01 | S127: 0.01
C128: 103 | D128: [REA] Copper Cable 100 | E128: Copper | F128: =INDEX(CAPEX_Cost_Trends,MATCH(E128,Cost_Trends_Categories,0),) -> 0.01 | G128: 0.01 | H128: 0.01 | I128: 0.01 | J128: 0.01 | K128: 0.01 | L128: 0.01 | M128: 0.01 | N128: 0.01 | O128: 0.01 | P128: 0.01 | Q128: 0.01 | R128: 0.01 | S128: 0.01
C129: 104 | D129: [REA] Copper Cable 200 | E129: Copper | F129: =INDEX(CAPEX_Cost_Trends,MATCH(E129,Cost_Trends_Categories,0),) -> 0.01 | G129: 0.01 | H129: 0.01 | I129: 0.01 | J129: 0.01 | K129: 0.01 | L129: 0.01 | M129: 0.01 | N129: 0.01 | O129: 0.01 | P129: 0.01 | Q129: 0.01 | R129: 0.01 | S129: 0.01
C130: 105 | D130: [REA] Copper Cable 400 | E130: Copper | F130: =INDEX(CAPEX_Cost_Trends,MATCH(E130,Cost_Trends_Categories,0),) -> 0.01 | G130: 0.01 | H130: 0.01 | I130: 0.01 | J130: 0.01 | K130: 0.01 | L130: 0.01 | M130: 0.01 | N130: 0.01 | O130: 0.01 | P130: 0.01 | Q130: 0.01 | R130: 0.01 | S130: 0.01
C131: 106 | D131: [REA] Copper Cable 1000 | E131: Copper | F131: =INDEX(CAPEX_Cost_Trends,MATCH(E131,Cost_Trends_Categories,0),) -> 0.01 | G131: 0.01 | H131: 0.01 | I131: 0.01 | J131: 0.01 | K131: 0.01 | L131: 0.01 | M131: 0.01 | N131: 0.01 | O131: 0.01 | P131: 0.01 | Q131: 0.01 | R131: 0.01 | S131: 0.01
C132: 107 | D132: [REA] Copper Cable 2000 | E132: Copper | F132: =INDEX(CAPEX_Cost_Trends,MATCH(E132,Cost_Trends_Categories,0),) -> 0.01 | G132: 0.01 | H132: 0.01 | I132: 0.01 | J132: 0.01 | K132: 0.01 | L132: 0.01 | M132: 0.01 | N132: 0.01 | O132: 0.01 | P132: 0.01 | Q132: 0.01 | R132: 0.01 | S132: 0.01
C133: 108 | D133: empty | E133: empty | F133: =INDEX(CAPEX_Cost_Trends,MATCH(E133,Cost_Trends_Categories,0),) -> 0 | G133: 0 | H133: 0 | I133: 0 | J133: 0 | K133: 0 | L133: 0 | M133: 0 | N133: 0 | O133: 0 | P133: 0 | Q133: 0 | R133: 0 | S133: 0
C134: 109 | D134: [REA] Aerial Copper Cable 2 | E134: Copper | F134: =INDEX(CAPEX_Cost_Trends,MATCH(E134,Cost_Trends_Categories,0),) -> 0.01 | G134: 0.01 | H134: 0.01 | I134: 0.01 | J134: 0.01 | K134: 0.01 | L134: 0.01 | M134: 0.01 | N134: 0.01 | O134: 0.01 | P134: 0.01 | Q134: 0.01 | R134: 0.01 | S134: 0.01
C135: 110 | D135: [REA] Aerial Copper Cable 4 | E135: Copper | F135: =INDEX(CAPEX_Cost_Trends,MATCH(E135,Cost_Trends_Categories,0),) -> 0.01 | G135: 0.01 | H135: 0.01 | I135: 0.01 | J135: 0.01 | K135: 0.01 | L135: 0.01 | M135: 0.01 | N135: 0.01 | O135: 0.01 | P135: 0.01 | Q135: 0.01 | R135: 0.01 | S135: 0.01
C136: 111 | D136: [REA] Aerial Copper Cable 20 | E136: Copper | F136: =INDEX(CAPEX_Cost_Trends,MATCH(E136,Cost_Trends_Categories,0),) -> 0.01 | G136: 0.01 | H136: 0.01 | I136: 0.01 | J136: 0.01 | K136: 0.01 | L136: 0.01 | M136: 0.01 | N136: 0.01 | O136: 0.01 | P136: 0.01 | Q136: 0.01 | R136: 0.01 | S136: 0.01
C137: 112 | D137: [REA] Poles | E137: Trenches | F137: =INDEX(CAPEX_Cost_Trends,MATCH(E137,Cost_Trends_Categories,0),) -> 0.01 | G137: 0.01 | H137: 0.01 | I137: 0.01 | J137: 0.01 | K137: 0.01 | L137: 0.01 | M137: 0.01 | N137: 0.01 | O137: 0.01 | P137: 0.01 | Q137: 0.01 | R137: 0.01 | S137: 0.01
B138: L2 WAP Equipment | C138: 113 | D138: SVC NTE | E138: Customer Side Active Equipment Copper | F138: =INDEX(CAPEX_Cost_Trends,MATCH(E138,Cost_Trends_Categories,0),) -> 0.01 | G138: 0.01 | H138: 0.01 | I138: 0.01 | J138: 0.01 | K138: 0.01 | L138: 0.01 | M138: 0.01 | N138: 0.01 | O138: 0.01 | P138: 0.01 | Q138: 0.01 | R138: 0.01 | S138: 0.01
C139: 114 | D139: SVO NTE | E139: Customer Side Active Equipment Fiber | F139: =INDEX(CAPEX_Cost_Trends,MATCH(E139,Cost_Trends_Categories,0),) -> -0.015 | G139: -0.015 | H139: -0.015 | I139: -0.015 | J139: -0.015 | K139: -0.015 | L139: -0.015 | M139: -0.015 | N139: -0.015 | O139: -0.015 | P139: -0.015 | Q139: -0.015 | R139: -0.015 | S139: -0.015
B140: Floor Box | C140: 115 | D140: Floor Box | E140: Passive Equipment | F140: =INDEX(CAPEX_Cost_Trends,MATCH(E140,Cost_Trends_Categories,0),) -> -0.01 | G140: -0.01 | H140: -0.01 | I140: -0.01 | J140: -0.01 | K140: -0.01 | L140: -0.01 | M140: -0.01 | N140: -0.01 | O140: -0.01 | P140: -0.01 | Q140: -0.01 | R140: -0.01 | S140: -0.01
B141: Copper Cabinets | C141: 116 | D141: Cabinet (KV) | E141: Passive Equipment | F141: =INDEX(CAPEX_Cost_Trends,MATCH(E141,Cost_Trends_Categories,0),) -> -0.01 | G141: -0.01 | H141: -0.01 | I141: -0.01 | J141: -0.01 | K141: -0.01 | L141: -0.01 | M141: -0.01 | N141: -0.01 | O141: -0.01 | P141: -0.01 | Q141: -0.01 | R141: -0.01 | S141: -0.01 | T141: CAPEX_Trend_per_Element
D143: Cumulative Cost Trend per Element
B144: =Elements_Tags -> Common | C144: =Elements_Index -> 1 | D144: =Elements_List -> Billing System | F144: =IFERROR(G144:G259/(1+F26:F141),"-") -> 1.177375699 | G144: =IFERROR(H144:H259/(1+G26:G141),"-") -> 1.130280671 | H144: =IFERROR(I144:I259/(1+H26:H141),"-") -> 1.085069444 | I144: =IFERROR(J144:J259/(1+I26:I141),"-") -> 1.041666667 | J144: =100% -> 1 | K144: =IFERROR(J144:J259*(1 + J26:J141),"-") -> 0.96 | L144: =IFERROR(K144:K259*(1 + K26:K141),"-") -> 0.9216 | M144: =IFERROR(L144:L259*(1 + L26:L141),"-") -> 0.884736 | N144: =IFERROR(M144:M259*(1 + M26:M141),"-") -> 0.84934656 | O144: =IFERROR(N144:N259*(1 + N26:N141),"-") -> 0.8153726976 | P144: =IFERROR(O144:O259*(1 + O26:O141),"-") -> 0.7827577897 | Q144: =IFERROR(P144:P259*(1 + P26:P141),"-") -> 0.7514474781 | R144: =IFERROR(Q144:Q259*(1 + Q26:Q141),"-") -> 0.721389579 | S144: =IFERROR(R144:R259*(1 + R26:R141),"-") -> 0.6925339958
C145: 2 | D145: empty | F145: 1 | G145: 1 | H145: 1 | I145: 1 | J145: 1 | K145: 1 | L145: 1 | M145: 1 | N145: 1 | O145: 1 | P145: 1 | Q145: 1 | R145: 1 | S145: 1
C146: 3 | D146: Network Management System | F146: 1.177375699 | G146: 1.130280671 | H146: 1.085069444 | I146: 1.041666667 | J146: 1 | K146: 0.96 | L146: 0.9216 | M146: 0.884736 | N146: 0.84934656 | O146: 0.8153726976 | P146: 0.7827577897 | Q146: 0.7514474781 | R146: 0.721389579 | S146: 0.6925339958
C147: 4 | D147: Provision System | F147: 1.177375699 | G147: 1.130280671 | H147: 1.085069444 | I147: 1.041666667 | J147: 1 | K147: 0.96 | L147: 0.9216 | M147: 0.884736 | N147: 0.84934656 | O147: 0.8153726976 | P147: 0.7827577897 | Q147: 0.7514474781 | R147: 0.721389579 | S147: 0.6925339958
C148: 5 | D148: Eligibility System | F148: 1.177375699 | G148: 1.130280671 | H148: 1.085069444 | I148: 1.041666667 | J148: 1 | K148: 0.96 | L148: 0.9216 | M148: 0.884736 | N148: 0.84934656 | O148: 0.8153726976 | P148: 0.7827577897 | Q148: 0.7514474781 | R148: 0.721389579 | S148: 0.6925339958
C149: 6 | D149: Other IT System | F149: 1.177375699 | G149: 1.130280671 | H149: 1.085069444 | I149: 1.041666667 | J149: 1 | K149: 0.96 | L149: 0.9216 | M149: 0.884736 | N149: 0.84934656 | O149: 0.8153726976 | P149: 0.7827577897 | Q149: 0.7514474781 | R149: 0.721389579 | S149: 0.6925339958
C150: 7 | D150: Rights of Way Trench | F150: 1 | G150: 1 | H150: 1 | I150: 1 | J150: 1 | K150: 1 | L150: 1 | M150: 1 | N150: 1 | O150: 1 | P150: 1 | Q150: 1 | R150: 1 | S150: 1
C151: 8 | D151: Rights of Way Cabinet | F151: 1 | G151: 1 | H151: 1 | I151: 1 | J151: 1 | K151: 1 | L151: 1 | M151: 1 | N151: 1 | O151: 1 | P151: 1 | Q151: 1 | R151: 1 | S151: 1
B152: Aggregation | C152: 9 | D152: OLO Trench | F152: 0.9609803445 | G152: 0.9705901479 | H152: 0.9802960494 | I152: 0.9900990099 | J152: 1 | K152: 1.01 | L152: 1.0201 | M152: 1.030301 | N152: 1.04060401 | O152: 1.05101005 | P152: 1.061520151 | Q152: 1.072135352 | R152: 1.082856706 | S152: 1.093685273
C153: 10 | D153: Layer 2 Switch | F153: 1.177375699 | G153: 1.130280671 | H153: 1.085069444 | I153: 1.041666667 | J153: 1 | K153: 0.96 | L153: 0.9216 | M153: 0.884736 | N153: 0.84934656 | O153: 0.8153726976 | P153: 0.7827577897 | Q153: 0.7514474781 | R153: 0.721389579 | S153: 0.6925339958
C154: 11 | D154: Layer 2 Switch Core Facing Cards | F154: 1.177375699 | G154: 1.130280671 | H154: 1.085069444 | I154: 1.041666667 | J154: 1 | K154: 0.96 | L154: 0.9216 | M154: 0.884736 | N154: 0.84934656 | O154: 0.8153726976 | P154: 0.7827577897 | Q154: 0.7514474781 | R154: 0.721389579 | S154: 0.6925339958
C155: 12 | D155: Layer 2 Aggregation Switch Network Facing Cards | F155: 1.177375699 | G155: 1.130280671 | H155: 1.085069444 | I155: 1.041666667 | J155: 1 | K155: 0.96 | L155: 0.9216 | M155: 0.884736 | N155: 0.84934656 | O155: 0.8153726976 | P155: 0.7827577897 | Q155: 0.7514474781 | R155: 0.721389579 | S155: 0.6925339958
B156: CO Manhole | C156: 13 | D156: Other Operator Reception Manhole | F156: 0.9609803445 | G156: 0.9705901479 | H156: 0.9802960494 | I156: 0.9900990099 | J156: 1 | K156: 1.01 | L156: 1.0201 | M156: 1.030301 | N156: 1.04060401 | O156: 1.05101005 | P156: 1.061520151 | Q156: 1.072135352 | R156: 1.082856706 | S156: 1.093685273
B157: Core | C157: 14 | D157: RADIUS Servers | F157: 1.177375699 | G157: 1.130280671 | H157: 1.085069444 | I157: 1.041666667 | J157: 1 | K157: 0.96 | L157: 0.9216 | M157: 0.884736 | N157: 0.84934656 | O157: 0.8153726976 | P157: 0.7827577897 | Q157: 0.7514474781 | R157: 0.721389579 | S157: 0.6925339958
C158: 15 | D158: DNS Servers | F158: 1.177375699 | G158: 1.130280671 | H158: 1.085069444 | I158: 1.041666667 | J158: 1 | K158: 0.96 | L158: 0.9216 | M158: 0.884736 | N158: 0.84934656 | O158: 0.8153726976 | P158: 0.7827577897 | Q158: 0.7514474781 | R158: 0.721389579 | S158: 0.6925339958
C159: 16 | D159: Core Layer 3 Routers | F159: 1.177375699 | G159: 1.130280671 | H159: 1.085069444 | I159: 1.041666667 | J159: 1 | K159: 0.96 | L159: 0.9216 | M159: 0.884736 | N159: 0.84934656 | O159: 0.8153726976 | P159: 0.7827577897 | Q159: 0.7514474781 | R159: 0.721389579 | S159: 0.6925339958
C160: 17 | D160: Distribution Layer 3 Routers | F160: 1.177375699 | G160: 1.130280671 | H160: 1.085069444 | I160: 1.041666667 | J160: 1 | K160: 0.96 | L160: 0.9216 | M160: 0.884736 | N160: 0.84934656 | O160: 0.8153726976 | P160: 0.7827577897 | Q160: 0.7514474781 | R160: 0.721389579 | S160: 0.6925339958
C161: 18 | D161: empty | F161: 1 | G161: 1 | H161: 1 | I161: 1 | J161: 1 | K161: 1 | L161: 1 | M161: 1 | N161: 1 | O161: 1 | P161: 1 | Q161: 1 | R161: 1 | S161: 1
C162: 19 | D162: BRAS/BNG | F162: 1.177375699 | G162: 1.130280671 | H162: 1.085069444 | I162: 1.041666667 | J162: 1 | K162: 0.96 | L162: 0.9216 | M162: 0.884736 | N162: 0.84934656 | O162: 0.8153726976 | P162: 0.7827577897 | Q162: 0.7514474781 | R162: 0.721389579 | S162: 0.6925339958
B163: Aggregation | C163: 20 | D163: Layer 2 Aggregation Switch | F163: 1.177375699 | G163: 1.130280671 | H163: 1.085069444 | I163: 1.041666667 | J163: 1 | K163: 0.96 | L163: 0.9216 | M163: 0.884736 | N163: 0.84934656 | O163: 0.8153726976 | P163: 0.7827577897 | Q163: 0.7514474781 | R163: 0.721389579 | S163: 0.6925339958
B164: CO | C164: 21 | D164: Site | F164: 1 | G164: 1 | H164: 1 | I164: 1 | J164: 1 | K164: 1 | L164: 1 | M164: 1 | N164: 1 | O164: 1 | P164: 1 | Q164: 1 | R164: 1 | S164: 1
C165: 22 | D165: Rack | F165: 1.041020356 | G165: 1.030610152 | H165: 1.020304051 | I165: 1.01010101 | J165: 1 | K165: 0.99 | L165: 0.9801 | M165: 0.970299 | N165: 0.96059601 | O165: 0.9509900499 | P165: 0.9414801494 | Q165: 0.9320653479 | R165: 0.9227446944 | S165: 0.9135172475
C166: 23 | D166: Power Generator | F166: 1.041020356 | G166: 1.030610152 | H166: 1.020304051 | I166: 1.01010101 | J166: 1 | K166: 0.99 | L166: 0.9801 | M166: 0.970299 | N166: 0.96059601 | O166: 0.9509900499 | P166: 0.9414801494 | Q166: 0.9320653479 | R166: 0.9227446944 | S166: 0.9135172475
C167: 24 | D167: empty | F167: 1 | G167: 1 | H167: 1 | I167: 1 | J167: 1 | K167: 1 | L167: 1 | M167: 1 | N167: 1 | O167: 1 | P167: 1 | Q167: 1 | R167: 1 | S167: 1
C168: 25 | D168: VDSL DSLAM | F168: 1.177375699 | G168: 1.130280671 | H168: 1.085069444 | I168: 1.041666667 | J168: 1 | K168: 0.96 | L168: 0.9216 | M168: 0.884736 | N168: 0.84934656 | O168: 0.8153726976 | P168: 0.7827577897 | Q168: 0.7514474781 | R168: 0.721389579 | S168: 0.6925339958
C169: 26 | D169: VDSL Line Cards | F169: 1.177375699 | G169: 1.130280671 | H169: 1.085069444 | I169: 1.041666667 | J169: 1 | K169: 0.96 | L169: 0.9216 | M169: 0.884736 | N169: 0.84934656 | O169: 0.8153726976 | P169: 0.7827577897 | Q169: 0.7514474781 | R169: 0.721389579 | S169: 0.6925339958
C170: 27 | D170: empty | F170: 1 | G170: 1 | H170: 1 | I170: 1 | J170: 1 | K170: 1 | L170: 1 | M170: 1 | N170: 1 | O170: 1 | P170: 1 | Q170: 1 | R170: 1 | S170: 1
C171: 28 | D171: Network-facing Ports CO | F171: 1.177375699 | G171: 1.130280671 | H171: 1.085069444 | I171: 1.041666667 | J171: 1 | K171: 0.96 | L171: 0.9216 | M171: 0.884736 | N171: 0.84934656 | O171: 0.8153726976 | P171: 0.7827577897 | Q171: 0.7514474781 | R171: 0.721389579 | S171: 0.6925339958
C172: 29 | D172: MDF | F172: 1.041020356 | G172: 1.030610152 | H172: 1.020304051 | I172: 1.01010101 | J172: 1 | K172: 0.99 | L172: 0.9801 | M172: 0.970299 | N172: 0.96059601 | O172: 0.9509900499 | P172: 0.9414801494 | Q172: 0.9320653479 | R172: 0.9227446944 | S172: 0.9135172475
C173: 30 | D173: OLT | F173: 1.177375699 | G173: 1.130280671 | H173: 1.085069444 | I173: 1.041666667 | J173: 1 | K173: 0.96 | L173: 0.9216 | M173: 0.884736 | N173: 0.84934656 | O173: 0.8153726976 | P173: 0.7827577897 | Q173: 0.7514474781 | R173: 0.721389579 | S173: 0.6925339958
C174: 31 | D174: ODF | F174: 1.041020356 | G174: 1.030610152 | H174: 1.020304051 | I174: 1.01010101 | J174: 1 | K174: 0.99 | L174: 0.9801 | M174: 0.970299 | N174: 0.96059601 | O174: 0.9509900499 | P174: 0.9414801494 | Q174: 0.9320653479 | R174: 0.9227446944 | S174: 0.9135172475
C175: 32 | D175: Air Conditioning Unit | F175: 1.041020356 | G175: 1.030610152 | H175: 1.020304051 | I175: 1.01010101 | J175: 1 | K175: 0.99 | L175: 0.9801 | M175: 0.970299 | N175: 0.96059601 | O175: 0.9509900499 | P175: 0.9414801494 | Q175: 0.9320653479 | R175: 0.9227446944 | S175: 0.9135172475
C176: 33 | D176: Power Supply Unit + Backup | F176: 1.177375699 | G176: 1.130280671 | H176: 1.085069444 | I176: 1.041666667 | J176: 1 | K176: 0.96 | L176: 0.9216 | M176: 0.884736 | N176: 0.84934656 | O176: 0.8153726976 | P176: 0.7827577897 | Q176: 0.7514474781 | R176: 0.721389579 | S176: 0.6925339958
B177: FTTH Cabinet | C177: 34 | D177: Passive Cabinet (Fully equipped) | F177: 1.041020356 | G177: 1.030610152 | H177: 1.020304051 | I177: 1.01010101 | J177: 1 | K177: 0.99 | L177: 0.9801 | M177: 0.970299 | N177: 0.96059601 | O177: 0.9509900499 | P177: 0.9414801494 | Q177: 0.9320653479 | R177: 0.9227446944 | S177: 0.9135172475
B178: Active Cabinet | C178: 35 | D178: Cabinet | F178: 1 | G178: 1 | H178: 1 | I178: 1 | J178: 1 | K178: 1 | L178: 1 | M178: 1 | N178: 1 | O178: 1 | P178: 1 | Q178: 1 | R178: 1 | S178: 1
C179: 36 | D179: Cabinet Base (Plinth) | F179: 1 | G179: 1 | H179: 1 | I179: 1 | J179: 1 | K179: 1 | L179: 1 | M179: 1 | N179: 1 | O179: 1 | P179: 1 | Q179: 1 | R179: 1 | S179: 1
C180: 37 | D180: MSAN SuperVectoring | F180: 1.177375699 | G180: 1.130280671 | H180: 1.085069444 | I180: 1.041666667 | J180: 1 | K180: 0.96 | L180: 0.9216 | M180: 0.884736 | N180: 0.84934656 | O180: 0.8153726976 | P180: 0.7827577897 | Q180: 0.7514474781 | R180: 0.721389579 | S180: 0.6925339958
C181: 38 | D181: SuperVectoring Line Cards | F181: 1.177375699 | G181: 1.130280671 | H181: 1.085069444 | I181: 1.041666667 | J181: 1 | K181: 0.96 | L181: 0.9216 | M181: 0.884736 | N181: 0.84934656 | O181: 0.8153726976 | P181: 0.7827577897 | Q181: 0.7514474781 | R181: 0.721389579 | S181: 0.6925339958
C182: 39 | D182: MSAN G.fast | F182: 1.177375699 | G182: 1.130280671 | H182: 1.085069444 | I182: 1.041666667 | J182: 1 | K182: 0.96 | L182: 0.9216 | M182: 0.884736 | N182: 0.84934656 | O182: 0.8153726976 | P182: 0.7827577897 | Q182: 0.7514474781 | R182: 0.721389579 | S182: 0.6925339958
C183: 40 | D183: G.Fast Line Cards | F183: 1.177375699 | G183: 1.130280671 | H183: 1.085069444 | I183: 1.041666667 | J183: 1 | K183: 0.96 | L183: 0.9216 | M183: 0.884736 | N183: 0.84934656 | O183: 0.8153726976 | P183: 0.7827577897 | Q183: 0.7514474781 | R183: 0.721389579 | S183: 0.6925339958
C184: 41 | D184: empty | F184: 1 | G184: 1 | H184: 1 | I184: 1 | J184: 1 | K184: 1 | L184: 1 | M184: 1 | N184: 1 | O184: 1 | P184: 1 | Q184: 1 | R184: 1 | S184: 1
C185: 42 | D185: Network-facing Ports | F185: 1.177375699 | G185: 1.130280671 | H185: 1.085069444 | I185: 1.041666667 | J185: 1 | K185: 0.96 | L185: 0.9216 | M185: 0.884736 | N185: 0.84934656 | O185: 0.8153726976 | P185: 0.7827577897 | Q185: 0.7514474781 | R185: 0.721389579 | S185: 0.6925339958
C186: 43 | D186: Batteries | F186: 1.041020356 | G186: 1.030610152 | H186: 1.020304051 | I186: 1.01010101 | J186: 1 | K186: 0.99 | L186: 0.9801 | M186: 0.970299 | N186: 0.96059601 | O186: 0.9509900499 | P186: 0.9414801494 | Q186: 0.9320653479 | R186: 0.9227446944 | S186: 0.9135172475
B187: Premises | C187: 44 | D187: Building Entry Point (BEP) | F187: 1.041020356 | G187: 1.030610152 | H187: 1.020304051 | I187: 1.01010101 | J187: 1 | K187: 0.99 | L187: 0.9801 | M187: 0.970299 | N187: 0.96059601 | O187: 0.9509900499 | P187: 0.9414801494 | Q187: 0.9320653479 | R187: 0.9227446944 | S187: 0.9135172475
C188: 45 | D188: Splitters | F188: 1.041020356 | G188: 1.030610152 | H188: 1.020304051 | I188: 1.01010101 | J188: 1 | K188: 0.99 | L188: 0.9801 | M188: 0.970299 | N188: 0.96059601 | O188: 0.9509900499 | P188: 0.9414801494 | Q188: 0.9320653479 | R188: 0.9227446944 | S188: 0.9135172475
B189: Trenching | C189: 46 | D189: FTTC Feeder | F189: 0.9609803445 | G189: 0.9705901479 | H189: 0.9802960494 | I189: 0.9900990099 | J189: 1 | K189: 1.01 | L189: 1.0201 | M189: 1.030301 | N189: 1.04060401 | O189: 1.05101005 | P189: 1.061520151 | Q189: 1.072135352 | R189: 1.082856706 | S189: 1.093685273
C190: 47 | D190: FTTC Distribution | F190: 0.9609803445 | G190: 0.9705901479 | H190: 0.9802960494 | I190: 0.9900990099 | J190: 1 | K190: 1.01 | L190: 1.0201 | M190: 1.030301 | N190: 1.04060401 | O190: 1.05101005 | P190: 1.061520151 | Q190: 1.072135352 | R190: 1.082856706 | S190: 1.093685273
C191: 48 | D191: FTTC Drop | F191: 0.9609803445 | G191: 0.9705901479 | H191: 0.9802960494 | I191: 0.9900990099 | J191: 1 | K191: 1.01 | L191: 1.0201 | M191: 1.030301 | N191: 1.04060401 | O191: 1.05101005 | P191: 1.061520151 | Q191: 1.072135352 | R191: 1.082856706 | S191: 1.093685273
C192: 49 | D192: FTTH Feeder | F192: 0.9609803445 | G192: 0.9705901479 | H192: 0.9802960494 | I192: 0.9900990099 | J192: 1 | K192: 1.01 | L192: 1.0201 | M192: 1.030301 | N192: 1.04060401 | O192: 1.05101005 | P192: 1.061520151 | Q192: 1.072135352 | R192: 1.082856706 | S192: 1.093685273
C193: 50 | D193: FTTH Distribution | F193: 0.9609803445 | G193: 0.9705901479 | H193: 0.9802960494 | I193: 0.9900990099 | J193: 1 | K193: 1.01 | L193: 1.0201 | M193: 1.030301 | N193: 1.04060401 | O193: 1.05101005 | P193: 1.061520151 | Q193: 1.072135352 | R193: 1.082856706 | S193: 1.093685273
C194: 51 | D194: FTTH Drop | F194: 0.9609803445 | G194: 0.9705901479 | H194: 0.9802960494 | I194: 0.9900990099 | J194: 1 | K194: 1.01 | L194: 1.0201 | M194: 1.030301 | N194: 1.04060401 | O194: 1.05101005 | P194: 1.061520151 | Q194: 1.072135352 | R194: 1.082856706 | S194: 1.093685273
C195: 52 | D195: Copper Feeder | F195: 0.9609803445 | G195: 0.9705901479 | H195: 0.9802960494 | I195: 0.9900990099 | J195: 1 | K195: 1.01 | L195: 1.0201 | M195: 1.030301 | N195: 1.04060401 | O195: 1.05101005 | P195: 1.061520151 | Q195: 1.072135352 | R195: 1.082856706 | S195: 1.093685273
C196: 53 | D196: Copper Distribution | F196: 0.9609803445 | G196: 0.9705901479 | H196: 0.9802960494 | I196: 0.9900990099 | J196: 1 | K196: 1.01 | L196: 1.0201 | M196: 1.030301 | N196: 1.04060401 | O196: 1.05101005 | P196: 1.061520151 | Q196: 1.072135352 | R196: 1.082856706 | S196: 1.093685273
C197: 54 | D197: Copper Drop | F197: 0.9609803445 | G197: 0.9705901479 | H197: 0.9802960494 | I197: 0.9900990099 | J197: 1 | K197: 1.01 | L197: 1.0201 | M197: 1.030301 | N197: 1.04060401 | O197: 1.05101005 | P197: 1.061520151 | Q197: 1.072135352 | R197: 1.082856706 | S197: 1.093685273
B198: Cabling | C198: 55 | D198: FTTH Fiber Cable 2 | F198: 1.062319315 | G198: 1.046384526 | H198: 1.030688758 | I198: 1.015228426 | J198: 1 | K198: 0.985 | L198: 0.970225 | M198: 0.955671625 | N198: 0.9413365506 | O198: 0.9272165024 | P198: 0.9133082548 | Q198: 0.899608631 | R198: 0.8861145015 | S198: 0.872822784
C199: 56 | D199: FTTH Fiber Cable 4 | F199: 1.062319315 | G199: 1.046384526 | H199: 1.030688758 | I199: 1.015228426 | J199: 1 | K199: 0.985 | L199: 0.970225 | M199: 0.955671625 | N199: 0.9413365506 | O199: 0.9272165024 | P199: 0.9133082548 | Q199: 0.899608631 | R199: 0.8861145015 | S199: 0.872822784
C200: 57 | D200: FTTH Fiber Cable 8 | F200: 1.062319315 | G200: 1.046384526 | H200: 1.030688758 | I200: 1.015228426 | J200: 1 | K200: 0.985 | L200: 0.970225 | M200: 0.955671625 | N200: 0.9413365506 | O200: 0.9272165024 | P200: 0.9133082548 | Q200: 0.899608631 | R200: 0.8861145015 | S200: 0.872822784
C201: 58 | D201: FTTH Fiber Cable 12 | F201: 1.062319315 | G201: 1.046384526 | H201: 1.030688758 | I201: 1.015228426 | J201: 1 | K201: 0.985 | L201: 0.970225 | M201: 0.955671625 | N201: 0.9413365506 | O201: 0.9272165024 | P201: 0.9133082548 | Q201: 0.899608631 | R201: 0.8861145015 | S201: 0.872822784
C202: 59 | D202: FTTH Fiber Cable 24 | F202: 1.062319315 | G202: 1.046384526 | H202: 1.030688758 | I202: 1.015228426 | J202: 1 | K202: 0.985 | L202: 0.970225 | M202: 0.955671625 | N202: 0.9413365506 | O202: 0.9272165024 | P202: 0.9133082548 | Q202: 0.899608631 | R202: 0.8861145015 | S202: 0.872822784
C203: 60 | D203: FTTH Fiber Cable 48 | F203: 1.062319315 | G203: 1.046384526 | H203: 1.030688758 | I203: 1.015228426 | J203: 1 | K203: 0.985 | L203: 0.970225 | M203: 0.955671625 | N203: 0.9413365506 | O203: 0.9272165024 | P203: 0.9133082548 | Q203: 0.899608631 | R203: 0.8861145015 | S203: 0.872822784
C204: 61 | D204: FTTH Fiber Cable 96 | F204: 1.062319315 | G204: 1.046384526 | H204: 1.030688758 | I204: 1.015228426 | J204: 1 | K204: 0.985 | L204: 0.970225 | M204: 0.955671625 | N204: 0.9413365506 | O204: 0.9272165024 | P204: 0.9133082548 | Q204: 0.899608631 | R204: 0.8861145015 | S204: 0.872822784
C205: 62 | D205: FTTH Fiber Cable 192 | F205: 1.062319315 | G205: 1.046384526 | H205: 1.030688758 | I205: 1.015228426 | J205: 1 | K205: 0.985 | L205: 0.970225 | M205: 0.955671625 | N205: 0.9413365506 | O205: 0.9272165024 | P205: 0.9133082548 | Q205: 0.899608631 | R205: 0.8861145015 | S205: 0.872822784
C206: 63 | D206: FTTC Fiber Cable 12 | F206: 1.062319315 | G206: 1.046384526 | H206: 1.030688758 | I206: 1.015228426 | J206: 1 | K206: 0.985 | L206: 0.970225 | M206: 0.955671625 | N206: 0.9413365506 | O206: 0.9272165024 | P206: 0.9133082548 | Q206: 0.899608631 | R206: 0.8861145015 | S206: 0.872822784
... 438 more rows

Sheet OPEX_Evolution
B1: OPEX Evolution
F4: =G4-1 -> 2015 | G4: 2016 | H4: 2017 | I4: =J4-1 -> 2018 | J4: =TRANSPOSE(Study_Period) -> 2019 | K4: 2020 | L4: 2021 | M4: 2022 | N4: 2023 | O4: 2024 | P4: 2025 | Q4: 2026 | R4: 2027 | S4: 2028
F5: -3 | G5: -2 | H5: -1 | I5: 0 | J5: =TRANSPOSE(Study_Years) -> 1 | K5: 2 | L5: 3 | M5: 4 | N5: 5 | O5: 6 | P5: 7 | Q5: 8 | R5: 9 | S5: 10
D8: Cost Trends Categories
D9: =Cost_Trends_Categories -> Active Equipment | F9: 0 | G9: =F9 -> 0 | H9: 0 | I9: 0 | J9: 0 | K9: 0 | L9: 0 | M9: 0 | N9: 0 | O9: 0 | P9: 0 | Q9: 0 | R9: 0 | S9: 0
D10: Passive Equipment | F10: 0 | G10: =F10 -> 0 | H10: 0 | I10: 0 | J10: 0 | K10: 0 | L10: 0 | M10: 0 | N10: 0 | O10: 0 | P10: 0 | Q10: 0 | R10: 0 | S10: 0
D11: Fiber | F11: 0 | G11: =F11 -> 0 | H11: 0 | I11: 0 | J11: 0 | K11: 0 | L11: 0 | M11: 0 | N11: 0 | O11: 0 | P11: 0 | Q11: 0 | R11: 0 | S11: 0
D12: Trenches | F12: 0 | G12: =F12 -> 0 | H12: 0 | I12: 0 | J12: 0 | K12: 0 | L12: 0 | M12: 0 | N12: 0 | O12: 0 | P12: 0 | Q12: 0 | R12: 0 | S12: 0
D13: Services Platform | F13: 0 | G13: =F13 -> 0 | H13: 0 | I13: 0 | J13: 0 | K13: 0 | L13: 0 | M13: 0 | N13: 0 | O13: 0 | P13: 0 | Q13: 0 | R13: 0 | S13: 0
D14: Air Conditioning | F14: 0 | G14: =F14 -> 0 | H14: 0 | I14: 0 | J14: 0 | K14: 0 | L14: 0 | M14: 0 | N14: 0 | O14: 0 | P14: 0 | Q14: 0 | R14: 0 | S14: 0
D15: Power Energy | F15: 0.01 | G15: =F15 -> 0.01 | H15: 0.01 | I15: 0.01 | J15: 0.01 | K15: 0.01 | L15: 0.01 | M15: 0.01 | N15: 0.01 | O15: 0.01 | P15: 0.01 | Q15: 0.01 | R15: 0.01 | S15: 0.01
D16: Copper | F16: 0 | G16: =F16 -> 0 | H16: 0 | I16: 0 | J16: 0 | K16: 0 | L16: 0 | M16: 0 | N16: 0 | O16: 0 | P16: 0 | Q16: 0 | R16: 0 | S16: 0
D17: Voice | F17: 0 | G17: =F17 -> 0 | H17: 0 | I17: 0 | J17: 0 | K17: 0 | L17: 0 | M17: 0 | N17: 0 | O17: 0 | P17: 0 | Q17: 0 | R17: 0 | S17: 0
D18: Common | F18: 0 | G18: =F18 -> 0 | H18: 0 | I18: 0 | J18: 0 | K18: 0 | L18: 0 | M18: 0 | N18: 0 | O18: 0 | P18: 0 | Q18: 0 | R18: 0 | S18: 0
D19: Other | F19: =1/(1+Inflation)-1 -> 0.01729399797 | G19: 0.008064516129 | H19: -0.01088031652 | I19: -0.005964214712 | J19: -0.007936507937 | K19: -0.008919722498 | L19: -0.01283316881 | M19: -0.01380670611 | N19: -0.01768172888 | O19: -0.01768172888 | P19: -0.01768172888 | Q19: -0.01768172888 | R19: -0.01768172888 | S19: -0.01768172888 | T19: Flat Nominal
D20: Overheads | F20: 0 | G20: =F20 -> 0 | H20: 0 | I20: 0 | J20: 0 | K20: 0 | L20: 0 | M20: 0 | N20: 0 | O20: 0 | P20: 0 | Q20: 0 | R20: 0 | S20: 0
D21: Customer Side Active Equipment Copper | F21: 0 | G21: =F21 -> 0 | H21: 0 | I21: 0 | J21: 0 | K21: 0 | L21: 0 | M21: 0 | N21: 0 | O21: 0 | P21: 0 | Q21: 0 | R21: 0 | S21: 0
D22: Customer Side Active Equipment Fiber | F22: 0 | G22: =F22 -> 0 | H22: 0 | I22: 0 | J22: 0 | K22: 0 | L22: 0 | M22: 0 | N22: 0 | O22: 0 | P22: 0 | Q22: 0 | R22: 0 | S22: 0
D23: empty | F23: 0 | G23: =F23 -> 0 | H23: 0 | I23: 0 | J23: 0 | K23: 0 | L23: 0 | M23: 0 | N23: 0 | O23: 0 | P23: 0 | Q23: 0 | R23: 0 | S23: 0 | T23: OPEX_Cost_Trends
D25: Cost Trend per Element
B26: =Elements_Tags -> Common | C26: =Elements_Index -> 1 | D26: =Elements_List -> Billing System | E26: =Elements_Trends -> Services Platform | F26: =INDEX(OPEX_Cost_Trends,MATCH(E26,Cost_Trends_Categories,0),) -> 0 | G26: 0 | H26: 0 | I26: 0 | J26: 0 | K26: 0 | L26: 0 | M26: 0 | N26: 0 | O26: 0 | P26: 0 | Q26: 0 | R26: 0 | S26: 0
C27: 2 | D27: empty | E27: empty | F27: =INDEX(OPEX_Cost_Trends,MATCH(E27,Cost_Trends_Categories,0),) -> 0 | G27: 0 | H27: 0 | I27: 0 | J27: 0 | K27: 0 | L27: 0 | M27: 0 | N27: 0 | O27: 0 | P27: 0 | Q27: 0 | R27: 0 | S27: 0
C28: 3 | D28: Network Management System | E28: Services Platform | F28: =INDEX(OPEX_Cost_Trends,MATCH(E28,Cost_Trends_Categories,0),) -> 0 | G28: 0 | H28: 0 | I28: 0 | J28: 0 | K28: 0 | L28: 0 | M28: 0 | N28: 0 | O28: 0 | P28: 0 | Q28: 0 | R28: 0 | S28: 0
C29: 4 | D29: Provision System | E29: Services Platform | F29: =INDEX(OPEX_Cost_Trends,MATCH(E29,Cost_Trends_Categories,0),) -> 0 | G29: 0 | H29: 0 | I29: 0 | J29: 0 | K29: 0 | L29: 0 | M29: 0 | N29: 0 | O29: 0 | P29: 0 | Q29: 0 | R29: 0 | S29: 0
C30: 5 | D30: Eligibility System | E30: Services Platform | F30: =INDEX(OPEX_Cost_Trends,MATCH(E30,Cost_Trends_Categories,0),) -> 0 | G30: 0 | H30: 0 | I30: 0 | J30: 0 | K30: 0 | L30: 0 | M30: 0 | N30: 0 | O30: 0 | P30: 0 | Q30: 0 | R30: 0 | S30: 0
C31: 6 | D31: Other IT System | E31: Services Platform | F31: =INDEX(OPEX_Cost_Trends,MATCH(E31,Cost_Trends_Categories,0),) -> 0 | G31: 0 | H31: 0 | I31: 0 | J31: 0 | K31: 0 | L31: 0 | M31: 0 | N31: 0 | O31: 0 | P31: 0 | Q31: 0 | R31: 0 | S31: 0
C32: 7 | D32: Rights of Way Trench | E32: Other | F32: =INDEX(OPEX_Cost_Trends,MATCH(E32,Cost_Trends_Categories,0),) -> 0.01729399797 | G32: 0.008064516129 | H32: -0.01088031652 | I32: -0.005964214712 | J32: -0.007936507937 | K32: -0.008919722498 | L32: -0.01283316881 | M32: -0.01380670611 | N32: -0.01768172888 | O32: -0.01768172888 | P32: -0.01768172888 | Q32: -0.01768172888 | R32: -0.01768172888 | S32: -0.01768172888
C33: 8 | D33: Rights of Way Cabinet | E33: Other | F33: =INDEX(OPEX_Cost_Trends,MATCH(E33,Cost_Trends_Categories,0),) -> 0.01729399797 | G33: 0.008064516129 | H33: -0.01088031652 | I33: -0.005964214712 | J33: -0.007936507937 | K33: -0.008919722498 | L33: -0.01283316881 | M33: -0.01380670611 | N33: -0.01768172888 | O33: -0.01768172888 | P33: -0.01768172888 | Q33: -0.01768172888 | R33: -0.01768172888 | S33: -0.01768172888
B34: Aggregation | C34: 9 | D34: OLO Trench | E34: Trenches | F34: =INDEX(OPEX_Cost_Trends,MATCH(E34,Cost_Trends_Categories,0),) -> 0 | G34: 0 | H34: 0 | I34: 0 | J34: 0 | K34: 0 | L34: 0 | M34: 0 | N34: 0 | O34: 0 | P34: 0 | Q34: 0 | R34: 0 | S34: 0
C35: 10 | D35: Layer 2 Switch | E35: Active Equipment | F35: =INDEX(OPEX_Cost_Trends,MATCH(E35,Cost_Trends_Categories,0),) -> 0 | G35: 0 | H35: 0 | I35: 0 | J35: 0 | K35: 0 | L35: 0 | M35: 0 | N35: 0 | O35: 0 | P35: 0 | Q35: 0 | R35: 0 | S35: 0
C36: 11 | D36: Layer 2 Switch Core Facing Cards | E36: Active Equipment | F36: =INDEX(OPEX_Cost_Trends,MATCH(E36,Cost_Trends_Categories,0),) -> 0 | G36: 0 | H36: 0 | I36: 0 | J36: 0 | K36: 0 | L36: 0 | M36: 0 | N36: 0 | O36: 0 | P36: 0 | Q36: 0 | R36: 0 | S36: 0
C37: 12 | D37: Layer 2 Aggregation Switch Network Facing Cards | E37: Active Equipment | F37: =INDEX(OPEX_Cost_Trends,MATCH(E37,Cost_Trends_Categories,0),) -> 0 | G37: 0 | H37: 0 | I37: 0 | J37: 0 | K37: 0 | L37: 0 | M37: 0 | N37: 0 | O37: 0 | P37: 0 | Q37: 0 | R37: 0 | S37: 0
B38: CO Manhole | C38: 13 | D38: Other Operator Reception Manhole | E38: Trenches | F38: =INDEX(OPEX_Cost_Trends,MATCH(E38,Cost_Trends_Categories,0),) -> 0 | G38: 0 | H38: 0 | I38: 0 | J38: 0 | K38: 0 | L38: 0 | M38: 0 | N38: 0 | O38: 0 | P38: 0 | Q38: 0 | R38: 0 | S38: 0
B39: Core | C39: 14 | D39: RADIUS Servers | E39: Active Equipment | F39: =INDEX(OPEX_Cost_Trends,MATCH(E39,Cost_Trends_Categories,0),) -> 0 | G39: 0 | H39: 0 | I39: 0 | J39: 0 | K39: 0 | L39: 0 | M39: 0 | N39: 0 | O39: 0 | P39: 0 | Q39: 0 | R39: 0 | S39: 0
C40: 15 | D40: DNS Servers | E40: Active Equipment | F40: =INDEX(OPEX_Cost_Trends,MATCH(E40,Cost_Trends_Categories,0),) -> 0 | G40: 0 | H40: 0 | I40: 0 | J40: 0 | K40: 0 | L40: 0 | M40: 0 | N40: 0 | O40: 0 | P40: 0 | Q40: 0 | R40: 0 | S40: 0
C41: 16 | D41: Core Layer 3 Routers | E41: Active Equipment | F41: =INDEX(OPEX_Cost_Trends,MATCH(E41,Cost_Trends_Categories,0),) -> 0 | G41: 0 | H41: 0 | I41: 0 | J41: 0 | K41: 0 | L41: 0 | M41: 0 | N41: 0 | O41: 0 | P41: 0 | Q41: 0 | R41: 0 | S41: 0
C42: 17 | D42: Distribution Layer 3 Routers | E42: Active Equipment | F42: =INDEX(OPEX_Cost_Trends,MATCH(E42,Cost_Trends_Categories,0),) -> 0 | G42: 0 | H42: 0 | I42: 0 | J42: 0 | K42: 0 | L42: 0 | M42: 0 | N42: 0 | O42: 0 | P42: 0 | Q42: 0 | R42: 0 | S42: 0
C43: 18 | D43: empty | E43: empty | F43: =INDEX(OPEX_Cost_Trends,MATCH(E43,Cost_Trends_Categories,0),) -> 0 | G43: 0 | H43: 0 | I43: 0 | J43: 0 | K43: 0 | L43: 0 | M43: 0 | N43: 0 | O43: 0 | P43: 0 | Q43: 0 | R43: 0 | S43: 0
C44: 19 | D44: BRAS/BNG | E44: Active Equipment | F44: =INDEX(OPEX_Cost_Trends,MATCH(E44,Cost_Trends_Categories,0),) -> 0 | G44: 0 | H44: 0 | I44: 0 | J44: 0 | K44: 0 | L44: 0 | M44: 0 | N44: 0 | O44: 0 | P44: 0 | Q44: 0 | R44: 0 | S44: 0
B45: Aggregation | C45: 20 | D45: Layer 2 Aggregation Switch | E45: Active Equipment | F45: =INDEX(OPEX_Cost_Trends,MATCH(E45,Cost_Trends_Categories,0),) -> 0 | G45: 0 | H45: 0 | I45: 0 | J45: 0 | K45: 0 | L45: 0 | M45: 0 | N45: 0 | O45: 0 | P45: 0 | Q45: 0 | R45: 0 | S45: 0
B46: CO | C46: 21 | D46: Site | E46: Other | F46: =INDEX(OPEX_Cost_Trends,MATCH(E46,Cost_Trends_Categories,0),) -> 0.01729399797 | G46: 0.008064516129 | H46: -0.01088031652 | I46: -0.005964214712 | J46: -0.007936507937 | K46: -0.008919722498 | L46: -0.01283316881 | M46: -0.01380670611 | N46: -0.01768172888 | O46: -0.01768172888 | P46: -0.01768172888 | Q46: -0.01768172888 | R46: -0.01768172888 | S46: -0.01768172888
C47: 22 | D47: Rack | E47: Passive Equipment | F47: =INDEX(OPEX_Cost_Trends,MATCH(E47,Cost_Trends_Categories,0),) -> 0 | G47: 0 | H47: 0 | I47: 0 | J47: 0 | K47: 0 | L47: 0 | M47: 0 | N47: 0 | O47: 0 | P47: 0 | Q47: 0 | R47: 0 | S47: 0
C48: 23 | D48: Power Generator | E48: Power Energy | F48: =INDEX(OPEX_Cost_Trends,MATCH(E48,Cost_Trends_Categories,0),) -> 0.01 | G48: 0.01 | H48: 0.01 | I48: 0.01 | J48: 0.01 | K48: 0.01 | L48: 0.01 | M48: 0.01 | N48: 0.01 | O48: 0.01 | P48: 0.01 | Q48: 0.01 | R48: 0.01 | S48: 0.01
C49: 24 | D49: empty | E49: empty | F49: =INDEX(OPEX_Cost_Trends,MATCH(E49,Cost_Trends_Categories,0),) -> 0 | G49: 0 | H49: 0 | I49: 0 | J49: 0 | K49: 0 | L49: 0 | M49: 0 | N49: 0 | O49: 0 | P49: 0 | Q49: 0 | R49: 0 | S49: 0
C50: 25 | D50: VDSL DSLAM | E50: Active Equipment | F50: =INDEX(OPEX_Cost_Trends,MATCH(E50,Cost_Trends_Categories,0),) -> 0 | G50: 0 | H50: 0 | I50: 0 | J50: 0 | K50: 0 | L50: 0 | M50: 0 | N50: 0 | O50: 0 | P50: 0 | Q50: 0 | R50: 0 | S50: 0
C51: 26 | D51: VDSL Line Cards | E51: Active Equipment | F51: =INDEX(OPEX_Cost_Trends,MATCH(E51,Cost_Trends_Categories,0),) -> 0 | G51: 0 | H51: 0 | I51: 0 | J51: 0 | K51: 0 | L51: 0 | M51: 0 | N51: 0 | O51: 0 | P51: 0 | Q51: 0 | R51: 0 | S51: 0
C52: 27 | D52: empty | E52: empty | F52: =INDEX(OPEX_Cost_Trends,MATCH(E52,Cost_Trends_Categories,0),) -> 0 | G52: 0 | H52: 0 | I52: 0 | J52: 0 | K52: 0 | L52: 0 | M52: 0 | N52: 0 | O52: 0 | P52: 0 | Q52: 0 | R52: 0 | S52: 0
C53: 28 | D53: Network-facing Ports CO | E53: Active Equipment | F53: =INDEX(OPEX_Cost_Trends,MATCH(E53,Cost_Trends_Categories,0),) -> 0 | G53: 0 | H53: 0 | I53: 0 | J53: 0 | K53: 0 | L53: 0 | M53: 0 | N53: 0 | O53: 0 | P53: 0 | Q53: 0 | R53: 0 | S53: 0
C54: 29 | D54: MDF | E54: Passive Equipment | F54: =INDEX(OPEX_Cost_Trends,MATCH(E54,Cost_Trends_Categories,0),) -> 0 | G54: 0 | H54: 0 | I54: 0 | J54: 0 | K54: 0 | L54: 0 | M54: 0 | N54: 0 | O54: 0 | P54: 0 | Q54: 0 | R54: 0 | S54: 0
C55: 30 | D55: OLT | E55: Active Equipment | F55: =INDEX(OPEX_Cost_Trends,MATCH(E55,Cost_Trends_Categories,0),) -> 0 | G55: 0 | H55: 0 | I55: 0 | J55: 0 | K55: 0 | L55: 0 | M55: 0 | N55: 0 | O55: 0 | P55: 0 | Q55: 0 | R55: 0 | S55: 0
C56: 31 | D56: ODF | E56: Passive Equipment | F56: =INDEX(OPEX_Cost_Trends,MATCH(E56,Cost_Trends_Categories,0),) -> 0 | G56: 0 | H56: 0 | I56: 0 | J56: 0 | K56: 0 | L56: 0 | M56: 0 | N56: 0 | O56: 0 | P56: 0 | Q56: 0 | R56: 0 | S56: 0
C57: 32 | D57: Air Conditioning Unit | E57: Air Conditioning | F57: =INDEX(OPEX_Cost_Trends,MATCH(E57,Cost_Trends_Categories,0),) -> 0 | G57: 0 | H57: 0 | I57: 0 | J57: 0 | K57: 0 | L57: 0 | M57: 0 | N57: 0 | O57: 0 | P57: 0 | Q57: 0 | R57: 0 | S57: 0
C58: 33 | D58: Power Supply Unit + Backup | E58: Active Equipment | F58: =INDEX(OPEX_Cost_Trends,MATCH(E58,Cost_Trends_Categories,0),) -> 0 | G58: 0 | H58: 0 | I58: 0 | J58: 0 | K58: 0 | L58: 0 | M58: 0 | N58: 0 | O58: 0 | P58: 0 | Q58: 0 | R58: 0 | S58: 0
B59: FTTH Cabinet | C59: 34 | D59: Passive Cabinet (Fully equipped) | E59: Passive Equipment | F59: =INDEX(OPEX_Cost_Trends,MATCH(E59,Cost_Trends_Categories,0),) -> 0 | G59: 0 | H59: 0 | I59: 0 | J59: 0 | K59: 0 | L59: 0 | M59: 0 | N59: 0 | O59: 0 | P59: 0 | Q59: 0 | R59: 0 | S59: 0
B60: Active Cabinet | C60: 35 | D60: Cabinet | E60: Other | F60: =INDEX(OPEX_Cost_Trends,MATCH(E60,Cost_Trends_Categories,0),) -> 0.01729399797 | G60: 0.008064516129 | H60: -0.01088031652 | I60: -0.005964214712 | J60: -0.007936507937 | K60: -0.008919722498 | L60: -0.01283316881 | M60: -0.01380670611 | N60: -0.01768172888 | O60: -0.01768172888 | P60: -0.01768172888 | Q60: -0.01768172888 | R60: -0.01768172888 | S60: -0.01768172888
C61: 36 | D61: Cabinet Base (Plinth) | E61: Other | F61: =INDEX(OPEX_Cost_Trends,MATCH(E61,Cost_Trends_Categories,0),) -> 0.01729399797 | G61: 0.008064516129 | H61: -0.01088031652 | I61: -0.005964214712 | J61: -0.007936507937 | K61: -0.008919722498 | L61: -0.01283316881 | M61: -0.01380670611 | N61: -0.01768172888 | O61: -0.01768172888 | P61: -0.01768172888 | Q61: -0.01768172888 | R61: -0.01768172888 | S61: -0.01768172888
C62: 37 | D62: MSAN SuperVectoring | E62: Active Equipment | F62: =INDEX(OPEX_Cost_Trends,MATCH(E62,Cost_Trends_Categories,0),) -> 0 | G62: 0 | H62: 0 | I62: 0 | J62: 0 | K62: 0 | L62: 0 | M62: 0 | N62: 0 | O62: 0 | P62: 0 | Q62: 0 | R62: 0 | S62: 0
C63: 38 | D63: SuperVectoring Line Cards | E63: Active Equipment | F63: =INDEX(OPEX_Cost_Trends,MATCH(E63,Cost_Trends_Categories,0),) -> 0 | G63: 0 | H63: 0 | I63: 0 | J63: 0 | K63: 0 | L63: 0 | M63: 0 | N63: 0 | O63: 0 | P63: 0 | Q63: 0 | R63: 0 | S63: 0
C64: 39 | D64: MSAN G.fast | E64: Active Equipment | F64: =INDEX(OPEX_Cost_Trends,MATCH(E64,Cost_Trends_Categories,0),) -> 0 | G64: 0 | H64: 0 | I64: 0 | J64: 0 | K64: 0 | L64: 0 | M64: 0 | N64: 0 | O64: 0 | P64: 0 | Q64: 0 | R64: 0 | S64: 0
C65: 40 | D65: G.Fast Line Cards | E65: Active Equipment | F65: =INDEX(OPEX_Cost_Trends,MATCH(E65,Cost_Trends_Categories,0),) -> 0 | G65: 0 | H65: 0 | I65: 0 | J65: 0 | K65: 0 | L65: 0 | M65: 0 | N65: 0 | O65: 0 | P65: 0 | Q65: 0 | R65: 0 | S65: 0
C66: 41 | D66: empty | E66: empty | F66: =INDEX(OPEX_Cost_Trends,MATCH(E66,Cost_Trends_Categories,0),) -> 0 | G66: 0 | H66: 0 | I66: 0 | J66: 0 | K66: 0 | L66: 0 | M66: 0 | N66: 0 | O66: 0 | P66: 0 | Q66: 0 | R66: 0 | S66: 0
C67: 42 | D67: Network-facing Ports | E67: Active Equipment | F67: =INDEX(OPEX_Cost_Trends,MATCH(E67,Cost_Trends_Categories,0),) -> 0 | G67: 0 | H67: 0 | I67: 0 | J67: 0 | K67: 0 | L67: 0 | M67: 0 | N67: 0 | O67: 0 | P67: 0 | Q67: 0 | R67: 0 | S67: 0
C68: 43 | D68: Batteries | E68: Power Energy | F68: =INDEX(OPEX_Cost_Trends,MATCH(E68,Cost_Trends_Categories,0),) -> 0.01 | G68: 0.01 | H68: 0.01 | I68: 0.01 | J68: 0.01 | K68: 0.01 | L68: 0.01 | M68: 0.01 | N68: 0.01 | O68: 0.01 | P68: 0.01 | Q68: 0.01 | R68: 0.01 | S68: 0.01
B69: Premises | C69: 44 | D69: Building Entry Point (BEP) | E69: Passive Equipment | F69: =INDEX(OPEX_Cost_Trends,MATCH(E69,Cost_Trends_Categories,0),) -> 0 | G69: 0 | H69: 0 | I69: 0 | J69: 0 | K69: 0 | L69: 0 | M69: 0 | N69: 0 | O69: 0 | P69: 0 | Q69: 0 | R69: 0 | S69: 0
C70: 45 | D70: Splitters | E70: Passive Equipment | F70: =INDEX(OPEX_Cost_Trends,MATCH(E70,Cost_Trends_Categories,0),) -> 0 | G70: 0 | H70: 0 | I70: 0 | J70: 0 | K70: 0 | L70: 0 | M70: 0 | N70: 0 | O70: 0 | P70: 0 | Q70: 0 | R70: 0 | S70: 0
B71: Trenching | C71: 46 | D71: FTTC Feeder | E71: Trenches | F71: =INDEX(OPEX_Cost_Trends,MATCH(E71,Cost_Trends_Categories,0),) -> 0 | G71: 0 | H71: 0 | I71: 0 | J71: 0 | K71: 0 | L71: 0 | M71: 0 | N71: 0 | O71: 0 | P71: 0 | Q71: 0 | R71: 0 | S71: 0
C72: 47 | D72: FTTC Distribution | E72: Trenches | F72: =INDEX(OPEX_Cost_Trends,MATCH(E72,Cost_Trends_Categories,0),) -> 0 | G72: 0 | H72: 0 | I72: 0 | J72: 0 | K72: 0 | L72: 0 | M72: 0 | N72: 0 | O72: 0 | P72: 0 | Q72: 0 | R72: 0 | S72: 0
C73: 48 | D73: FTTC Drop | E73: Trenches | F73: =INDEX(OPEX_Cost_Trends,MATCH(E73,Cost_Trends_Categories,0),) -> 0 | G73: 0 | H73: 0 | I73: 0 | J73: 0 | K73: 0 | L73: 0 | M73: 0 | N73: 0 | O73: 0 | P73: 0 | Q73: 0 | R73: 0 | S73: 0
C74: 49 | D74: FTTH Feeder | E74: Trenches | F74: =INDEX(OPEX_Cost_Trends,MATCH(E74,Cost_Trends_Categories,0),) -> 0 | G74: 0 | H74: 0 | I74: 0 | J74: 0 | K74: 0 | L74: 0 | M74: 0 | N74: 0 | O74: 0 | P74: 0 | Q74: 0 | R74: 0 | S74: 0
C75: 50 | D75: FTTH Distribution | E75: Trenches | F75: =INDEX(OPEX_Cost_Trends,MATCH(E75,Cost_Trends_Categories,0),) -> 0 | G75: 0 | H75: 0 | I75: 0 | J75: 0 | K75: 0 | L75: 0 | M75: 0 | N75: 0 | O75: 0 | P75: 0 | Q75: 0 | R75: 0 | S75: 0
C76: 51 | D76: FTTH Drop | E76: Trenches | F76: =INDEX(OPEX_Cost_Trends,MATCH(E76,Cost_Trends_Categories,0),) -> 0 | G76: 0 | H76: 0 | I76: 0 | J76: 0 | K76: 0 | L76: 0 | M76: 0 | N76: 0 | O76: 0 | P76: 0 | Q76: 0 | R76: 0 | S76: 0
C77: 52 | D77: Copper Feeder | E77: Trenches | F77: =INDEX(OPEX_Cost_Trends,MATCH(E77,Cost_Trends_Categories,0),) -> 0 | G77: 0 | H77: 0 | I77: 0 | J77: 0 | K77: 0 | L77: 0 | M77: 0 | N77: 0 | O77: 0 | P77: 0 | Q77: 0 | R77: 0 | S77: 0
C78: 53 | D78: Copper Distribution | E78: Trenches | F78: =INDEX(OPEX_Cost_Trends,MATCH(E78,Cost_Trends_Categories,0),) -> 0 | G78: 0 | H78: 0 | I78: 0 | J78: 0 | K78: 0 | L78: 0 | M78: 0 | N78: 0 | O78: 0 | P78: 0 | Q78: 0 | R78: 0 | S78: 0
C79: 54 | D79: Copper Drop | E79: Trenches | F79: =INDEX(OPEX_Cost_Trends,MATCH(E79,Cost_Trends_Categories,0),) -> 0 | G79: 0 | H79: 0 | I79: 0 | J79: 0 | K79: 0 | L79: 0 | M79: 0 | N79: 0 | O79: 0 | P79: 0 | Q79: 0 | R79: 0 | S79: 0
B80: Cabling | C80: 55 | D80: FTTH Fiber Cable 2 | E80: Fiber | F80: =INDEX(OPEX_Cost_Trends,MATCH(E80,Cost_Trends_Categories,0),) -> 0 | G80: 0 | H80: 0 | I80: 0 | J80: 0 | K80: 0 | L80: 0 | M80: 0 | N80: 0 | O80: 0 | P80: 0 | Q80: 0 | R80: 0 | S80: 0
C81: 56 | D81: FTTH Fiber Cable 4 | E81: Fiber | F81: =INDEX(OPEX_Cost_Trends,MATCH(E81,Cost_Trends_Categories,0),) -> 0 | G81: 0 | H81: 0 | I81: 0 | J81: 0 | K81: 0 | L81: 0 | M81: 0 | N81: 0 | O81: 0 | P81: 0 | Q81: 0 | R81: 0 | S81: 0
C82: 57 | D82: FTTH Fiber Cable 8 | E82: Fiber | F82: =INDEX(OPEX_Cost_Trends,MATCH(E82,Cost_Trends_Categories,0),) -> 0 | G82: 0 | H82: 0 | I82: 0 | J82: 0 | K82: 0 | L82: 0 | M82: 0 | N82: 0 | O82: 0 | P82: 0 | Q82: 0 | R82: 0 | S82: 0
C83: 58 | D83: FTTH Fiber Cable 12 | E83: Fiber | F83: =INDEX(OPEX_Cost_Trends,MATCH(E83,Cost_Trends_Categories,0),) -> 0 | G83: 0 | H83: 0 | I83: 0 | J83: 0 | K83: 0 | L83: 0 | M83: 0 | N83: 0 | O83: 0 | P83: 0 | Q83: 0 | R83: 0 | S83: 0
C84: 59 | D84: FTTH Fiber Cable 24 | E84: Fiber | F84: =INDEX(OPEX_Cost_Trends,MATCH(E84,Cost_Trends_Categories,0),) -> 0 | G84: 0 | H84: 0 | I84: 0 | J84: 0 | K84: 0 | L84: 0 | M84: 0 | N84: 0 | O84: 0 | P84: 0 | Q84: 0 | R84: 0 | S84: 0
C85: 60 | D85: FTTH Fiber Cable 48 | E85: Fiber | F85: =INDEX(OPEX_Cost_Trends,MATCH(E85,Cost_Trends_Categories,0),) -> 0 | G85: 0 | H85: 0 | I85: 0 | J85: 0 | K85: 0 | L85: 0 | M85: 0 | N85: 0 | O85: 0 | P85: 0 | Q85: 0 | R85: 0 | S85: 0
C86: 61 | D86: FTTH Fiber Cable 96 | E86: Fiber | F86: =INDEX(OPEX_Cost_Trends,MATCH(E86,Cost_Trends_Categories,0),) -> 0 | G86: 0 | H86: 0 | I86: 0 | J86: 0 | K86: 0 | L86: 0 | M86: 0 | N86: 0 | O86: 0 | P86: 0 | Q86: 0 | R86: 0 | S86: 0
C87: 62 | D87: FTTH Fiber Cable 192 | E87: Fiber | F87: =INDEX(OPEX_Cost_Trends,MATCH(E87,Cost_Trends_Categories,0),) -> 0 | G87: 0 | H87: 0 | I87: 0 | J87: 0 | K87: 0 | L87: 0 | M87: 0 | N87: 0 | O87: 0 | P87: 0 | Q87: 0 | R87: 0 | S87: 0
C88: 63 | D88: FTTC Fiber Cable 12 | E88: Fiber | F88: =INDEX(OPEX_Cost_Trends,MATCH(E88,Cost_Trends_Categories,0),) -> 0 | G88: 0 | H88: 0 | I88: 0 | J88: 0 | K88: 0 | L88: 0 | M88: 0 | N88: 0 | O88: 0 | P88: 0 | Q88: 0 | R88: 0 | S88: 0
C89: 64 | D89: FTTC Fiber Cable 24 | E89: Fiber | F89: =INDEX(OPEX_Cost_Trends,MATCH(E89,Cost_Trends_Categories,0),) -> 0 | G89: 0 | H89: 0 | I89: 0 | J89: 0 | K89: 0 | L89: 0 | M89: 0 | N89: 0 | O89: 0 | P89: 0 | Q89: 0 | R89: 0 | S89: 0
C90: 65 | D90: FTTC Fiber Cable 48 | E90: Fiber | F90: =INDEX(OPEX_Cost_Trends,MATCH(E90,Cost_Trends_Categories,0),) -> 0 | G90: 0 | H90: 0 | I90: 0 | J90: 0 | K90: 0 | L90: 0 | M90: 0 | N90: 0 | O90: 0 | P90: 0 | Q90: 0 | R90: 0 | S90: 0
C91: 66 | D91: FTTC Fiber Cable 96 | E91: Fiber | F91: =INDEX(OPEX_Cost_Trends,MATCH(E91,Cost_Trends_Categories,0),) -> 0 | G91: 0 | H91: 0 | I91: 0 | J91: 0 | K91: 0 | L91: 0 | M91: 0 | N91: 0 | O91: 0 | P91: 0 | Q91: 0 | R91: 0 | S91: 0
C92: 67 | D92: FTTC Fiber Cable 192 | E92: Fiber | F92: =INDEX(OPEX_Cost_Trends,MATCH(E92,Cost_Trends_Categories,0),) -> 0 | G92: 0 | H92: 0 | I92: 0 | J92: 0 | K92: 0 | L92: 0 | M92: 0 | N92: 0 | O92: 0 | P92: 0 | Q92: 0 | R92: 0 | S92: 0
C93: 68 | D93: Copper Cable 2 | E93: Copper | F93: =INDEX(OPEX_Cost_Trends,MATCH(E93,Cost_Trends_Categories,0),) -> 0 | G93: 0 | H93: 0 | I93: 0 | J93: 0 | K93: 0 | L93: 0 | M93: 0 | N93: 0 | O93: 0 | P93: 0 | Q93: 0 | R93: 0 | S93: 0
C94: 69 | D94: Copper Cable 4 | E94: Copper | F94: =INDEX(OPEX_Cost_Trends,MATCH(E94,Cost_Trends_Categories,0),) -> 0 | G94: 0 | H94: 0 | I94: 0 | J94: 0 | K94: 0 | L94: 0 | M94: 0 | N94: 0 | O94: 0 | P94: 0 | Q94: 0 | R94: 0 | S94: 0
C95: 70 | D95: Copper Cable 10 | E95: Copper | F95: =INDEX(OPEX_Cost_Trends,MATCH(E95,Cost_Trends_Categories,0),) -> 0 | G95: 0 | H95: 0 | I95: 0 | J95: 0 | K95: 0 | L95: 0 | M95: 0 | N95: 0 | O95: 0 | P95: 0 | Q95: 0 | R95: 0 | S95: 0
C96: 71 | D96: Copper Cable 20 | E96: Copper | F96: =INDEX(OPEX_Cost_Trends,MATCH(E96,Cost_Trends_Categories,0),) -> 0 | G96: 0 | H96: 0 | I96: 0 | J96: 0 | K96: 0 | L96: 0 | M96: 0 | N96: 0 | O96: 0 | P96: 0 | Q96: 0 | R96: 0 | S96: 0
C97: 72 | D97: Copper Cable 50 | E97: Copper | F97: =INDEX(OPEX_Cost_Trends,MATCH(E97,Cost_Trends_Categories,0),) -> 0 | G97: 0 | H97: 0 | I97: 0 | J97: 0 | K97: 0 | L97: 0 | M97: 0 | N97: 0 | O97: 0 | P97: 0 | Q97: 0 | R97: 0 | S97: 0
C98: 73 | D98: Copper Cable 100 | E98: Copper | F98: =INDEX(OPEX_Cost_Trends,MATCH(E98,Cost_Trends_Categories,0),) -> 0 | G98: 0 | H98: 0 | I98: 0 | J98: 0 | K98: 0 | L98: 0 | M98: 0 | N98: 0 | O98: 0 | P98: 0 | Q98: 0 | R98: 0 | S98: 0
C99: 74 | D99: Copper Cable 200 | E99: Copper | F99: =INDEX(OPEX_Cost_Trends,MATCH(E99,Cost_Trends_Categories,0),) -> 0 | G99: 0 | H99: 0 | I99: 0 | J99: 0 | K99: 0 | L99: 0 | M99: 0 | N99: 0 | O99: 0 | P99: 0 | Q99: 0 | R99: 0 | S99: 0
C100: 75 | D100: Copper Cable 400 | E100: Copper | F100: =INDEX(OPEX_Cost_Trends,MATCH(E100,Cost_Trends_Categories,0),) -> 0 | G100: 0 | H100: 0 | I100: 0 | J100: 0 | K100: 0 | L100: 0 | M100: 0 | N100: 0 | O100: 0 | P100: 0 | Q100: 0 | R100: 0 | S100: 0
C101: 76 | D101: Copper Cable 1000 | E101: Copper | F101: =INDEX(OPEX_Cost_Trends,MATCH(E101,Cost_Trends_Categories,0),) -> 0 | G101: 0 | H101: 0 | I101: 0 | J101: 0 | K101: 0 | L101: 0 | M101: 0 | N101: 0 | O101: 0 | P101: 0 | Q101: 0 | R101: 0 | S101: 0
C102: 77 | D102: Copper Cable 2000 | E102: Copper | F102: =INDEX(OPEX_Cost_Trends,MATCH(E102,Cost_Trends_Categories,0),) -> 0 | G102: 0 | H102: 0 | I102: 0 | J102: 0 | K102: 0 | L102: 0 | M102: 0 | N102: 0 | O102: 0 | P102: 0 | Q102: 0 | R102: 0 | S102: 0
B103: Miscellaneous | C103: 78 | D103: Power Consumption | E103: Power Energy | F103: =INDEX(OPEX_Cost_Trends,MATCH(E103,Cost_Trends_Categories,0),) -> 0.01 | G103: 0.01 | H103: 0.01 | I103: 0.01 | J103: 0.01 | K103: 0.01 | L103: 0.01 | M103: 0.01 | N103: 0.01 | O103: 0.01 | P103: 0.01 | Q103: 0.01 | R103: 0.01 | S103: 0.01
C104: 79 | D104: Network Planning (Survey, Exploitation, etc.) | E104: Other | F104: =INDEX(OPEX_Cost_Trends,MATCH(E104,Cost_Trends_Categories,0),) -> 0.01729399797 | G104: 0.008064516129 | H104: -0.01088031652 | I104: -0.005964214712 | J104: -0.007936507937 | K104: -0.008919722498 | L104: -0.01283316881 | M104: -0.01380670611 | N104: -0.01768172888 | O104: -0.01768172888 | P104: -0.01768172888 | Q104: -0.01768172888 | R104: -0.01768172888 | S104: -0.01768172888
C105: 80 | D105: empty | E105: empty | F105: =INDEX(OPEX_Cost_Trends,MATCH(E105,Cost_Trends_Categories,0),) -> 0 | G105: 0 | H105: 0 | I105: 0 | J105: 0 | K105: 0 | L105: 0 | M105: 0 | N105: 0 | O105: 0 | P105: 0 | Q105: 0 | R105: 0 | S105: 0
C106: 81 | D106: empty | E106: empty | F106: =INDEX(OPEX_Cost_Trends,MATCH(E106,Cost_Trends_Categories,0),) -> 0 | G106: 0 | H106: 0 | I106: 0 | J106: 0 | K106: 0 | L106: 0 | M106: 0 | N106: 0 | O106: 0 | P106: 0 | Q106: 0 | R106: 0 | S106: 0
B107: Aerial Copper | C107: 82 | D107: Aerial Copper Cable 2 | E107: Copper | F107: =INDEX(OPEX_Cost_Trends,MATCH(E107,Cost_Trends_Categories,0),) -> 0 | G107: 0 | H107: 0 | I107: 0 | J107: 0 | K107: 0 | L107: 0 | M107: 0 | N107: 0 | O107: 0 | P107: 0 | Q107: 0 | R107: 0 | S107: 0
C108: 83 | D108: Aerial Copper Cable 4 | E108: Copper | F108: =INDEX(OPEX_Cost_Trends,MATCH(E108,Cost_Trends_Categories,0),) -> 0 | G108: 0 | H108: 0 | I108: 0 | J108: 0 | K108: 0 | L108: 0 | M108: 0 | N108: 0 | O108: 0 | P108: 0 | Q108: 0 | R108: 0 | S108: 0
C109: 84 | D109: Aerial Copper Cable 20 | E109: Copper | F109: =INDEX(OPEX_Cost_Trends,MATCH(E109,Cost_Trends_Categories,0),) -> 0 | G109: 0 | H109: 0 | I109: 0 | J109: 0 | K109: 0 | L109: 0 | M109: 0 | N109: 0 | O109: 0 | P109: 0 | Q109: 0 | R109: 0 | S109: 0
C110: 85 | D110: Poles | E110: Trenches | F110: =INDEX(OPEX_Cost_Trends,MATCH(E110,Cost_Trends_Categories,0),) -> 0 | G110: 0 | H110: 0 | I110: 0 | J110: 0 | K110: 0 | L110: 0 | M110: 0 | N110: 0 | O110: 0 | P110: 0 | Q110: 0 | R110: 0 | S110: 0
B111: Core Transmission | C111: 86 | D111: Core Trench Regional | E111: Trenches | F111: =INDEX(OPEX_Cost_Trends,MATCH(E111,Cost_Trends_Categories,0),) -> 0 | G111: 0 | H111: 0 | I111: 0 | J111: 0 | K111: 0 | L111: 0 | M111: 0 | N111: 0 | O111: 0 | P111: 0 | Q111: 0 | R111: 0 | S111: 0
C112: 87 | D112: WDM Transmission Regional | E112: Active Equipment | F112: =INDEX(OPEX_Cost_Trends,MATCH(E112,Cost_Trends_Categories,0),) -> 0 | G112: 0 | H112: 0 | I112: 0 | J112: 0 | K112: 0 | L112: 0 | M112: 0 | N112: 0 | O112: 0 | P112: 0 | Q112: 0 | R112: 0 | S112: 0
C113: 88 | D113: Core Trench National | E113: Trenches | F113: =INDEX(OPEX_Cost_Trends,MATCH(E113,Cost_Trends_Categories,0),) -> 0 | G113: 0 | H113: 0 | I113: 0 | J113: 0 | K113: 0 | L113: 0 | M113: 0 | N113: 0 | O113: 0 | P113: 0 | Q113: 0 | R113: 0 | S113: 0
C114: 89 | D114: WDM Transmission National | E114: Active Equipment | F114: =INDEX(OPEX_Cost_Trends,MATCH(E114,Cost_Trends_Categories,0),) -> 0 | G114: 0 | H114: 0 | I114: 0 | J114: 0 | K114: 0 | L114: 0 | M114: 0 | N114: 0 | O114: 0 | P114: 0 | Q114: 0 | R114: 0 | S114: 0
B115: Reusable Assets | C115: 90 | D115: [REA] Rights of Way Trench | E115: Other | F115: =INDEX(OPEX_Cost_Trends,MATCH(E115,Cost_Trends_Categories,0),) -> 0.01729399797 | G115: 0.008064516129 | H115: -0.01088031652 | I115: -0.005964214712 | J115: -0.007936507937 | K115: -0.008919722498 | L115: -0.01283316881 | M115: -0.01380670611 | N115: -0.01768172888 | O115: -0.01768172888 | P115: -0.01768172888 | Q115: -0.01768172888 | R115: -0.01768172888 | S115: -0.01768172888
C116: 91 | D116: empty | E116: empty | F116: =INDEX(OPEX_Cost_Trends,MATCH(E116,Cost_Trends_Categories,0),) -> 0 | G116: 0 | H116: 0 | I116: 0 | J116: 0 | K116: 0 | L116: 0 | M116: 0 | N116: 0 | O116: 0 | P116: 0 | Q116: 0 | R116: 0 | S116: 0
C117: 92 | D117: [REA] FTTC Distribution | E117: Trenches | F117: =INDEX(OPEX_Cost_Trends,MATCH(E117,Cost_Trends_Categories,0),) -> 0 | G117: 0 | H117: 0 | I117: 0 | J117: 0 | K117: 0 | L117: 0 | M117: 0 | N117: 0 | O117: 0 | P117: 0 | Q117: 0 | R117: 0 | S117: 0
C118: 93 | D118: [REA] FTTC Drop | E118: Trenches | F118: =INDEX(OPEX_Cost_Trends,MATCH(E118,Cost_Trends_Categories,0),) -> 0 | G118: 0 | H118: 0 | I118: 0 | J118: 0 | K118: 0 | L118: 0 | M118: 0 | N118: 0 | O118: 0 | P118: 0 | Q118: 0 | R118: 0 | S118: 0
C119: 94 | D119: [REA] Copper Feeder | E119: Trenches | F119: =INDEX(OPEX_Cost_Trends,MATCH(E119,Cost_Trends_Categories,0),) -> 0 | G119: 0 | H119: 0 | I119: 0 | J119: 0 | K119: 0 | L119: 0 | M119: 0 | N119: 0 | O119: 0 | P119: 0 | Q119: 0 | R119: 0 | S119: 0
C120: 95 | D120: [REA] Copper Distribution | E120: Trenches | F120: =INDEX(OPEX_Cost_Trends,MATCH(E120,Cost_Trends_Categories,0),) -> 0 | G120: 0 | H120: 0 | I120: 0 | J120: 0 | K120: 0 | L120: 0 | M120: 0 | N120: 0 | O120: 0 | P120: 0 | Q120: 0 | R120: 0 | S120: 0
C121: 96 | D121: [REA] Copper Drop | E121: Trenches | F121: =INDEX(OPEX_Cost_Trends,MATCH(E121,Cost_Trends_Categories,0),) -> 0 | G121: 0 | H121: 0 | I121: 0 | J121: 0 | K121: 0 | L121: 0 | M121: 0 | N121: 0 | O121: 0 | P121: 0 | Q121: 0 | R121: 0 | S121: 0
C122: 97 | D122: empty | E122: empty | F122: =INDEX(OPEX_Cost_Trends,MATCH(E122,Cost_Trends_Categories,0),) -> 0 | G122: 0 | H122: 0 | I122: 0 | J122: 0 | K122: 0 | L122: 0 | M122: 0 | N122: 0 | O122: 0 | P122: 0 | Q122: 0 | R122: 0 | S122: 0
C123: 98 | D123: [REA] Copper Cable 2 | E123: Copper | F123: =INDEX(OPEX_Cost_Trends,MATCH(E123,Cost_Trends_Categories,0),) -> 0 | G123: 0 | H123: 0 | I123: 0 | J123: 0 | K123: 0 | L123: 0 | M123: 0 | N123: 0 | O123: 0 | P123: 0 | Q123: 0 | R123: 0 | S123: 0
C124: 99 | D124: [REA] Copper Cable 4 | E124: Copper | F124: =INDEX(OPEX_Cost_Trends,MATCH(E124,Cost_Trends_Categories,0),) -> 0 | G124: 0 | H124: 0 | I124: 0 | J124: 0 | K124: 0 | L124: 0 | M124: 0 | N124: 0 | O124: 0 | P124: 0 | Q124: 0 | R124: 0 | S124: 0
C125: 100 | D125: [REA] Copper Cable 10 | E125: Copper | F125: =INDEX(OPEX_Cost_Trends,MATCH(E125,Cost_Trends_Categories,0),) -> 0 | G125: 0 | H125: 0 | I125: 0 | J125: 0 | K125: 0 | L125: 0 | M125: 0 | N125: 0 | O125: 0 | P125: 0 | Q125: 0 | R125: 0 | S125: 0
C126: 101 | D126: [REA] Copper Cable 20 | E126: Copper | F126: =INDEX(OPEX_Cost_Trends,MATCH(E126,Cost_Trends_Categories,0),) -> 0 | G126: 0 | H126: 0 | I126: 0 | J126: 0 | K126: 0 | L126: 0 | M126: 0 | N126: 0 | O126: 0 | P126: 0 | Q126: 0 | R126: 0 | S126: 0
C127: 102 | D127: [REA] Copper Cable 50 | E127: Copper | F127: =INDEX(OPEX_Cost_Trends,MATCH(E127,Cost_Trends_Categories,0),) -> 0 | G127: 0 | H127: 0 | I127: 0 | J127: 0 | K127: 0 | L127: 0 | M127: 0 | N127: 0 | O127: 0 | P127: 0 | Q127: 0 | R127: 0 | S127: 0
C128: 103 | D128: [REA] Copper Cable 100 | E128: Copper | F128: =INDEX(OPEX_Cost_Trends,MATCH(E128,Cost_Trends_Categories,0),) -> 0 | G128: 0 | H128: 0 | I128: 0 | J128: 0 | K128: 0 | L128: 0 | M128: 0 | N128: 0 | O128: 0 | P128: 0 | Q128: 0 | R128: 0 | S128: 0
C129: 104 | D129: [REA] Copper Cable 200 | E129: Copper | F129: =INDEX(OPEX_Cost_Trends,MATCH(E129,Cost_Trends_Categories,0),) -> 0 | G129: 0 | H129: 0 | I129: 0 | J129: 0 | K129: 0 | L129: 0 | M129: 0 | N129: 0 | O129: 0 | P129: 0 | Q129: 0 | R129: 0 | S129: 0
C130: 105 | D130: [REA] Copper Cable 400 | E130: Copper | F130: =INDEX(OPEX_Cost_Trends,MATCH(E130,Cost_Trends_Categories,0),) -> 0 | G130: 0 | H130: 0 | I130: 0 | J130: 0 | K130: 0 | L130: 0 | M130: 0 | N130: 0 | O130: 0 | P130: 0 | Q130: 0 | R130: 0 | S130: 0
C131: 106 | D131: [REA] Copper Cable 1000 | E131: Copper | F131: =INDEX(OPEX_Cost_Trends,MATCH(E131,Cost_Trends_Categories,0),) -> 0 | G131: 0 | H131: 0 | I131: 0 | J131: 0 | K131: 0 | L131: 0 | M131: 0 | N131: 0 | O131: 0 | P131: 0 | Q131: 0 | R131: 0 | S131: 0
C132: 107 | D132: [REA] Copper Cable 2000 | E132: Copper | F132: =INDEX(OPEX_Cost_Trends,MATCH(E132,Cost_Trends_Categories,0),) -> 0 | G132: 0 | H132: 0 | I132: 0 | J132: 0 | K132: 0 | L132: 0 | M132: 0 | N132: 0 | O132: 0 | P132: 0 | Q132: 0 | R132: 0 | S132: 0
C133: 108 | D133: empty | E133: empty | F133: =INDEX(OPEX_Cost_Trends,MATCH(E133,Cost_Trends_Categories,0),) -> 0 | G133: 0 | H133: 0 | I133: 0 | J133: 0 | K133: 0 | L133: 0 | M133: 0 | N133: 0 | O133: 0 | P133: 0 | Q133: 0 | R133: 0 | S133: 0
C134: 109 | D134: [REA] Aerial Copper Cable 2 | E134: Copper | F134: =INDEX(OPEX_Cost_Trends,MATCH(E134,Cost_Trends_Categories,0),) -> 0 | G134: 0 | H134: 0 | I134: 0 | J134: 0 | K134: 0 | L134: 0 | M134: 0 | N134: 0 | O134: 0 | P134: 0 | Q134: 0 | R134: 0 | S134: 0
C135: 110 | D135: [REA] Aerial Copper Cable 4 | E135: Copper | F135: =INDEX(OPEX_Cost_Trends,MATCH(E135,Cost_Trends_Categories,0),) -> 0 | G135: 0 | H135: 0 | I135: 0 | J135: 0 | K135: 0 | L135: 0 | M135: 0 | N135: 0 | O135: 0 | P135: 0 | Q135: 0 | R135: 0 | S135: 0
C136: 111 | D136: [REA] Aerial Copper Cable 20 | E136: Copper | F136: =INDEX(OPEX_Cost_Trends,MATCH(E136,Cost_Trends_Categories,0),) -> 0 | G136: 0 | H136: 0 | I136: 0 | J136: 0 | K136: 0 | L136: 0 | M136: 0 | N136: 0 | O136: 0 | P136: 0 | Q136: 0 | R136: 0 | S136: 0
C137: 112 | D137: [REA] Poles | E137: Trenches | F137: =INDEX(OPEX_Cost_Trends,MATCH(E137,Cost_Trends_Categories,0),) -> 0 | G137: 0 | H137: 0 | I137: 0 | J137: 0 | K137: 0 | L137: 0 | M137: 0 | N137: 0 | O137: 0 | P137: 0 | Q137: 0 | R137: 0 | S137: 0
B138: L2 WAP Equipment | C138: 113 | D138: SVC NTE | E138: Customer Side Active Equipment Copper | F138: =INDEX(OPEX_Cost_Trends,MATCH(E138,Cost_Trends_Categories,0),) -> 0 | G138: 0 | H138: 0 | I138: 0 | J138: 0 | K138: 0 | L138: 0 | M138: 0 | N138: 0 | O138: 0 | P138: 0 | Q138: 0 | R138: 0 | S138: 0
C139: 114 | D139: SVO NTE | E139: Customer Side Active Equipment Fiber | F139: =INDEX(OPEX_Cost_Trends,MATCH(E139,Cost_Trends_Categories,0),) -> 0 | G139: 0 | H139: 0 | I139: 0 | J139: 0 | K139: 0 | L139: 0 | M139: 0 | N139: 0 | O139: 0 | P139: 0 | Q139: 0 | R139: 0 | S139: 0
B140: Floor Box | C140: 115 | D140: Floor Box | E140: Passive Equipment | F140: =INDEX(OPEX_Cost_Trends,MATCH(E140,Cost_Trends_Categories,0),) -> 0 | G140: 0 | H140: 0 | I140: 0 | J140: 0 | K140: 0 | L140: 0 | M140: 0 | N140: 0 | O140: 0 | P140: 0 | Q140: 0 | R140: 0 | S140: 0
B141: Copper Cabinets | C141: 116 | D141: Cabinet (KV) | E141: Passive Equipment | F141: =INDEX(OPEX_Cost_Trends,MATCH(E141,Cost_Trends_Categories,0),) -> 0 | G141: 0 | H141: 0 | I141: 0 | J141: 0 | K141: 0 | L141: 0 | M141: 0 | N141: 0 | O141: 0 | P141: 0 | Q141: 0 | R141: 0 | S141: 0
D143: Cumulative Cost Trend per Element
B144: =Elements_Tags -> Common | C144: =Elements_Index -> 1 | D144: =Elements_List -> Billing System | F144: =IFERROR(G144:G259/(1+G26:G141),"-") -> 1 | G144: =IFERROR(H144:H259/(1+H26:H141),"-") -> 1 | H144: =IFERROR(I144:I259/(1+I26:I141),"-") -> 1 | I144: =IFERROR(J144:J259/(1+J26:J141),"-") -> 1 | J144: =100% -> 1 | K144: =IFERROR(J144:J259*(1 + J26:J141),"-") -> 1 | L144: =IFERROR(K144:K259*(1 + K26:K141),"-") -> 1 | M144: =IFERROR(L144:L259*(1 + L26:L141),"-") -> 1 | N144: =IFERROR(M144:M259*(1 + M26:M141),"-") -> 1 | O144: =IFERROR(N144:N259*(1 + N26:N141),"-") -> 1 | P144: =IFERROR(O144:O259*(1 + O26:O141),"-") -> 1 | Q144: =IFERROR(P144:P259*(1 + P26:P141),"-") -> 1 | R144: =IFERROR(Q144:Q259*(1 + Q26:Q141),"-") -> 1 | S144: =IFERROR(R144:R259*(1 + R26:R141),"-") -> 1
C145: 2 | D145: empty | F145: 1 | G145: 1 | H145: 1 | I145: 1 | J145: 1 | K145: 1 | L145: 1 | M145: 1 | N145: 1 | O145: 1 | P145: 1 | Q145: 1 | R145: 1 | S145: 1
C146: 3 | D146: Network Management System | F146: 1 | G146: 1 | H146: 1 | I146: 1 | J146: 1 | K146: 1 | L146: 1 | M146: 1 | N146: 1 | O146: 1 | P146: 1 | Q146: 1 | R146: 1 | S146: 1
C147: 4 | D147: Provision System | F147: 1 | G147: 1 | H147: 1 | I147: 1 | J147: 1 | K147: 1 | L147: 1 | M147: 1 | N147: 1 | O147: 1 | P147: 1 | Q147: 1 | R147: 1 | S147: 1
C148: 5 | D148: Eligibility System | F148: 1 | G148: 1 | H148: 1 | I148: 1 | J148: 1 | K148: 1 | L148: 1 | M148: 1 | N148: 1 | O148: 1 | P148: 1 | Q148: 1 | R148: 1 | S148: 1
C149: 6 | D149: Other IT System | F149: 1 | G149: 1 | H149: 1 | I149: 1 | J149: 1 | K149: 1 | L149: 1 | M149: 1 | N149: 1 | O149: 1 | P149: 1 | Q149: 1 | R149: 1 | S149: 1
C150: 7 | D150: Rights of Way Trench | F150: 1.017000908 | G150: 1.025202528 | H150: 1.014048 | I150: 1.008 | J150: 1 | K150: 0.9920634921 | L150: 0.983214561 | M150: 0.9705968026 | N150: 0.9571960578 | O150: 0.9402711766 | P150: 0.9236455566 | Q150: 0.9073139063 | R150: 0.8912710278 | S150: 0.8755118151
C151: 8 | D151: Rights of Way Cabinet | F151: 1.017000908 | G151: 1.025202528 | H151: 1.014048 | I151: 1.008 | J151: 1 | K151: 0.9920634921 | L151: 0.983214561 | M151: 0.9705968026 | N151: 0.9571960578 | O151: 0.9402711766 | P151: 0.9236455566 | Q151: 0.9073139063 | R151: 0.8912710278 | S151: 0.8755118151
B152: Aggregation | C152: 9 | D152: OLO Trench | F152: 1 | G152: 1 | H152: 1 | I152: 1 | J152: 1 | K152: 1 | L152: 1 | M152: 1 | N152: 1 | O152: 1 | P152: 1 | Q152: 1 | R152: 1 | S152: 1
C153: 10 | D153: Layer 2 Switch | F153: 1 | G153: 1 | H153: 1 | I153: 1 | J153: 1 | K153: 1 | L153: 1 | M153: 1 | N153: 1 | O153: 1 | P153: 1 | Q153: 1 | R153: 1 | S153: 1
C154: 11 | D154: Layer 2 Switch Core Facing Cards | F154: 1 | G154: 1 | H154: 1 | I154: 1 | J154: 1 | K154: 1 | L154: 1 | M154: 1 | N154: 1 | O154: 1 | P154: 1 | Q154: 1 | R154: 1 | S154: 1
C155: 12 | D155: Layer 2 Aggregation Switch Network Facing Cards | F155: 1 | G155: 1 | H155: 1 | I155: 1 | J155: 1 | K155: 1 | L155: 1 | M155: 1 | N155: 1 | O155: 1 | P155: 1 | Q155: 1 | R155: 1 | S155: 1
B156: CO Manhole | C156: 13 | D156: Other Operator Reception Manhole | F156: 1 | G156: 1 | H156: 1 | I156: 1 | J156: 1 | K156: 1 | L156: 1 | M156: 1 | N156: 1 | O156: 1 | P156: 1 | Q156: 1 | R156: 1 | S156: 1
B157: Core | C157: 14 | D157: RADIUS Servers | F157: 1 | G157: 1 | H157: 1 | I157: 1 | J157: 1 | K157: 1 | L157: 1 | M157: 1 | N157: 1 | O157: 1 | P157: 1 | Q157: 1 | R157: 1 | S157: 1
C158: 15 | D158: DNS Servers | F158: 1 | G158: 1 | H158: 1 | I158: 1 | J158: 1 | K158: 1 | L158: 1 | M158: 1 | N158: 1 | O158: 1 | P158: 1 | Q158: 1 | R158: 1 | S158: 1
C159: 16 | D159: Core Layer 3 Routers | F159: 1 | G159: 1 | H159: 1 | I159: 1 | J159: 1 | K159: 1 | L159: 1 | M159: 1 | N159: 1 | O159: 1 | P159: 1 | Q159: 1 | R159: 1 | S159: 1
C160: 17 | D160: Distribution Layer 3 Routers | F160: 1 | G160: 1 | H160: 1 | I160: 1 | J160: 1 | K160: 1 | L160: 1 | M160: 1 | N160: 1 | O160: 1 | P160: 1 | Q160: 1 | R160: 1 | S160: 1
C161: 18 | D161: empty | F161: 1 | G161: 1 | H161: 1 | I161: 1 | J161: 1 | K161: 1 | L161: 1 | M161: 1 | N161: 1 | O161: 1 | P161: 1 | Q161: 1 | R161: 1 | S161: 1
C162: 19 | D162: BRAS/BNG | F162: 1 | G162: 1 | H162: 1 | I162: 1 | J162: 1 | K162: 1 | L162: 1 | M162: 1 | N162: 1 | O162: 1 | P162: 1 | Q162: 1 | R162: 1 | S162: 1
B163: Aggregation | C163: 20 | D163: Layer 2 Aggregation Switch | F163: 1 | G163: 1 | H163: 1 | I163: 1 | J163: 1 | K163: 1 | L163: 1 | M163: 1 | N163: 1 | O163: 1 | P163: 1 | Q163: 1 | R163: 1 | S163: 1
B164: CO | C164: 21 | D164: Site | F164: 1.017000908 | G164: 1.025202528 | H164: 1.014048 | I164: 1.008 | J164: 1 | K164: 0.9920634921 | L164: 0.983214561 | M164: 0.9705968026 | N164: 0.9571960578 | O164: 0.9402711766 | P164: 0.9236455566 | Q164: 0.9073139063 | R164: 0.8912710278 | S164: 0.8755118151
C165: 22 | D165: Rack | F165: 1 | G165: 1 | H165: 1 | I165: 1 | J165: 1 | K165: 1 | L165: 1 | M165: 1 | N165: 1 | O165: 1 | P165: 1 | Q165: 1 | R165: 1 | S165: 1
C166: 23 | D166: Power Generator | F166: 0.9609803445 | G166: 0.9705901479 | H166: 0.9802960494 | I166: 0.9900990099 | J166: 1 | K166: 1.01 | L166: 1.0201 | M166: 1.030301 | N166: 1.04060401 | O166: 1.05101005 | P166: 1.061520151 | Q166: 1.072135352 | R166: 1.082856706 | S166: 1.093685273
C167: 24 | D167: empty | F167: 1 | G167: 1 | H167: 1 | I167: 1 | J167: 1 | K167: 1 | L167: 1 | M167: 1 | N167: 1 | O167: 1 | P167: 1 | Q167: 1 | R167: 1 | S167: 1
C168: 25 | D168: VDSL DSLAM | F168: 1 | G168: 1 | H168: 1 | I168: 1 | J168: 1 | K168: 1 | L168: 1 | M168: 1 | N168: 1 | O168: 1 | P168: 1 | Q168: 1 | R168: 1 | S168: 1
C169: 26 | D169: VDSL Line Cards | F169: 1 | G169: 1 | H169: 1 | I169: 1 | J169: 1 | K169: 1 | L169: 1 | M169: 1 | N169: 1 | O169: 1 | P169: 1 | Q169: 1 | R169: 1 | S169: 1
C170: 27 | D170: empty | F170: 1 | G170: 1 | H170: 1 | I170: 1 | J170: 1 | K170: 1 | L170: 1 | M170: 1 | N170: 1 | O170: 1 | P170: 1 | Q170: 1 | R170: 1 | S170: 1
C171: 28 | D171: Network-facing Ports CO | F171: 1 | G171: 1 | H171: 1 | I171: 1 | J171: 1 | K171: 1 | L171: 1 | M171: 1 | N171: 1 | O171: 1 | P171: 1 | Q171: 1 | R171: 1 | S171: 1
C172: 29 | D172: MDF | F172: 1 | G172: 1 | H172: 1 | I172: 1 | J172: 1 | K172: 1 | L172: 1 | M172: 1 | N172: 1 | O172: 1 | P172: 1 | Q172: 1 | R172: 1 | S172: 1
C173: 30 | D173: OLT | F173: 1 | G173: 1 | H173: 1 | I173: 1 | J173: 1 | K173: 1 | L173: 1 | M173: 1 | N173: 1 | O173: 1 | P173: 1 | Q173: 1 | R173: 1 | S173: 1
C174: 31 | D174: ODF | F174: 1 | G174: 1 | H174: 1 | I174: 1 | J174: 1 | K174: 1 | L174: 1 | M174: 1 | N174: 1 | O174: 1 | P174: 1 | Q174: 1 | R174: 1 | S174: 1
C175: 32 | D175: Air Conditioning Unit | F175: 1 | G175: 1 | H175: 1 | I175: 1 | J175: 1 | K175: 1 | L175: 1 | M175: 1 | N175: 1 | O175: 1 | P175: 1 | Q175: 1 | R175: 1 | S175: 1
C176: 33 | D176: Power Supply Unit + Backup | F176: 1 | G176: 1 | H176: 1 | I176: 1 | J176: 1 | K176: 1 | L176: 1 | M176: 1 | N176: 1 | O176: 1 | P176: 1 | Q176: 1 | R176: 1 | S176: 1
B177: FTTH Cabinet | C177: 34 | D177: Passive Cabinet (Fully equipped) | F177: 1 | G177: 1 | H177: 1 | I177: 1 | J177: 1 | K177: 1 | L177: 1 | M177: 1 | N177: 1 | O177: 1 | P177: 1 | Q177: 1 | R177: 1 | S177: 1
B178: Active Cabinet | C178: 35 | D178: Cabinet | F178: 1.017000908 | G178: 1.025202528 | H178: 1.014048 | I178: 1.008 | J178: 1 | K178: 0.9920634921 | L178: 0.983214561 | M178: 0.9705968026 | N178: 0.9571960578 | O178: 0.9402711766 | P178: 0.9236455566 | Q178: 0.9073139063 | R178: 0.8912710278 | S178: 0.8755118151
C179: 36 | D179: Cabinet Base (Plinth) | F179: 1.017000908 | G179: 1.025202528 | H179: 1.014048 | I179: 1.008 | J179: 1 | K179: 0.9920634921 | L179: 0.983214561 | M179: 0.9705968026 | N179: 0.9571960578 | O179: 0.9402711766 | P179: 0.9236455566 | Q179: 0.9073139063 | R179: 0.8912710278 | S179: 0.8755118151
C180: 37 | D180: MSAN SuperVectoring | F180: 1 | G180: 1 | H180: 1 | I180: 1 | J180: 1 | K180: 1 | L180: 1 | M180: 1 | N180: 1 | O180: 1 | P180: 1 | Q180: 1 | R180: 1 | S180: 1
C181: 38 | D181: SuperVectoring Line Cards | F181: 1 | G181: 1 | H181: 1 | I181: 1 | J181: 1 | K181: 1 | L181: 1 | M181: 1 | N181: 1 | O181: 1 | P181: 1 | Q181: 1 | R181: 1 | S181: 1
C182: 39 | D182: MSAN G.fast | F182: 1 | G182: 1 | H182: 1 | I182: 1 | J182: 1 | K182: 1 | L182: 1 | M182: 1 | N182: 1 | O182: 1 | P182: 1 | Q182: 1 | R182: 1 | S182: 1
C183: 40 | D183: G.Fast Line Cards | F183: 1 | G183: 1 | H183: 1 | I183: 1 | J183: 1 | K183: 1 | L183: 1 | M183: 1 | N183: 1 | O183: 1 | P183: 1 | Q183: 1 | R183: 1 | S183: 1
C184: 41 | D184: empty | F184: 1 | G184: 1 | H184: 1 | I184: 1 | J184: 1 | K184: 1 | L184: 1 | M184: 1 | N184: 1 | O184: 1 | P184: 1 | Q184: 1 | R184: 1 | S184: 1
C185: 42 | D185: Network-facing Ports | F185: 1 | G185: 1 | H185: 1 | I185: 1 | J185: 1 | K185: 1 | L185: 1 | M185: 1 | N185: 1 | O185: 1 | P185: 1 | Q185: 1 | R185: 1 | S185: 1
C186: 43 | D186: Batteries | F186: 0.9609803445 | G186: 0.9705901479 | H186: 0.9802960494 | I186: 0.9900990099 | J186: 1 | K186: 1.01 | L186: 1.0201 | M186: 1.030301 | N186: 1.04060401 | O186: 1.05101005 | P186: 1.061520151 | Q186: 1.072135352 | R186: 1.082856706 | S186: 1.093685273
B187: Premises | C187: 44 | D187: Building Entry Point (BEP) | F187: 1 | G187: 1 | H187: 1 | I187: 1 | J187: 1 | K187: 1 | L187: 1 | M187: 1 | N187: 1 | O187: 1 | P187: 1 | Q187: 1 | R187: 1 | S187: 1
C188: 45 | D188: Splitters | F188: 1 | G188: 1 | H188: 1 | I188: 1 | J188: 1 | K188: 1 | L188: 1 | M188: 1 | N188: 1 | O188: 1 | P188: 1 | Q188: 1 | R188: 1 | S188: 1
B189: Trenching | C189: 46 | D189: FTTC Feeder | F189: 1 | G189: 1 | H189: 1 | I189: 1 | J189: 1 | K189: 1 | L189: 1 | M189: 1 | N189: 1 | O189: 1 | P189: 1 | Q189: 1 | R189: 1 | S189: 1
C190: 47 | D190: FTTC Distribution | F190: 1 | G190: 1 | H190: 1 | I190: 1 | J190: 1 | K190: 1 | L190: 1 | M190: 1 | N190: 1 | O190: 1 | P190: 1 | Q190: 1 | R190: 1 | S190: 1
C191: 48 | D191: FTTC Drop | F191: 1 | G191: 1 | H191: 1 | I191: 1 | J191: 1 | K191: 1 | L191: 1 | M191: 1 | N191: 1 | O191: 1 | P191: 1 | Q191: 1 | R191: 1 | S191: 1
C192: 49 | D192: FTTH Feeder | F192: 1 | G192: 1 | H192: 1 | I192: 1 | J192: 1 | K192: 1 | L192: 1 | M192: 1 | N192: 1 | O192: 1 | P192: 1 | Q192: 1 | R192: 1 | S192: 1
C193: 50 | D193: FTTH Distribution | F193: 1 | G193: 1 | H193: 1 | I193: 1 | J193: 1 | K193: 1 | L193: 1 | M193: 1 | N193: 1 | O193: 1 | P193: 1 | Q193: 1 | R193: 1 | S193: 1
C194: 51 | D194: FTTH Drop | F194: 1 | G194: 1 | H194: 1 | I194: 1 | J194: 1 | K194: 1 | L194: 1 | M194: 1 | N194: 1 | O194: 1 | P194: 1 | Q194: 1 | R194: 1 | S194: 1
C195: 52 | D195: Copper Feeder | F195: 1 | G195: 1 | H195: 1 | I195: 1 | J195: 1 | K195: 1 | L195: 1 | M195: 1 | N195: 1 | O195: 1 | P195: 1 | Q195: 1 | R195: 1 | S195: 1
C196: 53 | D196: Copper Distribution | F196: 1 | G196: 1 | H196: 1 | I196: 1 | J196: 1 | K196: 1 | L196: 1 | M196: 1 | N196: 1 | O196: 1 | P196: 1 | Q196: 1 | R196: 1 | S196: 1
C197: 54 | D197: Copper Drop | F197: 1 | G197: 1 | H197: 1 | I197: 1 | J197: 1 | K197: 1 | L197: 1 | M197: 1 | N197: 1 | O197: 1 | P197: 1 | Q197: 1 | R197: 1 | S197: 1
B198: Cabling | C198: 55 | D198: FTTH Fiber Cable 2 | F198: 1 | G198: 1 | H198: 1 | I198: 1 | J198: 1 | K198: 1 | L198: 1 | M198: 1 | N198: 1 | O198: 1 | P198: 1 | Q198: 1 | R198: 1 | S198: 1
C199: 56 | D199: FTTH Fiber Cable 4 | F199: 1 | G199: 1 | H199: 1 | I199: 1 | J199: 1 | K199: 1 | L199: 1 | M199: 1 | N199: 1 | O199: 1 | P199: 1 | Q199: 1 | R199: 1 | S199: 1
C200: 57 | D200: FTTH Fiber Cable 8 | F200: 1 | G200: 1 | H200: 1 | I200: 1 | J200: 1 | K200: 1 | L200: 1 | M200: 1 | N200: 1 | O200: 1 | P200: 1 | Q200: 1 | R200: 1 | S200: 1
C201: 58 | D201: FTTH Fiber Cable 12 | F201: 1 | G201: 1 | H201: 1 | I201: 1 | J201: 1 | K201: 1 | L201: 1 | M201: 1 | N201: 1 | O201: 1 | P201: 1 | Q201: 1 | R201: 1 | S201: 1
C202: 59 | D202: FTTH Fiber Cable 24 | F202: 1 | G202: 1 | H202: 1 | I202: 1 | J202: 1 | K202: 1 | L202: 1 | M202: 1 | N202: 1 | O202: 1 | P202: 1 | Q202: 1 | R202: 1 | S202: 1
C203: 60 | D203: FTTH Fiber Cable 48 | F203: 1 | G203: 1 | H203: 1 | I203: 1 | J203: 1 | K203: 1 | L203: 1 | M203: 1 | N203: 1 | O203: 1 | P203: 1 | Q203: 1 | R203: 1 | S203: 1
C204: 61 | D204: FTTH Fiber Cable 96 | F204: 1 | G204: 1 | H204: 1 | I204: 1 | J204: 1 | K204: 1 | L204: 1 | M204: 1 | N204: 1 | O204: 1 | P204: 1 | Q204: 1 | R204: 1 | S204: 1
C205: 62 | D205: FTTH Fiber Cable 192 | F205: 1 | G205: 1 | H205: 1 | I205: 1 | J205: 1 | K205: 1 | L205: 1 | M205: 1 | N205: 1 | O205: 1 | P205: 1 | Q205: 1 | R205: 1 | S205: 1
C206: 63 | D206: FTTC Fiber Cable 12 | F206: 1 | G206: 1 | H206: 1 | I206: 1 | J206: 1 | K206: 1 | L206: 1 | M206: 1 | N206: 1 | O206: 1 | P206: 1 | Q206: 1 | R206: 1 | S206: 1
... 321 more rows

Sheet Central_Office_Data
B1: Central Office Data
B3: Index | C3: General Info | F3: Active Subscribers | K3: Cabinets | P3: Residencies | S3: Central Office Coverage Areas | W3: Central Office Information | AB3: Outer Circle Technology | AF3: Inner Circle | AH3: Floor Box Calculations | AT3: BEP Calculations | BK3: Colocation
C4: CO_Name | D4: CO_ID | E4: CO_Code | F4: Sum | G4: Inner Circle | I4: Outer Circle | K4: Sum | L4: Inner Circle | N4: Outer Circle | P4: Buildings | Q4: SDUs | R4: Homes | S4: Feeder (CO->BB) (km2) | T4: Feeder (BB->Cab) (km2) | U4: Distribution (Cab->Buildings) (km2) | V4: Avg Building Area (m2) | W4: Subs/Cab | Y4: Builds/Cab | Z4: Homes/Cab | AA4: Geotype | AB4: G.fast Cabinets | AC4: FTTH Cabinets | AD4: VDSL Cabinets | AE4: Unallocated | AF4: FTTH Cabinets | AH4: Floors per Building (including basement) | AI4: Floors (including basement) | AJ4: MDUs | AK4: Homes per MDU | AL4: Floors per MDU | AM4: Homes per floor per MDU | AN4: MDU Floors | AO4: Floor Boxes per MDU | AP4: SDU ratio (%) | AQ4: Inner MDU Subs/Cab | AR4: Outer MDU Subs/Cab | AT4: MDUs per Cab | AU4: SDUs per Cab | AV4: Subs/Home | AX4: Active MDUs/Cab | AZ4: Active SDUs/Cab | BB4: Total Active MDUs | BC4: Total Active SDUs | BF4: Active SDUs | BG4: Active MDUs | BH4: Active Floor Boxes | BK4: Space Size (m2) | BL4: Racks
G5: Sum | H5: Subsidy | I5: Sum | J5: Subsidy | L5: Sum | M5: Subsidy | N5: Sum | O5: Subsidy | W5: Inner | X5: Outer | AV5: Inner | AW5: Outer | AX5: Inner | AY5: Outer | AZ5: Inner | BA5: Outer | BC5: Active MDUs | BG5: Active MDUs | BH5: Active Floors
B6: 1 | C6: ΔΑΒΙΑ | D6: 7103-ΔΑΒΙ | E6: 4 | F6: ='[3]UoA-CO_Summary'!$F$4:$F$2130 -> 138 | G6: ='[3]UoA-CO_Summary'!$G$4:$G$2130 -> 0 | H6: ='[3]UoA-CO_Summary'!$H$4:$H$2130 -> 0 | I6: ='[3]UoA-CO_Summary'!$I$4:$I$2130 -> 138 | J6: ='[3]UoA-CO_Summary'!$J$4:$J$2130 -> 0 | K6: ='[3]UoA-CO_Summary'!$L$4:$L$2130 -> 3 | L6: ='[3]UoA-CO_Summary'!$M$4:$M$2130 -> 0 | M6: ='[3]UoA-CO_Summary'!$N$4:$N$2130 -> 0 | N6: ='[3]UoA-CO_Summary'!$O$4:$O$2130 -> 3 | O6: ='[3]UoA-CO_Summary'!$P$4:$P$2130 -> 0 | P6: 140 | Q6: 113 | R6: 229 | S6: 125.8828687 | T6: 125.8828687 | U6: 0.4287871605 | V6: 89.203 | W6: =IFERROR((G6-H6)/(L6-M6),0) -> 0 | X6: =IFERROR((I6-J6)/(N6-O6),0) -> 46 | Y6: =ROUNDUP(IFERROR(P6/K6,0),0) -> 47 | Z6: =ROUNDUP(IFERROR(R6/K6,0),0) -> 77 | AA6: Rural | AB6: =[3]!G.fast_Cabinets -> 0 | AC6: =[3]!FTTH_Cabinets -> 0 | AD6: =N6-O6-AB6-AC6 -> 3 | AE6: =[3]!Unallocated_Cabinets -> 2 | AF6: =L6-M6 -> 0 | AH6: 1.794132386 | AI6: =P6*AH6 -> 251.178534 | AJ6: =P6-Q6 -> 27 | AK6: =(R6-Q6)/AJ6 -> 4.296296296 | AL6: =(AI6-Q6)/AJ6-1 -> 4.117723482 | AM6: =AK6/AL6 -> 1.043366879 | AN6: =AJ6*AL6 -> 111.178534 | AO6: =IF(AM6>2,AL6,IF(AM6<=1, AK6/2,AK6/ROUNDUP(AM6,0))) -> 2.148148148 | AP6: =Q6/P6 -> 0.8071428571 | AQ6: =W6-AZ6 -> 0 | AR6: =X6-BA6 -> 23.33710575 | AT6: =(1-AP6)*Y6 -> 9.064285714 | AU6: =AP6*Y6 -> 37.93571429 | AV6: =W6/Z6 -> 0 | AW6: =X6/Z6 -> 0.5974025974 | AX6: =IF(AK6*AV6<1, AT6*AK6*AV6,AT6) -> 0 | AY6: =IF(AK6*AW6<1, AT6*AK6*AW6,AT6) -> 9.064285714 | AZ6: =AV6*AU6 -> 0 | BA6: =AW6*AU6 -> 22.66289425 | BB6: =ROUNDUP(AX6*L6+AY6*N6,0) -> 28 | BC6: =ROUNDUP(AZ6*L6+BA6*N6,0) -> 68 | BF6: =SUMPRODUCT(AZ6:AZ2132,CO_FTTH_Inner_Cabs)+SUMPRODUCT(BA6:BA2132,CO_FTTH_Outer_Cabs) -> 474100.594 | BG6: =SUMPRODUCT(AY6:AY2132,CO_FTTH_Outer_Cabs)+SUMPRODUCT(AX6:AX2132,CO_FTTH_Inner_Cabs) -> 248629.5682 | BH6: =SUMPRODUCT(AY6:AY2132,CO_FTTH_Outer_Cabs,AO6:AO2132)+SUMPRODUCT(AX6:AX2132,CO_FTTH_Inner_Cabs,AO6:AO2132) -> 505362.9414
B7: =B6+1 -> 2 | C7: ΕΛΑΙΟΧΩΡΙΟΝ | D7: 7103-ΕΛΧ | E7: 5 | F7: 108 | G7: 108 | H7: 0 | I7: 0 | J7: 0 | K7: 2 | L7: 2 | M7: 0 | N7: 0 | O7: 0 | P7: 110 | Q7: 89 | R7: 179 | S7: 0.13471362 | T7: 0.13471362 | U7: 0.5312394958 | V7: 89.203 | W7: =IFERROR((G7-H7)/(L7-M7),0) -> 54 | X7: =IFERROR((I7-J7)/(N7-O7),0) -> 0 | Y7: 55 | Z7: =ROUNDUP(IFERROR(R7/K7,0),0) -> 90 | AA7: Rural | AB7: 0 | AC7: 0 | AD7: =N7-O7-AB7-AC7 -> 0 | AE7: 0 | AF7: 2 | AH7: 1.794132386 | AI7: =P7*AH7 -> 197.3545624 | AJ7: =P7-Q7 -> 21 | AK7: =(R7-Q7)/AJ7 -> 4.285714286 | AL7: =(AI7-Q7)/AJ7-1 -> 4.159741068 | AM7: =AK7/AL7 -> 1.030283908 | AN7: =AJ7*AL7 -> 87.35456243 | AO7: 2.142857143 | AP7: =Q7/P7 -> 0.8090909091 | AQ7: =W7-AZ7 -> 27.3 | AR7: =X7-BA7 -> 0 | AT7: 10.5 | AU7: 44.5 | AV7: 0.6 | AW7: 0 | AX7: =IF(AK7*AV7<1, AT7*AK7*AV7,AT7) -> 10.5 | AY7: =IF(AK7*AW7<1, AT7*AK7*AW7,AT7) -> 0 | AZ7: 26.7 | BA7: 0 | BB7: =ROUNDUP(AX7*L7+AY7*N7,0) -> 21 | BC7: =ROUNDUP(AZ7*L7+BA7*N7,0) -> 54
B8: =B7+1 -> 3 | C8: ΚΑΣΤΡΙ | D8: 7103-ΚΑΣΤ | E8: 6 | F8: 288 | G8: 163 | H8: 163 | I8: 125 | J8: 125 | K8: 10 | L8: 3 | M8: 3 | N8: 7 | O8: 7 | P8: 732 | Q8: 640 | R8: 1033 | S8: 14.09880186 | T8: 13.21634627 | U8: 1.243973699 | V8: 80.366 | W8: 0 | X8: 0 | Y8: 74 | Z8: 104 | AA8: Rural | AB8: 0 | AC8: 0 | AD8: 0 | AE8: 0 | AF8: 0 | AH8: 1.642525798 | AI8: 1202.328884 | AJ8: =P8-Q8 -> 92 | AK8: 4.27173913 | AL8: 5.112270477 | AM8: 0.8355855094 | AN8: 470.3288838 | AO8: 2.135869565 | AP8: 0.8743169399 | AQ8: 0 | AR8: 0 | AT8: 9.300546448 | AU8: 64.69945355 | AV8: 0 | AW8: 0 | AX8: 0 | AY8: 0 | AZ8: 0 | BA8: 0 | BB8: 0 | BC8: 0
B9: =B8+1 -> 4 | C9: ΚΕΡΑΣΙΤΣΑ | D9: 7103-ΚΕΡΑ | E9: 7 | F9: 820 | G9: 149 | H9: 0 | I9: 671 | J9: 0 | K9: 11 | L9: 2 | M9: 0 | N9: 9 | O9: 0 | P9: 831 | Q9: 673 | R9: 1359 | S9: 20.78867398 | T9: 10.1492327 | U9: 1.802515427 | V9: 89.203 | W9: 74.5 | X9: 74.55555556 | Y9: 76 | Z9: 124 | AA9: Suburban | AB9: 0 | AC9: 0 | AD9: =N9-O9-AB9-AC9 -> 9 | AE9: 7 | AF9: 2 | AH9: 1.794132386 | AI9: 1490.924013 | AJ9: 158 | AK9: 4.341772152 | AL9: 4.176734257 | AM9: 1.039513621 | AN9: 659.9240126 | AO9: 2.170886076 | AP9: 0.8098676294 | AQ9: 37.52039905 | AR9: 37.54837847 | AT9: 14.45006017 | AU9: 61.54993983 | AV9: 0.6008064516 | AW9: 0.6012544803 | AX9: 14.45006017 | AY9: 14.45006017 | AZ9: 36.97960095 | BA9: 37.00717709 | BB9: 159 | BC9: 408
B10: =B9+1 -> 5 | C10: ΜΗΛΙΑ | D10: 7103-ΜΗΛΙ | E10: 8 | F10: 355 | G10: 0 | H10: 0 | I10: 355 | J10: 0 | K10: 3 | L10: 0 | M10: 0 | N10: 3 | O10: 0 | P10: 360 | Q10: 292 | R10: 589 | S10: 21.23266623 | T10: 21.23266623 | U10: 0.5548216942 | V10: 89.203 | W10: 0 | X10: 118.3333333 | Y10: 120 | Z10: 197 | AA10: Rural | AB10: 0 | AC10: 0 | AD10: 3 | AE10: 2 | AF10: 0 | AH10: 1.794132386 | AI10: 645.8876589 | AJ10: 68 | AK10: 4.367647059 | AL10: 4.204230278 | AM10: 1.038869608 | AN10: 285.8876589 | AO10: 2.183823529 | AP10: 0.8111111111 | AQ10: 0 | AR10: 59.86745629 | AT10: 22.66666667 | AU10: 97.33333333 | AV10: 0 | AW10: 0.600676819 | AX10: 0 | AY10: 22.66666667 | AZ10: 0 | BA10: 58.46587704 | BB10: 68 | BC10: 176
B11: =B10+1 -> 6 | C11: ΝΕΣΤΑΝΗ | D11: 7103-ΝΕΣΤ | E11: 9 | F11: 198 | G11: 198 | H11: 0 | I11: 0 | J11: 0 | K11: 3 | L11: 3 | M11: 0 | N11: 0 | O11: 0 | P11: 201 | Q11: 163 | R11: 328 | S11: 0.05311596546 | T11: 0.05311596546 | U11: 0.4034908933 | V11: 89.203 | W11: 66 | X11: 0 | Y11: 67 | Z11: 110 | AA11: Rural | AB11: 0 | AC11: 0 | AD11: 0 | AE11: 0 | AF11: 3 | AH11: 1.794132386 | AI11: 360.6206095 | AJ11: 38 | AK11: 4.342105263 | AL11: 4.200542356 | AM11: 1.033701102 | AN11: 159.6206095 | AO11: 2.171052632 | AP11: 0.8109452736 | AQ11: 33.4 | AR11: 0 | AT11: 12.66666667 | AU11: 54.33333333 | AV11: 0.6 | AW11: 0 | AX11: 12.66666667 | AY11: 0 | AZ11: 32.6 | BA11: 0 | BB11: 38 | BC11: 98
B12: 7 | C12: ΑΣΤΡΟΣ | D12: 7106-ΑΣΤΡ | E12: 10 | F12: 1405 | G12: 721 | H12: 0 | I12: 684 | J12: 8 | K12: 14 | L12: 7 | M12: 0 | N12: 7 | O12: 1 | P12: 2892 | Q12: 2529 | R12: 4085 | S12: 3.20881574 | T12: 1.684369064 | U12: 2.693102157 | V12: 80.366 | W12: 103 | X12: 112.6666667 | Y12: 207 | Z12: 292 | AA12: Suburban | AB12: 0 | AC12: 0 | AD12: 6 | AE12: 3 | AF12: 7 | AH12: 1.642525798 | AI12: 4750.184607 | AJ12: =P12-Q12 -> 363 | AK12: 4.286501377 | AL12: 5.118965859 | AM12: 0.8373764342 | AN12: 1858.184607 | AO12: 2.143250689 | AP12: 0.8744813278 | AQ12: 39.14788908 | AR12: 42.82196281 | AT12: =(1-AP12)*Y12 -> 25.98236515 | AU12: =AP12*Y12 -> 181.0176349 | AV12: 0.352739726 | AW12: 0.3858447489 | AX12: 25.98236515 | AY12: 25.98236515 | AZ12: 63.85211092 | BA12: 69.84470386 | BB12: 364 | BC12: 936
B13: 8 | C13: ΚΑΤΩ ΔΟΛΙΑΝΑ | D13: 7106-ΚΔΟΛ | E13: 11 | F13: 234 | G13: 201 | H13: 0 | I13: 33 | J13: 33 | K13: 6 | L13: 3 | M13: 0 | N13: 3 | O13: 3 | P13: 620 | Q13: 542 | R13: 876 | S13: 8.115504261 | T13: 8.115504261 | U13: 0.5650414732 | V13: 80.366 | W13: 67 | X13: 0 | Y13: 104 | Z13: 146 | AA13: Rural | AB13: 0 | AC13: 0 | AD13: 0 | AE13: 0 | AF13: 3 | AH13: 1.642525798 | AI13: 1018.365995 | AJ13: 78 | AK13: 4.282051282 | AL13: 5.10725634 | AM13: 0.8384249775 | AN13: 398.3659945 | AO13: 2.141025641 | AP13: 0.8741935484 | AQ13: 25.27821476 | AR13: 0 | AT13: 13.08387097 | AU13: 90.91612903 | AV13: 0.4589041096 | AW13: 0 | AX13: 13.08387097 | AY13: 0 | AZ13: 41.72178524 | BA13: 0 | BB13: 40 | BC13: 126
B14: 9 | C14: ΞΗΡΟΠΗΓΑΔΟ | D14: 7106-ΞΗΠΗ | E14: 12 | F14: 206 | G14: 206 | H14: 0 | I14: 0 | J14: 0 | K14: 2 | L14: 2 | M14: 0 | N14: 0 | O14: 0 | P14: 424 | Q14: 371 | R14: 599 | S14: 0.05441236804 | T14: 0.05441236804 | U14: 0.2687442762 | V14: 80.366 | W14: 103 | X14: 0 | Y14: 212 | Z14: 300 | AA14: Rural | AB14: 0 | AC14: 0 | AD14: 0 | AE14: 0 | AF14: 2 | AH14: 1.642525798 | AI14: 696.4309382 | AJ14: 53 | AK14: 4.301886792 | AL14: 5.140206381 | AM14: 0.8369093522 | AN14: 272.4309382 | AO14: 2.150943396 | AP14: 0.875 | AQ14: 39.31166667 | AR14: 0 | AT14: 26.5 | AU14: 185.5 | AV14: 0.3433333333 | AW14: 0 | AX14: 26.5 | AY14: 0 | AZ14: 63.68833333 | BA14: 0 | BB14: 53 | BC14: 128
B15: 10 | C15: ΒΑΛΤΕΤΣΙΝΙΚΟ | D15: 7107-ΒΑΛΤ | E15: 13 | F15: 171 | G15: 115 | H15: 0 | I15: 56 | J15: 5 | K15: 3 | L15: 1 | M15: 0 | N15: 2 | O15: 1 | P15: 602 | Q15: 555 | R15: 665 | S15: 14.93465505 | T15: 14.93465505 | U15: 0.819933942 | V15: 72.944 | W15: 115 | X15: 51 | Y15: 201 | Z15: 222 | AA15: Rural | AB15: 0 | AC15: 0 | AD15: 1 | AE15: 1 | AF15: 1 | AH15: 1.398170568 | AI15: 841.6986817 | AJ15: 47 | AK15: 2.340425532 | AL15: 5.099971952 | AM15: 0.4589094909 | AN15: 239.6986817 | AO15: 1.170212766 | AP15: 0.9219269103 | AQ15: 19.00747508 | AR15: 8.429401993 | AT15: 15.69269103 | AU15: 185.307309 | AV15: 0.518018018 | AW15: 0.2297297297 | AX15: 15.69269103 | AY15: 8.437415821 | AZ15: 95.99252492 | BA15: 42.57059801 | BB15: 33 | BC15: 182
B16: 11 | C16: ΒΥΤΙΝΑ | D16: 7107-ΒΥΤΙ | E16: 14 | F16: 397 | G16: 330 | H16: 0 | I16: 67 | J16: 0 | K16: 5 | L16: 4 | M16: 0 | N16: 1 | O16: 0 | P16: 1398 | Q16: 1288 | R16: 1544 | S16: 1.049353905 | T16: 1.049353905 | U16: 1.042297902 | V16: 72.944 | W16: 82.5 | X16: 67 | Y16: 280 | Z16: 309 | AA16: Suburban | AB16: 0 | AC16: 0 | AD16: 1 | AE16: 0 | AF16: 4 | AH16: 1.398170568 | AI16: 1954.642454 | AJ16: 110 | AK16: 2.327272727 | AL16: 5.060385942 | AM16: 0.4599002436 | AN16: 556.6424536 | AO16: 1.163636364 | AP16: 0.921316166 | AQ16: 13.62490798 | AR16: 11.06507679 | AT16: 22.03147353 | AU16: 257.9685265 | AV16: 0.2669902913 | AW16: 0.216828479 | AX16: 13.68945928 | AY16: 11.11750027 | AZ16: 68.87509202 | BA16: 55.93492321 | BB16: 66 | BC16: 332
B17: 12 | C17: ΣΤΕΜΝΙΤΣΑ | D17: 7107-ΣΤΕΜ | E17: 15 | F17: 136 | G17: 136 | H17: 0 | I17: 0 | J17: 0 | K17: 2 | L17: 2 | M17: 0 | N17: 0 | O17: 0 | P17: 479 | Q17: 441 | R17: 529 | S17: 0.03122936124 | T17: 0.03122936124 | U17: 0.254817753 | V17: 72.944 | W17: 68 | X17: 0 | Y17: 240 | Z17: 265 | AA17: Rural | AB17: 0 | AC17: 0 | AD17: 0 | AE17: 0 | AF17: 2 | AH17: 1.398170568 | AI17: 669.7237019 | AJ17: 38 | AK17: 2.315789474 | AL17: 5.019044787 | AM17: 0.4614004401 | AN17: 190.7237019 | AO17: 1.157894737 | AP17: 0.9206680585 | AQ17: 11.30074448 | AR17: 0 | AT17: 19.03966597 | AU17: 220.960334 | AV17: 0.2566037736 | AW17: 0 | AX17: 11.31413716 | AY17: 0 | AZ17: 56.69925552 | BA17: 0 | BB17: 23 | BC17: 114
B18: 13 | C18: ΠΑΡΑΛΙΑ ΤΥΡΟΥ | D18: 7110-ΠΤΥΡ | E18: 16 | F18: 855 | G18: 189 | H18: 0 | I18: 666 | J18: 275 | K18: 8 | L18: 2 | M18: 0 | N18: 6 | O18: 3 | P18: 1709 | Q18: 1540 | R18: 2208 | S18: 10.33388545 | T18: 10.33388545 | U18: 1.891302729 | V18: 80.305 | W18: 94.5 | X18: 130.3333333 | Y18: 214 | Z18: 276 | AA18: Rural | AB18: 0 | AC18: 0 | AD18: 3 | AE18: 1 | AF18: 2 | AH18: 1.568877944 | AI18: 2681.212406 | AJ18: 169 | AK18: 3.952662722 | AL18: 5.752736129 | AM18: 0.6870926518 | AN18: 972.2124057 | AO18: 1.976331361 | AP18: 0.9011117613 | AQ18: 28.4739741 | AR18: 39.27098368 | AT18: 21.16208309 | AU18: 192.8379169 | AV18: 0.3423913043 | AW18: 0.4722222222 | AX18: 21.16208309 | AY18: 21.16208309 | AZ18: 66.0260259 | BA18: 91.06234965 | BB18: 170 | BC18: 679
B19: 14 | C19: ΔΥΡΡΑΧΙΟ | D19: 7111-ΔΥΡΧ | E19: 17 | F19: 100 | G19: 44 | H19: 0 | I19: 56 | J19: 56 | K19: 3 | L19: 1 | M19: 0 | N19: 2 | O19: 2 | P19: 232 | Q19: 204 | R19: 275 | S19: 11.4207167 | T19: 11.4207167 | U19: 0.5695207092 | V19: 78.932 | W19: 44 | X19: 0 | Y19: 78 | Z19: 92 | AA19: Rural | AB19: 0 | AC19: 0 | AD19: 0 | AE19: 0 | AF19: 1 | AH19: 1.438241107 | AI19: 333.6719368 | AJ19: 28 | AK19: 2.535714286 | AL19: 3.631140599 | AM19: 0.6983244567 | AN19: 101.6719368 | AO19: 1.267857143 | AP19: 0.8793103448 | AQ19: 11.19790105 | AR19: 0 | AT19: 9.413793103 | AU19: 68.5862069 | AV19: 0.4782608696 | AW19: 0 | AX19: 9.413793103 | AY19: 0 | AZ19: 32.80209895 | BA19: 0 | BB19: 10 | BC19: 33
B20: 15 | C20: ΚΑΜΑΡΑ | D20: 7111-ΚΑΜΑ | E20: 18 | F20: 24 | G20: 0 | H20: 0 | I20: 24 | J20: 24 | K20: 3 | L20: 0 | M20: 0 | N20: 3 | O20: 3 | P20: 56 | Q20: 49 | R20: 66 | S20: 14.77651884 | T20: 14.77651884 | U20: 0.6566421561 | V20: 78.932 | W20: 0 | X20: 0 | Y20: 19 | Z20: 22 | AA20: Rural | AB20: 0 | AC20: 0 | AD20: 0 | AE20: 0 | AF20: 0 | AH20: 1.438241107 | AI20: 80.54150198 | AJ20: 7 | AK20: 2.428571429 | AL20: 3.505928854 | AM20: 0.6927041392 | AN20: 24.54150198 | AO20: 1.214285714 | AP20: 0.875 | AQ20: 0 | AR20: 0 | AT20: 2.375 | AU20: 16.625 | AV20: 0 | AW20: 0 | AX20: 0 | AY20: 0 | AZ20: 0 | BA20: 0 | BB20: 0 | BC20: 0
B21: 16 | C21: ΠΑΡΑΔΕΙΣΣΙΑ | D21: 7111-ΠΑΡΔ | E21: 19 | F21: 88 | G21: 0 | H21: 0 | I21: 88 | J21: 0 | K21: 1 | L21: 0 | M21: 0 | N21: 1 | O21: 0 | P21: 204 | Q21: 180 | R21: 242 | S21: 0.1950287344 | T21: 0 | U21: 0.1950287344 | V21: 78.932 | W21: 0 | X21: 88 | Y21: 204 | Z21: 242 | AA21: Rural | AB21: 0 | AC21: 0 | AD21: 1 | AE21: 1 | AF21: 0 | AH21: 1.438241107 | AI21: 293.4011858 | AJ21: 24 | AK21: 2.583333333 | AL21: 3.725049407 | AM21: 0.6935031059 | AN21: 89.40118577 | AO21: 1.291666667 | AP21: 0.8823529412 | AQ21: 0 | AR21: 22.54545455 | AT21: 24 | AU21: 180 | AV21: 0 | AW21: 0.3636363636 | AX21: 0 | AY21: 22.54545455 | AZ21: 0 | BA21: 65.45454545 | BB21: 23 | BC21: 66
B22: 17 | C22: ΔΑΡΑΣ | D22: 7130-ΔΑΡΑ | E22: 21 | F22: 82 | G22: 82 | H22: 0 | I22: 0 | J22: 0 | K22: 1 | L22: 1 | M22: 0 | N22: 0 | O22: 0 | P22: 84 | Q22: 68 | R22: 136 | S22: 0.2587953121 | T22: 0 | U22: 0.2587953121 | V22: 89.203 | W22: 82 | X22: 0 | Y22: 84 | Z22: 136 | AA22: Rural | AB22: 0 | AC22: 0 | AD22: 0 | AE22: 0 | AF22: 1 | AH22: 1.794132386 | AI22: 150.7071204 | AJ22: 16 | AK22: 4.25 | AL22: 4.169195025 | AM22: 1.019381433 | AN22: 66.7071204 | AO22: 2.125 | AP22: 0.8095238095 | AQ22: 41 | AR22: 0 | AT22: 16 | AU22: 68 | AV22: 0.6029411765 | AW22: 0 | AX22: 16 | AY22: 0 | AZ22: 41 | BA22: 0 | BB22: 16 | BC22: 41
B23: 18 | C23: ΚΑΛΛΙΑΝΙ | D23: 7141-ΚΑΛΛ | E23: 22 | F23: 175 | G23: 90 | H23: 0 | I23: 85 | J23: 85 | K23: 2 | L23: 1 | M23: 0 | N23: 1 | O23: 1 | P23: 543 | Q23: 500 | R23: 600 | S23: 3.232341554 | T23: 3.232341554 | U23: 0.3688496909 | V23: 72.944 | W23: 90 | X23: 0 | Y23: 272 | Z23: 300 | AA23: Rural | AB23: 0 | AC23: 0 | AD23: 0 | AE23: 0 | AF23: 1 | AH23: 1.398170568 | AI23: 759.2066182 | AJ23: 43 | AK23: 2.325581395 | AL23: 5.028060889 | AM23: 0.4625205316 | AN23: 216.2066182 | AO23: 1.162790698 | AP23: 0.9208103131 | AQ23: 14.86187845 | AR23: 0 | AT23: 21.53959484 | AU23: 250.4604052 | AV23: 0.3 | AW23: 0 | AX23: 15.02762431 | AY23: 0 | AZ23: 75.13812155 | BA23: 0 | BB23: 16 | BC23: 76
B24: 19 | C24: ΒΟΥΤΙΑΝΟΙ | D24: 7202-ΒΟΥΤ | E24: 23 | F24: 225 | G24: 30 | H24: 0 | I24: 195 | J24: 195 | K24: 4 | L24: 1 | M24: 0 | N24: 3 | O24: 3 | P24: 252 | Q24: 215 | R24: 345 | S24: 8.798889548 | T24: 8.798889548 | U24: 0.7163145018 | V24: 92.76 | W24: 30 | X24: 0 | Y24: 63 | Z24: 87 | AA24: Rural | AB24: 0 | AC24: 0 | AD24: 0 | AE24: 0 | AF24: 1 | AH24: 1.744908773 | AI24: 439.7170107 | AJ24: 37 | AK24: 3.513513514 | AL24: 5.073432721 | AM24: 0.6925318037 | AN24: 187.7170107 | AO24: 1.756756757 | AP24: 0.8531746032 | AQ24: 11.46551724 | AR24: 0 | AT24: 9.25 | AU24: 53.75 | AV24: 0.3448275862 | AW24: 0 | AX24: 9.25 | AY24: 0 | AZ24: 18.53448276 | BA24: 0 | BB24: 10 | BC24: 19
B25: 20 | C25: ΓΚΟΡΙΤΣΑ | D25: 7202-ΓΚΟΡ | E25: 24 | F25: 294 | G25: 294 | H25: 91 | I25: 0 | J25: 0 | K25: 3 | L25: 3 | M25: 1 | N25: 0 | O25: 0 | P25: 329 | Q25: 281 | R25: 450 | S25: 11.06307639 | T25: 11.06307639 | U25: 0.1758858893 | V25: 92.76 | W25: 101.5 | X25: 0 | Y25: 110 | Z25: 150 | AA25: Rural | AB25: 0 | AC25: 0 | AD25: 0 | AE25: 0 | AF25: 2 | AH25: 1.744908773 | AI25: 574.0749862 | AJ25: 48 | AK25: 3.520833333 | AL25: 5.105728879 | AM25: 0.6895848599 | AN25: 245.0749862 | AO25: 1.760416667 | AP25: 0.8541033435 | AQ25: 37.92624113 | AR25: 0 | AT25: 16.04863222 | AU25: 93.95136778 | AV25: 0.6766666667 | AW25: 0 | AX25: 16.04863222 | AY25: 0 | AZ25: 63.57375887 | BA25: 0 | BB25: 49 | BC25: 191
B26: 21 | C26: ΓΟΡΑΝΟΙ | D26: 7202-ΓΟΡΑ | E26: 25 | F26: 70 | G26: 45 | H26: 45 | I26: 25 | J26: 25 | K26: 3 | L26: 1 | M26: 1 | N26: 2 | O26: 2 | P26: 79 | Q26: 67 | R26: 108 | S26: 1.167946048 | T26: 1.167946048 | U26: 0.1758858893 | V26: 92.76 | W26: 0 | X26: 0 | Y26: 27 | Z26: 36 | AA26: Rural | AB26: 0 | AC26: 0 | AD26: 0 | AE26: 0 | AF26: 0 | AH26: 1.744908773 | AI26: 137.847793 | AJ26: 12 | AK26: 3.416666667 | AL26: 4.903982753 | AM26: 0.6967126189 | AN26: 58.84779303 | AO26: 1.708333333 | AP26: 0.8481012658 | AQ26: 0 | AR26: 0 | AT26: 4.101265823 | AU26: 22.89873418 | AV26: 0 | AW26: 0 | AX26: 0 | AY26: 0 | AZ26: 0 | BA26: 0 | BB26: 0 | BC26: 0
B27: 22 | C27: ΚΑΣΤΟΡΙ | D27: 7202-ΚΑΣ | E27: 26 | F27: 433 | G27: 236 | H27: 0 | I27: 197 | J27: 180 | K27: 10 | L27: 4 | M27: 0 | N27: 6 | O27: 5 | P27: 588 | Q27: 502 | R27: 805 | S27: 12.38646841 | T27: 7.971262255 | U27: 1.005165316 | V27: 92.76 | W27: 59 | X27: 17 | Y27: 59 | Z27: 81 | AA27: Rural | AB27: 0 | AC27: 0 | AD27: 1 | AE27: 1 | AF27: 4 | AH27: 1.744908773 | AI27: 1026.006358 | AJ27: 86 | AK27: 3.523255814 | AL27: 5.093097189 | AM27: 0.6917707798 | AN27: 438.0063583 | AO27: 1.761627907 | AP27: 0.8537414966 | AQ27: 22.31019568 | AR27: 6.428361468 | AT27: 8.629251701 | AU27: 50.3707483 | AV27: 0.7283950617 | AW27: 0.2098765432 | AX27: 8.629251701 | AY27: 6.380889393 | AZ27: 36.68980432 | BA27: 10.57163853 | BB27: 73 | BC27: 211
B28: 23 | C28: ΞΗΡΟΚΑΜΠΙ | D28: 7202-ΞΗΡΟ | E28: 27 | F28: 1057 | G28: 352 | H28: 0 | I28: 705 | J28: 232 | K28: 11 | L28: 3 | M28: 0 | N28: 8 | O28: 4 | P28: 1180 | Q28: 1008 | R28: 1617 | S28: 24.18012163 | T28: 20.75526022 | U28: 1.690862451 | V28: 92.76 | W28: 117.3333333 | X28: 118.25 | Y28: 108 | Z28: 147 | AA28: Suburban | AB28: 0 | AC28: 0 | AD28: 4 | AE28: 1 | AF28: 3 | AH28: 1.744908773 | AI28: 2058.992352 | AJ28: 172 | AK28: 3.540697674 | AL28: 5.110420649 | AM28: 0.692838793 | AN28: 878.9923516 | AO28: 1.770348837 | AP28: 0.8542372881 | AQ28: 43.69459241 | AR28: 44.03595642 | AT28: 15.74237288 | AU28: 92.25762712 | AV28: 0.798185941 | AW28: 0.8044217687 | AX28: 15.74237288 | AY28: 15.74237288 | AZ28: 73.63874092 | BA28: 74.21404358 | BB28: 174 | BC28: 815
B29: 24 | C29: ΑΙΓΙΕΣ | D29: 7209-ΑΙΓΙ | E29: 28 | F29: 328 | G29: 0 | H29: 0 | I29: 328 | J29: 199 | K29: 5 | L29: 0 | M29: 0 | N29: 5 | O29: 4 | P29: 881 | Q29: 775 | R29: 1034 | S29: 7.525506486 | T29: 7.525506486 | U29: 0.3686271773 | V29: 76.502 | W29: 0 | X29: 129 | Y29: 177 | Z29: 207 | AA29: Rural | AB29: 0 | AC29: 0 | AD29: 1 | AE29: 1 | AF29: 0 | AH29: 1.619058776 | AI29: 1426.390782 | AJ29: 106 | AK29: 2.443396226 | AL29: 5.145196056 | AM29: 0.4748888478 | AN29: 545.3907819 | AO29: 1.221698113 | AP29: 0.8796821793 | AQ29: 0 | AR29: 31.96723091 | AT29: 21.29625426 | AU29: 155.7037457 | AV29: 0 | AW29: 0.6231884058 | AX29: 0 | AY29: 21.29625426 | AZ29: 0 | BA29: 97.03276909 | BB29: 107 | BC29: 486
B30: 25 | C30: ΓΥΘΕΙΟ | D30: 7209-ΓΥΘΕ | E30: 29 | F30: 3109 | G30: 1408 | H30: 0 | I30: 1701 | J30: 545 | K30: 41 | L30: 11 | M30: 0 | N30: 30 | O30: 17 | P30: 7173 | Q30: 6309 | R30: 8426 | S30: 308.1464286 | T30: 262.4875798 | U30: 2.659841287 | V30: 76.563 | W30: 128 | X30: 88.92307692 | Y30: 175 | Z30: 206 | AA30: Urban | AB30: 0 | AC30: 0 | AD30: 13 | AE30: 3 | AF30: 11 | AH30: 1.619536486 | AI30: 11616.93521 | AJ30: 864 | AK30: 2.450231481 | AL30: 5.143443536 | AM30: 0.476379582 | AN30: 4443.935215 | AO30: 1.225115741 | AP30: 0.8795483061 | AQ30: 32.35979584 | AR30: 22.48072355 | AT30: 21.07904642 | AU30: 153.9209536 | AV30: 0.6213592233 | AW30: 0.431665422 | AX30: 21.07904642 | AY30: 21.07904642 | AZ30: 95.64020416 | BA30: 66.44235337 | BB30: 865 | BC30: 3046
B31: 26 | C31: ΔΙΧΟΒΑ | D31: 7209-ΔΙΧΟ | E31: 30 | F31: 670 | G31: 0 | H31: 0 | I31: 670 | J31: 429 | K31: 15 | L31: 0 | M31: 0 | N31: 15 | O31: 10 | P31: 1552 | Q31: 1365 | R31: 1822 | S31: 27.92064561 | T31: 19.02853869 | U31: 0.8051010422 | V31: 76.502 | W31: 0 | X31: 48.2 | Y31: 104 | Z31: 122 | AA31: Rural | AB31: 0 | AC31: 0 | AD31: 5 | AE31: 5 | AF31: 0 | AH31: 1.619058776 | AI31: 2512.779221 | AJ31: 187 | AK31: 2.443850267 | AL31: 5.137856796 | AM31: 0.4756555826 | AN31: 960.7792208 | AO31: 1.221925134 | AP31: 0.8795103093 | AQ31: 0 | AR31: 12.06221903 | AT31: 12.53092784 | AU31: 91.46907216 | AV31: 0 | AW31: 0.3950819672 | AX31: 0 | AY31: 12.09887612 | AZ31: 0 | BA31: 36.13778097 | BB31: 182 | BC31: 543
B32: 27 | C32: ΑΓ.ΙΩΑΝΝΗΣ | D32: 7214-ΑΓΙΩ | E32: 31 | F32: 135 | G32: 0 | H32: 0 | I32: 135 | J32: 0 | K32: 1 | L32: 0 | M32: 0 | N32: 1 | O32: 0 | P32: 261 | Q32: 217 | R32: 318 | S32: 0.2918370466 | T32: 0 | U32: 0.2918370466 | V32: 77.508 | W32: 0 | X32: 135 | Y32: 261 | Z32: 318 | AA32: Rural | AB32: 0 | AC32: 0 | AD32: 1 | AE32: 1 | AF32: 0 | AH32: 1.466621182 | AI32: 382.7881285 | AJ32: 44 | AK32: 2.295454545 | AL32: 2.767912011 | AM32: 0.8293090736 | AN32: 121.7881285 | AO32: 1.147727273 | AP32: 0.8314176245 | AQ32: 0 | AR32: 42.87735849 | AT32: 44 | AU32: 217 | AV32: 0 | AW32: 0.4245283019 | AX32: 0 | AY32: 42.87735849 | AZ32: 0 | BA32: 92.12264151 | BB32: 43 | BC32: 93
B33: 28 | C33: ΒΕΛΙΕΣ | D33: 7214-ΒΕΛΣ | E33: 32 | F33: 281 | G33: 85 | H33: 0 | I33: 196 | J33: 0 | K33: 5 | L33: 1 | M33: 0 | N33: 4 | O33: 0 | P33: 542 | Q33: 450 | R33: 662 | S33: 13.60064924 | T33: 13.60064924 | U33: 0.5087221849 | V33: 77.508 | W33: 85 | X33: 49 | Y33: 109 | Z33: 133 | AA33: Rural | AB33: 0 | AC33: 0 | AD33: 4 | AE33: 4 | AF33: 1 | AH33: 1.466621182 | AI33: 794.9086806 | AJ33: 92 | AK33: 2.304347826 | AL33: 2.749007398 | AM33: 0.8382472262 | AN33: 252.9086806 | AO33: 1.152173913 | AP33: 0.8302583026 | AQ33: 27.16283328 | AR33: 15.65857448 | AT33: 18.50184502 | AU33: 90.49815498 | AV33: 0.6390977444 | AW33: 0.3684210526 | AX33: 18.50184502 | AY33: 15.70751602 | AZ33: 57.83716672 | BA33: 33.34142552 | BB33: 82 | BC33: 192
B34: 29 | C34: ΝΙΑΤΑ | D34: 7214-ΝΙΑΤ | E34: 33 | F34: 511 | G34: 186 | H34: 0 | I34: 325 | J34: 325 | K34: 5 | L34: 2 | M34: 0 | N34: 3 | O34: 3 | P34: 874 | Q34: 731 | R34: 986 | S34: 23.00885453 | T34: 23.00885453 | U34: 0.7444832683 | V34: 92.419 | W34: 93 | X34: 0 | Y34: 175 | Z34: 198 | AA34: Suburban | AB34: 0 | AC34: 0 | AD34: 0 | AE34: 0 | AF34: 2 | AH34: 1.48990566 | AI34: 1302.177547 | AJ34: 143 | AK34: 1.783216783 | AL34: 2.994248582 | AM34: 0.5955473417 | AN34: 428.1775472 | AO34: 0.8916083916 | AP34: 0.8363844394 | AQ34: 24.25173358 | AR34: 0 | AT34: 28.63272311 | AU34: 146.3672769 | AV34: 0.4696969697 | AW34: 0 | AX34: 23.9819534 | AY34: 0 | AZ34: 68.74826642 | BA34: 0 | BB34: 48 | BC34: 138
B35: 30 | C35: ΞΙΦΙΑΣ | D35: 7214-ΞΙΦΙ | E35: 34 | F35: 163 | G35: 163 | H35: 0 | I35: 0 | J35: 0 | K35: 2 | L35: 2 | M35: 0 | N35: 0 | O35: 0 | P35: 314 | Q35: 261 | R35: 384 | S35: 0.1151267652 | T35: 0.1151267652 | U35: 0.2060974093 | V35: 77.508 | W35: 81.5 | X35: 0 | Y35: 157 | Z35: 192 | AA35: Rural | AB35: 0 | AC35: 0 | AD35: 0 | AE35: 0 | AF35: 2 | AH35: 1.466621182 | AI35: 460.5190511 | AJ35: 53 | AK35: 2.320754717 | AL35: 2.764510398 | AM35: 0.8394812761 | AN35: 146.5190511 | AO35: 1.160377358 | AP35: 0.8312101911 | AQ35: 26.10546875 | AR35: 0 | AT35: 26.5 | AU35: 130.5 | AV35: 0.4244791667 | AW35: 0 | AX35: 26.10546875 | AY35: 0 | AZ35: 55.39453125 | BA35: 0 | BB35: 53 | BC35: 111
B36: 31 | C36: ΣΥΚΙΑ | D36: 7214-ΣΥΚΙ | E36: 35 | F36: 412 | G36: 304 | H36: 0 | I36: 108 | J36: 0 | K36: 3 | L36: 2 | M36: 0 | N36: 1 | O36: 0 | P36: 736 | Q36: 611 | R36: 900 | S36: 3.336110461 | T36: 3.336110461 | U36: 0.309146114 | V36: 77.508 | W36: 152 | X36: 108 | Y36: 246 | Z36: 300 | AA36: Suburban | AB36: 0 | AC36: 0 | AD36: 1 | AE36: 1 | AF36: 2 | AH36: 1.466621182 | AI36: 1079.43319 | AJ36: 125 | AK36: 2.312 | AL36: 2.747465519 | AM36: 0.8415028265 | AN36: 343.4331899 | AO36: 1.156 | AP36: 0.8301630435 | AQ36: 48.52847826 | AR36: 34.48076087 | AT36: 41.7798913 | AU36: 204.2201087 | AV36: 0.5066666667 | AW36: 0.36 | AX36: 41.7798913 | AY36: 34.77423913 | AZ36: 103.4715217 | BA36: 73.51923913 | BB36: 119 | BC36: 281
B37: 32 | C37: ΒΡΟΝΤΑΜΑΣ | D37: 7216-ΒΡΟΝ | E37: 36 | F37: 196 | G37: 196 | H37: 0 | I37: 0 | J37: 0 | K37: 2 | L37: 2 | M37: 0 | N37: 0 | O37: 0 | P37: 335 | Q37: 280 | R37: 378 | S37: 0.03488761295 | T37: 0.03488761295 | U37: 0.2827961192 | V37: 92.419 | W37: 98 | X37: 0 | Y37: 168 | Z37: 189 | AA37: Suburban | AB37: 0 | AC37: 0 | AD37: 0 | AE37: 0 | AF37: 2 | AH37: 1.48990566 | AI37: 499.1183962 | AJ37: 55 | AK37: 1.781818182 | AL37: 2.98397084 | AM37: 0.5971298907 | AN37: 164.1183962 | AO37: 0.8909090909 | AP37: 0.8358208955 | AQ37: 25.1907131 | AR37: 0 | AT37: 27.58208955 | AU37: 140.4179104 | AV37: 0.5185185185 | AW37: 0 | AX37: 25.48325041 | AY37: 0 | AZ37: 72.8092869 | BA37: 0 | BB37: 51 | BC37: 146
B38: 33 | C38: ΕΛΟΣ | D38: 7216-ΕΛΟΣ | E38: 37 | F38: 305 | G38: 220 | H38: 0 | I38: 85 | J38: 0 | K38: 4 | L38: 3 | M38: 0 | N38: 1 | O38: 0 | P38: 522 | Q38: 437 | R38: 589 | S38: 1.953446509 | T38: 1.953446509 | U38: 0.4448690173 | V38: 92.419 | W38: 73.33333333 | X38: 85 | Y38: 131 | Z38: 148 | AA38: Rural | AB38: 0 | AC38: 0 | AD38: 1 | AE38: 1 | AF38: 3 | AH38: 1.48990566 | AI38: 777.7307547 | AJ38: 85 | AK38: 1.788235294 | AL38: 3.008597114 | AM38: 0.5943751277 | AN38: 255.7307547 | AO38: 0.8941176471 | AP38: 0.837164751 | AQ38: 18.99304477 | AR38: 22.01466553 | AT38: 21.33141762 | AU38: 109.6685824 | AV38: 0.4954954955 | AW38: 0.5743243243 | AX38: 18.90096994 | AY38: 21.33141762 | AZ38: 54.34028856 | BA38: 62.98533447 | BB38: 79 | BC38: 227
B39: 34 | C39: ΑΡΕΟΠΟΛΗ | D39: 7219-ΑΡΕΟ | E39: 38 | F39: 1145 | G39: 391 | H39: 0 | I39: 754 | J39: 646 | K39: 36 | L39: 3 | M39: 0 | N39: 33 | O39: 30 | P39: 2774 | Q39: 2440 | R39: 3256 | S39: 355.4158254 | T39: 355.4158254 | U39: 3.081977591 | V39: 76.502 | W39: 130.3333333 | X39: 36 | Y39: 78 | Z39: 91 | AA39: Suburban | AB39: 0 | AC39: 0 | AD39: 3 | AE39: 2 | AF39: 3 | AH39: 1.619058776 | AI39: 4491.269045 | AJ39: 334 | AK39: 2.443113772 | AL39: 5.141524088 | AM39: 0.4751730675 | AN39: 1717.269045 | AO39: 1.221556886 | AP39: 0.8795962509 | AQ39: 32.06986645 | AR39: 8.858172829 | AT39: 9.39149243 | AU39: 68.60850757 | AV39: 1.432234432 | AW39: 0.3956043956 | AX39: 9.39149243 | AY39: 9.076938923 | AZ39: 98.26346689 | BA39: 27.14182717 | BB39: 328 | BC39: 1191
B40: 35 | C40: ΑΓ.ΝΙΚΟΛΑΟΣ Β | D40: 7235-ΑΓΝ | E40: 39 | F40: 175 | G40: 122 | H40: 0 | I40: 53 | J40: 0 | K40: 2 | L40: 1 | M40: 0 | N40: 1 | O40: 0 | P40: 338 | Q40: 281 | R40: 413 | S40: 0.001659405831 | T40: 0.001659405831 | U40: 0.2060974093 | V40: 77.508 | W40: 122 | X40: 53 | Y40: 169 | Z40: 207 | AA40: Rural | AB40: 0 | AC40: 0 | AD40: 1 | AE40: 1 | AF40: 1 | AH40: 1.466621182 | AI40: 495.7179595 | AJ40: 57 | AK40: 2.315789474 | AL40: 2.766981745 | AM40: 0.8369370263 | AN40: 157.7179595 | AO40: 1.157894737 | AP40: 0.8313609467 | AQ40: 39.19323671 | AR40: 17.02657005 | AT40: 28.5 | AU40: 140.5 | AV40: 0.5893719807 | AW40: 0.2560386473 | AX40: 28.5 | AY40: 16.89855072 | AZ40: 82.80676329 | BA40: 35.97342995 | BB40: 46 | BC40: 119
B41: 36 | C41: ΔΑΙΜΟΝΙΑ | D41: 7235-ΔΑΙΜ | E41: 40 | F41: 166 | G41: 92 | H41: 0 | I41: 74 | J41: 0 | K41: 3 | L41: 1 | M41: 0 | N41: 2 | O41: 0 | P41: 320 | Q41: 266 | R41: 391 | S41: 6.820318038 | T41: 6.820318038 | U41: 0.7298975776 | V41: 77.508 | W41: 92 | X41: 37 | Y41: 107 | Z41: 131 | AA41: Rural | AB41: 0 | AC41: 0 | AD41: 2 | AE41: 2 | AF41: 1 | AH41: 1.466621182 | AI41: 469.3187782 | AJ41: 54 | AK41: 2.314814815 | AL41: 2.765162559 | AM41: 0.8371351648 | AN41: 149.3187782 | AO41: 1.157407407 | AP41: 0.83125 | AQ41: 29.53568702 | AR41: 11.87848282 | AT41: 18.05625 | AU41: 88.94375 | AV41: 0.7022900763 | AW41: 0.2824427481 | AX41: 18.05625 | AY41: 11.80522424 | AZ41: 62.46431298 | BA41: 25.12151718 | BB41: 42 | BC41: 113
B42: 37 | C42: ΕΛΑΦΟΝΗΣΟΣ | D42: 7235-ΕΛΑΦ | E42: 41 | F42: 263 | G42: 263 | H42: 0 | I42: 0 | J42: 0 | K42: 2 | L42: 2 | M42: 0 | N42: 0 | O42: 0 | P42: 664 | Q42: 574 | R42: 803 | S42: 0.08986963979 | T42: 0.08986963979 | U42: 0.2365814969 | V42: 72.946 | W42: 131.5 | X42: 0 | Y42: 332 | Z42: 402 | AA42: Rural | AB42: 0 | AC42: 0 | AD42: 0 | AE42: 0 | AF42: 2 | AH42: 1.382550336 | AI42: 918.0134228 | AJ42: 90 | AK42: 2.544444444 | AL42: 2.822371365 | AM42: 0.9015271613 | AN42: 254.0134228 | AO42: 1.272222222 | AP42: 0.8644578313 | AQ42: 37.6181592 | AR42: 0 | AT42: 45 | AU42: 287 | AV42: 0.3271144279 | AW42: 0 | AX42: 37.45460199 | AY42: 0 | AZ42: 93.8818408 | BA42: 0 | BB42: 75 | BC42: 188
B43: 38 | C43: ΠΟΤΑΜΟΣ ΚΥΘΗΡΩΝ | D43: 7239-ΠΟΚΥ | E43: 42 | F43: 1484 | G43: 263 | H43: 0 | I43: 1221 | J43: 808 | K43: 25 | L43: 2 | M43: 0 | N43: 23 | O43: 18 | P43: 3066 | Q43: 2551 | R43: 4114 | S43: 18.77911388 | T43: 18.77911388 | U43: 3.152303926 | V43: 76.417 | W43: 131.5 | X43: 82.6 | Y43: 123 | Z43: 165 | AA43: Suburban | AB43: 0 | AC43: 0 | AD43: 5 | AE43: 0 | AF43: 2 | AH43: 1.359813084 | AI43: 4169.186916 | AJ43: 515 | AK43: 3.034951456 | AL43: 2.142110516 | AM43: 1.416804331 | AN43: 1103.186916 | AO43: 1.517475728 | AP43: 0.8320287019 | AQ43: 49.93849552 | AR43: 31.36821088 | AT43: 20.66046967 | AU43: 102.3395303 | AV43: 0.796969697 | AW43: 0.5006060606 | AX43: 20.66046967 | AY43: 20.66046967 | AZ43: 81.56150448 | BA43: 51.23178912 | BB43: 517 | BC43: 1342
B44: 39 | C44: ΑΓ.ΝΙΚΟΛΑΟΣ | D44: 7301-ΑΓΝΙ | E44: 43 | F44: 1279 | G44: 247 | H44: 0 | I44: 1032 | J44: 888 | K44: 16 | L44: 2 | M44: 0 | N44: 14 | O44: 11 | P44: 3216 | Q44: 2723 | R44: 3678 | S44: 22.78627861 | T44: 20.98286884 | U44: 1.576130688 | V44: 84.835 | W44: 123.5 | X44: 48 | Y44: 201 | Z44: 230 | AA44: Suburban | AB44: 0 | AC44: 0 | AD44: 3 | AE44: 3 | AF44: 2 | AH44: 1.586664947 | AI44: 5102.71447 | AJ44: 493 | AK44: 1.937119675 | AL44: 3.827007038 | AM44: 0.5061709205 | AN44: 1886.71447 | AO44: 0.9685598377 | AP44: 0.8467039801 | AQ44: 32.11671196 | AR44: 12.4826087 | AT44: 30.8125 | AU44: 170.1875 | AV44: 0.5369565217 | AW44: 0.2086956522 | AX44: 30.8125 | AY44: 12.45652174 | AZ44: 91.38328804 | BA44: 35.5173913 | BB44: 237 | BC44: 681
B45: 40 | C45: ΑΡΤΕΜΗΣΙΑ | D45: 7301-ΑΡΤΕ | E45: 44 | F45: 252 | G45: 0 | H45: 0 | I45: 252 | J45: 136 | K45: 5 | L45: 0 | M45: 0 | N45: 5 | O45: 3 | P45: 159 | Q45: 109 | R45: 307 | S45: 1.499863115 | T45: 1.499863115 | U45: 0.394876155 | V45: 88.141 | W45: 0 | X45: 58 | Y45: 32 | Z45: 62 | AA45: Rural | AB45: 0 | AC45: 0 | AD45: 2 | AE45: 2 | AF45: 0 | AH45: 1.915603448 | AI45: 304.5809483 | AJ45: 50 | AK45: 3.96 | AL45: 2.911618966 | AM45: 1.360068074 | AN45: 145.5809483 | AO45: 1.98 | AP45: 0.6855345912 | AQ45: 0 | AR45: 37.4781903 | AT45: 10.06289308 | AU45: 21.93710692 | AV45: 0 | AW45: 0.935483871 | AX45: 0 | AY45: 10.06289308 | AZ45: 0 | BA45: 20.5218097 | BB45: 51 | BC45: 103
B46: 41 | C46: ΑΣΠΡΟΧΩΜΑ | D46: 7301-ΑΣΠΡ | E46: 45 | F46: 725 | G46: 439 | H46: 0 | I46: 286 | J46: 0 | K46: 4 | L46: 2 | M46: 0 | N46: 2 | O46: 0 | P46: 457 | Q46: 312 | R46: 882 | S46: 4.199570707 | T46: 4.199570707 | U46: 0.160124742 | V46: 88.141 | W46: 219.5 | X46: 143 | Y46: 115 | Z46: 221 | AA46: Rural | AB46: 0 | AC46: 0 | AD46: 2 | AE46: 0 | AF46: 2 | AH46: 1.915603448 | AI46: 875.4307759 | AJ46: 145 | AK46: 3.931034483 | AL46: 2.885729489 | AM46: 1.362232496 | AN46: 418.4307759 | AO46: 1.965517241 | AP46: 0.6827133479 | AQ46: 141.5208521 | AR46: 92.19809499 | AT46: 36.48796499 | AU46: 78.51203501 | AV46: 0.9932126697 | AW46: 0.6470588235 | AX46: 36.48796499 | AY46: 36.48796499 | AZ46: 77.9791479 | BA46: 50.80190501 | BB46: 146 | BC46: 258
B47: 42 | C47: ΘΑΛΑΜΕΣ | D47: 7301-ΘΑΛΑ | E47: 46 | F47: 311 | G47: 57 | H47: 57 | I47: 254 | J47: 254 | K47: 5 | L47: 1 | M47: 1 | N47: 4 | O47: 4 | P47: 740 | Q47: 627 | R47: 846 | S47: 6.396494208 | T47: 6.396494208 | U47: 0.6073059858 | V47: 84.835 | W47: 0 | X47: 0 | Y47: 148 | Z47: 170 | AA47: Rural | AB47: 0 | AC47: 0 | AD47: 0 | AE47: 0 | AF47: 0 | AH47: 1.586664947 | AI47: 1174.132061 | AJ47: 113 | AK47: 1.938053097 | AL47: 3.841876645 | AM47: 0.5044547955 | AN47: 434.1320609 | AO47: 0.9690265487 | AP47: 0.8472972973 | AQ47: 0 | AR47: 0 | AT47: 22.6 | AU47: 125.4 | AV47: 0 | AW47: 0 | AX47: 0 | AY47: 0 | AZ47: 0 | BA47: 0 | BB47: 0 | BC47: 0
B48: 43 | C48: ΚΑΛΑΜΑΤΑ | D48: 7301-ΚΛΜ | E48: 47 | F48: 29413 | G48: 4666 | H48: 0 | I48: 24747 | J48: 797 | K48: 207 | L48: 31 | M48: 0 | N48: 176 | O48: 16 | P48: 18682 | Q48: 12765 | R48: 36099 | S48: 474.1328399 | T48: 11.84302417 | U48: 9.008897789 | V48: 88.134 | W48: 150.516129 | X48: 149.6875 | Y48: 91 | Z48: 175 | AA48: Urban | AB48: 3 | AC48: 4 | AD48: 153 | AE48: 17 | AF48: 31 | AH48: 1.91488008 | AI48: 35773.78965 | AJ48: 5917 | AK48: 3.943552476 | AL48: 2.888590443 | AM48: 1.365216895 | AN48: 17091.78965 | AO48: 1.971776238 | AP48: 0.6832780216 | AQ48: 97.03706034 | AR48: 96.50284699 | AT48: 28.82170003 | AU48: 62.17829997 | AV48: 0.8600921659 | AW48: 0.8553571429 | AX48: 28.82170003 | AY48: 28.82170003 | AZ48: 53.47906869 | BA48: 53.18465301 | BB48: 5967 | BC48: 11019 | BK48: 46.9 | BL48: 20
B49: 44 | C49: ΕΛΑΙΑ | D49: 7304-ΕΛΑΙ | E49: 48 | F49: 172 | G49: 80 | H49: 0 | I49: 92 | J49: 92 | K49: 4 | L49: 1 | M49: 0 | N49: 3 | O49: 3 | P49: 269 | Q49: 227 | R49: 331 | S49: 14.92724031 | T49: 14.92724031 | U49: 0.295310902 | V49: 87.434 | W49: 80 | X49: 0 | Y49: 68 | Z49: 83 | AA49: Rural | AB49: 0 | AC49: 0 | AD49: 0 | AE49: 0 | AF49: 1 | AH49: 1.495360853 | AI49: 402.2520696 | AJ49: 42 | AK49: 2.476190476 | AL49: 3.172668323 | AM49: 0.780475683 | AN49: 133.2520696 | AO49: 1.238095238 | AP49: 0.843866171 | AQ49: 24.69118108 | AR49: 0 | AT49: 10.61710037 | AU49: 57.38289963 | AV49: 0.9638554217 | AW49: 0 | AX49: 10.61710037 | AY49: 0 | AZ49: 55.30881892 | BA49: 0 | BB49: 11 | BC49: 56
B50: 45 | C50: ΣΙΔΗΡΟΚΑΣΤΡΟ | D50: 7304-ΣΙΔΗ | E50: 49 | F50: 256 | G50: 94 | H50: 0 | I50: 162 | J50: 140 | K50: 7 | L50: 1 | M50: 0 | N50: 6 | O50: 5 | P50: 400 | Q50: 338 | R50: 492 | S50: 38.51880072 | T50: 38.51880072 | U50: 0.4151064767 | V50: 87.434 | W50: 94 | X50: 22 | Y50: 58 | Z50: 71 | AA50: Suburban | AB50: 0 | AC50: 0 | AD50: 1 | AE50: 1 | AF50: 1 | AH50: 1.495360853 | AI50: 598.1443414 | AJ50: 62 | AK50: 2.483870968 | AL50: 3.195876473 | AM50: 0.7772111934 | AN50: 198.1443414 | AO50: 1.241935484 | AP50: 0.845 | AQ50: 29.11352113 | AR50: 6.813802817 | AT50: 8.99 | AU50: 49.01 | AV50: 1.323943662 | AW50: 0.3098591549 | AX50: 8.99 | AY50: 6.91915493 | AZ50: 64.88647887 | BA50: 15.18619718 | BB50: 51 | BC50: 157
B51: 46 | C51: ΚΟΠΑΝΑΚΙ | D51: 7305-ΚΟΠΑ | E51: 50 | F51: 720 | G51: 380 | H51: 0 | I51: 324 | J51: 236 | K51: 21 | L51: 6 | M51: 0 | N51: 14 | O51: 11 | P51: 1326 | Q51: 1138 | R51: 1579 | S51: 93.30279589 | T51: 93.30279589 | U51: 1.782424009 | V51: 85.519 | W51: 63.33333333 | X51: 29.33333333 | Y51: 64 | Z51: 76 | AA51: Suburban | AB51: 0 | AC51: 0 | AD51: 3 | AE51: 3 | AF51: 6 | AH51: 1.480157314 | AI51: 1962.688599 | AJ51: 188 | AK51: 2.345744681 | AL51: 3.386641484 | AM51: 0.6926462964 | AN51: 636.6885989 | AO51: 1.17287234 | AP51: 0.8582202112 | AQ51: 17.56158874 | AR51: 8.133788468 | AT51: 9.073906486 | AU51: 54.92609351 | AV51: 0.8333333333 | AW51: 0.3859649123 | AX51: 9.073906486 | AY51: 8.215289355 | AZ51: 45.7717446 | BA51: 21.19954487 | BB51: 170 | BC51: 572
B52: 47 | C52: ΜΑΡΑΘΟΠΟΛΗ | D52: 7308-ΜΑΡΑ | E52: 51 | F52: 291 | G52: 209 | H52: 0 | I52: 82 | J52: 0 | K52: 4 | L52: 3 | M52: 0 | N52: 1 | O52: 0 | P52: 454 | Q52: 383 | R52: 559 | S52: 0.333671128 | T52: 0.333671128 | U52: 0.3231636853 | V52: 87.434 | W52: 69.66666667 | X52: 82 | Y52: 114 | Z52: 140 | AA52: Suburban | AB52: 0 | AC52: 0 | AD52: 1 | AE52: 1 | AF52: 3 | AH52: 1.495360853 | AI52: 678.8938274 | AJ52: 71 | AK52: 2.478873239 | AL52: 3.167518696 | AM52: 0.78259151 | AN52: 224.8938274 | AO52: 1.23943662 | AP52: 0.8436123348 | AQ52: 21.80974407 | AR52: 25.67079924 | AT52: 17.82819383 | AU52: 96.17180617 | AV52: 0.4976190476 | AW52: 0.5857142857 | AX52: 17.82819383 | AY52: 17.82819383 | AZ52: 47.85692259 | BA52: 56.32920076 | BB52: 72 | BC52: 200
B53: 48 | C53: ΠΥΡΓΟΣ | D53: 7308-ΠΡΓΟ | E53: 52 | F53: 378 | G53: 259 | H53: 0 | I53: 119 | J53: 0 | K53: 5 | L53: 3 | M53: 0 | N53: 2 | O53: 0 | P53: 589 | Q53: 497 | R53: 726 | S53: 3.675040968 | T53: 3.675040968 | U53: 0.4759461317 | V53: 87.434 | W53: 86.33333333 | X53: 59.5 | Y53: 118 | Z53: 146 | AA53: Rural | AB53: 0 | AC53: 0 | AD53: 2 | AE53: 2 | AF53: 3 | AH53: 1.495360853 | AI53: 880.7675426 | AJ53: 92 | AK53: 2.489130435 | AL53: 3.171386333 | AM53: 0.7848714011 | AN53: 291.7675426 | AO53: 1.244565217 | AP53: 0.843803056 | AQ53: 27.45591553 | AR53: 18.92232016 | AT53: 18.43123939 | AU53: 99.56876061 | AV53: 0.5913242009 | AW53: 0.4075342466 | AX53: 18.43123939 | AY53: 18.43123939 | AZ53: 58.8774178 | BA53: 40.57767984 | BB53: 93 | BC53: 258
B54: 49 | C54: ΖΕΡΜΠΙΣΙΑ | D54: 7312-ΖΕΡΜ | E54: 53 | F54: 282 | G54: 0 | H54: 0 | I54: 282 | J54: 179 | K54: 6 | L54: 0 | M54: 0 | N54: 6 | O54: 5 | P54: 508 | Q54: 433 | R54: 575 | S54: 37.51119885 | T54: 37.51119885 | U54: 0.5382344909 | V54: 84.155 | W54: 0 | X54: 103 | Y54: 85 | Z54: 96 | AA54: Rural | AB54: 0 | AC54: 0 | AD54: 1 | AE54: 1 | AF54: 0 | AH54: 1.457833645 | AI54: 740.5794917 | AJ54: 75 | AK54: 1.893333333 | AL54: 3.101059889 | AM54: 0.6105439433 | AN54: 232.5794917 | AO54: 0.9466666667 | AP54: 0.8523622047 | AQ54: 0 | AR54: 25.26634268 | AT54: 12.5492126 | AU54: 72.4507874 | AV54: 0 | AW54: 1.072916667 | AX54: 0 | AY54: 12.5492126 | AZ54: 0 | BA54: 77.73365732 | BB54: 76 | BC54: 467
B55: 50 | C55: ΠΟΛΙΧΝΗ | D55: 7312-ΠΟΛΙ | E55: 54 | F55: 215 | G55: 0 | H55: 0 | I55: 215 | J55: 215 | K55: 4 | L55: 0 | M55: 0 | N55: 4 | O55: 4 | P55: 528 | Q55: 475 | R55: 559 | S55: 4.865202938 | T55: 4.865202938 | U55: 0.9417452653 | V55: 79.487 | W55: 0 | X55: 0 | Y55: 132 | Z55: 140 | AA55: Rural | AB55: 0 | AC55: 0 | AD55: 0 | AE55: 0 | AF55: 0 | AH55: 1.432211358 | AI55: 756.2075968 | AJ55: 53 | AK55: 1.58490566 | AL55: 4.305803714 | AM55: 0.3680859058 | AN55: 228.2075968 | AO55: 0.7924528302 | AP55: 0.8996212121 | AQ55: 0 | AR55: 0 | AT55: 13.25 | AU55: 118.75 | AV55: 0 | AW55: 0 | AX55: 0 | AY55: 0 | AZ55: 0 | BA55: 0 | BB55: 0 | BC55: 0
B56: 51 | C56: ΑΝΔΡΟΥΣΑ | D56: 7313-ΑΝΔΡ | E56: 55 | F56: 775 | G56: 177 | H56: 0 | I56: 598 | J56: 398 | K56: 11 | L56: 2 | M56: 0 | N56: 9 | O56: 7 | P56: 1393 | Q56: 1187 | R56: 1579 | S56: 19.4542883 | T56: 15.8359245 | U56: 1.23924998 | V56: 84.155 | W56: 88.5 | X56: 100 | Y56: 127 | Z56: 144 | AA56: Suburban | AB56: 0 | AC56: 0 | AD56: 2 | AE56: 2 | AF56: 2 | AH56: 1.457833645 | AI56: 2030.762268 | AJ56: 206 | AK56: 1.902912621 | AL56: 3.095933338 | AM56: 0.6146490941 | AN56: 637.7622676 | AO56: 0.9514563107 | AP56: 0.8521177315 | AQ56: 21.99043581 | AR56: 24.84795007 | AT56: 18.7810481 | AU56: 108.2189519 | AV56: 0.6145833333 | AW56: 0.6944444444 | AX56: 18.7810481 | AY56: 18.7810481 | AZ56: 66.50956419 | BA56: 75.15204993 | BB56: 207 | BC56: 810
B57: 52 | C57: ΒΕΛΙΚΑ | D57: 7313-ΒΕΛΙ | E57: 56 | F57: 279 | G57: 53 | H57: 0 | I57: 226 | J57: 82 | K57: 5 | L57: 1 | M57: 0 | N57: 4 | O57: 1 | P57: 635 | Q57: 541 | R57: 720 | S57: 12.57124603 | T57: 12.57124603 | U57: 0.772271486 | V57: 84.155 | W57: 53 | X57: 48 | Y57: 127 | Z57: 144 | AA57: Rural | AB57: 0 | AC57: 0 | AD57: 3 | AE57: 3 | AF57: 1 | AH57: 1.457833645 | AI57: 925.7243646 | AJ57: 94 | AK57: 1.904255319 | AL57: 3.09281239 | AM57: 0.6157034696 | AN57: 290.7243646 | AO57: 0.9521276596 | AP57: 0.8519685039 | AQ57: 13.17638889 | AR57: 11.93333333 | AT57: 18.8 | AU57: 108.2 | AV57: 0.3680555556 | AW57: 0.3333333333 | AX57: 13.17638889 | AY57: 11.93333333 | AZ57: 39.82361111 | BA57: 36.06666667 | BB57: 61 | BC57: 185
B58: 53 | C58: ΒΛΑΧΟΠΟΥΛΟ | D58: 7313-ΒΛΧΠ | E58: 57 | F58: 486 | G58: 148 | H58: 0 | I58: 338 | J58: 257 | K58: 11 | L58: 2 | M58: 0 | N58: 9 | O58: 8 | P58: 935 | Q58: 809 | R58: 1010 | S58: 22.60953743 | T58: 22.60953743 | U58: 1.287755685 | V58: 85.852 | W58: 74 | X58: 81 | Y58: 85 | Z58: 92 | AA58: Rural | AB58: 0 | AC58: 0 | AD58: 1 | AE58: 1 | AF58: 2 | AH58: 1.561932741 | AI58: 1460.407113 | AJ58: 126 | AK58: 1.595238095 | AL58: 4.169897719 | AM58: 0.3825604853 | AN58: 525.4071126 | AO58: 0.7976190476 | AP58: 0.8652406417 | AQ58: 14.84387352 | AR58: 16.24802372 | AT58: 11.45454545 | AU58: 73.54545455 | AV58: 0.8043478261 | AW58: 0.8804347826 | AX58: 11.45454545 | AY58: 11.45454545 | AZ58: 59.15612648 | BA58: 64.75197628 | BB58: 126 | BC58: 702
B59: 54 | C59: ΚΡΕΜΜΥΔΙΑ | D59: 7313-ΚΡΕΜ | E59: 58 | F59: 171 | G59: 94 | H59: 0 | I59: 77 | J59: 0 | K59: 2 | L59: 1 | M59: 0 | N59: 1 | O59: 0 | P59: 333 | Q59: 289 | R59: 357 | S59: 0.2556809177 | T59: 0.2556809177 | U59: 0.4013989512 | V59: 86.069 | W59: 94 | X59: 77 | Y59: 167 | Z59: 179 | AA59: Rural | AB59: 0 | AC59: 0 | AD59: 1 | AE59: 1 | AF59: 1 | AH59: 1.575275551 | AI59: 524.5667585 | AJ59: 44 | AK59: 1.545454545 | AL59: 4.353789966 | AM59: 0.3549676391 | AN59: 191.5667585 | AO59: 0.7727272727 | AP59: 0.8678678679 | AQ59: 17.88944252 | AR59: 14.6541178 | AT59: 22.06606607 | AU59: 144.9339339 | AV59: 0.5251396648 | AW59: 0.4301675978 | AX59: 17.90836647 | AY59: 14.66961934 | AZ59: 76.11055748 | BA59: 62.3458822 | BB59: 33 | BC59: 139
B60: 55 | C60: ΠΕΤΑΛΙΔΙ | D60: 7313-ΠΕΤΛ | E60: 59 | F60: 851 | G60: 526 | H60: 0 | I60: 325 | J60: 99 | K60: 11 | L60: 5 | M60: 0 | N60: 6 | O60: 2 | P60: 1529 | Q60: 1303 | R60: 1733 | S60: 12.36166544 | T60: 10.77030289 | U60: 1.260385541 | V60: 84.155 | W60: 105.2 | X60: 56.5 | Y60: 139 | Z60: 158 | AA60: Suburban | AB60: 0 | AC60: 0 | AD60: 4 | AE60: 1 | AF60: 5 | AH60: 1.457833645 | AI60: 2229.027643 | AJ60: 226 | AK60: 1.902654867 | AL60: 3.097467448 | AM60: 0.6142614568 | AN60: 700.0276433 | AO60: 0.9513274336 | AP60: 0.8521909745 | AQ60: 26.33026467 | AR60: 14.14125432 | AT60: 20.54545455 | AU60: 118.4545455 | AV60: 0.6658227848 | AW60: 0.3575949367 | AX60: 20.54545455 | AY60: 13.97871116 | AZ60: 78.86973533 | BA60: 42.35874568 | BB60: 187 | BC60: 649
B61: 56 | C61: ΧΑΤΖΗΣ | D61: 7313-ΧΑΤΖ | E61: 60 | F61: 291 | G61: 135 | H61: 0 | I61: 156 | J61: 58 | K61: 6 | L61: 2 | M61: 0 | N61: 4 | O61: 2 | P61: 523 | Q61: 446 | R61: 593 | S61: 15.97376829 | T61: 15.97376829 | U61: 0.807557285 | V61: 84.155 | W61: 67.5 | X61: 49 | Y61: 88 | Z61: 99 | AA61: Rural | AB61: 0 | AC61: 0 | AD61: 2 | AE61: 2 | AF61: 2 | AH61: 1.457833645 | AI61: 762.4469964 | AJ61: 77 | AK61: 1.909090909 | AL61: 3.109701252 | AM61: 0.6139145708 | AN61: 239.4469964 | AO61: 0.9545454545 | AP61: 0.8527724665 | AQ61: 16.33365201 | AR61: 11.85702146 | AT61: 12.95602294 | AU61: 75.04397706 | AV61: 0.6818181818 | AW61: 0.4949494949 | AX61: 12.95602294 | AY61: 12.24219248 | AZ61: 51.16634799 | BA61: 37.14297854 | BB61: 75 | BC61: 251
B62: 57 | C62: ΚΑΛΛΙΘΕΑΣ | D62: 7315-ΚΑΛΘ | E62: 61 | F62: 251 | G62: 145 | H62: 0 | I62: 106 | J62: 0 | K62: 4 | L62: 2 | M62: 0 | N62: 2 | O62: 0 | P62: 487 | Q62: 422 | R62: 523 | S62: 7.245879807 | T62: 7.245879807 | U62: 0.5291135288 | V62: 86.069 | W62: 72.5 | X62: 53 | Y62: 122 | Z62: 131 | AA62: Rural | AB62: 0 | AC62: 0 | AD62: 2 | AE62: 2 | AF62: 2 | AH62: 1.575275551 | AI62: 767.1591934 | AJ62: 65 | AK62: 1.553846154 | AL62: 4.310141437 | AM62: 0.3605093189 | AN62: 280.1591934 | AO62: 0.7769230769 | AP62: 0.8665297741 | AQ62: 13.99270342 | AR62: 10.22914871 | AT62: 16.28336756 | AU62: 105.7166324 | AV62: 0.5534351145 | AW62: 0.4045801527 | AX62: 14.00293117 | AY62: 10.23662555 | AZ62: 58.50729658 | BA62: 42.77085129 | BB62: 49 | BC62: 203
B63: 58 | C63: ΠΥΛΟΥ | D63: 7315-ΠΥΛΟ | E63: 62 | F63: 1456 | G63: 1027 | H63: 0 | I63: 429 | J63: 0 | K63: 16 | L63: 10 | M63: 0 | N63: 6 | O63: 0 | P63: 2825 | Q63: 2449 | R63: 3034 | S63: 20.48715512 | T63: 5.217533961 | U63: 1.123409375 | V63: 86.069 | W63: 102.7 | X63: 71.5 | Y63: 177 | Z63: 190 | AA63: Suburban | AB63: 0 | AC63: 0 | AD63: 6 | AE63: 2 | AF63: 10 | AH63: 1.575275551 | AI63: 4450.153432 | AJ63: 376 | AK63: 1.555851064 | AL63: 4.322216574 | AM63: 0.3599660122 | AN63: 1625.153432 | AO63: 0.7779255319 | AP63: 0.8669026549 | AQ63: 19.76068542 | AR63: 13.75743922 | AT63: 23.55823009 | AU63: 153.4417699 | AV63: 0.5405263158 | AW63: 0.3763157895 | AX63: 19.81196367 | AY63: 13.79313926 | AZ63: 82.93931458 | BA63: 57.74256078 | BB63: 281 | BC63: 1176
B64: 59 | C64: ΑΓΡΙΛΙ | D64: 7317-ΑΓΡΙ | E64: 63 | F64: 220 | G64: 129 | H64: 0 | I64: 91 | J64: 0 | K64: 5 | L64: 2 | M64: 0 | N64: 3 | O64: 0 | P64: 457 | Q64: 386 | R64: 563 | S64: 22.55213024 | T64: 22.55213024 | U64: 0.3655714701 | V64: 87.434 | W64: 64.5 | X64: 30.33333333 | Y64: 92 | Z64: 113 | AA64: Rural | AB64: 0 | AC64: 0 | AD64: 3 | AE64: 3 | AF64: 2 | AH64: 1.495360853 | AI64: 683.37991 | AJ64: 71 | AK64: 2.492957746 | AL64: 3.188449437 | AM64: 0.7818715009 | AN64: 226.37991 | AO64: 1.246478873 | AP64: 0.8446389497 | AQ64: 20.14524312 | AR64: 9.473990305 | AT64: 14.29321663 | AU64: 77.70678337 | AV64: 0.5707964602 | AW64: 0.2684365782 | AX64: 14.29321663 | AY64: 9.565035534 | AZ64: 44.35475688 | BA64: 20.85934303 | BB64: 58 | BC64: 152
B65: 60 | C65: ΒΑΣΙΛΙΤΣΙ | D65: 7327-ΒΑΣΙ | E65: 64 | F65: 288 | G65: 288 | H65: 0 | I65: 0 | J65: 0 | K65: 3 | L65: 3 | M65: 0 | N65: 0 | O65: 0 | P65: 560 | Q65: 485 | R65: 601 | S65: 0.04770624965 | T65: 0.04770624965 | U65: 0.1854932188 | V65: 86.069 | W65: 96 | X65: 0 | Y65: 187 | Z65: 201 | AA65: Suburban | AB65: 0 | AC65: 0 | AD65: 0 | AE65: 0 | AF65: 3 | AH65: 1.575275551 | AI65: 882.1543086 | AJ65: 75 | AK65: 1.546666667 | AL65: 4.295390782 | AM65: 0.3600758919 | AN65: 322.1543086 | AO65: 0.7733333333 | AP65: 0.8660714286 | AQ65: 18.64818763 | AR65: 0 | AT65: 25.04464286 | AU65: 161.9553571 | AV65: 0.4776119403 | AW65: 0 | AX65: 18.50063966 | AY65: 0 | AZ65: 77.35181237 | BA65: 0 | BB65: 56 | BC65: 233
B66: 61 | C66: ΚΟΡΩΝΗ | D66: 7327-ΚΟΡΩ | E66: 65 | F66: 713 | G66: 265 | H66: 0 | I66: 448 | J66: 0 | K66: 6 | L66: 2 | M66: 0 | N66: 4 | O66: 0 | P66: 1384 | Q66: 1200 | R66: 1486 | S66: 1.943169435 | T66: 1.943169435 | U66: 0.2843225528 | V66: 86.069 | W66: 132.5 | X66: 112 | Y66: 231 | Z66: 248 | AA66: Rural | AB66: 0 | AC66: 0 | AD66: 4 | AE66: 1 | AF66: 2 | AH66: 1.575275551 | AI66: 2180.181363 | AJ66: 184 | AK66: 1.554347826 | AL66: 4.327072624 | AM66: 0.359214638 | AN66: 796.1813627 | AO66: 0.777173913 | AP66: 0.8670520231 | AQ66: 25.49074678 | AR66: 21.54689539 | AT66: 30.71098266 | AU66: 200.2890173 | AV66: 0.5342741935 | AW66: 0.4516129032 | AX66: 25.50387202 | AY66: 21.55798993 | AZ66: 107.0092532 | BA66: 90.45310461 | BB66: 138 | BC66: 576
B67: 62 | C67: ΑΓΓΕΛΟΚΑΣΤΡΟ | D67: 7401-ΑΓΓ | E67: 66 | F67: 85 | G67: 0 | H67: 0 | I67: 85 | J67: 0 | K67: 1 | L67: 0 | M67: 0 | N67: 1 | O67: 0 | P67: 75 | Q67: 55 | R67: 119 | S67: 0.1311087121 | T67: 0 | U67: 0.1311087121 | V67: 93.908 | W67: 0 | X67: 85 | Y67: 75 | Z67: 119 | AA67: Suburban | AB67: 0 | AC67: 0 | AD67: 1 | AE67: 1 | AF67: 0 | AH67: 1.598910841 | AI67: 119.9183131 | AJ67: 20 | AK67: 3.2 | AL67: 2.245915653 | AM67: 1.424808628 | AN67: 44.91831307 | AO67: 1.6 | AP67: 0.7333333333 | AQ67: 0 | AR67: 45.71428571 | AT67: 20 | AU67: 55 | AV67: 0 | AW67: 0.7142857143 | AX67: 0 | AY67: 20 | AZ67: 0 | BA67: 39.28571429 | BB67: 20 | BC67: 40
B68: 63 | C68: ΑΜΑΡΥΛΛΙΔΑ | D68: 7401-ΑΜΡ | E68: 67 | F68: 188 | G68: 0 | H68: 0 | I68: 188 | J68: 188 | K68: 1 | L68: 0 | M68: 0 | N68: 1 | O68: 1 | P68: 165 | Q68: 120 | R68: 264 | S68: 0.05831754199 | T68: 0 | U68: 0.05831754199 | V68: 93.908 | W68: 0 | X68: 0 | Y68: 165 | Z68: 264 | AA68: Rural | AB68: 0 | AC68: 0 | AD68: 0 | AE68: 0 | AF68: 0 | AH68: 1.598910841 | AI68: 263.8202888 | AJ68: 45 | AK68: 3.2 | AL68: 2.196006417 | AM68: 1.457190642 | AN68: 98.82028875 | AO68: 1.6 | AP68: 0.7272727273 | AQ68: 0 | AR68: 0 | AT68: 45 | AU68: 120 | AV68: 0 | AW68: 0 | AX68: 0 | AY68: 0 | AZ68: 0 | BA68: 0 | BB68: 0 | BC68: 0
B69: 64 | C69: ΑΡΧΑΙΑ ΚΟΡΙΝΘΟΣ | D69: 7401-ΑΡΧ | E69: 68 | F69: 878 | G69: 612 | H69: 0 | I69: 266 | J69: 0 | K69: 5 | L69: 4 | M69: 0 | N69: 1 | O69: 0 | P69: 767 | Q69: 559 | R69: 1229 | S69: 1.867305407 | T69: 1.867305407 | U69: 0.2915877099 | V69: 93.908 | W69: 153 | X69: 266 | Y69: 154 | Z69: 246 | AA69: Suburban | AB69: 0 | AC69: 0 | AD69: 1 | AE69: 0 | AF69: 4 | AH69: 1.598910841 | AI69: 1226.364615 | AJ69: 208 | AK69: 3.221153846 | AL69: 2.208483726 | AM69: 1.458536374 | AN69: 459.364615 | AO69: 1.610576923 | AP69: 0.7288135593 | AQ69: 83.19388177 | AR69: 144.6377291 | AT69: 41.76271186 | AU69: 112.2372881 | AV69: 0.6219512195 | AW69: 1.081300813 | AX69: 41.76271186 | AY69: 41.76271186 | AZ69: 69.80611823 | BA69: 121.3622709 | BB69: 209 | BC69: 401
B70: 65 | C70: ΚΟΡΙΝΘΟΣ | D70: 7401-ΚΟΡ | E70: 69 | F70: 15281 | G70: 3447 | H70: 0 | I70: 11834 | J70: 0 | K70: 129 | L70: 27 | M70: 0 | N70: 102 | O70: 0 | P70: 9790 | Q70: 7155 | R70: 15732 | S70: 20.45320557 | T70: 3.820237485 | U70: 4.978148558 | V70: 93.763 | W70: 127.6666667 | X70: 116.0196078 | Y70: =ROUNDUP(IFERROR(P70/K70,0),0) -> 76 | Z70: =ROUNDUP(IFERROR(R70/K70,0),0) -> 122 | AA70: Urban | AB70: 0 | AC70: 0 | AD70: 102 | AE70: 11 | AF70: =L70-M70 -> 27 | AH70: 1.597254031 | AI70: 15637.11696 | AJ70: 2635 | AK70: 3.255028463 | AL70: 2.219019721 | AM70: 1.466876762 | AN70: 5847.116964 | AO70: =IF(AM70>2,AL70,IF(AM70<=1, AK70/2,AK70/ROUNDUP(AM70,0))) -> 1.627514231 | AP70: 0.7308478039 | AQ70: 69.54230089 | AR70: 63.19794108 | AT70: 20.45556691 | AU70: 55.54443309 | AV70: =W70/Z70 -> 1.046448087 | AW70: =X70/Z70 -> 0.9509803922 | AX70: 20.45556691 | AY70: 20.45556691 | AZ70: =AV70*AU70 -> 58.12436578 | BA70: =AW70*AU70 -> 52.82166677 | BB70: 2639 | BC70: 6958 | BK70: 56.9 | BL70: 16
B71: 66 | C71: ΠΕΡΙΓΙΑΛΙ | D71: 7401-ΠΕΡ | E71: 70 | F71: 3118 | G71: 531 | H71: 0 | I71: 2587 | J71: 0 | K71: 23 | L71: 5 | M71: 0 | N71: 18 | O71: 0 | P71: 2722 | Q71: 1982 | R71: 4365 | S71: 4.01023802 | T71: 3.023215688 | U71: 1.742611982 | V71: 93.908 | W71: =IFERROR((G71-H71)/(L71-M71),0) -> 106.2 | X71: =IFERROR((I71-J71)/(N71-O71),0) -> 143.7222222 | Y71: 119 | Z71: 190 | AA71: Suburban | AB71: 0 | AC71: 0 | AD71: =N71-O71-AB71-AC71 -> 18 | AE71: 0 | AF71: 5 | AH71: 1.598910841 | AI71: =P71*AH71 -> 4352.235309 | AJ71: =P71-Q71 -> 740 | AK71: =(R71-Q71)/AJ71 -> 3.22027027 | AL71: =(AI71-Q71)/AJ71-1 -> 2.203020688 | AM71: =AK71/AL71 -> 1.46175217 | AN71: =AJ71*AL71 -> 1630.235309 | AO71: 1.610135135 | AP71: =Q71/P71 -> 0.7281410727 | AQ71: =W71-AZ71 -> 57.76788816 | AR71: =X71-BA71 -> 78.17824162 | AT71: 32.35121234 | AU71: 86.64878766 | AV71: 0.5589473684 | AW71: 0.7564327485 | AX71: =IF(AK71*AV71<1, AT71*AK71*AV71,AT71) -> 32.35121234 | AY71: =IF(AK71*AW71<1, AT71*AK71*AW71,AT71) -> 32.35121234 | AZ71: 48.43211184 | BA71: 65.5439806 | BB71: =ROUNDUP(AX71*L71+AY71*N71,0) -> 745 | BC71: =ROUNDUP(AZ71*L71+BA71*N71,0) -> 1422
B72: 67 | C72: ΚΡΥΟΝΕΡΙ ΚΟΡ | D72: 7404-ΚΡΥΟ | E72: 71 | F72: 375 | G72: 212 | H72: 0 | I72: 163 | J72: 0 | K72: 4 | L72: 2 | M72: 0 | N72: 2 | O72: 0 | P72: 475 | Q72: 387 | R72: 655 | S72: 5.076684535 | T72: 5.076684535 | U72: 0.7204218039 | V72: 91.693 | W72: 106 | X72: 81.5 | Y72: 119 | Z72: 164 | AA72: Suburban | AB72: 0 | AC72: 0 | AD72: 2 | AE72: 0 | AF72: 2 | AH72: 1.504888951 | AI72: 714.8222517 | AJ72: 88 | AK72: 3.045454545 | AL72: 2.72525286 | AM72: 1.117494303 | AN72: 239.8222517 | AO72: 1.522727273 | AP72: 0.8147368421 | AQ72: 43.33481386 | AR72: 33.3187484 | AT72: 22.04631579 | AU72: 96.95368421 | AV72: 0.6463414634 | AW72: 0.4969512195 | AX72: 22.04631579 | AY72: 22.04631579 | AZ72: 62.66518614 | BA72: 48.1812516 | BB72: 89 | BC72: 222
B73: 68 | C73: ZEMENO | D73: 7405-ZEME | E73: 72 | F73: 68 | G73: 68 | H73: 68 | I73: 0 | J73: 0 | K73: 1 | L73: 1 | M73: 1 | N73: 0 | O73: 0 | P73: 91 | Q73: 72 | R73: 138 | S73: 0.08326664985 | T73: 0 | U73: 0.08326664985 | V73: 86.307 | W73: 0 | X73: 0 | Y73: 91 | Z73: 138 | AA73: Rural | AB73: 0 | AC73: 0 | AD73: 0 | AE73: 0 | AF73: 0 | AH73: 1.617759432 | AI73: 147.2161083 | AJ73: 19 | AK73: 3.473684211 | AL73: 2.958742544 | AM73: 1.174040714 | AN73: 56.21610834 | AO73: 1.736842105 | AP73: 0.7912087912 | AQ73: 0 | AR73: 0 | AT73: 19 | AU73: 72 | AV73: 0 | AW73: 0 | AX73: 0 | AY73: 0 | AZ73: 0 | BA73: 0 | BB73: 0 | BC73: 0
B74: 69 | C74: ΠΑΝΑΡΙΤΙ | D74: 7405-ΠΑΝΑ | E74: 73 | F74: 120 | G74: 0 | H74: 0 | I74: 120 | J74: 120 | K74: 2 | L74: 0 | M74: 0 | N74: 2 | O74: 2 | P74: 161 | Q74: 127 | R74: 244 | S74: 17.79329794 | T74: 17.79329794 | U74: 0.1665332997 | V74: 86.307 | W74: 0 | X74: 0 | Y74: 81 | Z74: 122 | AA74: Suburban | AB74: 0 | AC74: 0 | AD74: 0 | AE74: 0 | AF74: 0 | AH74: 1.617759432 | AI74: 260.4592686 | AJ74: 34 | AK74: 3.441176471 | AL74: 2.925272606 | AM74: 1.176360953 | AN74: 99.45926861 | AO74: 1.720588235 | AP74: 0.7888198758 | AQ74: 0 | AR74: 0 | AT74: 17.10559006 | AU74: 63.89440994 | AV74: 0 | AW74: 0 | AX74: 0 | AY74: 0 | AZ74: 0 | BA74: 0 | BB74: 0 | BC74: 0
B75: =B74+1 -> 70 | C75: ΡΙΖΑ | D75: 7405-ΡΙΖΑ | E75: 74 | F75: 103 | G75: 48 | H75: 0 | I75: 55 | J75: 55 | K75: 3 | L75: 1 | M75: 0 | N75: 2 | O75: 2 | P75: 138 | Q75: 108 | R75: 209 | S75: 2.225592606 | T75: 2.225592606 | U75: 0.2497999496 | V75: 86.307 | W75: 48 | X75: 0 | Y75: 46 | Z75: 70 | AA75: Rural | AB75: 0 | AC75: 0 | AD75: 0 | AE75: 0 | AF75: 1 | AH75: 1.617759432 | AI75: 223.2508017 | AJ75: 30 | AK75: 3.366666667 | AL75: 2.841693389 | AM75: 1.184739592 | AN75: 85.25080166 | AO75: 1.683333333 | AP75: 0.7826086957 | AQ75: 23.31428571 | AR75: 0 | AT75: 10 | AU75: 36 | AV75: 0.6857142857 | AW75: 0 | AX75: 10 | AY75: 0 | AZ75: 24.68571429 | BA75: 0 | BB75: 10 | BC75: 25
B76: 71 | C76: ΤΡΙΚΑΛΑ | D76: 7405-ΤΡΚΛ | E76: 75 | F76: 200 | G76: 57 | H76: 0 | I76: 143 | J76: 85 | K76: 4 | L76: 1 | M76: 0 | N76: 3 | O76: 2 | P76: 268 | Q76: 211 | R76: 406 | S76: 10.71792668 | T76: 10.71792668 | U76: 1.559236096 | V76: 86.307 | W76: 57 | X76: 58 | Y76: 67 | Z76: 102 | AA76: Rural | AB76: 0 | AC76: 0 | AD76: 1 | AE76: 1 | AF76: 1 | AH76: 1.617759432 | AI76: 433.5595279 | AJ76: 57 | AK76: 3.421052632 | AL76: 2.904553121 | AM76: 1.177824088 | AN76: 165.5595279 | AO76: 1.710526316 | AP76: 0.7873134328 | AQ76: 27.52205882 | AR76: 28.00490196 | AT76: =(1-AP76)*Y76 -> 14.25 | AU76: =AP76*Y76 -> 52.75 | AV76: 0.5588235294 | AW76: 0.568627451 | AX76: 14.25 | AY76: 14.25 | AZ76: 29.47794118 | BA76: 29.99509804 | BB76: 57 | BC76: 120
B77: 72 | C77: ΠΥΡΓΟΣ | D77: 7409-ΠΥΡΓ | E77: 76 | F77: 129 | G77: 0 | H77: 0 | I77: 129 | J77: 0 | K77: 2 | L77: 0 | M77: 0 | N77: 2 | O77: 0 | P77: 173 | Q77: 136 | R77: 262 | S77: 0.7715810869 | T77: 0.7715810869 | U77: 0.1665332997 | V77: 86.307 | W77: 0 | X77: 64.5 | Y77: 87 | Z77: 131 | AA77: Rural | AB77: 0 | AC77: 0 | AD77: 2 | AE77: 2 | AF77: 0 | AH77: 1.617759432 | AI77: 279.8723818 | AJ77: 37 | AK77: 3.405405405 | AL77: 2.888442751 | AM77: 1.178976251 | AN77: 106.8723818 | AO77: 1.702702703 | AP77: 0.7861271676 | AQ77: 0 | AR77: 30.82555266 | AT77: 18.60693642 | AU77: 68.39306358 | AV77: 0 | AW77: 0.4923664122 | AX77: 0 | AY77: 18.60693642 | AZ77: 0 | BA77: 33.67444734 | BB77: 38 | BC77: 68
B78: 73 | C78: ΗΡΑΙΟ | D78: 7411-ΗΡΑΙ | E78: 77 | F78: 162 | G78: 105 | H78: 0 | I78: 57 | J78: 0 | K78: 2 | L78: 1 | M78: 0 | N78: 1 | O78: 0 | P78: 183 | Q78: 158 | R78: 323 | S78: 0.09774674396 | T78: 0.09774674396 | U78: 0.03966853347 | V78: 86.226 | W78: 105 | X78: 57 | Y78: 92 | Z78: 162 | AA78: Rural | AB78: 0 | AC78: 0 | AD78: 1 | AE78: 1 | AF78: 1 | AH78: 1.511021021 | AI78: 276.5168468 | AJ78: 25 | AK78: 6.6 | AL78: 3.740673874 | AM78: 1.764387975 | AN78: 93.51684685 | AO78: 3.3 | AP78: 0.8633879781 | AQ78: 53.51649464 | AR78: 29.05181137 | AT78: 12.56830601 | AU78: 79.43169399 | AV78: 0.6481481481 | AW78: 0.3518518519 | AX78: 12.56830601 | AY78: 12.56830601 | AZ78: 51.48350536 | BA78: 27.94818863 | BB78: 26 | BC78: 80
B79: 74 | C79: ΛΕΟΝΤΙΟ | D79: 7413-ΛΕΝΤ | E79: 78 | F79: 69 | G79: 0 | H79: 0 | I79: 69 | J79: 0 | K79: 1 | L79: 0 | M79: 0 | N79: 1 | O79: 0 | P79: 74 | Q79: 58 | R79: 103 | S79: 0.060099918 | T79: 0 | U79: 0.060099918 | V79: 98.063 | W79: 0 | X79: 69 | Y79: 74 | Z79: 103 | AA79: Rural | AB79: 0 | AC79: 0 | AD79: 1 | AE79: 1 | AF79: 0 | AH79: 1.544228006 | AI79: 114.2728724 | AJ79: 16 | AK79: 2.8125 | AL79: 2.517054527 | AM79: 1.117377463 | AN79: 40.27287243 | AO79: 1.40625 | AP79: 0.7837837838 | AQ79: 0 | AR79: 30.14563107 | AT79: 16 | AU79: 58 | AV79: 0 | AW79: 0.6699029126 | AX79: 0 | AY79: 16 | AZ79: 0 | BA79: 38.85436893 | BB79: 16 | BC79: 39
B80: 75 | C80: ΓΚΟΥΡΑ | D80: 7416-ΓΚΟΥ | E80: 79 | F80: 205 | G80: 119 | H80: 119 | I80: 86 | J80: 86 | K80: 4 | L80: 1 | M80: 1 | N80: 3 | O80: 3 | P80: 260 | Q80: 212 | R80: 358 | S80: 25.86335994 | T80: 25.86335994 | U80: 1.137267477 | V80: 91.693 | W80: 0 | X80: 0 | Y80: 65 | Z80: 90 | AA80: Rural | AB80: 0 | AC80: 0 | AD80: 0 | AE80: 0 | AF80: 0 | AH80: 1.504888951 | AI80: 391.2711273 | AJ80: 48 | AK80: 3.041666667 | AL80: 2.734815151 | AM80: 1.112201922 | AN80: 131.2711273 | AO80: 1.520833333 | AP80: 0.8153846154 | AQ80: 0 | AR80: 0 | AT80: 12 | AU80: 53 | AV80: 0 | AW80: 0 | AX80: 0 | AY80: 0 | AZ80: 0 | BA80: 0 | BB80: 0 | BC80: 0
B81: 76 | C81: ΚΑΛΙΑΝΟΙ | D81: 7416-ΚΑΛΙ | E81: 80 | F81: 297 | G81: 69 | H81: 0 | I81: 228 | J81: 141 | K81: 6 | L81: 2 | M81: 0 | N81: 4 | O81: 3 | P81: 376 | Q81: 307 | R81: 519 | S81: 19.8940828 | T81: 14.84962859 | U81: 1.227046569 | V81: 91.693 | W81: 34.5 | X81: 87 | Y81: 63 | Z81: 87 | AA81: Rural | AB81: 0 | AC81: 0 | AD81: 1 | AE81: 0 | AF81: 2 | AH81: 1.504888951 | AI81: 565.8382456 | AJ81: 69 | AK81: 3.072463768 | AL81: 2.751278921 | AM81: 1.116740198 | AN81: 189.8382456 | AO81: 1.536231884 | AP81: 0.8164893617 | AQ81: 14.10184336 | AR81: 35.56117021 | AT81: 11.56117021 | AU81: 51.43882979 | AV81: 0.3965517241 | AW81: 1 | AX81: 11.56117021 | AY81: 11.56117021 | AZ81: 20.39815664 | BA81: 51.43882979 | BB81: 70 | BC81: 247
B82: 77 | C82: ΧΑΝΙΑ ΑΓ.ΒΑΣΙΛ. | D82: 7418-ΧΑΓΒ | E82: 81 | F82: 308 | G82: 0 | H82: 0 | I82: 308 | J82: 0 | K82: 2 | L82: 0 | M82: 0 | N82: 2 | O82: 0 | P82: 270 | Q82: 197 | R82: 432 | S82: 0.9298611871 | T82: 0.9298611871 | U82: 0.7378521721 | V82: 93.908 | W82: 0 | X82: 154 | Y82: 135 | Z82: 216 | AA82: Rural | AB82: 0 | AC82: 0 | AD82: 2 | AE82: 2 | AF82: 0 | AH82: 1.598910841 | AI82: 431.7059271 | AJ82: 73 | AK82: 3.219178082 | AL82: 2.215149686 | AM82: 1.453255328 | AN82: 161.7059271 | AO82: 1.609589041 | AP82: 0.7296296296 | AQ82: 0 | AR82: 83.77314815 | AT82: 36.5 | AU82: 98.5 | AV82: 0 | AW82: 0.712962963 | AX82: 0 | AY82: 36.5 | AZ82: 0 | BA82: 70.22685185 | BB82: 73 | BC82: 141
B83: 78 | C83: ΙΡΙΩΝ | D83: 7501-ΙΡΙΩ | E83: 82 | F83: 226 | G83: 122 | H83: 0 | I83: 104 | J83: 0 | K83: 4 | L83: 2 | M83: 0 | N83: 2 | O83: 0 | P83: 179 | Q83: 137 | R83: 300 | S83: 2.305582611 | T83: 2.305582611 | U83: 0.6063755571 | V83: 95.488 | W83: 61 | X83: 52 | Y83: 45 | Z83: 75 | AA83: Rural | AB83: 0 | AC83: 0 | AD83: 2 | AE83: 0 | AF83: 2 | AH83: 1.653274973 | AI83: 295.9362201 | AJ83: 42 | AK83: 3.880952381 | AL83: 2.784195717 | AM83: 1.393922258 | AN83: 116.9362201 | AO83: 1.94047619 | AP83: 0.7653631285 | AQ83: 32.9877095 | AR83: 28.12067039 | AT83: 10.55865922 | AU83: 34.44134078 | AV83: 0.8133333333 | AW83: 0.6933333333 | AX83: 10.55865922 | AY83: 10.55865922 | AZ83: 28.0122905 | BA83: 23.87932961 | BB83: 43 | BC83: 104
B84: 79 | C84: Ν.ΤΙΡΥΝΘΑΣ | D84: 7501-ΝΤΙΡ | E84: 83 | F84: 406 | G84: 406 | H84: 0 | I84: 0 | J84: 0 | K84: 2 | L84: 2 | M84: 0 | N84: 0 | O84: 0 | P84: 322 | Q84: 246 | R84: 539 | S84: 0.03989884622 | T84: 0.03989884622 | U84: 0.2234304258 | V84: 95.488 | W84: 203 | X84: 0 | Y84: 161 | Z84: 270 | AA84: Rural | AB84: 0 | AC84: 0 | AD84: 0 | AE84: 0 | AF84: 2 | AH84: 1.653274973 | AI84: 532.3545412 | AJ84: 76 | AK84: 3.855263158 | AL84: 2.76782291 | AM84: 1.392886497 | AN84: 210.3545412 | AO84: 1.927631579 | AP84: 0.7639751553 | AQ84: 110.5222222 | AR84: 0 | AT84: 38 | AU84: 123 | AV84: 0.7518518519 | AW84: 0 | AX84: 38 | AY84: 0 | AZ84: 92.47777778 | BA84: 0 | BB84: 76 | BC84: 185
B85: 80 | C85: ΑΡΓΟΣ | D85: 7502-ΑΡΓ | E85: 84 | F85: 10340 | G85: 2506 | H85: 0 | I85: 7834 | J85: 0 | K85: 98 | L85: 22 | M85: 0 | N85: 76 | O85: 0 | P85: 10923 | Q85: 8627 | R85: 15314 | S85: 20.46241635 | T85: 2.344056956 | U85: 2.915472001 | V85: 98.063 | W85: 113.9090909 | X85: 103.0789474 | Y85: 112 | Z85: 157 | AA85: Urban | AB85: 0 | AC85: 0 | AD85: 76 | AE85: 15 | AF85: 22 | AH85: 1.544228006 | AI85: 16867.60251 | AJ85: 2296 | AK85: 2.912456446 | AL85: 2.58911259 | AM85: 1.124885977 | AN85: 5944.602507 | AO85: 1.456228223 | AP85: 0.7898013366 | AQ85: 49.72984344 | AR85: 45.00167523 | AT85: 23.5422503 | AU85: 88.4577497 | AV85: 0.7255356109 | AW85: 0.6565538049 | AX85: 23.5422503 | AY85: 23.5422503 | AZ85: 64.17924747 | BA85: 58.07727214 | BB85: 2308 | BC85: 5826 | BK85: 43 | BL85: 14
B86: 81 | C86: ΑΧΛΑΔΟΚΑΜΠΟΣ | D86: 7502-ΑΧΛΑ | E86: 85 | F86: 182 | G86: 89 | H86: 0 | I86: 93 | J86: 0 | K86: 2 | L86: 1 | M86: 0 | N86: 1 | O86: 0 | P86: 193 | Q86: 152 | R86: 270 | S86: 0.4090465223 | T86: 0.4090465223 | U86: 0.5092042518 | V86: 98.063 | W86: 89 | X86: 93 | Y86: 97 | Z86: 135 | AA86: Suburban | AB86: 0 | AC86: 0 | AD86: 1 | AE86: 1 | AF86: 1 | AH86: 1.544228006 | AI86: 298.0360051 | AJ86: 41 | AK86: 2.87804878 | AL86: 2.561853783 | AM86: 1.123424295 | AN86: 105.0360051 | AO86: 1.43902439 | AP86: 0.7875647668 | AQ86: 38.63669161 | AR86: 40.37317214 | AT86: 20.60621762 | AU86: 76.39378238 | AV86: 0.6592592593 | AW86: 0.6888888889 | AX86: 20.60621762 | AY86: 20.60621762 | AZ86: 50.36330839 | BA86: 52.62682786 | BB86: 42 | BC86: 103
B87: 82 | C87: ΚΟΥΤΣΟΠΟΔΙ | D87: 7502-ΚΟΥΤ | E87: 86 | F87: 716 | G87: 235 | H87: 0 | I87: 481 | J87: 0 | K87: 8 | L87: 2 | M87: 0 | N87: 6 | O87: 0 | P87: 757 | Q87: 598 | R87: 1061 | S87: 1.033457176 | T87: 1.033457176 | U87: 1.052055049 | V87: 98.063 | W87: 117.5 | X87: 80.16666667 | Y87: 95 | Z87: 133 | AA87: Rural | AB87: 0 | AC87: 0 | AD87: 6 | AE87: 6 | AF87: 2 | AH87: 1.544228006 | AI87: 1168.9806 | AJ87: 159 | AK87: 2.911949686 | AL87: 2.591072958 | AM87: 1.123839325 | AN87: 411.9806004 | AO87: 1.455974843 | AP87: 0.7899603699 | AQ87: 51.19975467 | AR87: 34.9320312 | AT87: 19.95376486 | AU87: 75.04623514 | AV87: 0.8834586466 | AW87: 0.6027568922 | AX87: 19.95376486 | AY87: 19.95376486 | AZ87: 66.30024533 | BA87: 45.23463547 | BB87: 160 | BC87: 405
B88: 83 | C88: ΛΥΡΚΕΙΑ | D88: 7502-ΛΥΡΚ | E88: 87 | F88: 62 | G88: 62 | H88: 0 | I88: 0 | J88: 0 | K88: 1 | L88: 1 | M88: 0 | N88: 0 | O88: 0 | P88: 66 | Q88: 52 | R88: 92 | S88: 0.2752305463 | T88: 0 | U88: 0.2752305463 | V88: 98.063 | W88: 62 | X88: 0 | Y88: 66 | Z88: 92 | AA88: Rural | AB88: 0 | AC88: 0 | AD88: 0 | AE88: 0 | AF88: 1 | AH88: 1.544228006 | AI88: 101.9190484 | AJ88: 14 | AK88: 2.857142857 | AL88: 2.565646313 | AM88: 1.113615249 | AN88: 35.91904838 | AO88: 1.428571429 | AP88: 0.7878787879 | AQ88: 26.95652174 | AR88: 0 | AT88: 14 | AU88: 52 | AV88: 0.6739130435 | AW88: 0 | AX88: 14 | AY88: 0 | AZ88: 35.04347826 | BA88: 0 | BB88: 14 | BC88: 36
B89: 84 | C89: ΜΥΛΟΙ | D89: 7502-ΜΥΛΟ | E89: 88 | F89: 985 | G89: 218 | H89: 0 | I89: 767 | J89: 0 | K89: 7 | L89: 2 | M89: 0 | N89: 5 | O89: 0 | P89: 1041 | Q89: 822 | R89: 1459 | S89: 8.110405399 | T89: 8.110405399 | U89: 0.7440969538 | V89: 98.063 | W89: 109 | X89: 153.4 | Y89: 149 | Z89: 209 | AA89: Suburban | AB89: 0 | AC89: 0 | AD89: 5 | AE89: 1 | AF89: 2 | AH89: 1.544228006 | AI89: 1607.541354 | AJ89: 219 | AK89: 2.908675799 | AL89: 2.586946822 | AM89: 1.124366289 | AN89: 566.541354 | AO89: 1.4543379 | AP89: 0.7896253602 | AQ89: 47.63968672 | AR89: 67.04521048 | AT89: 31.34582133 | AU89: 117.6541787 | AV89: 0.5215311005 | AW89: 0.7339712919 | AX89: 31.34582133 | AY89: 31.34582133 | AZ89: 61.36031328 | BA89: 86.35478952 | BB89: 220 | BC89: 555
B90: 85 | C90: ΔΙΔΥΜΑ | D90: 7503-ΔΙΔΥ | E90: 89 | F90: 496 | G90: 319 | H90: 0 | I90: 177 | J90: 12 | K90: 7 | L90: 4 | M90: 0 | N90: 3 | O90: 1 | P90: 691 | Q90: 569 | R90: 891 | S90: 1.99989263 | T90: 1.99989263 | U90: 0.4680092346 | V90: 89.505 | W90: 79.75 | X90: 82.5 | Y90: 99 | Z90: 128 | AA90: Rural | AB90: 0 | AC90: 0 | AD90: 2 | AE90: 1 | AF90: 4 | AH90: 1.570167988 | AI90: 1084.98608 | AJ90: 122 | AK90: 2.639344262 | AL90: 3.229394096 | AM90: 0.8172877587 | AN90: 393.9860797 | AO90: 1.319672131 | AP90: 0.8234442836 | AQ90: 28.95860562 | AR90: 29.95717823 | AT90: 17.47901592 | AU90: 81.52098408 | AV90: 0.623046875 | AW90: 0.64453125 | AX90: 17.47901592 | AY90: 17.47901592 | AZ90: 50.79139438 | BA90: 52.54282177 | BB90: 123 | BC90: 361
B91: 86 | C91: ΚΟΙΛΑΔΑ ΑΡΓ | D91: 7503-ΚΟΙΛ | E91: 90 | F91: 535 | G91: 182 | H91: 0 | I91: 353 | J91: 0 | K91: 5 | L91: 2 | M91: 0 | N91: 3 | O91: 0 | P91: 745 | Q91: 613 | R91: 961 | S91: 1.343860756 | T91: 1.343860756 | U91: 0.5029027535 | V91: 89.505 | W91: 91 | X91: 117.6666667 | Y91: 149 | Z91: 193 | AA91: Rural | AB91: 0 | AC91: 0 | AD91: 3 | AE91: 3 | AF91: 2 | AH91: 1.570167988 | AI91: 1169.775151 | AJ91: 132 | AK91: 2.636363636 | AL91: 3.217993568 | AM91: 0.8192569626 | AN91: 424.775151 | AO91: 1.318181818 | AP91: 0.8228187919 | AQ91: 33.19378238 | AR91: 42.9208981 | AT91: 26.4 | AU91: 122.6 | AV91: 0.4715025907 | AW91: 0.609671848 | AX91: 26.4 | AY91: 26.4 | AZ91: 57.80621762 | BA91: 74.74576857 | BB91: 132 | BC91: 340
B92: 87 | C92: ΑΡΑΧΝΑΙΟ | D92: 7504-ΑΡΑΧ | E92: 91 | F92: 137 | G92: 137 | H92: 0 | I92: 0 | J92: 0 | K92: 2 | L92: 2 | M92: 0 | N92: 0 | O92: 0 | P92: 109 | Q92: 83 | R92: 182 | S92: 0.03965426125 | T92: 0.03965426125 | U92: 0.2790956908 | V92: 95.488 | W92: 68.5 | X92: 0 | Y92: 55 | Z92: 91 | AA92: Rural | AB92: 0 | AC92: 0 | AD92: 0 | AE92: 0 | AF92: 2 | AH92: 1.653274973 | AI92: 180.206972 | AJ92: 26 | AK92: 3.807692308 | AL92: 2.738729693 | AM92: 1.390313296 | AN92: 71.20697202 | AO92: 1.903846154 | AP92: 0.7614678899 | AQ92: 36.97439258 | AR92: 0 | AT92: 13.11926606 | AU92: 41.88073394 | AV92: 0.7527472527 | AW92: 0 | AX92: 13.11926606 | AY92: 0 | AZ92: 31.52560742 | BA92: 0 | BB92: 27 | BC92: 64
B93: 88 | C93: ΝΕΑ ΕΠΙΔΑΥΡΟΣ | D93: 7504-ΝΕΠΙ | E93: 92 | F93: 815 | G93: 285 | H93: 0 | I93: 530 | J93: 343 | K93: 8 | L93: 3 | M93: 0 | N93: 5 | O93: 3 | P93: 1027 | Q93: 748 | R93: 1315 | S93: 4.863787634 | T93: 4.863787634 | U93: 0.6873178507 | V93: 88.561 | W93: 95 | X93: 93.5 | Y93: 129 | Z93: 165 | AA93: Rural | AB93: 0 | AC93: 0 | AD93: 2 | AE93: 0 | AF93: 3 | AH93: 1.447797017 | AI93: 1486.887536 | AJ93: 279 | AK93: 2.032258065 | AL93: 1.648342424 | AM93: 1.232910125 | AN93: 459.8875364 | AO93: 1.016129032 | AP93: 0.7283349562 | AQ93: 40.90457644 | AR93: 40.2587147 | AT93: 35.04479065 | AU93: 93.95520935 | AV93: 0.5757575758 | AW93: 0.5666666667 | AX93: 35.04479065 | AY93: 35.04479065 | AZ93: 54.09542356 | BA93: 53.2412853 | BB93: 281 | BC93: 429
B94: 89 | C94: ΗΛΙΟΚΑΣΤΡΟ | D94: 7505-ΗΛΙΟ | E94: 93 | F94: 222 | G94: 170 | H94: 0 | I94: 52 | J94: 52 | K94: 3 | L94: 2 | M94: 0 | N94: 1 | O94: 1 | P94: 310 | Q94: 255 | R94: 399 | S94: 3.179145332 | T94: 3.179145332 | U94: 0.2730350649 | V94: 89.505 | W94: 85 | X94: 0 | Y94: 104 | Z94: 133 | AA94: Rural | AB94: 0 | AC94: 0 | AD94: 0 | AE94: 0 | AF94: 2 | AH94: 1.570167988 | AI94: 486.7520763 | AJ94: 55 | AK94: 2.618181818 | AL94: 3.213674114 | AM94: 0.8147004723 | AN94: 176.7520763 | AO94: 1.309090909 | AP94: 0.8225806452 | AQ94: 30.32621877 | AR94: 0 | AT94: 18.4516129 | AU94: 85.5483871 | AV94: 0.6390977444 | AW94: 0 | AX94: 18.4516129 | AY94: 0 | AZ94: 54.67378123 | BA94: 0 | BB94: 37 | BC94: 110
B95: 90 | C95: ΔΡΕΠΑΝΟΥ | D95: 7506-ΔΡΕΠ | E95: 94 | F95: 632 | G95: 530 | H95: 0 | I95: 102 | J95: 0 | K95: 6 | L95: 5 | M95: 0 | N95: 1 | O95: 0 | P95: 500 | Q95: 382 | R95: 839 | S95: 0.8207996773 | T95: 0.8207996773 | U95: 0.4030720989 | V95: 95.488 | W95: 106 | X95: 102 | Y95: 84 | Z95: 140 | AA95: Rural | AB95: 0 | AC95: 0 | AD95: 1 | AE95: 0 | AF95: 5 | AH95: 1.653274973 | AI95: 826.6374863 | AJ95: 118 | AK95: 3.872881356 | AL95: 2.768114291 | AM95: 1.39910457 | AN95: 326.6374863 | AO95: 1.936440678 | AP95: 0.764 | AQ95: 57.4096 | AR95: 55.2432 | AT95: 19.824 | AU95: 64.176 | AV95: 0.7571428571 | AW95: 0.7285714286 | AX95: 19.824 | AY95: 19.824 | AZ95: 48.5904 | BA95: 46.7568 | BB95: 119 | BC95: 290
B96: 91 | C96: ΤΟΛΟΥ | D96: 7506-ΤΟΛΟ | E96: 95 | F96: 843 | G96: 609 | H96: 0 | I96: 234 | J96: 0 | K96: 9 | L96: 6 | M96: 0 | N96: 3 | O96: 0 | P96: 667 | Q96: 509 | R96: 1119 | S96: 0.5377198833 | T96: 0.5377198833 | U96: 0.419076647 | V96: 95.488 | W96: 101.5 | X96: 78 | Y96: 75 | Z96: 125 | AA96: Rural | AB96: 0 | AC96: 0 | AD96: 3 | AE96: 0 | AF96: 6 | AH96: 1.653274973 | AI96: 1102.734407 | AJ96: 158 | AK96: 3.860759494 | AL96: 2.757812701 | AM96: 1.399935352 | AN96: 435.7344068 | AO96: 1.930379747 | AP96: 0.7631184408 | AQ96: 55.02608696 | AR96: 42.28605697 | AT96: 17.76611694 | AU96: 57.23388306 | AV96: 0.812 | AW96: 0.624 | AX96: 17.76611694 | AY96: 17.76611694 | AZ96: 46.47391304 | BA96: 35.71394303 | BB96: 160 | BC96: 386
B97: 92 | C97: ΑΜΑΛΙΑΠΟΛΗΣ | D97: 4001-ΑΜΑΛ | E97: 96 | F97: 209 | G97: 209 | H97: 0 | I97: 0 | J97: 0 | K97: 2 | L97: 2 | M97: 0 | N97: 0 | O97: 0 | P97: 337 | Q97: 301 | R97: 374 | S97: 0.256660052 | T97: 0.256660052 | U97: 0.138588968 | V97: 95.845 | W97: 104.5 | X97: 0 | Y97: 169 | Z97: 187 | AA97: Suburban | AB97: 0 | AC97: 0 | AD97: 0 | AE97: 0 | AF97: 2 | AH97: 1.293547336 | AI97: 435.9254522 | AJ97: 36 | AK97: 2.027777778 | AL97: 2.747929227 | AM97: 0.7379294044 | AN97: 98.92545218 | AO97: 1.013888889 | AP97: 0.8931750742 | AQ97: 20.1474952 | AR97: 0 | AT97: 18.05341246 | AU97: 150.9465875 | AV97: 0.5588235294 | AW97: 0 | AX97: 18.05341246 | AY97: 0 | AZ97: 84.3525048 | BA97: 0 | BB97: 37 | BC97: 169
B98: 93 | C98: ΑΡΓΑΛΑΣΤΗΣ | D98: 4002-ΑΡΓΑ | E98: 98 | F98: 770 | G98: 499 | H98: 0 | I98: 271 | J98: 95 | K98: 9 | L98: 5 | M98: 0 | N98: 4 | O98: 1 | P98: 2388 | Q98: 2277 | R98: 2493 | S98: 29.57848179 | T98: 21.28407579 | U98: 1.623645012 | V98: 83.737 | W98: 99.8 | X98: 58.66666667 | Y98: 266 | Z98: 277 | AA98: Rural | AB98: 0 | AC98: 0 | AD98: 3 | AE98: 3 | AF98: 5 | AH98: 1.579975765 | AI98: 3772.982127 | AJ98: 111 | AK98: 1.945945946 | AL98: 12.47731646 | AM98: 0.1559586913 | AN98: 1384.982127 | AO98: 0.972972973 | AP98: 0.9535175879 | AQ98: 8.417903597 | AR98: 4.948400244 | AT98: 12.36432161 | AU98: 253.6356784 | AV98: 0.3602888087 | AW98: 0.2117930205 | AX98: 8.668657366 | AY98: 5.095803929 | AZ98: 91.3820964 | BA98: 53.71826642 | BB98: 64 | BC98: 672
B99: 94 | C99: ΑΦΥΣΣΟΥ | D99: 4002-ΑΦΥΣ | E99: 99 | F99: 424 | G99: 224 | H99: 0 | I99: 200 | J99: 104 | K99: 7 | L99: 4 | M99: 0 | N99: 3 | O99: 1 | P99: 1316 | Q99: 1255 | R99: 1373 | S99: 2.800925877 | T99: 2.069403251 | U99: 0.357277405 | V99: 83.737 | W99: 56 | X99: 48 | Y99: 188 | Z99: 197 | AA99: Rural | AB99: 0 | AC99: 0 | AD99: 2 | AE99: 1 | AF99: 4 | AH99: 1.579975765 | AI99: 2079.248107 | AJ99: 61 | AK99: 1.93442623 | AL99: 12.51226404 | AM99: 0.1546024143 | AN99: 763.2481066 | AO99: 0.9672131148 | AP99: 0.9536474164 | AQ99: 5.035532995 | AR99: 4.316171139 | AT99: 8.714285714 | AU99: 179.2857143 | AV99: 0.2842639594 | AW99: 0.2436548223 | AX99: 4.791878173 | AY99: 4.107324148 | AZ99: 50.96446701 | BA99: 43.68382886 | BB99: 32 | BC99: 335
B100: 95 | C100: ΠΡΟΜΥΡΙ | D100: 4002-ΠΡΟΜ | E100: 100 | F100: 258 | G100: 132 | H100: 0 | I100: 126 | J100: 0 | K100: 4 | L100: 2 | M100: 0 | N100: 2 | O100: 0 | P100: 1041 | Q100: 993 | R100: 1086 | S100: 8.889243391 | T100: 8.889243391 | U100: 0.3859125287 | V100: 83.737 | W100: 66 | X100: 63 | Y100: 261 | Z100: 272 | AA100: Rural | AB100: 0 | AC100: 0 | AD100: 2 | AE100: 2 | AF100: 2 | AH100: 1.579975765 | AI100: 1644.754771 | AJ100: 48 | AK100: 1.9375 | AL100: 12.5782244 | AM100: 0.1540360498 | AN100: 603.7547713 | AO100: 0.96875 | AP100: 0.9538904899 | AQ100: 5.589273606 | AR100: 5.335215715 | AT100: 12.03458213 | AU100: 248.9654179 | AV100: 0.2426470588 | AW100: 0.2316176471 | AX100: 5.65780217 | AY100: 5.400629344 | AZ100: 60.41072639 | BA100: 57.66478429 | BB100: 23 | BC100: 237
B101: 96 | C101: ΤΡΙΚΕΡΙ | D101: 4002-ΤΡΚΡ | E101: 101 | F101: 205 | G101: 141 | H101: 0 | I101: 64 | J101: 0 | K101: 5 | L101: 3 | M101: 0 | N101: 2 | O101: 0 | P101: 637 | Q101: 608 | R101: 664 | S101: 0.9541249664 | T101: 0.9541249664 | U101: 0.3116113286 | V101: 83.737 | W101: 47 | X101: 32 | Y101: 128 | Z101: 133 | AA101: Rural | AB101: 0 | AC101: 0 | AD101: 2 | AE101: 2 | AF101: 3 | AH101: 1.579975765 | AI101: 1006.444562 | AJ101: 29 | AK101: 1.931034483 | AL101: 12.73946766 | AM101: 0.151578899 | AN101: 369.4445623 | AO101: 0.9655172414 | AP101: 0.9544740973 | AQ101: 3.826194214 | AR101: 2.605068401 | AT101: 5.827315542 | AU101: 122.1726845 | AV101: 0.3533834586 | AW101: 0.2406015038 | AX101: 3.976534743 | AY101: 2.70742791 | AZ101: 43.17380579 | BA101: 29.3949316 | BB101: 18 | BC101: 189
B102: 97 | C102: ΠΕΡΙΒΛΕΠΤΟΥ | D102: 4003-ΠΕΡΙ | E102: 102 | F102: 96 | G102: 48 | H102: 0 | I102: 48 | J102: 0 | K102: 3 | L102: 1 | M102: 0 | N102: 2 | O102: 0 | P102: 161 | Q102: 145 | R102: 173 | S102: 21.68775855 | T102: 21.68775855 | U102: 0.4552056653 | V102: 94.051 | W102: 48 | X102: 24 | Y102: 54 | Z102: 58 | AA102: Rural | AB102: 0 | AC102: 0 | AD102: 2 | AE102: 1 | AF102: 1 | AH102: 1.197501688 | AI102: 192.7977718 | AJ102: 16 | AK102: 1.75 | AL102: 1.987360736 | AM102: 0.8805648458 | AN102: 31.79777178 | AO102: 0.875 | AP102: 0.900621118 | AQ102: 7.751552795 | AR102: 3.875776398 | AT102: 5.366459627 | AU102: 48.63354037 | AV102: 0.8275862069 | AW102: 0.4137931034 | AX102: 5.366459627 | AY102: 3.886056972 | AZ102: 40.2484472 | BA102: 20.1242236 | BB102: 14 | BC102: 81
B103: 98 | C103: ΡΙΖΟΜΥΛΟΥ | D103: 4003-ΡΙΖΟ | E103: 103 | F103: 331 | G103: 331 | H103: 0 | I103: 0 | J103: 0 | K103: 3 | L103: 3 | M103: 0 | N103: 0 | O103: 0 | P103: 553 | Q103: 498 | R103: 596 | S103: 0.1325559636 | T103: 0.1325559636 | U103: 0.7551399115 | V103: 94.051 | W103: 110.3333333 | X103: 0 | Y103: 185 | Z103: 199 | AA103: Rural | AB103: 0 | AC103: 0 | AD103: 0 | AE103: 0 | AF103: 3 | AH103: 1.197501688 | AI103: 662.2184335 | AJ103: 55 | AK103: 1.781818182 | AL103: 1.9857897 | AM103: 0.8972844315 | AN103: 109.2184335 | AO103: 0.8909090909 | AP103: 0.9005424955 | AQ103: 17.96361858 | AR103: 0 | AT103: 18.39963834 | AU103: 166.6003617 | AV103: 0.554438861 | AW103: 0 | AX103: 18.17717278 | AY103: 0 | AZ103: 92.36971476 | BA103: 0 | BB103: 55 | BC103: 278
B104: 99 | C104: ΑΓΡΙΑ | D104: 4004-ΑΓΡ | E104: 104 | F104: 1890 | G104: 785 | H104: 0 | I104: 1105 | J104: 0 | K104: 14 | L104: 6 | M104: 0 | N104: 8 | O104: 0 | P104: 1300 | Q104: 926 | R104: 2432 | S104: 1.115962588 | T104: 1.115962588 | U104: 2.068992402 | V104: 90.544 | W104: 130.8333333 | X104: 138.125 | Y104: 93 | Z104: 174 | AA104: Rural | AB104: 0 | AC104: 0 | AD104: 8 | AE104: 3 | AF104: 6 | AH104: 1.816603741 | AI104: 2361.584863 | AJ104: 374 | AK104: 4.026737968 | AL104: 2.838462201 | AM104: 1.418633641 | AN104: 1061.584863 | AO104: 2.013368984 | AP104: 0.7123076923 | AQ104: 81.0229664 | AR104: 85.53857759 | AT104: 26.75538462 | AU104: 66.24461538 | AV104: 0.7519157088 | AW104: 0.7938218391 | AX104: 26.75538462 | AY104: 26.75538462 | AZ104: 49.81036693 | BA104: 52.58642241 | BB104: 375 | BC104: 720
B105: 100 | C105: ΓΥΜΝΑΣΤΗΡΙΟ | D105: 4004-ΓΥΜ | E105: 105 | F105: 22450 | G105: 2161 | H105: 0 | I105: 20289 | J105: 0 | K105: 175 | L105: 16 | M105: 0 | N105: 159 | O105: 0 | P105: 15435 | Q105: 10992 | R105: 28878 | S105: 8.848504237 | T105: 2.847943076 | U105: 3.259073426 | V105: 90.544 | W105: 135.0625 | X105: 127.6037736 | Y105: 89 | Z105: 166 | AA105: Urban | AB105: 0 | AC105: 0 | AD105: 159 | AE105: 1 | AF105: 16 | AH105: 1.816603741 | AI105: 28039.27874 | AJ105: 4443 | AK105: 4.025658339 | AL105: 2.836884704 | AM105: 1.419041928 | AN105: 12604.27874 | AO105: 2.012829169 | AP105: 0.7121477162 | AQ105: 83.49372812 | AR105: 78.88284889 | AT105: 25.61885326 | AU105: 63.38114674 | AV105: 0.8136295181 | AW105: 0.7686974312 | AX105: 25.61885326 | AY105: 25.61885326 | AZ105: 51.56877188 | BA105: 48.72092469 | BB105: 4484 | BC105: 8572 | BK105: 49.8 | BL105: 20
B106: 101 | C106: ΚΑΝΑΛΙΑ | D106: 4004-ΚΑΝ | E106: 106 | F106: 617 | G106: 340 | H106: 0 | I106: 277 | J106: 0 | K106: 6 | L106: 2 | M106: 0 | N106: 4 | O106: 0 | P106: 953 | Q106: 847 | R106: 1070 | S106: 74.18984174 | T106: 74.18984174 | U106: 1.077723855 | V106: 93.848 | W106: 170 | X106: 69.25 | Y106: 159 | Z106: 179 | AA106: Suburban | AB106: 0 | AC106: 0 | AD106: 4 | AE106: 3 | AF106: 2 | AH106: 1.233344438 | AI106: 1175.37725 | AJ106: 106 | AK106: 2.103773585 | AL106: 2.097898584 | AM106: 1.002800422 | AN106: 222.3772499 | AO106: 1.051886792 | AP106: 0.888772298 | AQ106: 35.79041779 | AR106: 14.57933195 | AT106: 17.68520462 | AU106: 141.3147954 | AV106: 0.9497206704 | AW106: 0.3868715084 | AX106: 17.68520462 | AY106: 14.39381225 | AZ106: 134.2095822 | BA106: 54.67066805 | BB106: 93 | BC106: 488
B107: 102 | C107: Ν.ΑΓΧΙΑΛΟΥ | D107: 4004-ΝΑΓΧ | E107: 107 | F107: 1900 | G107: 850 | H107: 0 | I107: 1050 | J107: 0 | K107: 18 | L107: 7 | M107: 0 | N107: 11 | O107: 0 | P107: 1307 | Q107: 931 | R107: 2444 | S107: 8.460650312 | T107: 5.062391251 | U107: 2.132926238 | V107: 90.544 | W107: 121.4285714 | X107: 95.45454545 | Y107: 73 | Z107: 136 | AA107: Suburban | AB107: 0 | AC107: 0 | AD107: 11 | AE107: 6 | AF107: 7 | AH107: 1.816603741 | AI107: 2374.301089 | AJ107: 376 | AK107: 4.02393617 | AL107: 2.838566727 | AM107: 1.417594356 | AN107: 1067.301089 | AO107: 2.011968085 | AP107: 0.7123182862 | AQ107: 75.00068313 | AR107: 58.95775626 | AT107: 21.00076511 | AU107: 51.99923489 | AV107: 0.8928571429 | AW107: 0.7018716578 | AX107: 21.00076511 | AY107: 21.00076511 | AZ107: 46.42788829 | BA107: 36.49678919 | BB107: 379 | BC107: 727
B108: 103 | C108: ΠΑΓΑΣΕΣ | D108: 4004-ΠΑΓ | E108: 108 | F108: 1935 | G108: 440 | H108: 0 | I108: 1495 | J108: 0 | K108: 16 | L108: 4 | M108: 0 | N108: 12 | O108: 0 | P108: 1331 | Q108: 948 | R108: 2489 | S108: 12.26384499 | T108: 8.430685394 | U108: 10.21531448 | V108: 90.544 | W108: 110 | X108: 124.5833333 | Y108: 84 | Z108: 156 | AA108: Suburban | AB108: 0 | AC108: 0 | AD108: 12 | AE108: 5 | AF108: 4 | AH108: 1.816603741 | AI108: 2417.899579 | AJ108: 383 | AK108: 4.023498695 | AL108: 2.837857909 | AM108: 1.417794274 | AN108: 1086.899579 | AO108: 2.011749347 | AP108: 0.7122464313 | AQ108: 67.81309599 | AR108: 76.80346857 | AT108: 24.17129977 | AU108: 59.82870023 | AV108: 0.7051282051 | AW108: 0.7986111111 | AX108: 24.17129977 | AY108: 24.17129977 | AZ108: 42.18690401 | BA108: 47.77986476 | BB108: 387 | BC108: 743
B109: 104 | C109: ΠΟΡΤΑΡΙΑ | D109: 4004-ΠΟΡ | E109: 109 | F109: 780 | G109: 399 | H109: 0 | I109: 381 | J109: 0 | K109: 5 | L109: 3 | M109: 0 | N109: 2 | O109: 0 | P109: 537 | Q109: 382 | R109: 1004 | S109: 0.961368671 | T109: 0.961368671 | U109: 0.2043237008 | V109: 90.544 | W109: 133 | X109: 190.5 | Y109: 108 | Z109: 201 | AA109: Suburban | AB109: 0 | AC109: 0 | AD109: 2 | AE109: 2 | AF109: 3 | AH109: 1.816603741 | AI109: 975.5162088 | AJ109: 155 | AK109: 4.012903226 | AL109: 2.829136831 | AM109: 1.418419633 | AN109: 438.5162088 | AO109: 2.006451613 | AP109: 0.7113594041 | AQ109: 82.16434587 | AR109: 117.6865255 | AT109: 31.17318436 | AU109: 76.82681564 | AV109: 0.6616915423 | AW109: 0.947761194 | AX109: 31.17318436 | AY109: 31.17318436 | AZ109: 50.83565413 | BA109: 72.81347453 | BB109: 156 | BC109: 299
B110: 105 | C110: ΤΣΑΓΚΑΡΑΔΑΣ | D110: 4005-ΤΣΑΓ | E110: 110 | F110: 709 | G110: 241 | H110: 0 | I110: 468 | J110: 0 | K110: 8 | L110: 2 | M110: 0 | N110: 6 | O110: 0 | P110: 1652 | Q110: 1512 | R110: 1888 | S110: 5.147824359 | T110: 5.147824359 | U110: 1.772919686 | V110: 83.181 | W110: 120.5 | X110: 78 | Y110: 207 | Z110: 236 | AA110: Rural | AB110: 0 | AC110: 0 | AD110: 6 | AE110: 1 | AF110: 2 | AH110: 1.66530412 | AI110: 2751.082407 | AJ110: 140 | AK110: 2.685714286 | AL110: 7.85058862 | AM110: 0.3421035563 | AN110: 1099.082407 | AO110: 1.342857143 | AP110: 0.9152542373 | AQ110: 23.76422005 | AR110: 15.38264866 | AT110: 17.54237288 | AU110: 189.4576271 | AV110: 0.5105932203 | AW110: 0.3305084746 | AX110: 17.54237288 | AY110: 15.57151065 | AZ110: 96.73577995 | BA110: 62.61735134 | BB110: 129 | BC110: 570
B111: 106 | C111: ΚΟΥΚΟΥΝΑΡΙΕΣ | D111: 4008-ΚΟΥΚ | E111: 111 | F111: 424 | G111: 47 | H111: 0 | I111: 377 | J111: 0 | K111: 5 | L111: 1 | M111: 0 | N111: 4 | O111: 0 | P111: 569 | Q111: 495 | R111: 659 | S111: 3.432648929 | T111: 3.432648929 | U111: 2.778642324 | V111: 82.132 | W111: 47 | X111: 94.25 | Y111: 114 | Z111: 132 | AA111: Rural | AB111: 0 | AC111: 0 | AD111: 4 | AE111: 0 | AF111: 1 | AH111: 1.757347101 | AI111: 999.9305004 | AJ111: 74 | AK111: 2.216216216 | AL111: 5.823385141 | AM111: 0.3805718088 | AN111: 430.9305004 | AO111: 1.108108108 | AP111: 0.8699472759 | AQ111: 11.68804921 | AR111: 23.43826889 | AT111: 14.82601054 | AU111: 99.17398946 | AV111: 0.3560606061 | AW111: 0.7140151515 | AX111: 11.69931299 | AY111: 14.82601054 | AZ111: 35.31195079 | BA111: 70.81173111 | BB111: 72 | BC111: 319
B112: 107 | C112: ΣΚΟΠΕΛΟΥ | D112: 4009-ΣΚΟΠ | E112: 112 | F112: 1698 | G112: 1129 | H112: 0 | I112: 569 | J112: 0 | K112: 20 | L112: 13 | M112: 0 | N112: 7 | O112: 0 | P112: 3992 | Q112: 3702 | R112: 4407 | S112: 17.38567493 | T112: 4.384104599 | U112: 1.097757528 | V112: 78.566 | W112: 86.84615385 | X112: 81.28571429 | Y112: 200 | Z112: 221 | AA112: Rural | AB112: 0 | AC112: 0 | AD112: 7 | AE112: 3 | AF112: 13 | AH112: 1.783451957 | AI112: 7119.540214 | AJ112: 290 | AK112: 2.431034483 | AL112: 10.78462143 | AM112: 0.2254167659 | AN112: 3127.540214 | AO112: 1.215517241 | AP112: 0.9273547094 | AQ112: 13.96181922 | AR112: 13.06789533 | AT112: 14.52905812 | AU112: 185.4709419 | AV112: 0.3929690219 | AW112: 0.3678086619 | AX112: 13.87991786 | AY112: 12.99123781 | AZ112: 72.88433463 | BA112: 68.21781896 | BB112: 272 | BC112: 1426
B113: 108 | C113: ΑΒΕΡΩΦ | D113: 4102-ΑΒΕΡ | E113: 113 | F113: 2041 | G113: 259 | H113: 0 | I113: 1782 | J113: 0 | K113: 22 | L113: 5 | M113: 0 | N113: 17 | O113: 0 | P113: 1055 | Q113: 647 | R113: 2490 | S113: 2.531656007 | T113: 1.748069544 | U113: 1.438741212 | V113: 107.218 | W113: 51.8 | X113: 104.8235294 | Y113: 48 | Z113: 114 | AA113: Rural | AB113: 0 | AC113: 0 | AD113: 17 | AE113: 3 | AF113: 5 | AH113: 2.028967227 | AI113: 2140.560425 | AJ113: 408 | AK113: 4.517156863 | AL113: 2.660687316 | AM113: 1.697740594 | AN113: 1085.560425 | AO113: 2.258578431 | AP113: 0.6132701422 | AQ113: 38.42425543 | AR113: 77.75610171 | AT113: 18.56303318 | AU113: 29.43696682 | AV113: 0.4543859649 | AW113: 0.919504644 | AX113: 18.56303318 | AY113: 18.56303318 | AZ113: 13.37574457 | BA113: 27.0674277 | BB113: 409 | BC113: 528
B114: 109 | C114: ΑΓ.ΣΟΦΙΑΣ | D114: 4102-ΑΓΣΟ | E114: 114 | F114: 332 | G114: 0 | H114: 0 | I114: 332 | J114: 0 | K114: 4 | L114: 0 | M114: 0 | N114: 4 | O114: 0 | P114: 430 | Q114: 380 | R114: 509 | S114: 12.22361876 | T114: 12.22361876 | U114: 2.964959502 | V114: 104.436 | W114: 0 | X114: 83 | Y114: 108 | Z114: 128 | AA114: Rural | AB114: 0 | AC114: 0 | AD114: 4 | AE114: 4 | AF114: 0 | AH114: 1.351650787 | AI114: 581.2098382 | AJ114: 50 | AK114: 2.58 | AL114: 3.024196765 | AM114: 0.8531190926 | AN114: 151.2098382 | AO114: 1.29 | AP114: 0.8837209302 | AQ114: 0 | AR114: 21.1119186 | AT114: 12.55813953 | AU114: 95.44186047 | AV114: 0 | AW114: 0.6484375 | AX114: 0 | AY114: 12.55813953 | AZ114: 0 | BA114: 61.8880814 | BB114: 51 | BC114: 248
B115: 110 | C115: ΑΚΑΔΗΜΙΑΣ | D115: 4102-ΑΚΔ | E115: 115 | F115: 23089 | G115: 5686 | H115: 0 | I115: 17403 | J115: 0 | K115: 195 | L115: 44 | M115: 0 | N115: 151 | O115: 0 | P115: 9905 | Q115: 4988 | R115: 27397 | S115: 6.892803746 | T115: 2.389864949 | U115: 4.330833503 | V115: 109.266 | W115: 129.2272727 | X115: 115.2516556 | Y115: 51 | Z115: 141 | AA115: Urban | AB115: 8 | AC115: 15 | AD115: 128 | AE115: 28 | AF115: 44 | AH115: 2.313820569 | AI115: 22918.39274 | AJ115: 4917 | AK115: 4.557453732 | AL115: 2.646612312 | AM115: 1.721995213 | AN115: 13013.39274 | AO115: 2.278726866 | AP115: 0.5035840485 | AQ115: 105.6888582 | AR115: 94.2588637 | AT115: 25.31721353 | AU115: 25.68278647 | AV115: 0.9165054803 | AW115: 0.8173876286 | AX115: 25.31721353 | AY115: 25.31721353 | AZ115: 23.53841455 | BA115: 20.99279193 | BB115: 4937 | BC115: 4206 | BK115: 56.46 | BL115: 23
B116: 111 | C116: ΓΥΡΤΩΝΗΣ | D116: 4102-ΓΥΡΤ | E116: 116 | F116: 300 | G116: 68 | H116: 0 | I116: 232 | J116: 0 | K116: 4 | L116: 1 | M116: 0 | N116: 3 | O116: 0 | P116: 456 | Q116: 414 | R116: 558 | S116: 12.71049641 | T116: 12.71049641 | U116: 4.340381182 | V116: 85.782 | W116: 68 | X116: 77.33333333 | Y116: 114 | Z116: 140 | AA116: Rural | AB116: 0 | AC116: 0 | AD116: 3 | AE116: 0 | AF116: 1 | AH116: 1.384354411 | AI116: 631.2656113 | AJ116: 42 | AK116: 3.428571429 | AL116: 4.172990746 | AM116: 0.8216101202 | AN116: 175.2656113 | AO116: 1.714285714 | AP116: 0.9078947368 | AQ116: 17.72857143 | AR116: 20.16190476 | AT116: 10.5 | AU116: 103.5 | AV116: 0.4857142857 | AW116: 0.5523809524 | AX116: 10.5 | AY116: 10.5 | AZ116: 50.27142857 | BA116: 57.17142857 | BB116: 42 | BC116: 222
B117: 112 | C117: ΔΟΞΑΡΑ | D117: 4102-ΔΟΞΑ | E117: 117 | F117: 83 | G117: 42 | H117: 0 | I117: 41 | J117: 0 | K117: 2 | L117: 1 | M117: 0 | N117: 1 | O117: 0 | P117: 132 | Q117: 129 | R117: 135 | S117: 2.63644273 | T117: 2.63644273 | U117: 1.060967046 | V117: 100.5 | W117: 42 | X117: 41 | Y117: 66 | Z117: 68 | AA117: Rural | AB117: 0 | AC117: 0 | AD117: 1 | AE117: 1 | AF117: 1 | AH117: 1.094832786 | AI117: 144.5179278 | AJ117: 3 | AK117: 2 | AL117: 4.172642584 | AM117: 0.4793125602 | AN117: 12.51792775 | AO117: 1 | AP117: 0.9772727273 | AQ117: 2.161764706 | AR117: 2.110294118 | AT117: 1.5 | AU117: 64.5 | AV117: 0.6176470588 | AW117: 0.6029411765 | AX117: 1.5 | AY117: 1.5 | AZ117: 39.83823529 | BA117: 38.88970588 | BB117: 3 | BC117: 79
B118: 113 | C118: ΖΑΠΠΕΙΟ | D118: 4102-ΖΑΠΠ | E118: 118 | F118: 198 | G118: 146 | H118: 0 | I118: 52 | J118: 0 | K118: 3 | L118: 2 | M118: 0 | N118: 1 | O118: 0 | P118: 311 | Q118: 303 | R118: 320 | S118: 10.48597911 | T118: 10.48597911 | U118: 1.10617673 | V118: 100.5 | W118: 73 | X118: 52 | Y118: 104 | Z118: 107 | AA118: Rural | AB118: 0 | AC118: 0 | AD118: 1 | AE118: 1 | AF118: 2 | AH118: 1.094832786 | AI118: 340.4929964 | AJ118: 8 | AK118: 2.125 | AL118: 3.686624556 | AM118: 0.5764080306 | AN118: 29.49299645 | AO118: 1.0625 | AP118: 0.9742765273 | AQ118: 3.8718935 | AR118: 2.758061123 | AT118: 2.675241158 | AU118: 101.3247588 | AV118: 0.6822429907 | AW118: 0.4859813084 | AX118: 2.675241158 | AY118: 2.675241158 | AZ118: 69.1281065 | BA118: 49.24193888 | BB118: 9 | BC118: 188
B119: 114 | C119: Κ.ΑΙΓΑΝΗΣ | D119: 4102-ΚΑΙΓ | E119: 119 | F119: 272 | G119: 34 | H119: 0 | I119: 238 | J119: 0 | K119: 5 | L119: 1 | M119: 0 | N119: 4 | O119: 0 | P119: 593 | Q119: 555 | R119: 646 | S119: 27.6393661 | T119: 27.6393661 | U119: 0.7112933424 | V119: 82.8 | W119: 34 | X119: 59.5 | Y119: 119 | Z119: 130 | AA119: Rural | AB119: 0 | AC119: 0 | AD119: 4 | AE119: 2 | AF119: 1 | AH119: 1.314093976 | AI119: 779.2577279 | AJ119: 38 | AK119: 2.394736842 | AL119: 4.901519154 | AM119: 0.4885703324 | AN119: 186.2577279 | AO119: 1.197368421 | AP119: 0.9359190556 | AQ119: 4.871319237 | AR119: 8.524808665 | AT119: 7.625632378 | AU119: 111.3743676 | AV119: 0.2615384615 | AW119: 0.4576923077 | AX119: 4.776053963 | AY119: 7.625632378 | AZ119: 29.12868076 | BA119: 50.97519133 | BB119: 36 | BC119: 234
B120: 115 | C120: ΚΑΛΟΧΩΡΙΟΥ | D120: 4102-ΚΛΧΡ | E120: 120 | F120: 219 | G120: 162 | H120: 0 | I120: 57 | J120: 0 | K120: 2 | L120: 1 | M120: 0 | N120: 1 | O120: 0 | P120: 449 | Q120: 426 | R120: 479 | S120: 2.342354687 | T120: 2.342354687 | U120: 0.837687445 | V120: 83.393 | W120: 162 | X120: 57 | Y120: 225 | Z120: 240 | AA120: Rural | AB120: 0 | AC120: 0 | AD120: 1 | AE120: 1 | AF120: 1 | AH120: 1.289603006 | AI120: 579.0317499 | AJ120: 23 | AK120: 2.304347826 | AL120: 5.653554342 | AM120: 0.4075927615 | AN120: 130.0317499 | AO120: 1.152173913 | AP120: 0.9487750557 | AQ120: 17.90478842 | AR120: 6.299832962 | AT120: 11.52561247 | AU120: 213.4743875 | AV120: 0.675 | AW120: 0.2375 | AX120: 11.52561247 | AY120: 6.307767261 | AZ120: 144.0952116 | BA120: 50.70016704 | BB120: 18 | BC120: 195
B121: 116 | C121: ΚΑΡΥΤΣΑΣ | D121: 4102-ΚΡΤΣ | E121: 121 | F121: 147 | G121: 147 | H121: 0 | I121: 0 | J121: 0 | K121: 2 | L121: 2 | M121: 0 | N121: 0 | O121: 0 | P121: 435 | Q121: 386 | R121: 511 | S121: 0.1243471455 | T121: 0.1243471455 | U121: 0.1610684315 | V121: 80.414 | W121: 73.5 | X121: 0 | Y121: 218 | Z121: 256 | AA121: Rural | AB121: 0 | AC121: 0 | AD121: 0 | AE121: 0 | AF121: 2 | AH121: 1.412472956 | AI121: 614.4257361 | AJ121: 49 | AK121: 2.551020408 | AL121: 3.661749715 | AM121: 0.6966670599 | AN121: 179.4257361 | AO121: 1.275510204 | AP121: 0.8873563218 | AQ121: 17.96050647 | AR121: 0 | AT121: 24.55632184 | AU121: 193.4436782 | AV121: 0.287109375 | AW121: 0 | AX121: 17.98558728 | AY121: 0 | AZ121: 55.53949353 | BA121: 0 | BB121: 36 | BC121: 112
B122: 117 | C122: ΚΥΠΑΡΙΣΣΟΣ | D122: 4102-ΚΥΠΑ | E122: 122 | F122: 85 | G122: 57 | H122: 0 | I122: 28 | J122: 0 | K122: 2 | L122: 1 | M122: 0 | N122: 1 | O122: 0 | P122: 135 | Q122: 132 | R122: 138 | S122: 2.54592829 | T122: 2.54592829 | U122: 0.8265170354 | V122: 100.5 | W122: 57 | X122: 28 | Y122: 68 | Z122: 69 | AA122: Rural | AB122: 0 | AC122: 0 | AD122: 1 | AE122: 1 | AF122: 1 | AH122: 1.094832786 | AI122: 147.8024261 | AJ122: 3 | AK122: 2 | AL122: 4.26747537 | AM122: 0.46866117 | AN122: 12.80242611 | AO122: 1 | AP122: 0.9777777778 | AQ122: 2.074396135 | AR122: 1.01900161 | AT122: 1.511111111 | AU122: 66.48888889 | AV122: 0.8260869565 | AW122: 0.4057971014 | AX122: 1.511111111 | AY122: 1.226409018 | AZ122: 54.92560386 | BA122: 26.98099839 | BB122: 3 | BC122: 82
B123: 118 | C123: ΜΕΓ.ΜΟΝΑΣΤΗΡΙ | D123: 4102-ΜΕΜΟ | E123: 123 | F123: 177 | G123: 177 | H123: 0 | I123: 0 | J123: 0 | K123: 2 | L123: 2 | M123: 0 | N123: 0 | O123: 0 | P123: 278 | Q123: 271 | R123: 286 | S123: 0.006477285866 | T123: 0.006477285866 | U123: 0.7939355867 | V123: 100.5 | W123: 88.5 | X123: 0 | Y123: 139 | Z123: 143 | AA123: Rural | AB123: 0 | AC123: 0 | AD123: 0 | AE123: 0 | AF123: 2 | AH123: 1.094832786 | AI123: 304.3635145 | AJ123: 7 | AK123: 2.142857143 | AL123: 3.766216359 | AM123: 0.568968147 | AN123: 26.36351451 | AO123: 1.071428571 | AP123: 0.9748201439 | AQ123: 4.641608392 | AR123: 0 | AT123: 3.5 | AU123: 135.5 | AV123: 0.6188811189 | AW123: 0 | AX123: 3.5 | AY123: 0 | AZ123: 83.85839161 | BA123: 0 | BB123: 7 | BC123: 168
B124: 119 | C124: ΜΕΤΑΜΟΡΦΩΣΗ | D124: 4102-ΜΕΤ | E124: 124 | F124: 21345 | G124: 1641 | H124: 0 | I124: 19704 | J124: 0 | K124: 179 | L124: 14 | M124: 0 | N124: 165 | O124: 0 | P124: 9157 | Q124: 4612 | R124: 25328 | S124: 10.89452849 | T124: 3.944026042 | U124: 4.95050403 | V124: 109.266 | W124: 117.2142857 | X124: 119.4181818 | Y124: 52 | Z124: 142 | AA124: Urban | AB124: 0 | AC124: 0 | AD124: 165 | AE124: 28 | AF124: 14 | AH124: 2.313820569 | AI124: 21187.65495 | AJ124: 4545 | AK124: 4.557975798 | AL124: 2.64700879 | AM124: 1.721934515 | AN124: 12030.65495 | AO124: 2.278987899 | AP124: 0.5036584034 | AQ124: 95.59548346 | AR124: 97.39289674 | AT124: 25.80976302 | AU124: 26.19023698 | AV124: 0.8254527163 | AW124: 0.8409731114 | AX124: 25.80976302 | AY124: 25.80976302 | AZ124: 21.61880225 | BA124: 22.02528508 | BB124: 4620 | BC124: 3937 | BK124: 102.83 | BL124: 21
B125: 120 | C125: ΜΑΚΡΥΧΩΡΙΟΥ | D125: 4102-ΜΚΡΧ | E125: 125 | F125: 756 | G125: 210 | H125: 0 | I125: 546 | J125: 140 | K125: 7 | L125: 2 | M125: 0 | N125: 5 | O125: 1 | P125: 1547 | Q125: 1466 | R125: 1652 | S125: 12.64813979 | T125: 11.5750803 | U125: 2.467932929 | V125: 83.393 | W125: 105 | X125: 101.5 | Y125: 221 | Z125: 236 | AA125: Suburban | AB125: 0 | AC125: 0 | AD125: 4 | AE125: 4 | AF125: 2 | AH125: 1.289603006 | AI125: 1995.015851 | AJ125: 81 | AK125: 2.296296296 | AL125: 5.531059887 | AM125: 0.4151638824 | AN125: 448.0158508 | AO125: 1.148148148 | AP125: 0.9476405947 | AQ125: 11.8220339 | AR125: 11.4279661 | AT125: 11.57142857 | AU125: 209.4285714 | AV125: 0.4449152542 | AW125: 0.4300847458 | AX125: 11.57142857 | AY125: 11.4279661 | AZ125: 93.1779661 | BA125: 90.0720339 | BB125: 81 | BC125: 637
B126: 121 | C126: ΜΟΣΧΟΧΩΡΙ | D126: 4102-ΜΟΣΧ | E126: 126 | F126: 197 | G126: 35 | H126: 0 | I126: 162 | J126: 0 | K126: 4 | L126: 1 | M126: 0 | N126: 3 | O126: 0 | P126: 311 | Q126: 303 | R126: 319 | S126: 30.1798315 | T126: 30.1798315 | U126: 1.233322846 | V126: 100.5 | W126: 35 | X126: 54 | Y126: 78 | Z126: 80 | AA126: Rural | AB126: 0 | AC126: 0 | AD126: 3 | AE126: 3 | AF126: 1 | AH126: 1.094832786 | AI126: 340.4929964 | AJ126: 8 | AK126: 2 | AL126: 3.686624556 | AM126: 0.5425016759 | AN126: 29.49299645 | AO126: 1 | AP126: 0.9742765273 | AQ126: 1.752813505 | AR126: 2.704340836 | AT126: 2.006430868 | AU126: 75.99356913 | AV126: 0.4375 | AW126: 0.675 | AX126: 1.75562701 | AY126: 2.006430868 | AZ126: 33.2471865 | BA126: 51.29565916 | BB126: 8 | BC126: 188
B127: 122 | C127: ΝΙΚΑΙΑ ΛΑΡ | D127: 4102-ΝΙΚΑ | E127: 127 | F127: 1378 | G127: 970 | H127: 0 | I127: 408 | J127: 0 | K127: 11 | L127: 6 | M127: 0 | N127: 5 | O127: 0 | P127: 2164 | Q127: 2110 | R127: 2226 | S127: 5.360779688 | T127: 2.102776913 | U127: 3.29827326 | V127: 100.5 | W127: 161.6666667 | X127: 81.6 | Y127: 197 | Z127: 203 | AA127: Rural | AB127: 0 | AC127: 0 | AD127: 5 | AE127: 2 | AF127: 6 | AH127: 1.094832786 | AI127: 2369.218149 | AJ127: 54 | AK127: 2.148148148 | AL127: 3.800336091 | AM127: 0.5652521505 | AN127: 205.2181489 | AO127: 1.074074074 | AP127: 0.9750462107 | AQ127: 8.693283738 | AR127: 4.387867751 | AT127: 4.915896488 | AU127: 192.0841035 | AV127: 0.7963875205 | AW127: 0.4019704433 | AX127: 4.915896488 | AY127: 4.244837602 | AZ127: 152.9733829 | BA127: 77.21213225 | BB127: 51 | BC127: 1304
B128: 123 | C128: ΚΑΝΗΘΟΣ | D128: 2201-ΚΑΝΘ | E128: 128 | F128: 4249 | G128: 1008 | H128: 0 | I128: 3241 | J128: 0 | K128: 37 | L128: 10 | M128: 0 | N128: 27 | O128: 0 | P128: 3334 | Q128: 2331 | R128: 5873 | S128: 3.388418698 | T128: 1.129903069 | U128: 2.07980445 | V128: 92.853 | W128: 100.8 | X128: 120.037037 | Y128: 91 | Z128: 159 | AA128: Suburban | AB128: 0 | AC128: 0 | AD128: 27 | AE128: 5 | AF128: 10 | AH128: 1.828456582 | AI128: 6096.074245 | AJ128: 1003 | AK128: 3.531405783 | AL128: 2.753812806 | AM128: 1.282369584 | AN128: 2762.074245 | AO128: 1.765702891 | AP128: 0.699160168 | AQ128: 60.46505416 | AR128: 72.00442406 | AT128: 27.37642472 | AU128: 63.62357528 | AV128: 0.6339622642 | AW128: 0.7549499185 | AX128: 27.37642472 | AY128: 27.37642472 | AZ128: 40.33494584 | BA128: 48.03261297 | BB128: 1013 | BC128: 1701
B129: 124 | C129: ΟΜΟΛΙΟΥ | D129: 4102-ΟΜΟΛ | E129: 129 | F129: 145 | G129: 145 | H129: 0 | I129: 0 | J129: 0 | K129: 1 | L129: 1 | M129: 0 | N129: 0 | O129: 0 | P129: 255 | Q129: 226 | R129: 300 | S129: 0.4485910371 | T129: 0 | U129: 0.4485910371 | V129: 80.414 | W129: 145 | X129: 0 | Y129: 255 | Z129: 300 | AA129: Rural | AB129: 0 | AC129: 0 | AD129: 0 | AE129: 0 | AF129: 1 | AH129: 1.412472956 | AI129: 360.1806039 | AJ129: 29 | AK129: 2.551724138 | AL129: 3.626917376 | AM129: 0.7035517696 | AN129: 105.1806039 | AO129: 1.275862069 | AP129: 0.8862745098 | AQ129: 35.76666667 | AR129: 0 | AT129: 29 | AU129: 226 | AV129: 0.4833333333 | AW129: 0 | AX129: 29 | AY129: 0 | AZ129: 109.2333333 | BA129: 0 | BB129: 29 | BC129: 110
B130: 125 | C130: ΟΜΟΡΦΟΧΩΡΙ | D130: 4102-ΟΜΟΡ | E130: 130 | F130: 498 | G130: 267 | H130: 0 | I130: 231 | J130: 0 | K130: 10 | L130: 5 | M130: 0 | N130: 5 | O130: 0 | P130: 783 | Q130: 763 | R130: 805 | S130: 2.64392686 | T130: 2.557015096 | U130: 2.340229069 | V130: 100.5 | W130: 53.4 | X130: 46.2 | Y130: 79 | Z130: 81 | AA130: Rural | AB130: 0 | AC130: 0 | AD130: 5 | AE130: 0 | AF130: 5 | AH130: 1.094832786 | AI130: 857.2540714 | AJ130: 20 | AK130: 2.1 | AL130: 3.712703572 | AM130: 0.56562555 | AN130: 74.25407144 | AO130: 1.05 | AP130: 0.9744572158 | AQ130: 2.648824559 | AR130: 2.291679675 | AT130: 2.017879949 | AU130: 76.98212005 | AV130: 0.6592592593 | AW130: 0.5703703704 | AX130: 2.017879949 | AY130: 2.017879949 | AZ130: 50.75117544 | BA130: 43.90832033 | BB130: 21 | BC130: 474
B131: 126 | C131: ΡΑΨΑΝΗΣ | D131: 4102-ΡΑΨΑ | E131: 131 | F131: 223 | G131: 0 | H131: 0 | I131: 223 | J131: 0 | K131: 3 | L131: 0 | M131: 0 | N131: 3 | O131: 0 | P131: 457 | Q131: 433 | R131: 488 | S131: 0.6958522377 | T131: 0.6958522377 | U131: 0.6922145101 | V131: 83.393 | W131: 0 | X131: 74.33333333 | Y131: 153 | Z131: 163 | AA131: Suburban | AB131: 0 | AC131: 0 | AD131: 3 | AE131: 3 | AF131: 0 | AH131: 1.289603006 | AI131: 589.3485739 | AJ131: 24 | AK131: 2.291666667 | AL131: 5.514523913 | AM131: 0.4155692682 | AN131: 132.3485739 | AO131: 1.145833333 | AP131: 0.9474835886 | AQ131: 0 | AR131: 8.224555092 | AT131: 8.035010941 | AU131: 144.9649891 | AV131: 0 | AW131: 0.4560327198 | AX131: 0 | AY131: 8.035010941 | AZ131: 0 | BA131: 66.10877824 | BB131: 25 | BC131: 199
B132: 127 | C132: ΣΥΚΟΥΡΙΟΥ | D132: 4102-ΣΥΚΟ | E132: 132 | F132: 915 | G132: 525 | H132: 0 | I132: 390 | J132: 0 | K132: 10 | L132: 6 | M132: 0 | N132: 3 | O132: 0 | P132: 2053 | Q132: 1946 | R132: 2192 | S132: 0.9037180473 | T132: 0.9037180473 | U132: 2.782477201 | V132: 83.393 | W132: 87.5 | X132: 130 | Y132: 206 | Z132: 220 | AA132: Rural | AB132: 0 | AC132: 0 | AD132: 3 | AE132: 3 | AF132: 6 | AH132: 1.289603006 | AI132: 2647.554972 | AJ132: 107 | AK132: 2.299065421 | AL132: 5.556588524 | AM132: 0.4137548445 | AN132: 594.5549721 | AO132: 1.14953271 | AP132: 0.9478811495 | AQ132: 9.838373998 | AR132: 14.6170128 | AT132: 10.7364832 | AU132: 195.2635168 | AV132: 0.3977272727 | AW132: 0.5909090909 | AX132: 9.81745118 | AY132: 10.7364832 | AZ132: 77.661626 | BA132: 115.3829872 | BB132: 92 | BC132: 813
B133: 128 | C133: ΤΕΜΠΩΝ | D133: 4102-ΤΕΜΠ | E133: 133 | F133: 189 | G133: 0 | H133: 0 | I133: 189 | J133: 118 | K133: 2 | L133: 0 | M133: 0 | N133: 2 | O133: 1 | P133: 387 | Q133: 367 | R133: 413 | S133: 8.225394004 | T133: 8.225394004 | U133: 0.6445357242 | V133: 83.393 | W133: 0 | X133: 71 | Y133: 194 | Z133: 207 | AA133: Rural | AB133: 0 | AC133: 0 | AD133: 1 | AE133: 1 | AF133: 0 | AH133: 1.289603006 | AI133: 499.0763635 | AJ133: 20 | AK133: 2.3 | AL133: 5.603818173 | AM133: 0.4104344447 | AN133: 112.0763635 | AO133: 1.15 | AP133: 0.9483204134 | AQ133: 0 | AR133: 7.897751813 | AT133: 10.02583979 | AU133: 183.9741602 | AV133: 0 | AW133: 0.3429951691 | AX133: 0 | AY133: 7.909273615 | AZ133: 0 | BA133: 63.10224819 | BB133: 16 | BC133: 127
B134: 129 | C134: ΦΙΛΕΛΛΗΝΩΝ | D134: 4102-ΦΙΛ | E134: 134 | F134: 14405 | G134: 4413 | H134: 0 | I134: 9992 | J134: 0 | K134: 114 | L134: 37 | M134: 0 | N134: 77 | O134: 0 | P134: 6180 | Q134: 3112 | R134: 17093 | S134: 1.775155866 | T134: 0.8187833276 | U134: 1.578633263 | V134: 109.266 | W134: 119.2702703 | X134: 129.7662338 | Y134: =ROUNDUP(IFERROR(P134/K134,0),0) -> 55 | Z134: =ROUNDUP(IFERROR(R134/K134,0),0) -> 150 | AA134: Urban | AB134: 19 | AC134: 14 | AD134: 44 | AE134: 0 | AF134: =L134-M134 -> 37 | AH134: 2.313820569 | AI134: 14299.41112 | AJ134: 3068 | AK134: 4.557040417 | AL134: 2.646483415 | AM134: 1.721922908 | AN134: 8119.411118 | AO134: =IF(AM134>2,AL134,IF(AM134<=1, AK134/2,AK134/ROUNDUP(AM134,0))) -> 2.278520209 | AP134: 0.5035598706 | AQ134: 97.24837226 | AR134: 105.8063755 | AT134: 27.30420712 | AU134: 27.69579288 | AV134: =W134/Z134 -> 0.7951351351 | AW134: =X134/Z134 -> 0.8651082251 | AX134: 27.30420712 | AY134: 27.30420712 | AZ134: =AV134*AU134 -> 22.02189801 | BA134: =AW134*AU134 -> 23.95985822 | BB134: 3113 | BC134: 2660 | BK134: 63.58 | BL134: 16
B135: 130 | C135: ΧΑΛΚΗ | D135: 4102-ΧΑΛΚ | E135: 135 | F135: 476 | G135: 476 | H135: 0 | I135: 0 | J135: 0 | K135: 4 | L135: 4 | M135: 0 | N135: 0 | O135: 0 | P135: 748 | Q135: 729 | R135: 769 | S135: 0.07675484773 | T135: 0.07675484773 | U135: 1.626465877 | V135: 100.5 | W135: =IFERROR((G135-H135)/(L135-M135),0) -> 119 | X135: =IFERROR((I135-J135)/(N135-O135),0) -> 0 | Y135: 187 | Z135: 193 | AA135: Suburban | AB135: 0 | AC135: 0 | AD135: =N135-O135-AB135-AC135 -> 0 | AE135: 0 | AF135: 4 | AH135: 1.094832786 | AI135: =P135*AH135 -> 818.9349239 | AJ135: =P135-Q135 -> 19 | AK135: =(R135-Q135)/AJ135 -> 2.105263158 | AL135: =(AI135-Q135)/AJ135-1 -> 3.733417049 | AM135: =AK135/AL135 -> 0.5638971297 | AN135: =AJ135*AL135 -> 70.93492393 | AO135: 1.052631579 | AP135: =Q135/P135 -> 0.9745989305 | AQ135: =W135-AZ135 -> 6.628238342 | AR135: =X135-BA135 -> 0 | AT135: 4.75 | AU135: 182.25 | AV135: 0.6165803109 | AW135: 0 | AX135: =IF(AK135*AV135<1, AT135*AK135*AV135,AT135) -> 4.75 | AY135: =IF(AK135*AW135<1, AT135*AK135*AW135,AT135) -> 0 | AZ135: 112.3717617 | BA135: 0 | BB135: =ROUNDUP(AX135*L135+AY135*N135,0) -> 19 | BC135: =ROUNDUP(AZ135*L135+BA135*N135,0) -> 450
B136: 131 | C136: ΓΑΛΑΝΟΒΡΥΣΗΣ | D136: 4103-ΓΑΛ | E136: 136 | F136: 239 | G136: 142 | H136: 0 | I136: 97 | J136: 0 | K136: 4 | L136: 2 | M136: 0 | N136: 2 | O136: 0 | P136: 493 | Q136: 438 | R136: 555 | S136: 0.2821474344 | T136: 0.2821474344 | U136: 1.048028524 | V136: 84.92 | W136: 71 | X136: 48.5 | Y136: 124 | Z136: 139 | AA136: Rural | AB136: 0 | AC136: 0 | AD136: 2 | AE136: 2 | AF136: 2 | AH136: 1.334912077 | AI136: 658.1116542 | AJ136: 55 | AK136: 2.127272727 | AL136: 3.002030076 | AM136: 0.7086113975 | AN136: 165.1116542 | AO136: 1.063636364 | AP136: 0.8884381339 | AQ136: 14.72799043 | AR136: 10.06066952 | AT136: 13.8336714 | AU136: 110.1663286 | AV136: 0.5107913669 | AW136: 0.3489208633 | AX136: 13.8336714 | AY136: 10.26804033 | AZ136: 56.27200957 | BA136: 38.43933048 | BB136: 49 | BC136: 190
B137: 132 | C137: ΔΟΜΕΝΙΚΟΥ | D137: 4103-ΔΟΜ | E137: 137 | F137: 185 | G137: 117 | H137: 0 | I137: 68 | J137: 68 | K137: 3 | L137: 2 | M137: 0 | N137: 1 | O137: 1 | P137: 382 | Q137: 339 | R137: 430 | S137: 3.077266983 | T137: 3.077266983 | U137: 0.9717997832 | V137: 84.92 | W137: 58.5 | X137: 0 | Y137: 128 | Z137: 144 | AA137: Rural | AB137: 0 | AC137: 0 | AD137: 0 | AE137: 0 | AF137: 2 | AH137: 1.334912077 | AI137: 509.9364136 | AJ137: 43 | AK137: 2.11627907 | AL137: 2.975265432 | AM137: 0.7112908473 | AN137: 127.9364136 | AO137: 1.058139535 | AP137: 0.887434555 | AQ137: 12.35340314 | AR137: 0 | AT137: 14.40837696 | AU137: 113.591623 | AV137: 0.40625 | AW137: 0 | AX137: 12.38743455 | AY137: 0 | AZ137: 46.14659686 | BA137: 0 | BB137: 25 | BC137: 93
B138: 133 | C138: ΕΥΑΓΓΕΛΙΣΜΟΥ | D138: 4103-ΕΥΑ | E138: 138 | F138: 393 | G138: 154 | H138: 0 | I138: 239 | J138: 182 | K138: 6 | L138: 1 | M138: 0 | N138: 5 | O138: 4 | P138: 810 | Q138: 719 | R138: 912 | S138: 34.35094108 | T138: 34.35094108 | U138: 1.923447075 | V138: 84.92 | W138: 154 | X138: 57 | Y138: 135 | Z138: 152 | AA138: Suburban | AB138: 0 | AC138: 0 | AD138: 1 | AE138: 1 | AF138: 1 | AH138: 1.334912077 | AI138: 1081.278783 | AJ138: 91 | AK138: 2.120879121 | AL138: 2.981085524 | AM138: 0.711445245 | AN138: 271.2787827 | AO138: 1.06043956 | AP138: 0.887654321 | AQ138: 32.58991228 | AR138: 12.0625 | AT138: 15.16666667 | AU138: 119.8333333 | AV138: 1.013157895 | AW138: 0.375 | AX138: 15.16666667 | AY138: 12.0625 | AZ138: 121.4100877 | BA138: 44.9375 | BB138: 76 | BC138: 347
B139: =B138+1 -> 134 | C139: ΛΥΚΟΥΔΙΟΥ | D139: 4103-ΛΥΚ | E139: 139 | F139: 249 | G139: 0 | H139: 0 | I139: 249 | J139: 167 | K139: 3 | L139: 0 | M139: 0 | N139: 3 | O139: 2 | P139: 513 | Q139: 455 | R139: 578 | S139: 31.70139753 | T139: 31.70139753 | U139: 1.087526917 | V139: 84.92 | W139: 0 | X139: 82 | Y139: 171 | Z139: 193 | AA139: Rural | AB139: 0 | AC139: 0 | AD139: 1 | AE139: 1 | AF139: 0 | AH139: 1.334912077 | AI139: 684.8098957 | AJ139: 58 | AK139: 2.120689655 | AL139: 2.962239581 | AM139: 0.7159075413 | AN139: 171.8098957 | AO139: 1.060344828 | AP139: 0.8869395712 | AQ139: 0 | AR139: 17.56131261 | AT139: 19.33333333 | AU139: 151.6666667 | AV139: 0 | AW139: 0.4248704663 | AX139: 0 | AY139: 17.41968912 | AZ139: 0 | BA139: 64.43868739 | BB139: 53 | BC139: 194
B140: 135 | C140: ΜΗΛΕΑΣ | D140: 4103-ΜΗΛ | E140: 140 | F140: 125 | G140: 125 | H140: 0 | I140: 0 | J140: 0 | K140: 1 | L140: 1 | M140: 0 | N140: 0 | O140: 0 | P140: 259 | Q140: 230 | R140: 291 | S140: 0.694513994 | T140: 0 | U140: 0.694513994 | V140: 84.92 | W140: 125 | X140: 0 | Y140: 259 | Z140: 291 | AA140: Rural | AB140: 0 | AC140: 0 | AD140: 0 | AE140: 0 | AF140: 1 | AH140: 1.334912077 | AI140: 345.742228 | AJ140: 29 | AK140: 2.103448276 | AL140: 2.991111312 | AM140: 0.7032330317 | AN140: 86.74222804 | AO140: 1.051724138 | AP140: 0.888030888 | AQ140: 26.20274914 | AR140: 0 | AT140: =(1-AP140)*Y140 -> 29 | AU140: =AP140*Y140 -> 230 | AV140: 0.4295532646 | AW140: 0 | AX140: 26.20274914 | AY140: 0 | AZ140: 98.79725086 | BA140: 0 | BB140: 27 | BC140: 99
B141: 136 | C141: ΣΑΡΑΝΤΑΠΟΡΟΥ | D141: 4103-ΣΑΡ | E141: 141 | F141: 107 | G141: 107 | H141: 0 | I141: 0 | J141: 0 | K141: 2 | L141: 2 | M141: 0 | N141: 0 | O141: 0 | P141: 221 | Q141: 196 | R141: 249 | S141: 0.1024731717 | T141: 0.1024731717 | U141: 0.3179237593 | V141: 84.92 | W141: 53.5 | X141: 0 | Y141: 111 | Z141: 125 | AA141: Rural | AB141: 0 | AC141: 0 | AD141: 0 | AE141: 0 | AF141: 2 | AH141: 1.334912077 | AI141: 295.0155691 | AJ141: 25 | AK141: 2.12 | AL141: 2.960622764 | AM141: 0.7160655608 | AN141: 74.0155691 | AO141: 1.06 | AP141: 0.8868778281 | AQ141: 11.36620814 | AR141: 0 | AT141: 12.55656109 | AU141: 98.44343891 | AV141: 0.428 | AW141: 0 | AX141: 11.39332127 | AY141: 0 | AZ141: 42.13379186 | BA141: 0 | BB141: 23 | BC141: 85
B142: 137 | C142: ΑΓΙΟΚΑΜΠΟΥ | D142: 4104-ΑΓΚΑ | E142: 142 | F142: 575 | G142: 75 | H142: 40 | I142: 500 | J142: 67 | K142: 11 | L142: 2 | M142: 1 | N142: 9 | O142: 1 | P142: 1698 | Q142: 1507 | R142: 1998 | S142: 10.61180676 | T142: 10.61180676 | U142: 3.270091027 | V142: 80.414 | W142: 35 | X142: 54.125 | Y142: 155 | Z142: 182 | AA142: Suburban | AB142: 0 | AC142: 0 | AD142: 8 | AE142: 0 | AF142: 1 | AH142: 1.412472956 | AI142: 2398.37908 | AJ142: 191 | AK142: 2.570680628 | AL142: 3.666906178 | AM142: 0.7010489233 | AN142: 700.37908 | AO142: 1.285340314 | AP142: 0.8875147232 | AQ142: 8.545234212 | AR142: 13.21459434 | AT142: 17.4352179 | AU142: 137.5647821 | AV142: 0.1923076923 | AW142: 0.2973901099 | AX142: 8.619303253 | AY142: 13.32913682 | AZ142: 26.45476579 | BA142: 40.91040566 | BB142: 138 | BC142: 422
B143: 138 | C143: ΑΝΑΒΡΑΣ | D143: 4104-ΑΝΑΒ | E143: 143 | F143: 266 | G143: 107 | H143: 0 | I143: 159 | J143: 63 | K143: 4 | L143: 1 | M143: 0 | N143: 3 | O143: 1 | P143: 786 | Q143: 698 | R143: 924 | S143: 18.21314503 | T143: 18.21314503 | U143: 1.152457594 | V143: 80.414 | W143: 107 | X143: 48 | Y143: 197 | Z143: 231 | AA143: Rural | AB143: 0 | AC143: 0 | AD143: 2 | AE143: 2 | AF143: 1 | AH143: 1.412472956 | AI143: 1110.203744 | AJ143: 88 | AK143: 2.568181818 | AL143: 3.684133452 | AM143: 0.6970925054 | AN143: 324.2037438 | AO143: 1.284090909 | AP143: 0.8880407125 | AQ143: 25.9653239 | AR143: 11.64799577 | AT143: 22.05597964 | AU143: 174.9440204 | AV143: 0.4632034632 | AW143: 0.2077922078 | AX143: 22.05597964 | AY143: 11.77013317 | AZ143: 81.0346761 | BA143: 36.35200423 | BB143: 58 | BC143: 191
B144: 139 | C144: ΚΑΛΑΜΑΚΙΟΥ | D144: 4104-ΚΑΛΜ | E144: 144 | F144: 230 | G144: 143 | H144: 0 | I144: 87 | J144: 0 | K144: 3 | L144: 2 | M144: 0 | N144: 1 | O144: 0 | P144: 482 | Q144: 447 | R144: 534 | S144: 6.69026611 | T144: 6.69026611 | U144: 0.7072588862 | V144: 89.781 | W144: 71.5 | X144: 87 | Y144: 161 | Z144: 178 | AA144: Rural | AB144: 0 | AC144: 0 | AD144: 1 | AE144: 1 | AF144: 2 | AH144: 1.263931415 | AI144: 609.2149422 | AJ144: 35 | AK144: 2.485714286 | AL144: 3.634712634 | AM144: 0.6838819284 | AN144: 127.2149422 | AO144: 1.242857143 | AP144: 0.9273858921 | AQ144: 11.52470395 | AR144: 14.02306634 | AT144: 11.69087137 | AU144: 149.3091286 | AV144: 0.4016853933 | AW144: 0.4887640449 | AX144: 11.6730442 | AY144: 11.69087137 | AZ144: 59.97529605 | BA144: 72.97693366 | BB144: 36 | BC144: 193
B145: 140 | C145: ΜΕΛΙΒΟΙΑΣ | D145: 4104-ΜΕΛΒ | E145: 145 | F145: 225 | G145: 203 | H145: 0 | I145: 22 | J145: 0 | K145: 5 | L145: 4 | M145: 0 | N145: 1 | O145: 0 | P145: 665 | Q145: 590 | R145: 782 | S145: 0.6958585977 | T145: 0.6958585977 | U145: 0.5107990991 | V145: 80.414 | W145: 50.75 | X145: 22 | Y145: 133 | Z145: 157 | AA145: Rural | AB145: 0 | AC145: 0 | AD145: 1 | AE145: 1 | AF145: 4 | AH145: 1.412472956 | AI145: 939.294516 | AJ145: 75 | AK145: 2.56 | AL145: 3.657260214 | AM145: 0.6999775379 | AN145: 274.294516 | AO145: 1.28 | AP145: 0.8872180451 | AQ145: 12.6066879 | AR145: 5.464968153 | AT145: 15 | AU145: 118 | AV145: 0.3232484076 | AW145: 0.1401273885 | AX145: 12.41273885 | AY145: 5.38089172 | AZ145: 38.1433121 | BA145: 16.53503185 | BB145: 56 | BC145: 170
B146: 141 | C146: ΔΕΛΕΡΙΑ | D146: 4109-ΔΕΛΕ | E146: 146 | F146: 333 | G146: 87 | H146: 0 | I146: 246 | J146: 0 | K146: 4 | L146: 1 | M146: 0 | N146: 3 | O146: 0 | P146: 431 | Q146: 381 | R146: 510 | S146: 4.435704618 | T146: 4.435704618 | U146: 1.50277383 | V146: 104.436 | W146: 87 | X146: 82 | Y146: 108 | Z146: 128 | AA146: Rural | AB146: 0 | AC146: 0 | AD146: 3 | AE146: 3 | AF146: 1 | AH146: 1.351650787 | AI146: 582.561489 | AJ146: 50 | AK146: 2.58 | AL146: 3.031229781 | AM146: 0.851139698 | AN146: 151.561489 | AO146: 1.29 | AP146: 0.8839907193 | AQ146: 22.10955626 | AR146: 20.83889211 | AT146: 12.52900232 | AU146: 95.47099768 | AV146: 0.6796875 | AW146: 0.640625 | AX146: 12.52900232 | AY146: 12.52900232 | AZ146: 64.89044374 | BA146: 61.16110789 | BB146: 51 | BC146: 249
B147: 142 | C147: ΒΡΥΣΙΑ | D147: 4110-ΒΡΥΣ | E147: 147 | F147: 107 | G147: 107 | H147: 0 | I147: 0 | J147: 0 | K147: 1 | L147: 1 | M147: 0 | N147: 0 | O147: 0 | P147: 164 | Q147: 144 | R147: 202 | S147: 0.6742022007 | T147: 0 | U147: 0.6742022007 | V147: 96.523 | W147: 107 | X147: 0 | Y147: 164 | Z147: 202 | AA147: Rural | AB147: 0 | AC147: 0 | AD147: 0 | AE147: 0 | AF147: 1 | AH147: 1.208539771 | AI147: 198.2005225 | AJ147: 20 | AK147: 2.9 | AL147: 1.710026124 | AM147: 1.695880525 | AN147: 34.20052248 | AO147: 1.45 | AP147: 0.8780487805 | AQ147: 30.72277228 | AR147: 0 | AT147: 20 | AU147: 144 | AV147: 0.5297029703 | AW147: 0 | AX147: 20 | AY147: 0 | AZ147: 76.27722772 | BA147: 0 | BB147: 20 | BC147: 77
B148: 143 | C148: ΔΑΣΟΛΟΦΟΣ | D148: 4110-ΔΑΣΟ | E148: 148 | F148: 190 | G148: 63 | H148: 0 | I148: 127 | J148: 0 | K148: 4 | L148: 1 | M148: 0 | N148: 3 | O148: 0 | P148: 289 | Q148: 254 | R148: 358 | S148: 36.98072862 | T148: 36.98072862 | U148: 1.154833622 | V148: 96.523 | W148: 63 | X148: 42.33333333 | Y148: 73 | Z148: 90 | AA148: Rural | AB148: 0 | AC148: 0 | AD148: 3 | AE148: 3 | AF148: 1 | AH148: 1.208539771 | AI148: 349.2679939 | AJ148: 35 | AK148: 2.971428571 | AL148: 1.721942682 | AM148: 1.725625715 | AN148: 60.26799387 | AO148: 1.485714286 | AP148: 0.8788927336 | AQ148: 18.08858131 | AR148: 12.15476099 | AT148: 8.84083045 | AU148: 64.15916955 | AV148: 0.7 | AW148: 0.4703703704 | AX148: 8.84083045 | AY148: 8.84083045 | AZ148: 44.91141869 | BA148: 30.17857234 | BB148: 36 | BC148: 136
B149: 144 | C149: ΜΕΓ.ΕΥΥΔΡΙΟ | D149: 4110-ΜΕΕΥ | E149: 149 | F149: 117 | G149: 81 | H149: 0 | I149: 36 | J149: 0 | K149: 3 | L149: 2 | M149: 0 | N149: 1 | O149: 0 | P149: 179 | Q149: 157 | R149: 221 | S149: 5.110030111 | T149: 5.110030111 | U149: 0.6945232273 | V149: 96.523 | W149: 40.5 | X149: 36 | Y149: 60 | Z149: 74 | AA149: Rural | AB149: 0 | AC149: 0 | AD149: 1 | AE149: 1 | AF149: 2 | AH149: 1.208539771 | AI149: 216.328619 | AJ149: 22 | AK149: 2.909090909 | AL149: 1.696755411 | AM149: 1.714502214 | AN149: 37.32861904 | AO149: 1.454545455 | AP149: 0.8770949721 | AQ149: 11.69809754 | AR149: 10.39830892 | AT149: 7.374301676 | AU149: 52.62569832 | AV149: 0.5472972973 | AW149: 0.4864864865 | AX149: 7.374301676 | AY149: 7.374301676 | AZ149: 28.80190246 | BA149: 25.60169108 | BB149: 23 | BC149: 84
B150: 145 | C150: ΦΑΡΣΑΛΩΝ | D150: 4110-ΦΑΡΣ | E150: 150 | F150: 3589 | G150: 1480 | H150: 0 | I150: 2109 | J150: 0 | K150: 42 | L150: 16 | M150: 0 | N150: 26 | O150: 0 | P150: 5448 | Q150: 4794 | R150: 6750 | S150: 19.77019853 | T150: 2.010678224 | U150: 3.245432518 | V150: 96.523 | W150: 92.5 | X150: 81.11538462 | Y150: 130 | Z150: 161 | AA150: Suburban | AB150: 0 | AC150: 0 | AD150: 26 | AE150: 4 | AF150: 16 | AH150: 1.208539771 | AI150: 6584.124673 | AJ150: 654 | AK150: 2.990825688 | AL150: 1.73719369 | AM150: 1.72164204 | AN150: 1136.124673 | AO150: 1.495412844 | AP150: 0.8799559471 | AQ150: 26.77658221 | AR150: 23.48100286 | AT150: 15.60572687 | AU150: 114.3942731 | AV150: 0.5745341615 | AW150: 0.5038222647 | AX150: 15.60572687 | AY150: 15.60572687 | AZ150: 65.72341779 | BA150: 57.63438176 | BB150: 656 | BC150: 2551
B151: 146 | C151: ΔΑΦΝΟΣΠΗΛΙΑ | D151: 4201-ΔΑΦΝ | E151: 151 | F151: 261 | G151: 66 | H151: 0 | I151: 195 | J151: 122 | K151: 4 | L151: 1 | M151: 0 | N151: 3 | O151: 2 | P151: 223 | Q151: 183 | R151: 359 | S151: 18.71142257 | T151: 18.71142257 | U151: 1.079019221 | V151: 100.011 | W151: 66 | X151: 73 | Y151: 56 | Z151: 90 | AA151: Suburban | AB151: 0 | AC151: 0 | AD151: 1 | AE151: 1 | AF151: 1 | AH151: 1.530336134 | AI151: 341.264958 | AJ151: 40 | AK151: 4.4 | AL151: 2.95662395 | AM151: 1.488183846 | AN151: 118.264958 | AO151: 2.2 | AP151: 0.8206278027 | AQ151: 32.29955157 | AR151: 35.72526158 | AT151: 10.04484305 | AU151: 45.95515695 | AV151: 0.7333333333 | AW151: 0.8111111111 | AX151: 10.04484305 | AY151: 10.04484305 | AZ151: 33.70044843 | BA151: 37.27473842 | BB151: 41 | BC151: 146
B152: 147 | C152: ΕΛΛΗΝΟΠΥΡΓΟΣ | D152: 4201-ΕΛΛΗ | E152: 152 | F152: 67 | G152: 67 | H152: 0 | I152: 0 | J152: 0 | K152: 1 | L152: 1 | M152: 0 | N152: 0 | O152: 0 | P152: 167 | Q152: 155 | R152: 175 | S152: 0.2040385015 | T152: 0 | U152: 0.2040385015 | V152: 82.472 | W152: 67 | X152: 0 | Y152: 167 | Z152: 175 | AA152: Rural | AB152: 0 | AC152: 0 | AD152: 0 | AE152: 0 | AF152: 1 | AH152: 1.26015675 | AI152: 210.4461772 | AJ152: 12 | AK152: 1.666666667 | AL152: 3.620514769 | AM152: 0.4603396956 | AN152: 43.44617722 | AO152: 0.8333333333 | AP152: 0.9281437126 | AQ152: 7.657142857 | AR152: 0 | AT152: 12 | AU152: 155 | AV152: 0.3828571429 | AW152: 0 | AX152: 7.657142857 | AY152: 0 | AZ152: 59.34285714 | BA152: 0 | BB152: 8 | BC152: 60
B153: 148 | C153: ΚΑΡΔΙΤΣΑΣ | D153: 4201-ΚΑΡ | E153: 153 | F153: 19346 | G153: 4172 | H153: 0 | I153: 15174 | J153: 0 | K153: 159 | L153: 32 | M153: 0 | N153: 127 | O153: 0 | P153: 16461 | Q153: 13536 | R153: 26584 | S153: 47.24276136 | T153: 2.925220852 | U153: 11.09038768 | V153: 100.011 | W153: 130.375 | X153: 119.480315 | Y153: 104 | Z153: 168 | AA153: Urban | AB153: 0 | AC153: 7 | AD153: 120 | AE153: 16 | AF153: 32 | AH153: 1.530336134 | AI153: 25190.86311 | AJ153: 2925 | AK153: 4.460854701 | AL153: 2.984568584 | AM153: 1.494639702 | AN153: 8729.863109 | AO153: 2.23042735 | AP153: 0.8223072717 | AQ153: 64.00795061 | AR153: 58.65917621 | AT153: 18.48004374 | AU153: 85.51995626 | AV153: 0.7760416667 | AW153: 0.711192351 | AX153: 18.48004374 | AY153: 18.48004374 | AZ153: 66.36704939 | BA153: 60.82113875 | BB153: 2939 | BC153: 9849 | BK153: 54.7 | BL153: 19
B154: 149 | C154: ΚΑΣΤΑΝΙΑ | D154: 4201-ΚΑΣΤ | E154: 154 | F154: 58 | G154: 58 | H154: 0 | I154: 0 | J154: 0 | K154: 1 | L154: 1 | M154: 0 | N154: 0 | O154: 0 | P154: 50 | Q154: 41 | R154: 80 | S154: 0.2378562822 | T154: 0 | U154: 0.2378562822 | V154: 100.011 | W154: 58 | X154: 0 | Y154: 50 | Z154: 80 | AA154: Rural | AB154: 0 | AC154: 0 | AD154: 0 | AE154: 0 | AF154: 1 | AH154: 1.530336134 | AI154: 76.51680672 | AJ154: 9 | AK154: 4.333333333 | AL154: 2.946311858 | AM154: 1.47076533 | AN154: 26.51680672 | AO154: 2.166666667 | AP154: 0.82 | AQ154: 28.275 | AR154: 0 | AT154: 9 | AU154: 41 | AV154: 0.725 | AW154: 0 | AX154: 9 | AY154: 0 | AZ154: 29.725 | BA154: 0 | BB154: 9 | BC154: 30
B155: 150 | C155: ΜΥΡΙΝΑ ΚΑΡΔ | D155: 4201-ΜΥΡΙ | E155: 155 | F155: 333 | G155: 88 | H155: 0 | I155: 245 | J155: 0 | K155: 4 | L155: 1 | M155: 0 | N155: 3 | O155: 0 | P155: 284 | Q155: 234 | R155: 458 | S155: 18.73158766 | T155: 18.73158766 | U155: 1.770683517 | V155: 100.011 | W155: 88 | X155: 81.66666667 | Y155: 71 | Z155: 115 | AA155: Rural | AB155: 0 | AC155: 0 | AD155: 3 | AE155: 3 | AF155: 1 | AH155: 1.530336134 | AI155: 434.6154622 | AJ155: 50 | AK155: 4.48 | AL155: 3.012309244 | AM155: 1.487231103 | AN155: 150.6154622 | AO155: 2.24 | AP155: 0.823943662 | AQ155: 43.23478261 | AR155: 40.12318841 | AT155: 12.5 | AU155: 58.5 | AV155: 0.7652173913 | AW155: 0.7101449275 | AX155: 12.5 | AY155: 12.5 | AZ155: 44.76521739 | BA155: 41.54347826 | BB155: 50 | BC155: 170
B156: 151 | C156: ΞΥΝΟΝΕΡΙ | D156: 4201-ΞΥΝΟ | E156: 156 | F156: 415 | G156: 112 | H156: 0 | I156: 303 | J156: 0 | K156: 4 | L156: 1 | M156: 0 | N156: 3 | O156: 0 | P156: 354 | Q156: 291 | R156: 571 | S156: 7.752152053 | T156: 7.752152053 | U156: 1.513507918 | V156: 100.011 | W156: 112 | X156: 101 | Y156: 89 | Z156: 143 | AA156: Rural | AB156: 0 | AC156: 0 | AD156: 3 | AE156: 2 | AF156: 1 | AH156: 1.530336134 | AI156: 541.7389916 | AJ156: 63 | AK156: 4.444444444 | AL156: 2.979983994 | AM156: 1.491432321 | AN156: 187.7389916 | AO156: 2.222222222 | AP156: 0.8220338983 | AQ156: 54.69906365 | AR156: 49.32683418 | AT156: 15.83898305 | AU156: 73.16101695 | AV156: 0.7832167832 | AW156: 0.7062937063 | AX156: 15.83898305 | AY156: 15.83898305 | AZ156: 57.30093635 | BA156: 51.67316582 | BB156: 64 | BC156: 213
B157: 152 | C157: ΡΑΧΟΥΛΑ | D157: 4201-ΡΑΧΟ | E157: 157 | F157: 121 | G157: 48 | H157: 0 | I157: 73 | J157: 0 | K157: 2 | L157: 1 | M157: 0 | N157: 1 | O157: 0 | P157: 104 | Q157: 86 | R157: 167 | S157: 9.08698025 | T157: 9.08698025 | U157: 0.320285543 | V157: 100.011 | W157: 48 | X157: 73 | Y157: 52 | Z157: 84 | AA157: Suburban | AB157: 0 | AC157: 0 | AD157: 1 | AE157: 1 | AF157: 1 | AH157: 1.530336134 | AI157: 159.154958 | AJ157: 18 | AK157: 4.5 | AL157: 3.064164332 | AM157: 1.468589642 | AN157: 55.15495798 | AO157: 2.25 | AP157: 0.8269230769 | AQ157: 23.42857143 | AR157: 35.63095238 | AT157: 9 | AU157: 43 | AV157: 0.5714285714 | AW157: 0.869047619 | AX157: 9 | AY157: 9 | AZ157: 24.57142857 | BA157: 37.36904762 | BB157: 18 | BC157: 62
B158: 153 | C158: ΜΑΡΚΟ | D158: 4202-ΜΑΡΚ | E158: 158 | F158: 93 | G158: 93 | H158: 0 | I158: 0 | J158: 0 | K158: 1 | L158: 1 | M158: 0 | N158: 0 | O158: 0 | P158: 170 | Q158: 163 | R158: 175 | S158: 1.21551341 | T158: 0 | U158: 1.21551341 | V158: 98.571 | W158: 93 | X158: 0 | Y158: 170 | Z158: 175 | AA158: Rural | AB158: 0 | AC158: 0 | AD158: 0 | AE158: 0 | AF158: 1 | AH158: 1.106811006 | AI158: 188.157871 | AJ158: 7 | AK158: 1.714285714 | AL158: 2.593981571 | AM158: 0.6608704293 | AN158: 18.157871 | AO158: 0.8571428571 | AP158: 0.9588235294 | AQ158: 6.377142857 | AR158: 0 | AT158: 7 | AU158: 163 | AV158: 0.5314285714 | AW158: 0 | AX158: 6.377142857 | AY158: 0 | AZ158: 86.62285714 | BA158: 0 | BB158: 7 | BC158: 87
B159: 154 | C159: ΑΝΑΒΡΑΣ | D159: 4203-ΑΝΒΡ | E159: 159 | F159: 249 | G159: 166 | H159: 0 | I159: 83 | J159: 0 | K159: 4 | L159: 3 | M159: 0 | N159: 1 | O159: 0 | P159: 492 | Q159: 471 | R159: 511 | S159: 0.1275017195 | T159: 0.1275017195 | U159: 0.6163159999 | V159: 90.147 | W159: 55.33333333 | X159: 83 | Y159: 123 | Z159: 128 | AA159: Rural | AB159: 0 | AC159: 0 | AD159: 1 | AE159: 1 | AF159: 3 | AH159: 1.186783776 | AI159: 583.8976176 | AJ159: 21 | AK159: 1.904761905 | AL159: 4.376077029 | AM159: 0.4352669965 | AN159: 91.89761761 | AO159: 0.9523809524 | AP159: 0.9573170732 | AQ159: 4.430989583 | AR159: 6.646484375 | AT159: 5.25 | AU159: 117.75 | AV159: 0.4322916667 | AW159: 0.6484375 | AX159: 4.322916667 | AY159: 5.25 | AZ159: 50.90234375 | BA159: 76.35351562 | BB159: 19 | BC159: 230
B160: 155 | C160: ΚΑΡΠΟΧΩΡΙ | D160: 4203-ΚΑΡΠ | E160: 160 | F160: 180 | G160: 180 | H160: 0 | I160: 0 | J160: 0 | K160: 2 | L160: 2 | M160: 0 | N160: 0 | O160: 0 | P160: 355 | Q160: 340 | R160: 369 | S160: 0.09091848038 | T160: 0.09091848038 | U160: 0.7869935452 | V160: 90.147 | W160: 90 | X160: 0 | Y160: 178 | Z160: 185 | AA160: Rural | AB160: 0 | AC160: 0 | AD160: 0 | AE160: 0 | AF160: 2 | AH160: 1.186783776 | AI160: 421.3082403 | AJ160: 15 | AK160: 1.933333333 | AL160: 4.420549357 | AM160: 0.4373513736 | AN160: 66.30824035 | AO160: 0.9666666667 | AP160: 0.9577464789 | AQ160: 7.064331938 | AR160: 0 | AT160: 7.521126761 | AU160: 170.4788732 | AV160: 0.4864864865 | AW160: 0 | AX160: 7.073924629 | AY160: 0 | AZ160: 82.93566806 | BA160: 0 | BB160: 15 | BC160: 166
B161: 156 | C161: ΚΥΨΕΛΗΣ | D161: 4203-ΚΥΨΕ | E161: 161 | F161: 150 | G161: 150 | H161: 0 | I161: 0 | J161: 0 | K161: 2 | L161: 2 | M161: 0 | N161: 0 | O161: 0 | P161: 297 | Q161: 284 | R161: 308 | S161: 0.2535553557 | T161: 0.2535553557 | U161: 1.142400185 | V161: 90.147 | W161: 75 | X161: 0 | Y161: 149 | Z161: 154 | AA161: Rural | AB161: 0 | AC161: 0 | AD161: 0 | AE161: 0 | AF161: 2 | AH161: 1.186783776 | AI161: 352.4747814 | AJ161: 13 | AK161: 1.846153846 | AL161: 4.267290874 | AM161: 0.4326290147 | AN161: 55.47478136 | AO161: 0.9230769231 | AP161: 0.9562289562 | AQ161: 5.611307884 | AR161: 0 | AT161: 6.521885522 | AU161: 142.4781145 | AV161: 0.487012987 | AW161: 0 | AX161: 5.863833137 | AY161: 0 | AZ161: 69.38869212 | BA161: 0 | BB161: 12 | BC161: 139
B162: 157 | C162: ΛΟΥΤΡΟΠΗΓΗΣ | D162: 4203-ΛΟΥΤ | E162: 162 | F162: 106 | G162: 92 | H162: 92 | I162: 14 | J162: 0 | K162: 3 | L162: 2 | M162: 2 | N162: 1 | O162: 0 | P162: 210 | Q162: 201 | R162: 218 | S162: 4.647644009 | T162: 4.647644009 | U162: 0.3724514782 | V162: 90.147 | W162: 0 | X162: 14 | Y162: 70 | Z162: 73 | AA162: Rural | AB162: 0 | AC162: 0 | AD162: 1 | AE162: 1 | AF162: 0 | AH162: 1.186783776 | AI162: 249.2245929 | AJ162: 9 | AK162: 1.888888889 | AL162: 4.358288098 | AM162: 0.4334015665 | AN162: 39.22459288 | AO162: 0.9444444444 | AP162: 0.9571428571 | AQ162: 0 | AR162: 1.150684932 | AT162: 3 | AU162: 67 | AV162: 0 | AW162: 0.1917808219 | AX162: 0 | AY162: 1.086757991 | AZ162: 0 | BA162: 12.84931507 | BB162: 2 | BC162: 13
B163: 158 | C163: ΠΑΣΧΑΛΙΤΣΑΣ | D163: 4203-ΠΑΣΧ | E163: 163 | F163: 144 | G163: 0 | H163: 0 | I163: 144 | J163: 0 | K163: 2 | L163: 0 | M163: 0 | N163: 2 | O163: 0 | P163: 277 | Q163: 265 | R163: 287 | S163: 12.11188548 | T163: 12.11188548 | U163: 1.499358408 | V163: 92.695 | W163: 0 | X163: 72 | Y163: 139 | Z163: 144 | AA163: Rural | AB163: 0 | AC163: 0 | AD163: 2 | AE163: 2 | AF163: 0 | AH163: 1.162444237 | AI163: 321.9970537 | AJ163: 12 | AK163: 1.833333333 | AL163: 3.749754471 | AM163: 0.4889209007 | AN163: 44.99705365 | AO163: 0.9166666667 | AP163: 0.9566787004 | AQ163: 0 | AR163: 5.510830325 | AT163: 6.02166065 | AU163: 132.9783394 | AV163: 0 | AW163: 0.5 | AX163: 0 | AY163: 5.519855596 | AZ163: 0 | BA163: 66.48916968 | BB163: 12 | BC163: 133
B164: 159 | C164: ΦΙΛΙΑ | D164: 4203-ΦΙΛΙ | E164: 164 | F164: 227 | G164: 118 | H164: 0 | I164: 109 | J164: 0 | K164: 4 | L164: 1 | M164: 0 | N164: 3 | O164: 0 | P164: 448 | Q164: 429 | R164: 465 | S164: 6.411039764 | T164: 6.411039764 | U164: 2.13020901 | V164: 90.147 | W164: 118 | X164: 36.33333333 | Y164: 112 | Z164: 117 | AA164: Suburban | AB164: 0 | AC164: 0 | AD164: 3 | AE164: 3 | AF164: 1 | AH164: 1.186783776 | AI164: 531.6791315 | AJ164: 19 | AK164: 1.894736842 | AL164: 4.404164815 | AM164: 0.4302147903 | AN164: 83.67913148 | AO164: 0.9473684211 | AP164: 0.9575892857 | AQ164: 9.833333333 | AR164: 3.027777778 | AT164: 4.75 | AU164: 107.25 | AV164: 1.008547009 | AW164: 0.3105413105 | AX164: 4.75 | AY164: 2.794871795 | AZ164: 108.1666667 | BA164: 33.30555556 | BB164: 14 | BC164: 209
B165: 160 | C165: ΑΡΓΙΘΕΑΣ | D165: 4204-ΑΡΓΘ | E165: 165 | F165: 34 | G165: 0 | H165: 0 | I165: 34 | J165: 0 | K165: 1 | L165: 0 | M165: 0 | N165: 1 | O165: 0 | P165: 296 | Q165: 286 | R165: 300 | S165: 0.335673658 | T165: 0 | U165: 0.335673658 | V165: 56.774 | W165: 0 | X165: 34 | Y165: 296 | Z165: 300 | AA165: Rural | AB165: 0 | AC165: 0 | AD165: 1 | AE165: 1 | AF165: 0 | AH165: 1.126418663 | AI165: 333.4199243 | AJ165: 10 | AK165: 1.4 | AL165: 3.741992434 | AM165: 0.374132237 | AN165: 37.41992434 | AO165: 0.7 | AP165: 0.9662162162 | AQ165: 0 | AR165: 1.586666667 | AT165: 10 | AU165: 286 | AV165: 0 | AW165: 0.1133333333 | AX165: 0 | AY165: 1.586666667 | AZ165: 0 | BA165: 32.41333333 | BB165: 2 | BC165: 33
B166: 161 | C166: ΓΟΡΓΟΓΥΡΙ | D166: 4302-ΓΟΡ | E166: 166 | F166: 396 | G166: 138 | H166: 0 | I166: 258 | J166: 0 | K166: 7 | L166: 2 | M166: 0 | N166: 5 | O166: 0 | P166: 313 | Q166: 243 | R166: 509 | S166: 7.425008905 | T166: 7.425008905 | U166: 0.9420299127 | V166: 104.165 | W166: 69 | X166: 51.6 | Y166: 45 | Z166: 73 | AA166: Rural | AB166: 0 | AC166: 0 | AD166: 5 | AE166: 5 | AF166: 2 | AH166: 1.527824788 | AI166: 478.2091588 | AJ166: 70 | AK166: 3.8 | AL166: 2.36013084 | AM166: 1.610080228 | AN166: 165.2091588 | AO166: 1.9 | AP166: 0.7763578275 | AQ166: 35.97820474 | AR166: 26.90544006 | AT166: 10.06389776 | AU166: 34.93610224 | AV166: 0.9452054795 | AW166: 0.7068493151 | AX166: 10.06389776 | AY166: 10.06389776 | AZ166: 33.02179526 | BA166: 24.69455994 | BB166: 71 | BC166: 190
B167: 162 | C167: ΔΙΑΛΕΚΤΟ | D167: 4302-ΔΙΑ | E167: 167 | F167: 440 | G167: 186 | H167: 0 | I167: 254 | J167: 0 | K167: 5 | L167: 3 | M167: 0 | N167: 2 | O167: 0 | P167: 348 | Q167: 270 | R167: 566 | S167: 2.000075647 | T167: 2.000075647 | U167: 1.5431568 | V167: 104.165 | W167: 62 | X167: 127 | Y167: 70 | Z167: 114 | AA167: Rural | AB167: 0 | AC167: 0 | AD167: 2 | AE167: 2 | AF167: 3 | AH167: 1.527824788 | AI167: 531.6830264 | AJ167: 78 | AK167: 3.794871795 | AL167: 2.354910595 | AM167: 1.611471707 | AN167: 183.6830264 | AO167: 1.897435897 | AP167: 0.775862069 | AQ167: 32.46279492 | AR167: 66.49637024 | AT167: 15.68965517 | AU167: 54.31034483 | AV167: 0.5438596491 | AW167: 1.114035088 | AX167: 15.68965517 | AY167: 15.68965517 | AZ167: 29.53720508 | BA167: 60.50362976 | BB167: 79 | BC167: 210
B168: 163 | C168: ΜΕΓΑΛΑ ΚΑΛΥΒΙΑ | D168: 4302-ΜΚΑΛ | E168: 168 | F168: 836 | G168: 406 | H168: 0 | I168: 430 | J168: 0 | K168: 8 | L168: 3 | M168: 0 | N168: 5 | O168: 0 | P168: 932 | Q168: 779 | R168: 1301 | S168: 13.00461662 | T168: 13.00461662 | U168: 4.237641903 | V168: 94.794 | W168: 135.3333333 | X168: 86 | Y168: 117 | Z168: 163 | AA168: Suburban | AB168: 0 | AC168: 0 | AD168: 5 | AE168: 2 | AF168: 3 | AH168: 1.414416035 | AI168: 1318.235745 | AJ168: 153 | AK168: 3.411764706 | AL168: 2.524416633 | AM168: 1.35150619 | AN168: 386.2357449 | AO168: 1.705882353 | AP168: 0.8358369099 | AQ168: 54.1392129 | AR168: 34.40373628 | AT168: 19.20708155 | AU168: 97.79291845 | AV168: 0.8302658487 | AW168: 0.527607362 | AX168: 19.20708155 | AY168: 19.20708155 | AZ168: 81.19412043 | BA168: 51.59626372 | BB168: 154 | BC168: 502
B169: 164 | C169: ΠΗΓΗ | D169: 4302-ΠΗΓ | E169: 169 | F169: 738 | G169: 186 | H169: 0 | I169: 552 | J169: 0 | K169: 10 | L169: 3 | M169: 0 | N169: 7 | O169: 0 | P169: 2114 | Q169: 1952 | R169: 2225 | S169: 5.337489128 | T169: 5.337489128 | U169: 2.641945407 | V169: 80.896 | W169: 62 | X169: 78.85714286 | Y169: 212 | Z169: 223 | AA169: Rural | AB169: 0 | AC169: 0 | AD169: 7 | AE169: 3 | AF169: 3 | AH169: 1.245975153 | AI169: 2633.991472 | AJ169: 162 | AK169: 1.685185185 | AL169: 3.209823904 | AM169: 0.5250086097 | AN169: 519.9914725 | AO169: 0.8425925926 | AP169: 0.9233680227 | AQ169: 7.575115289 | AR169: 9.634708847 | AT169: 16.24597919 | AU169: 195.7540208 | AV169: 0.2780269058 | AW169: 0.3536194747 | AX169: 7.611677011 | AY169: 9.681211314 | AZ169: 54.42488471 | BA169: 69.22243401 | BB169: 91 | BC169: 648
B170: 165 | C170: ΡΙΖΩΜΑ | D170: 4302-ΡΙΖ | E170: 170 | F170: 461 | G170: 75 | H170: 0 | I170: 386 | J170: 162 | K170: 6 | L170: 1 | M170: 0 | N170: 5 | O170: 2 | P170: 365 | Q170: 283 | R170: 593 | S170: 4.403394603 | T170: 4.403394603 | U170: 1.531510805 | V170: 104.165 | W170: 75 | X170: 74.66666667 | Y170: 61 | Z170: 99 | AA170: Rural | AB170: 0 | AC170: 0 | AD170: 3 | AE170: 3 | AF170: 1 | AH170: 1.527824788 | AI170: 557.6560478 | AJ170: 82 | AK170: 3.780487805 | AL170: 2.349463997 | AM170: 1.609085225 | AN170: 192.6560478 | AO170: 1.890243902 | AP170: 0.7753424658 | AQ170: 39.16977999 | AR170: 38.99569208 | AT170: 13.70410959 | AU170: 47.29589041 | AV170: 0.7575757576 | AW170: 0.7542087542 | AX170: 13.70410959 | AY170: 13.70410959 | AZ170: 35.83022001 | BA170: 35.67097459 | BB170: 83 | BC170: 215
B171: 166 | C171: ΑΓΙΟΦΥΛΛΟ | D171: 4303-ΑΓΦΛ | E171: 171 | F171: 109 | G171: 109 | H171: 0 | I171: 0 | J171: 0 | K171: 2 | L171: 2 | M171: 0 | N171: 0 | O171: 0 | P171: 267 | Q171: 233 | R171: 311 | S171: 0.3390617764 | T171: 0.3390617764 | U171: 0.5592762279 | V171: 83.667 | W171: 54.5 | X171: 0 | Y171: 134 | Z171: 156 | AA171: Rural | AB171: 0 | AC171: 0 | AD171: 0 | AE171: 0 | AF171: 2 | AH171: 1.388961713 | AI171: 370.8527773 | AJ171: 34 | AK171: 2.294117647 | AL171: 3.054493451 | AM171: 0.7510632071 | AN171: 103.8527773 | AO171: 1.147058824 | AP171: 0.872659176 | AQ171: 13.64724383 | AR171: 0 | AT171: 17.06367041 | AU171: 116.9363296 | AV171: 0.3493589744 | AW171: 0 | AX171: 13.67602996 | AY171: 0 | AZ171: 40.85275617 | BA171: 0 | BB171: 28 | BC171: 82
B172: 167 | C172: ΑΥΡΑΣ | D172: 4303-ΑΥΡΑ | E172: 172 | F172: 222 | G172: 149 | H172: 0 | I172: 73 | J172: 0 | K172: 4 | L172: 2 | M172: 0 | N172: 2 | O172: 0 | P172: 422 | Q172: 362 | R172: 518 | S172: 2.356025515 | T172: 2.356025515 | U172: 1.111553957 | V172: 86.469 | W172: 74.5 | X172: 36.5 | Y172: 106 | Z172: 130 | AA172: Rural | AB172: 0 | AC172: 0 | AD172: 2 | AE172: 2 | AF172: 2 | AH172: 1.408138042 | AI172: 594.2342539 | AJ172: 60 | AK172: 2.6 | AL172: 2.870570898 | AM172: 0.9057431754 | AN172: 172.2342539 | AO172: 1.3 | AP172: 0.8578199052 | AQ172: 22.39074007 | AR172: 10.9699599 | AT172: 15.07109005 | AU172: 90.92890995 | AV172: 0.5730769231 | AW172: 0.2807692308 | AX172: 15.07109005 | AY172: 11.00189573 | AZ172: 52.10925993 | BA172: 25.5300401 | BB172: 53 | BC172: 156
B173: 168 | C173: ΘΕΟΠΕΤΡΑΣ | D173: 4303-ΘΕΟΠ | E173: 173 | F173: 340 | G173: 55 | H173: 0 | I173: 285 | J173: 0 | K173: 5 | L173: 1 | M173: 0 | N173: 4 | O173: 0 | P173: 831 | Q173: 724 | R173: 968 | S173: 12.66576753 | T173: 12.66576753 | U173: 1.137663595 | V173: 83.667 | W173: 55 | X173: 71.25 | Y173: 167 | Z173: 194 | AA173: Rural | AB173: 0 | AC173: 0 | AD173: 4 | AE173: 4 | AF173: 1 | AH173: 1.388961713 | AI173: 1154.227183 | AJ173: 107 | AK173: 2.280373832 | AL173: 3.020814798 | AM173: 0.7548870038 | AN173: 323.2271834 | AO173: 1.140186916 | AP173: 0.8712394705 | AQ173: 13.7508529 | AR173: 17.8136049 | AT173: 21.50300842 | AU173: 145.4969916 | AV173: 0.2835051546 | AW173: 0.3672680412 | AX173: 13.90164626 | AY173: 18.00895084 | AZ173: 41.2491471 | BA173: 53.4363951 | BB173: 86 | BC173: 255
B174: 169 | C174: ΚΟΝΙΣΚΟΥ | D174: 4303-ΚΟΝΙ | E174: 174 | F174: 102 | G174: 0 | H174: 0 | I174: 102 | J174: 0 | K174: 2 | L174: 0 | M174: 0 | N174: 2 | O174: 0 | P174: 250 | Q174: 218 | R174: 291 | S174: 53.40338959 | T174: 53.40338959 | U174: 0.8767872904 | V174: 83.667 | W174: 0 | X174: 51 | Y174: 125 | Z174: 146 | AA174: Rural | AB174: 0 | AC174: 0 | AD174: 2 | AE174: 2 | AF174: 0 | AH174: 1.388961713 | AI174: 347.2404282 | AJ174: 32 | AK174: 2.28125 | AL174: 3.038763381 | AM174: 0.7507165625 | AN174: 97.2404282 | AO174: 1.140625 | AP174: 0.872 | AQ174: 0 | AR174: 12.92465753 | AT174: 16 | AU174: 109 | AV174: 0 | AW174: 0.3493150685 | AX174: 0 | AY174: 12.75 | AZ174: 0 | BA174: 38.07534247 | BB174: 26 | BC174: 77
B175: 170 | C175: ΜΕΓ.ΚΕΡΑΣΙΑΣ | D175: 4303-ΜΕΚΕ | E175: 175 | F175: 73 | G175: 0 | H175: 0 | I175: 73 | J175: 0 | K175: 3 | L175: 0 | M175: 0 | N175: 3 | O175: 0 | P175: 179 | Q175: 156 | R175: 208 | S175: 35.80427759 | T175: 35.80427759 | U175: 0.615769251 | V175: 83.667 | W175: 0 | X175: 24.33333333 | Y175: 60 | Z175: 70 | AA175: Rural | AB175: 0 | AC175: 0 | AD175: 3 | AE175: 2 | AF175: 0 | AH175: 1.388961713 | AI175: 248.6241466 | AJ175: 23 | AK175: 2.260869565 | AL175: 3.027136808 | AM175: 0.7468673232 | AN175: 69.62414659 | AO175: 1.130434783 | AP175: 0.8715083799 | AQ175: 0 | AR175: 6.156158553 | AT175: 7.709497207 | AU175: 52.29050279 | AV175: 0 | AW175: 0.3476190476 | AX175: 0 | AY175: 6.05905826 | AZ175: 0 | BA175: 18.17717478 | BB175: 19 | BC175: 55
B176: 171 | C176: ΠΑΝΑΓΙΑΣ | D176: 4303-ΠΑΝΓ | E176: 176 | F176: 150 | G176: 90 | H176: 0 | I176: 60 | J176: 0 | K176: 2 | L176: 1 | M176: 0 | N176: 1 | O176: 0 | P176: 367 | Q176: 320 | R176: 427 | S176: 0.1072997816 | T176: 0.1072997816 | U176: 0.6116443235 | V176: 83.667 | W176: 90 | X176: 60 | Y176: 184 | Z176: 214 | AA176: Rural | AB176: 0 | AC176: 0 | AD176: 1 | AE176: 1 | AF176: 1 | AH176: 1.388961713 | AI176: 509.7489486 | AJ176: 47 | AK176: 2.276595745 | AL176: 3.037211672 | AM176: 0.7495676924 | AN176: 142.7489486 | AO176: 1.138297872 | AP176: 0.8719346049 | AQ176: 22.52692964 | AR176: 15.01795309 | AT176: 23.5640327 | AU176: 160.4359673 | AV176: 0.4205607477 | AW176: 0.2803738318 | AX176: 22.5613079 | AY176: 15.04087193 | AZ176: 67.47307036 | BA176: 44.98204691 | BB176: 38 | BC176: 113
B177: 172 | C177: ΣΚΕΠΑΡΙ | D177: 4303-ΣΚΕΠ | E177: 177 | F177: 145 | G177: 0 | H177: 0 | I177: 145 | J177: 0 | K177: 4 | L177: 0 | M177: 0 | N177: 4 | O177: 0 | P177: 355 | Q177: 309 | R177: 413 | S177: 25.33543949 | T177: 25.33543949 | U177: 1.003636521 | V177: 83.667 | W177: 0 | X177: 36.25 | Y177: 89 | Z177: 104 | AA177: Rural | AB177: 0 | AC177: 0 | AD177: 4 | AE177: 4 | AF177: 0 | AH177: 1.388961713 | AI177: 493.0814081 | AJ177: 46 | AK177: 2.260869565 | AL177: 3.00176974 | AM177: 0.7531788781 | AN177: 138.0814081 | AO177: 1.130434783 | AP177: 0.8704225352 | AQ177: 0 | AR177: 9.248070152 | AT177: 11.53239437 | AU177: 77.46760563 | AV177: 0 | AW177: 0.3485576923 | AX177: 0 | AY177: 9.088028169 | AZ177: 0 | BA177: 27.00192985 | BB177: 37 | BC177: 109
B178: 173 | C178: ΝΕΡΑΪΔΟΧΩΡΙ | D178: 4306-ΝΕΡΔ | E178: 178 | F178: 136 | G178: 0 | H178: 0 | I178: 136 | J178: 0 | K178: 3 | L178: 0 | M178: 0 | N178: 3 | O178: 0 | P178: 390 | Q178: 360 | R178: 410 | S178: 2.515544476 | T178: 2.515544476 | U178: 0.7246506063 | V178: 80.896 | W178: 0 | X178: 45.33333333 | Y178: 130 | Z178: 137 | AA178: Rural | AB178: 0 | AC178: 0 | AD178: 3 | AE178: 3 | AF178: 0 | AH178: 1.245975153 | AI178: 485.9303095 | AJ178: 30 | AK178: 1.666666667 | AL178: 3.197676983 | AM178: 0.5212117032 | AN178: 95.93030949 | AO178: 0.8333333333 | AP178: 0.9230769231 | AQ178: 0 | AR178: 5.625304136 | AT178: 10 | AU178: 120 | AV178: 0 | AW178: 0.3309002433 | AX178: 0 | AY178: 5.515004055 | AZ178: 0 | BA178: 39.7080292 | BB178: 17 | BC178: 120
B179: 174 | C179: ΠΑΛΑΙΟΜΟΝΑΣΤΗΡΟ | D179: 4306-ΠΑΛΜ | E179: 179 | F179: 576 | G179: 170 | H179: 0 | I179: 406 | J179: 0 | K179: 6 | L179: 2 | M179: 0 | N179: 4 | O179: 0 | P179: 1650 | Q179: 1524 | R179: 1737 | S179: 8.379731745 | T179: 8.379731745 | U179: 2.055273841 | V179: 80.896 | W179: 85 | X179: 101.5 | Y179: 275 | Z179: 290 | AA179: Rural | AB179: 0 | AC179: 0 | AD179: 4 | AE179: 1 | AF179: 2 | AH179: 1.245975153 | AI179: 2055.859002 | AJ179: 126 | AK179: 1.69047619 | AL179: 3.221103188 | AM179: 0.5248128023 | AN179: 405.8590017 | AO179: 0.8452380952 | AP179: 0.9236363636 | AQ179: 10.55172414 | AR179: 12.6 | AT179: 21 | AU179: 254 | AV179: 0.2931034483 | AW179: 0.35 | AX179: 10.40517241 | AY179: 12.425 | AZ179: 74.44827586 | BA179: 88.9 | BB179: 71 | BC179: 505
B180: 175 | C180: ΡΟΠΩΤΟ | D180: 4306-ΡΟΠΩ | E180: 180 | F180: 50 | G180: 38 | H180: 0 | I180: 12 | J180: 0 | K180: 3 | L180: 1 | M180: 0 | N180: 2 | O180: 0 | P180: 144 | Q180: 133 | R180: 151 | S180: 1.882527945 | T180: 1.882527945 | U180: 0.657142857 | V180: 80.896 | W180: 38 | X180: 6 | Y180: 48 | Z180: 51 | AA180: Suburban | AB180: 0 | AC180: 0 | AD180: 2 | AE180: 2 | AF180: 1 | AH180: 1.245975153 | AI180: 179.420422 | AJ180: 11 | AK180: 1.636363636 | AL180: 3.220038361 | AM180: 0.5081814106 | AN180: 35.42042197 | AO180: 0.8181818182 | AP180: 0.9236111111 | AQ180: 4.967320261 | AR180: 0.7843137255 | AT180: 3.666666667 | AU180: 44.33333333 | AV180: 0.7450980392 | AW180: 0.1176470588 | AX180: 3.666666667 | AY180: 0.7058823529 | AZ180: 33.03267974 | BA180: 5.215686275 | BB180: 6 | BC180: 44
B181: 176 | C181: ΒΑΣΙΛΙΚΑ | D181: 1901-ΒΑΣΙ | E181: 181 | F181: 169 | G181: 0 | H181: 0 | I181: 169 | J181: 169 | K181: 3 | L181: 0 | M181: 0 | N181: 3 | O181: 3 | P181: 152 | Q181: 106 | R181: 253 | S181: 30.55643096 | T181: 30.55643096 | U181: 0.5530952816 | V181: 91.104 | W181: 0 | X181: 0 | Y181: 51 | Z181: 85 | AA181: Suburban | AB181: 0 | AC181: 0 | AD181: 0 | AE181: 0 | AF181: 0 | AH181: 1.769991534 | AI181: 269.0387132 | AJ181: 46 | AK181: 3.195652174 | AL181: 2.544319851 | AM181: 1.255994671 | AN181: 117.0387132 | AO181: 1.597826087 | AP181: 0.6973684211 | AQ181: 0 | AR181: 0 | AT181: 15.43421053 | AU181: 35.56578947 | AV181: 0 | AW181: 0 | AX181: 0 | AY181: 0 | AZ181: 0 | BA181: 0 | BB181: 0 | BC181: 0
B182: 177 | C182: ΧΑΙΡΩΝΕΙΑ | D182: 1901-ΧΑΙΡ | E182: 182 | F182: 296 | G182: 163 | H182: 0 | I182: 133 | J182: 133 | K182: 6 | L182: 3 | M182: 0 | N182: 3 | O182: 3 | P182: 266 | Q182: 185 | R182: 443 | S182: 11.34933722 | T182: 11.34933722 | U182: 0.9984080751 | V182: 91.104 | W182: 54.33333333 | X182: 0 | Y182: 45 | Z182: 74 | AA182: Rural | AB182: 0 | AC182: 0 | AD182: 0 | AE182: 0 | AF182: 3 | AH182: 1.769991534 | AI182: 470.817748 | AJ182: 81 | AK182: 3.185185185 | AL182: 2.528614173 | AM182: 1.259656463 | AN182: 204.817748 | AO182: 1.592592593 | AP182: 0.6954887218 | AQ182: 31.35401003 | AR182: 0 | AT182: 13.70300752 | AU182: 31.29699248 | AV182: 0.7342342342 | AW182: 0 | AX182: 13.70300752 | AY182: 0 | AZ182: 22.97932331 | BA182: 0 | BB182: 42 | BC182: 69
B183: 178 | C183: ΑΓ.ΒΑΣΙΛΕΙΟΣ | D183: 1902-ΑΓΒ | E183: 183 | F183: 35 | G183: 0 | H183: 0 | I183: 35 | J183: 35 | K183: 2 | L183: 1 | M183: 0 | N183: 1 | O183: 1 | P183: 176 | Q183: 134 | R183: 250 | S183: 0.003000584075 | T183: 0.003000584075 | U183: 0.2765045818 | V183: 88.555 | W183: 0 | X183: 0 | Y183: 88 | Z183: 125 | AA183: Rural | AB183: 0 | AC183: 0 | AD183: 0 | AE183: 0 | AF183: 1 | AH183: 1.459336205 | AI183: 256.843172 | AJ183: 42 | AK183: 2.761904762 | AL183: 1.924837429 | AM183: 1.434876899 | AN183: 80.84317203 | AO183: 1.380952381 | AP183: 0.7613636364 | AQ183: 0 | AR183: 0 | AT183: 21 | AU183: 67 | AV183: 0 | AW183: 0 | AX183: 0 | AY183: 0 | AZ183: 0 | BA183: 0 | BB183: 0 | BC183: 0
B184: 179 | C184: ΒΑΓΙΑ | D184: 1902-ΒΑΓ | E184: 184 | F184: 811 | G184: 682 | H184: 0 | I184: 129 | J184: 0 | K184: 6 | L184: 5 | M184: 0 | N184: 1 | O184: 0 | P184: 910 | Q184: 692 | R184: 1299 | S184: 0.2501746796 | T184: 0.2501746796 | U184: 1.168592262 | V184: 88.555 | W184: 136.4 | X184: 129 | Y184: 152 | Z184: 217 | AA184: Suburban | AB184: 0 | AC184: 0 | AD184: 1 | AE184: 1 | AF184: 5 | AH184: 1.459336205 | AI184: 1327.995946 | AJ184: 218 | AK184: 2.78440367 | AL184: 1.917412598 | AM184: 1.452167193 | AN184: 417.9959463 | AO184: 1.392201835 | AP184: 0.7604395604 | AQ184: 63.74543171 | AR184: 60.28710184 | AT184: 36.41318681 | AU184: 115.5868132 | AV184: 0.6285714286 | AW184: 0.5944700461 | AX184: 36.41318681 | AY184: 36.41318681 | AZ184: 72.65456829 | BA184: 68.71289816 | BB184: 219 | BC184: 432
B185: 180 | C185: ΕΛΕΩΝΑΣ | D185: 1902-ΕΛΕ | E185: 185 | F185: 882 | G185: 77 | H185: 0 | I185: 805 | J185: 0 | K185: 7 | L185: 1 | M185: 0 | N185: 6 | O185: 0 | P185: 1020 | Q185: 790 | R185: 1438 | S185: 84.94574464 | T185: 84.94574464 | U185: 1.880871187 | V185: 87.691 | W185: 77 | X185: 134.1666667 | Y185: 146 | Z185: 206 | AA185: Suburban | AB185: 0 | AC185: 0 | AD185: 6 | AE185: 2 | AF185: 1 | AH185: 1.481755045 | AI185: 1511.390146 | AJ185: 230 | AK185: 2.817391304 | AL185: 2.136478897 | AM185: 1.318707762 | AN185: 491.3901462 | AO185: 1.408695652 | AP185: 0.7745098039 | AQ185: 34.73281934 | AR185: 60.51930643 | AT185: 32.92156863 | AU185: 113.0784314 | AV185: 0.3737864078 | AW185: 0.6512944984 | AX185: 32.92156863 | AY185: 32.92156863 | AZ185: 42.26718066 | BA185: 73.64736024 | BB185: 231 | BC185: 485
B186: 181 | C186: ΜΑΥΡΟΜΜΑΤΙ | D186: 1902-ΜΑΥ | E186: 186 | F186: 497 | G186: 323 | H186: 0 | I186: 174 | J186: 174 | K186: 5 | L186: 3 | M186: 0 | N186: 2 | O186: 2 | P186: 869 | Q186: 721 | R186: 1033 | S186: 5.68170259 | T186: 5.68170259 | U186: 0.7851654413 | V186: 91.592 | W186: 107.6666667 | X186: 0 | Y186: 174 | Z186: 207 | AA186: Rural | AB186: 0 | AC186: 0 | AD186: 0 | AE186: 0 | AF186: 3 | AH186: 1.336566092 | AI186: 1161.475934 | AJ186: 148 | AK186: 2.108108108 | AL186: 1.976188743 | AM186: 1.066754436 | AN186: 292.4759339 | AO186: 1.054054054 | AP186: 0.829689298 | AQ186: 32.57778111 | AR186: 0 | AT186: 29.63406214 | AU186: 144.3659379 | AV186: 0.5201288245 | AW186: 0 | AX186: 29.63406214 | AY186: 0 | AZ186: 75.08888555 | BA186: 0 | BB186: 89 | BC186: 226
B187: 182 | C187: ΝΕΟΧΩΡΑΚΙ | D187: 1902-ΝΕΟ | E187: 187 | F187: 264 | G187: 116 | H187: 0 | I187: 148 | J187: 148 | K187: 4 | L187: 2 | M187: 0 | N187: 2 | O187: 2 | P187: 362 | Q187: 291 | R187: 469 | S187: 29.20872989 | T187: 29.20872989 | U187: 0.8711259549 | V187: 85.692 | W187: 58 | X187: 0 | Y187: 91 | Z187: 118 | AA187: Rural | AB187: 0 | AC187: 0 | AD187: 0 | AE187: 0 | AF187: 2 | AH187: 1.397158646 | AI187: 505.7714298 | AJ187: 71 | AK187: 2.507042254 | AL187: 2.024949715 | AM187: 1.238076301 | AN187: 143.7714298 | AO187: 1.253521127 | AP187: 0.8038674033 | AQ187: 22.04396479 | AR187: 0 | AT187: 17.8480663 | AU187: 73.1519337 | AV187: 0.4915254237 | AW187: 0 | AX187: 17.8480663 | AY187: 0 | AZ187: 35.95603521 | BA187: 0 | BB187: 36 | BC187: 72
B188: 183 | C188: ΠΛΑΤΑΙΕΣ | D188: 1902-ΠΛΑ | E188: 188 | F188: 227 | G188: 227 | H188: 0 | I188: 0 | J188: 0 | K188: 2 | L188: 2 | M188: 0 | N188: 0 | O188: 0 | P188: 255 | Q188: 194 | R188: 364 | S188: 0.07444869052 | T188: 0.07444869052 | U188: 0.3993882735 | V188: 88.555 | W188: 113.5 | X188: 0 | Y188: 128 | Z188: 182 | AA188: Rural | AB188: 0 | AC188: 0 | AD188: 0 | AE188: 0 | AF188: 2 | AH188: 1.459336205 | AI188: 372.1307322 | AJ188: 61 | AK188: 2.786885246 | AL188: 1.920175938 | AM188: 1.451369737 | AN188: 117.1307322 | AO188: 1.393442623 | AP188: 0.7607843137 | AQ188: 52.77101918 | AR188: 0 | AT188: 30.61960784 | AU188: 97.38039216 | AV188: 0.6236263736 | AW188: 0 | AX188: 30.61960784 | AY188: 0 | AZ188: 60.72898082 | BA188: 0 | BB188: 62 | BC188: 122
B189: 184 | C189: ΑΚΡΑΙΦΝΙΟ | D189: 1903-ΑΚΡΦ | E189: 189 | F189: 471 | G189: 260 | H189: 0 | I189: 211 | J189: 211 | K189: 8 | L189: 4 | M189: 0 | N189: 4 | O189: 4 | P189: 753 | Q189: 595 | R189: 937 | S189: 17.02515759 | T189: 17.02515759 | U189: 0.9121271544 | V189: 94.936 | W189: 65 | X189: 0 | Y189: 95 | Z189: 118 | AA189: Rural | AB189: 0 | AC189: 0 | AD189: 0 | AE189: 0 | AF189: 4 | AH189: 1.339256984 | AI189: 1008.460509 | AJ189: 158 | AK189: 2.164556962 | AL189: 1.616838665 | AM189: 1.338758783 | AN189: 255.460509 | AO189: 1.082278481 | AP189: 0.7901726428 | AQ189: 23.64986382 | AR189: 0 | AT189: 19.93359894 | AU189: 75.06640106 | AV189: 0.5508474576 | AW189: 0 | AX189: 19.93359894 | AY189: 0 | AZ189: 41.35013618 | BA189: 0 | BB189: 80 | BC189: 166
B190: 185 | C190: ΚΟΚΚΙΝΟ | D190: 1903-ΚΟΚΚ | E190: 190 | F190: 0 | G190: 0 | H190: 0 | I190: 0 | J190: 0 | K190: 2 | L190: 2 | M190: 0 | N190: 0 | O190: 0 | P190: 282 | Q190: 223 | R190: 350 | S190: 0.06789836752 | T190: 0.06789836752 | U190: 0.1467842923 | V190: 94.936 | W190: 0 | X190: 0 | Y190: 141 | Z190: 175 | AA190: Rural | AB190: 0 | AC190: 0 | AD190: 0 | AE190: 0 | AF190: 2 | AH190: 1.339256984 | AI190: 377.6704695 | AJ190: 59 | AK190: 2.152542373 | AL190: 1.621533381 | AM190: 1.327473364 | AN190: 95.6704695 | AO190: 1.076271186 | AP190: 0.7907801418 | AQ190: 0 | AR190: 0 | AT190: 29.5 | AU190: 111.5 | AV190: 0 | AW190: 0 | AX190: 0 | AY190: 0 | AZ190: 0 | BA190: 0 | BB190: 0 | BC190: 0
B191: 186 | C191: ΔΙΣΤΟΜΟ | D191: 1904-ΔΙΣΤ | E191: 191 | F191: 592 | G191: 0 | H191: 0 | I191: 592 | J191: 208 | K191: 3 | L191: 0 | M191: 0 | N191: 3 | O191: 1 | P191: 868 | Q191: 645 | R191: 1260 | S191: 9.379306276 | T191: 9.379306276 | U191: 0.8829842577 | V191: 98.827 | W191: 0 | X191: 192 | Y191: 290 | Z191: 420 | AA191: Suburban | AB191: 0 | AC191: 0 | AD191: 2 | AE191: 2 | AF191: 0 | AH191: 1.79587889 | AI191: 1558.822876 | AJ191: 223 | AK191: 2.757847534 | AL191: 3.097860432 | AM191: 0.8902426672 | AN191: 690.8228764 | AO191: 1.378923767 | AP191: 0.7430875576 | AQ191: 0 | AR191: 93.48782093 | AT191: 74.50460829 | AU191: 215.4953917 | AV191: 0 | AW191: 0.4571428571 | AX191: 0 | AY191: 74.50460829 | AZ191: 0 | BA191: 98.51217907 | BB191: 224 | BC191: 296
B192: 187 | C192: ΟΡΧΟΜΕΝΟΣ | D192: 1906-ΟΡΧ | E192: 192 | F192: 1659 | G192: 845 | H192: 0 | I192: 814 | J192: 9 | K192: 19 | L192: 9 | M192: 0 | N192: 10 | O192: 1 | P192: 2602 | Q192: 2051 | R192: 3266 | S192: 20.43667603 | T192: 5.06736393 | U192: 3.446878795 | V192: 94.844 | W192: 93.88888889 | X192: 89.44444444 | Y192: 137 | Z192: 172 | AA192: Suburban | AB192: 0 | AC192: 0 | AD192: 9 | AE192: 4 | AF192: 9 | AH192: 1.349734311 | AI192: 3512.008677 | AJ192: 551 | AK192: 2.20508167 | AL192: 1.651558398 | AM192: 1.335152104 | AN192: 910.0086771 | AO192: 1.102540835 | AP192: 0.7882398155 | AQ192: 34.94148434 | AR192: 33.28744958 | AT192: 29.01114527 | AU192: 107.9888547 | AV192: 0.5458656331 | AW192: 0.5200258398 | AX192: 29.01114527 | AY192: 29.01114527 | AZ192: 58.94740455 | BA192: 56.15699487 | BB192: 552 | BC192: 1093
B193: 188 | C193: ΠΑΥΛΟ | D193: 1906-ΠΑΥΛ | E193: 193 | F193: 392 | G193: 91 | H193: 0 | I193: 301 | J193: 0 | K193: 4 | L193: 1 | M193: 0 | N193: 3 | O193: 0 | P193: 627 | Q193: 496 | R193: 780 | S193: 2.957736693 | T193: 2.957736693 | U193: 0.7798207981 | V193: 94.936 | W193: 91 | X193: 100.3333333 | Y193: 157 | Z193: 195 | AA193: Rural | AB193: 0 | AC193: 0 | AD193: 3 | AE193: 3 | AF193: 1 | AH193: 1.339256984 | AI193: 839.714129 | AJ193: 131 | AK193: 2.167938931 | AL193: 1.623771977 | AM193: 1.335125228 | AN193: 212.714129 | AO193: 1.083969466 | AP193: 0.7910685805 | AQ193: 33.041042 | AR193: 36.42986682 | AT193: 32.80223285 | AU193: 124.1977671 | AV193: 0.4666666667 | AW193: 0.5145299145 | AX193: 32.80223285 | AY193: 32.80223285 | AZ193: 57.958958 | BA193: 63.90346651 | BB193: 132 | BC193: 250
B194: 189 | C194: ΣΧΗΜΑΤΑΡΙ | D194: 1911-ΣΧΗ | E194: 194 | F194: 1908 | G194: 451 | H194: 0 | I194: 1457 | J194: 0 | K194: 13 | L194: 2 | M194: 0 | N194: 11 | O194: 0 | P194: 2974 | Q194: 2468 | R194: 3646 | S194: 4.919143476 | T194: 3.815836191 | U194: 1.413561889 | V194: 84.077 | W194: 225.5 | X194: 132.4545455 | Y194: 229 | Z194: 281 | AA194: Suburban | AB194: 0 | AC194: 0 | AD194: 11 | AE194: 0 | AF194: 2 | AH194: 1.362014808 | AI194: 4050.632039 | AJ194: 506 | AK194: 2.328063241 | AL194: 2.127731303 | AM194: 1.094152837 | AN194: 1076.632039 | AO194: 1.164031621 | AP194: 0.8298587761 | AQ194: 72.9964688 | AR194: 42.87678091 | AT194: 38.96234028 | AU194: 190.0376597 | AV194: 0.8024911032 | AW194: 0.4713684892 | AX194: 38.96234028 | AY194: 38.96234028 | AZ194: 152.5035312 | BA194: 89.57776454 | BB194: 507 | BC194: 1291
B195: 190 | C195: ΑΓ.ΤΡΙΑΔΑ | D195: 2001-ΑΓΤ | E195: 195 | F195: 91 | G195: 91 | H195: 0 | I195: 0 | J195: 0 | K195: 2 | L195: 2 | M195: 0 | N195: 0 | O195: 0 | P195: 225 | Q195: 188 | R195: 289 | S195: 0.04671768509 | T195: 0.04671768509 | U195: 0.09091673174 | V195: 73.729 | W195: 45.5 | X195: 0 | Y195: 113 | Z195: 145 | AA195: Rural | AB195: 0 | AC195: 0 | AD195: 0 | AE195: 0 | AF195: 2 | AH195: 1.432293452 | AI195: 322.2660267 | AJ195: 37 | AK195: 2.72972973 | AL195: 2.628811534 | AM195: 1.038389285 | AN195: 97.26602674 | AO195: 1.364864865 | AP195: 0.8355555556 | AQ195: 15.87235249 | AR195: 0 | AT195: 18.58222222 | AU195: 94.41777778 | AV195: 0.3137931034 | AW195: 0 | AX195: 15.91698084 | AY195: 0 | AZ195: 29.62764751 | BA195: 0 | BB195: 32 | BC195: 60
B196: 191 | C196: ΚΑΡΠΕΝΗΣΙ | D196: 2001-ΚΑΡ | E196: 197 | F196: 3380 | G196: 1485 | H196: 0 | I196: 1895 | J196: 0 | K196: 32 | L196: 11 | M196: 0 | N196: 21 | O196: 0 | P196: 4483 | Q196: 3743 | R196: 5769 | S196: 124.2621 | T196: 10.34092665 | U196: 2.582365419 | V196: 73.729 | W196: 135 | X196: 90.23809524 | Y196: 141 | Z196: 181 | AA196: Urban | AB196: 0 | AC196: 0 | AD196: 21 | AE196: 3 | AF196: 11 | AH196: 1.432293452 | AI196: 6420.971546 | AJ196: 740 | AK196: 2.737837838 | AL196: 2.618880468 | AM196: 1.045422986 | AN196: 1937.971546 | AO196: 1.368918919 | AP196: 0.8349319652 | AQ196: 47.19375714 | AR196: 31.5457389 | AT196: 23.27459291 | AU196: 117.7254071 | AV196: 0.7458563536 | AW196: 0.4985530124 | AX196: 23.27459291 | AY196: 23.27459291 | AZ196: 87.80624286 | BA196: 58.69235634 | BB196: 745 | BC196: 2199 | BK196: 32.2 | BL196: 2
B197: 192 | C197: ΚΕΡΑΣΟΧΩΡΙ | D197: 2001-ΚΕΡ | E197: 198 | F197: 52 | G197: 0 | H197: 0 | I197: 52 | J197: 0 | K197: 1 | L197: 0 | M197: 0 | N197: 1 | O197: 0 | P197: 448 | Q197: 406 | R197: 480 | S197: 0.2688407482 | T197: 0 | U197: 0.2688407482 | V197: 66.488 | W197: 0 | X197: 52 | Y197: 448 | Z197: 480 | AA197: Rural | AB197: 0 | AC197: 0 | AD197: 1 | AE197: 1 | AF197: 0 | AH197: 1.22787043 | AI197: 550.0859525 | AJ197: 42 | AK197: 1.761904762 | AL197: 2.430617917 | AM197: 0.7248793606 | AN197: 102.0859525 | AO197: 0.880952381 | AP197: 0.90625 | AQ197: 0 | AR197: 8.016666667 | AT197: 42 | AU197: 406 | AV197: 0 | AW197: 0.1083333333 | AX197: 0 | AY197: 8.016666667 | AZ197: 0 | BA197: 43.98333333 | BB197: 9 | BC197: 44
B198: 193 | C198: ΦΟΥΡΝΑ | D198: 2001-ΦΟΥ | E198: 199 | F198: 206 | G198: 0 | H198: 0 | I198: 206 | J198: 0 | K198: 4 | L198: 0 | M198: 0 | N198: 4 | O198: 0 | P198: 509 | Q198: 425 | R198: 654 | S198: 27.77671679 | T198: 27.77671679 | U198: 0.4865622585 | V198: 73.729 | W198: 0 | X198: 51.5 | Y198: =ROUNDUP(IFERROR(P198/K198,0),0) -> 128 | Z198: =ROUNDUP(IFERROR(R198/K198,0),0) -> 164 | AA198: Rural | AB198: 0 | AC198: 0 | AD198: 4 | AE198: 4 | AF198: =L198-M198 -> 0 | AH198: 1.432293452 | AI198: 729.0373672 | AJ198: 84 | AK198: 2.726190476 | AL198: 2.619492466 | AM198: 1.040732322 | AN198: 220.0373672 | AO198: =IF(AM198>2,AL198,IF(AM198<=1, AK198/2,AK198/ROUNDUP(AM198,0))) -> 1.363095238 | AP198: 0.8349705305 | AQ198: 0 | AR198: 17.9382577 | AT198: 21.1237721 | AU198: 106.8762279 | AV198: =W198/Z198 -> 0 | AW198: =X198/Z198 -> 0.3140243902 | AX198: 0 | AY198: 18.08385644 | AZ198: =AV198*AU198 -> 0 | BA198: =AW198*AU198 -> 33.5617423 | BB198: 73 | BC198: 135
B199: 194 | C199: ΑΘ.ΔΙΑΚΟΣ | D199: 2101-ΑΘΔΙ | E199: 200 | F199: 115 | G199: 43 | H199: 43 | I199: 72 | J199: 72 | K199: 3 | L199: 1 | M199: 1 | N199: 2 | O199: 2 | P199: 169 | Q199: 136 | R199: 219 | S199: 2.685806145 | T199: 2.685806145 | U199: 0.3451342225 | V199: 91.695 | W199: =IFERROR((G199-H199)/(L199-M199),0) -> 0 | X199: =IFERROR((I199-J199)/(N199-O199),0) -> 0 | Y199: 57 | Z199: 73 | AA199: Rural | AB199: 0 | AC199: 0 | AD199: =N199-O199-AB199-AC199 -> 0 | AE199: 0 | AF199: 0 | AH199: 1.626877238 | AI199: =P199*AH199 -> 274.9422532 | AJ199: =P199-Q199 -> 33 | AK199: =(R199-Q199)/AJ199 -> 2.515151515 | AL199: =(AI199-Q199)/AJ199-1 -> 3.21037131 | AM199: =AK199/AL199 -> 0.7834456742 | AN199: =AJ199*AL199 -> 105.9422532 | AO199: 1.257575758 | AP199: =Q199/P199 -> 0.8047337278 | AQ199: =W199-AZ199 -> 0 | AR199: =X199-BA199 -> 0 | AT199: 11.13017751 | AU199: 45.86982249 | AV199: 0 | AW199: 0 | AX199: =IF(AK199*AV199<1, AT199*AK199*AV199,AT199) -> 0 | AY199: =IF(AK199*AW199<1, AT199*AK199*AW199,AT199) -> 0 | AZ199: 0 | BA199: 0 | BB199: =ROUNDUP(AX199*L199+AY199*N199,0) -> 0 | BC199: =ROUNDUP(AZ199*L199+BA199*N199,0) -> 0
B200: 195 | C200: ΔΕΣΦΙΝΑ | D200: 2101-ΔΕΣΦ | E200: 201 | F200: 512 | G200: 334 | H200: 0 | I200: 178 | J200: 0 | K200: 3 | L200: 2 | M200: 0 | N200: 1 | O200: 0 | P200: 695 | Q200: 560 | R200: 900 | S200: 0.05968476895 | T200: 0.05968476895 | U200: 0.5245649168 | V200: 91.695 | W200: 167 | X200: 178 | Y200: 232 | Z200: 300 | AA200: Rural | AB200: 0 | AC200: 0 | AD200: 1 | AE200: 1 | AF200: 2 | AH200: 1.626877238 | AI200: 1130.67968 | AJ200: 135 | AK200: 2.518518519 | AL200: 3.227256892 | AM200: 0.780389849 | AN200: 435.6796804 | AO200: 1.259259259 | AP200: 0.8057553957 | AQ200: 62.9393765 | AR200: 67.08508393 | AT200: 45.0647482 | AU200: 186.9352518 | AV200: 0.5566666667 | AW200: 0.5933333333 | AX200: 45.0647482 | AY200: 45.0647482 | AZ200: 104.0606235 | BA200: 110.9149161 | BB200: 136 | BC200: 320
B201: 196 | C201: ΚΑΛΟΣΚΟΠΗ | D201: 2101-ΚΑΛ | E201: 202 | F201: 227 | G201: 0 | H201: 0 | I201: 227 | J201: 93 | K201: 2 | L201: 0 | M201: 0 | N201: 2 | O201: 1 | P201: 335 | Q201: 270 | R201: 433 | S201: 13.28823246 | T201: 13.28823246 | U201: 0.4255779192 | V201: 91.695 | W201: 0 | X201: 134 | Y201: 168 | Z201: 217 | AA201: Rural | AB201: 0 | AC201: 0 | AD201: 1 | AE201: 1 | AF201: 0 | AH201: 1.626877238 | AI201: 545.0038747 | AJ201: 65 | AK201: 2.507692308 | AL201: 3.230828842 | AM201: 0.7761761549 | AN201: 210.0038747 | AO201: 1.253846154 | AP201: 0.8059701493 | AQ201: 0 | AR201: 50.38709677 | AT201: 32.59701493 | AU201: 135.4029851 | AV201: 0 | AW201: 0.6175115207 | AX201: 0 | AY201: 32.59701493 | AZ201: 0 | BA201: 83.61290323 | BB201: 66 | BC201: 168
... 924 more rows

Sheet Trench_Deployment
B1: Trench Deployment
B3: All lengths in kilometers | D3: Network Technology | E3: Network Part | F3: Cable Type | G3: Geotype | H3: Initial Trench (km) | I3: Common with Other Segment | K3: Common with other Network | AA3: Note: 50% share of common trenches between FTTC & FTTH
M4: F2/CP2 (km) | N4: F4/CP4 (km) | W4: Ports | X4: Connected Ports | AA4: Trench w/o Reuse (km) | AB4: Minus Core Reuse (km) | AC4: Geotype Price Adjusted (km)
I5: km | J5: % | K5: km | L5: % | O5: F8/CP10 | P5: F12/CP20 | Q5: F24/CP50 | R5: F48/CP100 | S5: F96/CP200 | T5: F192/CP400 | U5: CP1000 | V5: CP2000 | Y5: Branch
A7: Index | B7: CO Name | D7: FTTC | E7: Feeder | F7: =IF(Scenario="NGA","Fiber","Copper") -> Fiber | G7: =INDEX(CO_Geotype,A8) -> Rural | H7: =IF(Scenario="NGA",[2]!Without_Subsidy,[2]!With_Subsidy) -> 16.3019239 | I7: 0 | J7: 0 | K7: 0 | L7: 0 | M7: 0 | N7: 0 | O7: 0 | P7: 9.781154 | Q7: 6.52077 | R7: 0 | S7: 0 | T7: 0 | U7: 0 | V7: 0 | W7: 96 | X7: 6 | Y7: 1 | AA7: =(H7-K7*0.5) -> 16.3019239 | AB7: =(H7 -K7*0.5)*(1-INDEX(Trench_Core_Proportion,MATCH(G7,Geotypes,0))*(1-Trench_Core_Proportion_Cost)) -> 15.98402922 | AC7: =(H7 -K7*0.5)*(1-INDEX(Trench_Core_Proportion,MATCH(G7,Geotypes,0))*(1-Trench_Core_Proportion_Cost))*INDEX(Trench_Price_Proportion,MATCH(G7,Geotypes,0)) -> 9.590417532
A8: =INDEX(CO_Index,1) -> 1 | B8: =INDEX(CO_Names,A8) -> ΔΑΒΙΑ | D8: FTTC | E8: Distribution | F8: Copper | G8: =INDEX(CO_Geotype,A8) -> Rural | H8: 3.953093653 | I8: 0 | J8: 0 | K8: 0 | L8: 0 | M8: 0 | N8: 1.385026 | O8: 2.077538 | P8: 0.346256 | Q8: 0.346256 | R8: 0.086564 | S8: 0 | T8: 0 | U8: 0 | V8: 0 | W8: 0 | X8: 0 | Y8: 0 | AA8: =H8 *IF(B11="Rural",(1-Aerial_Proportion_Rural),1)* IF(B11="Suburban",(1-Aerial_Proportion_Suburban),1) -> 0.7906187306 | AB8: =H8 *IF(B11="Rural",(1-Aerial_Proportion_Rural),1)* IF(B11="Suburban",(1-Aerial_Proportion_Suburban),1) -> 0.7906187306 | AC8: =H8 *IF(B11="Rural",(1-Aerial_Proportion_Rural),1)* IF(B11="Suburban",(1-Aerial_Proportion_Suburban),1)*INDEX(Trench_Price_Proportion,MATCH(G8,Geotypes,0)) -> 0.4743712384 | AE8: Fiber Cables | AG8: F2 | AH8: F4 | AI8: F8 | AJ8: F12 | AK8: F24 | AL8: F48 | AM8: F96 | AN8: F192
D9: FTTC | E9: Drop | F9: Copper | G9: =INDEX(CO_Geotype,A8) -> Rural | H9: 1.692 | I9: 0 | J9: 0 | K9: 0 | L9: 0 | M9: 0 | N9: 1.692 | O9: 0 | P9: 0 | Q9: 0 | R9: 0 | S9: 0 | T9: 0 | U9: 0 | V9: 0 | W9: 0 | X9: 0 | Y9: 0 | AA9: =H9 *IF(B11="Rural",(1-Aerial_Proportion_Rural),1)* IF(B11="Suburban",(1-Aerial_Proportion_Suburban),1) -> 0.3384 | AB9: =H9 *IF(B11="Rural",(1-Aerial_Proportion_Rural),1)* IF(B11="Suburban",(1-Aerial_Proportion_Suburban),1) -> 0.3384 | AC9: =H9 *IF(B11="Rural",(1-Aerial_Proportion_Rural),1)* IF(B11="Suburban",(1-Aerial_Proportion_Suburban),1)*INDEX(Trench_Price_Proportion,MATCH(G9,Geotypes,0)) -> 0.20304 | AE9: FTTC | AG9: =SUMIFS(M$7:M$19149,$F$7:$F$19149,"Fiber",$D$7:$D$19149,$AE9) -> 0 | AH9: 0 | AI9: 0 | AJ9: 5955.411524 | AK9: 2365.178318 | AL9: 584.963324 | AM9: 2238.383617 | AN9: =SUMIFS(T$7:T$19149,Trench_Cable,"Fiber",Trench_Tech,$AE9)+SUMIFS(U$7:U$19149,Trench_Cable,"Fiber",Trench_Tech,$AE9)*2+SUMIFS(V$7:V$19149,Trench_Cable,"Fiber",Trench_Tech,$AE9)*3 -> 2356.585824 | AO9: FTTC_Fiber_Lengths
B10: Geotype | D10: FTTH | E10: Feeder | F10: =IF(Scenario="NGA","Fiber","Copper") -> Fiber | G10: =INDEX(CO_Geotype,A8) -> Rural | H10: 0 | I10: 0 | J10: 0 | K10: 0 | L10: 0 | M10: 0 | N10: 0 | O10: 0 | P10: 0 | Q10: 0 | R10: 0 | S10: 0 | T10: 0 | U10: 0 | V10: 0 | W10: 0 | X10: 0 | Y10: 0 | AA10: =H10-K10*0.5 -> 0 | AB10: =(H10-K10*0.5)*(1-INDEX(Trench_Core_Proportion,MATCH(G10,Geotypes,0))*(1-Trench_Core_Proportion_Cost)) -> 0 | AC10: =(H10-K10*0.5)*(1-INDEX(Trench_Core_Proportion,MATCH(G10,Geotypes,0))*(1-Trench_Core_Proportion_Cost))*INDEX(Trench_Price_Proportion,MATCH(G10,Geotypes,0)) -> 0 | AE10: Feeder | AG10: =SUMIFS(M$7:M$19149,Trench_Cable,"Fiber",Trench_Tech,$AE$9,Trench_Segment,$AE10) -> 0 | AH10: 0 | AI10: 0 | AJ10: 5955.411524 | AK10: 2365.178318 | AL10: 584.963324 | AM10: 2238.383617 | AN10: =SUMIFS(T$7:T$19149,Trench_Cable,"Fiber",Trench_Tech,$AE$9,Trench_Segment,$AE10)+SUMIFS(U$7:U$19149,Trench_Cable,"Fiber",Trench_Tech,$AE9,Trench_Segment,$AE10)*2+SUMIFS(V$7:V$19149,Trench_Cable,"Fiber",Trench_Tech,$AE9,Trench_Segment,$AE10)*3 -> 2356.585824
